Workbook

Sheet MOM
A1: =YEAR(表A_RAW!F2)&"年"&MONTH(表A_RAW!F2)&"月" -> 2026年1月
F2: 成長及衰退前五名之產業MOM%
A4: 成長前五名之產業 MOM% | C4: 該產業成長前五名之公司 MOM% | F4: 單月營收金額(千元) | G4: 本月與上月相較 | I4: 本月與去年同期相較 | K4: 累計營收金額(千元) | L4: 累計營收與去年同期相較
A5: 成長 排名 | B5: 產業 | C5: 排名 | D5: 公司代號&簡稱 | G5: 上月營收金額(千元) | H5: 較上月變動比率(%) | I5: 去年同期金額(千元) | J5: 較去年同期變動比率(%) | L5: 去年累計營收金額(千元) | M5: 較去年同期變動比率(%)
A6: 1 | B6: =VLOOKUP(A6,表B_RAW!N:P,3,0) -> 電子通路業 | C6: 1 | D6: =VLOOKUP($B$6&C6,表B_RAW!A:D,3,0) -> 3036 文曄 | F6: =IF(ISERROR(VLOOKUP($D6,表B_RAW!$C:$I,4,0)),"",VLOOKUP($D6,表B_RAW!$C:$I,4,0)) -> 195746933 | G6: =IF(ISERROR(VLOOKUP($D6,表B_RAW!$C:$I,5,0)),"",VLOOKUP($D6,表B_RAW!$C:$I,5,0)) -> 98615954 | H6: =IF(ISERROR(VLOOKUP($D6,表B_RAW!$C:$I,6,0)),"",VLOOKUP($D6,表B_RAW!$C:$I,6,0)/100) -> 0.9849 | I6: =IF(ISERROR(VLOOKUP($D6,表A_RAW!$C:$I,5,0)),"",VLOOKUP($D6,表A_RAW!$C:$I,5,0)) -> 77779195 | J6: =IF(ISERROR(VLOOKUP($D6,表A_RAW!$C:$I,7,0)),"",VLOOKUP($D6,表A_RAW!$C:$I,7,0)) -> 1.516700424 | K6: =IF(ISERROR(VLOOKUP($D6,表C_RAW!$C:$I,4,0)),"",VLOOKUP($D6,表C_RAW!$C:$I,4,0)) -> 195746933 | L6: =IF(ISERROR(VLOOKUP($D6,表C_RAW!$C:$I,5,0)),"",VLOOKUP($D6,表C_RAW!$C:$I,5,0)) -> 77779195 | M6: =IF(ISERROR(VLOOKUP($D6,表C_RAW!$C:$I,6,0)),"",VLOOKUP($D6,表C_RAW!$C:$I,6,0)/100) -> 1.5167
C7: 2 | D7: =VLOOKUP($B$6&C7,表B_RAW!A:D,3,0) -> 3232 昱捷 | F7: =IF(ISERROR(VLOOKUP($D7,表B_RAW!$C:$I,4,0)),"",VLOOKUP($D7,表B_RAW!$C:$I,4,0)) -> 110116 | G7: =IF(ISERROR(VLOOKUP($D7,表B_RAW!$C:$I,5,0)),"",VLOOKUP($D7,表B_RAW!$C:$I,5,0)) -> 58147 | H7: =IF(ISERROR(VLOOKUP($D7,表B_RAW!$C:$I,6,0)),"",VLOOKUP($D7,表B_RAW!$C:$I,6,0)/100) -> 0.8938 | I7: =IF(ISERROR(VLOOKUP($D7,表A_RAW!$C:$I,5,0)),"",VLOOKUP($D7,表A_RAW!$C:$I,5,0)) -> 70838 | J7: =IF(ISERROR(VLOOKUP($D7,表A_RAW!$C:$I,7,0)),"",VLOOKUP($D7,表A_RAW!$C:$I,7,0)) -> 0.554476411 | K7: =IF(ISERROR(VLOOKUP($D7,表C_RAW!$C:$I,4,0)),"",VLOOKUP($D7,表C_RAW!$C:$I,4,0)) -> 110116 | L7: =IF(ISERROR(VLOOKUP($D7,表C_RAW!$C:$I,5,0)),"",VLOOKUP($D7,表C_RAW!$C:$I,5,0)) -> 70838 | M7: =IF(ISERROR(VLOOKUP($D7,表C_RAW!$C:$I,6,0)),"",VLOOKUP($D7,表C_RAW!$C:$I,6,0)/100) -> 0.5545
C8: 3 | D8: =VLOOKUP($B$6&C8,表B_RAW!A:D,3,0) -> 3209 全科 | F8: =IF(ISERROR(VLOOKUP($D8,表B_RAW!$C:$I,4,0)),"",VLOOKUP($D8,表B_RAW!$C:$I,4,0)) -> 6042999 | G8: =IF(ISERROR(VLOOKUP($D8,表B_RAW!$C:$I,5,0)),"",VLOOKUP($D8,表B_RAW!$C:$I,5,0)) -> 3259267 | H8: =IF(ISERROR(VLOOKUP($D8,表B_RAW!$C:$I,6,0)),"",VLOOKUP($D8,表B_RAW!$C:$I,6,0)/100) -> 0.8541 | I8: =IF(ISERROR(VLOOKUP($D8,表A_RAW!$C:$I,5,0)),"",VLOOKUP($D8,表A_RAW!$C:$I,5,0)) -> 5155292 | J8: =IF(ISERROR(VLOOKUP($D8,表A_RAW!$C:$I,7,0)),"",VLOOKUP($D8,表A_RAW!$C:$I,7,0)) -> 0.1721933501 | K8: =IF(ISERROR(VLOOKUP($D8,表C_RAW!$C:$I,4,0)),"",VLOOKUP($D8,表C_RAW!$C:$I,4,0)) -> 6042999 | L8: =IF(ISERROR(VLOOKUP($D8,表C_RAW!$C:$I,5,0)),"",VLOOKUP($D8,表C_RAW!$C:$I,5,0)) -> 5155292 | M8: =IF(ISERROR(VLOOKUP($D8,表C_RAW!$C:$I,6,0)),"",VLOOKUP($D8,表C_RAW!$C:$I,6,0)/100) -> 0.1722
B9: =VLOOKUP(A6,表B_RAW!N:T,7,0) -> 31.55 | C9: 4 | D9: =VLOOKUP($B$6&C9,表B_RAW!A:D,3,0) -> 3028 增你強 | F9: =IF(ISERROR(VLOOKUP($D9,表B_RAW!$C:$I,4,0)),"",VLOOKUP($D9,表B_RAW!$C:$I,4,0)) -> 6378194 | G9: =IF(ISERROR(VLOOKUP($D9,表B_RAW!$C:$I,5,0)),"",VLOOKUP($D9,表B_RAW!$C:$I,5,0)) -> 3558818 | H9: =IF(ISERROR(VLOOKUP($D9,表B_RAW!$C:$I,6,0)),"",VLOOKUP($D9,表B_RAW!$C:$I,6,0)/100) -> 0.7922 | I9: =IF(ISERROR(VLOOKUP($D9,表A_RAW!$C:$I,5,0)),"",VLOOKUP($D9,表A_RAW!$C:$I,5,0)) -> 3058362 | J9: =IF(ISERROR(VLOOKUP($D9,表A_RAW!$C:$I,7,0)),"",VLOOKUP($D9,表A_RAW!$C:$I,7,0)) -> 1.085493477 | K9: =IF(ISERROR(VLOOKUP($D9,表C_RAW!$C:$I,4,0)),"",VLOOKUP($D9,表C_RAW!$C:$I,4,0)) -> 6378194 | L9: =IF(ISERROR(VLOOKUP($D9,表C_RAW!$C:$I,5,0)),"",VLOOKUP($D9,表C_RAW!$C:$I,5,0)) -> 3058362 | M9: =IF(ISERROR(VLOOKUP($D9,表C_RAW!$C:$I,6,0)),"",VLOOKUP($D9,表C_RAW!$C:$I,6,0)/100) -> 1.0855
C10: 5 | D10: =VLOOKUP($B$6&C10,表B_RAW!A:D,3,0) -> 6113 亞矽 | F10: =IF(ISERROR(VLOOKUP($D10,表B_RAW!$C:$I,4,0)),"",VLOOKUP($D10,表B_RAW!$C:$I,4,0)) -> 76236 | G10: =IF(ISERROR(VLOOKUP($D10,表B_RAW!$C:$I,5,0)),"",VLOOKUP($D10,表B_RAW!$C:$I,5,0)) -> 44401 | H10: =IF(ISERROR(VLOOKUP($D10,表B_RAW!$C:$I,6,0)),"",VLOOKUP($D10,表B_RAW!$C:$I,6,0)/100) -> 0.717 | I10: =IF(ISERROR(VLOOKUP($D10,表A_RAW!$C:$I,5,0)),"",VLOOKUP($D10,表A_RAW!$C:$I,5,0)) -> 38169 | J10: =IF(ISERROR(VLOOKUP($D10,表A_RAW!$C:$I,7,0)),"",VLOOKUP($D10,表A_RAW!$C:$I,7,0)) -> 0.9973276743 | K10: =IF(ISERROR(VLOOKUP($D10,表C_RAW!$C:$I,4,0)),"",VLOOKUP($D10,表C_RAW!$C:$I,4,0)) -> 76236 | L10: =IF(ISERROR(VLOOKUP($D10,表C_RAW!$C:$I,5,0)),"",VLOOKUP($D10,表C_RAW!$C:$I,5,0)) -> 38169 | M10: =IF(ISERROR(VLOOKUP($D10,表C_RAW!$C:$I,6,0)),"",VLOOKUP($D10,表C_RAW!$C:$I,6,0)/100) -> 0.9973
A11: 2 | B11: =VLOOKUP(A11,表B_RAW!N:P,3,0) -> 食品工業 | C11: 1 | D11: =VLOOKUP($B$11&C11,表B_RAW!A:D,3,0) -> 1235 興泰 | F11: =IF(ISERROR(VLOOKUP($D11,表B_RAW!$C:$I,4,0)),"",VLOOKUP($D11,表B_RAW!$C:$I,4,0)) -> 23862 | G11: =IF(ISERROR(VLOOKUP($D11,表B_RAW!$C:$I,5,0)),"",VLOOKUP($D11,表B_RAW!$C:$I,5,0)) -> 11362 | H11: =IF(ISERROR(VLOOKUP($D11,表B_RAW!$C:$I,6,0)),"",VLOOKUP($D11,表B_RAW!$C:$I,6,0)/100) -> 1.1002 | I11: =IF(ISERROR(VLOOKUP($D11,表A_RAW!$C:$I,5,0)),"",VLOOKUP($D11,表A_RAW!$C:$I,5,0)) -> 8607 | J11: =IF(ISERROR(VLOOKUP($D11,表A_RAW!$C:$I,7,0)),"",VLOOKUP($D11,表A_RAW!$C:$I,7,0)) -> 1.772394563 | K11: =IF(ISERROR(VLOOKUP($D11,表C_RAW!$C:$I,4,0)),"",VLOOKUP($D11,表C_RAW!$C:$I,4,0)) -> 23862 | L11: =IF(ISERROR(VLOOKUP($D11,表C_RAW!$C:$I,5,0)),"",VLOOKUP($D11,表C_RAW!$C:$I,5,0)) -> 8607 | M11: =IF(ISERROR(VLOOKUP($D11,表C_RAW!$C:$I,6,0)),"",VLOOKUP($D11,表C_RAW!$C:$I,6,0)/100) -> 1.7724
C12: 2 | D12: =VLOOKUP($B$11&C12,表B_RAW!A:D,3,0) -> 1236 宏亞 | F12: =IF(ISERROR(VLOOKUP($D12,表B_RAW!$C:$I,4,0)),"",VLOOKUP($D12,表B_RAW!$C:$I,4,0)) -> 303656 | G12: =IF(ISERROR(VLOOKUP($D12,表B_RAW!$C:$I,5,0)),"",VLOOKUP($D12,表B_RAW!$C:$I,5,0)) -> 196864 | H12: =IF(ISERROR(VLOOKUP($D12,表B_RAW!$C:$I,6,0)),"",VLOOKUP($D12,表B_RAW!$C:$I,6,0)/100) -> 0.5425 | I12: =IF(ISERROR(VLOOKUP($D12,表A_RAW!$C:$I,5,0)),"",VLOOKUP($D12,表A_RAW!$C:$I,5,0)) -> 295078 | J12: =IF(ISERROR(VLOOKUP($D12,表A_RAW!$C:$I,7,0)),"",VLOOKUP($D12,表A_RAW!$C:$I,7,0)) -> 0.02907027972 | K12: =IF(ISERROR(VLOOKUP($D12,表C_RAW!$C:$I,4,0)),"",VLOOKUP($D12,表C_RAW!$C:$I,4,0)) -> 303656 | L12: =IF(ISERROR(VLOOKUP($D12,表C_RAW!$C:$I,5,0)),"",VLOOKUP($D12,表C_RAW!$C:$I,5,0)) -> 295078 | M12: =IF(ISERROR(VLOOKUP($D12,表C_RAW!$C:$I,6,0)),"",VLOOKUP($D12,表C_RAW!$C:$I,6,0)/100) -> 0.0291
C13: 3 | D13: =VLOOKUP($B$11&C13,表B_RAW!A:D,3,0) -> 3054 立萬利 | F13: =IF(ISERROR(VLOOKUP($D13,表B_RAW!$C:$I,4,0)),"",VLOOKUP($D13,表B_RAW!$C:$I,4,0)) -> 13427 | G13: =IF(ISERROR(VLOOKUP($D13,表B_RAW!$C:$I,5,0)),"",VLOOKUP($D13,表B_RAW!$C:$I,5,0)) -> 9041 | H13: =IF(ISERROR(VLOOKUP($D13,表B_RAW!$C:$I,6,0)),"",VLOOKUP($D13,表B_RAW!$C:$I,6,0)/100) -> 0.4851 | I13: =IF(ISERROR(VLOOKUP($D13,表A_RAW!$C:$I,5,0)),"",VLOOKUP($D13,表A_RAW!$C:$I,5,0)) -> 6052 | J13: =IF(ISERROR(VLOOKUP($D13,表A_RAW!$C:$I,7,0)),"",VLOOKUP($D13,表A_RAW!$C:$I,7,0)) -> 1.21860542 | K13: =IF(ISERROR(VLOOKUP($D13,表C_RAW!$C:$I,4,0)),"",VLOOKUP($D13,表C_RAW!$C:$I,4,0)) -> 13427 | L13: =IF(ISERROR(VLOOKUP($D13,表C_RAW!$C:$I,5,0)),"",VLOOKUP($D13,表C_RAW!$C:$I,5,0)) -> 6052 | M13: =IF(ISERROR(VLOOKUP($D13,表C_RAW!$C:$I,6,0)),"",VLOOKUP($D13,表C_RAW!$C:$I,6,0)/100) -> 1.2186
B14: =VLOOKUP(A11,表B_RAW!N:T,7,0) -> 18.35 | C14: 4 | D14: =VLOOKUP($B$11&C14,表B_RAW!A:D,3,0) -> 1217 愛之味 | F14: =IF(ISERROR(VLOOKUP($D14,表B_RAW!$C:$I,4,0)),"",VLOOKUP($D14,表B_RAW!$C:$I,4,0)) -> 462021 | G14: =IF(ISERROR(VLOOKUP($D14,表B_RAW!$C:$I,5,0)),"",VLOOKUP($D14,表B_RAW!$C:$I,5,0)) -> 314958 | H14: =IF(ISERROR(VLOOKUP($D14,表B_RAW!$C:$I,6,0)),"",VLOOKUP($D14,表B_RAW!$C:$I,6,0)/100) -> 0.4669 | I14: =IF(ISERROR(VLOOKUP($D14,表A_RAW!$C:$I,5,0)),"",VLOOKUP($D14,表A_RAW!$C:$I,5,0)) -> 469134 | J14: =IF(ISERROR(VLOOKUP($D14,表A_RAW!$C:$I,7,0)),"",VLOOKUP($D14,表A_RAW!$C:$I,7,0)) -> -0.01516197931 | K14: =IF(ISERROR(VLOOKUP($D14,表C_RAW!$C:$I,4,0)),"",VLOOKUP($D14,表C_RAW!$C:$I,4,0)) -> 462021 | L14: =IF(ISERROR(VLOOKUP($D14,表C_RAW!$C:$I,5,0)),"",VLOOKUP($D14,表C_RAW!$C:$I,5,0)) -> 469134 | M14: =IF(ISERROR(VLOOKUP($D14,表C_RAW!$C:$I,6,0)),"",VLOOKUP($D14,表C_RAW!$C:$I,6,0)/100) -> -0.0152
C15: 5 | D15: =IFERROR(VLOOKUP($B$11&C15,表B_RAW!A:D,3,0),"") -> 1227 佳格 | F15: =IF(ISERROR(VLOOKUP($D15,表B_RAW!$C:$I,4,0)),"",VLOOKUP($D15,表B_RAW!$C:$I,4,0)) -> 3796317 | G15: =IF(ISERROR(VLOOKUP($D15,表B_RAW!$C:$I,5,0)),"",VLOOKUP($D15,表B_RAW!$C:$I,5,0)) -> 2774103 | H15: =IF(ISERROR(VLOOKUP($D15,表B_RAW!$C:$I,6,0)),"",VLOOKUP($D15,表B_RAW!$C:$I,6,0)/100) -> 0.3685 | I15: =IF(ISERROR(VLOOKUP($D15,表A_RAW!$C:$I,5,0)),"",VLOOKUP($D15,表A_RAW!$C:$I,5,0)) -> 3268631 | J15: =IF(ISERROR(VLOOKUP($D15,表A_RAW!$C:$I,7,0)),"",VLOOKUP($D15,表A_RAW!$C:$I,7,0)) -> 0.1614394528 | K15: =IF(ISERROR(VLOOKUP($D15,表C_RAW!$C:$I,4,0)),"",VLOOKUP($D15,表C_RAW!$C:$I,4,0)) -> 3796317 | L15: =IF(ISERROR(VLOOKUP($D15,表C_RAW!$C:$I,5,0)),"",VLOOKUP($D15,表C_RAW!$C:$I,5,0)) -> 3268631 | M15: =IF(ISERROR(VLOOKUP($D15,表C_RAW!$C:$I,6,0)),"",VLOOKUP($D15,表C_RAW!$C:$I,6,0)/100) -> 0.1614
A16: 3 | B16: =VLOOKUP(A16,表B_RAW!N:P,3,0) -> 橡膠工業 | C16: 1 | D16: =VLOOKUP($B$16&C16,表B_RAW!A:D,3,0) -> 2104 國際中橡 | F16: =IF(ISERROR(VLOOKUP($D16,表B_RAW!$C:$I,4,0)),"",VLOOKUP($D16,表B_RAW!$C:$I,4,0)) -> 1385530 | G16: =IF(ISERROR(VLOOKUP($D16,表B_RAW!$C:$I,5,0)),"",VLOOKUP($D16,表B_RAW!$C:$I,5,0)) -> 950432 | H16: =IF(ISERROR(VLOOKUP($D16,表B_RAW!$C:$I,6,0)),"",VLOOKUP($D16,表B_RAW!$C:$I,6,0)/100) -> 0.4578 | I16: =IF(ISERROR(VLOOKUP($D16,表A_RAW!$C:$I,5,0)),"",VLOOKUP($D16,表A_RAW!$C:$I,5,0)) -> 1577721 | J16: =IF(ISERROR(VLOOKUP($D16,表A_RAW!$C:$I,7,0)),"",VLOOKUP($D16,表A_RAW!$C:$I,7,0)) -> -0.1218155808 | K16: =IF(ISERROR(VLOOKUP($D16,表C_RAW!$C:$I,4,0)),"",VLOOKUP($D16,表C_RAW!$C:$I,4,0)) -> 1385530 | L16: =IF(ISERROR(VLOOKUP($D16,表C_RAW!$C:$I,5,0)),"",VLOOKUP($D16,表C_RAW!$C:$I,5,0)) -> 1577721 | M16: =IF(ISERROR(VLOOKUP($D16,表C_RAW!$C:$I,6,0)),"",VLOOKUP($D16,表C_RAW!$C:$I,6,0)/100) -> -0.1218
C17: 2 | D17: =VLOOKUP($B$16&C17,表B_RAW!A:D,3,0) -> 2103 台橡 | F17: =IF(ISERROR(VLOOKUP($D17,表B_RAW!$C:$I,4,0)),"",VLOOKUP($D17,表B_RAW!$C:$I,4,0)) -> 3699511 | G17: =IF(ISERROR(VLOOKUP($D17,表B_RAW!$C:$I,5,0)),"",VLOOKUP($D17,表B_RAW!$C:$I,5,0)) -> 2682522 | H17: =IF(ISERROR(VLOOKUP($D17,表B_RAW!$C:$I,6,0)),"",VLOOKUP($D17,表B_RAW!$C:$I,6,0)/100) -> 0.3791 | I17: =IF(ISERROR(VLOOKUP($D17,表A_RAW!$C:$I,5,0)),"",VLOOKUP($D17,表A_RAW!$C:$I,5,0)) -> 3315658 | J17: =IF(ISERROR(VLOOKUP($D17,表A_RAW!$C:$I,7,0)),"",VLOOKUP($D17,表A_RAW!$C:$I,7,0)) -> 0.1157697808 | K17: =IF(ISERROR(VLOOKUP($D17,表C_RAW!$C:$I,4,0)),"",VLOOKUP($D17,表C_RAW!$C:$I,4,0)) -> 3699511 | L17: =IF(ISERROR(VLOOKUP($D17,表C_RAW!$C:$I,5,0)),"",VLOOKUP($D17,表C_RAW!$C:$I,5,0)) -> 3315658 | M17: =IF(ISERROR(VLOOKUP($D17,表C_RAW!$C:$I,6,0)),"",VLOOKUP($D17,表C_RAW!$C:$I,6,0)/100) -> 0.1158
C18: 3 | D18: =VLOOKUP($B$16&C18,表B_RAW!A:D,3,0) -> 2106 建大 | F18: =IF(ISERROR(VLOOKUP($D18,表B_RAW!$C:$I,4,0)),"",VLOOKUP($D18,表B_RAW!$C:$I,4,0)) -> 2858464 | G18: =IF(ISERROR(VLOOKUP($D18,表B_RAW!$C:$I,5,0)),"",VLOOKUP($D18,表B_RAW!$C:$I,5,0)) -> 2552894 | H18: =IF(ISERROR(VLOOKUP($D18,表B_RAW!$C:$I,6,0)),"",VLOOKUP($D18,表B_RAW!$C:$I,6,0)/100) -> 0.1197 | I18: =IF(ISERROR(VLOOKUP($D18,表A_RAW!$C:$I,5,0)),"",VLOOKUP($D18,表A_RAW!$C:$I,5,0)) -> 2914008 | J18: =IF(ISERROR(VLOOKUP($D18,表A_RAW!$C:$I,7,0)),"",VLOOKUP($D18,表A_RAW!$C:$I,7,0)) -> -0.01906103209 | K18: =IF(ISERROR(VLOOKUP($D18,表C_RAW!$C:$I,4,0)),"",VLOOKUP($D18,表C_RAW!$C:$I,4,0)) -> 2858464 | L18: =IF(ISERROR(VLOOKUP($D18,表C_RAW!$C:$I,5,0)),"",VLOOKUP($D18,表C_RAW!$C:$I,5,0)) -> 2914008 | M18: =IF(ISERROR(VLOOKUP($D18,表C_RAW!$C:$I,6,0)),"",VLOOKUP($D18,表C_RAW!$C:$I,6,0)/100) -> -0.0191
B19: =VLOOKUP(A16,表B_RAW!N:T,7,0) -> 16.03 | C19: 4 | D19: =VLOOKUP($B$16&C19,表B_RAW!A:D,3,0) -> 2105 正新 | F19: =IF(ISERROR(VLOOKUP($D19,表B_RAW!$C:$I,4,0)),"",VLOOKUP($D19,表B_RAW!$C:$I,4,0)) -> 7989133 | G19: =IF(ISERROR(VLOOKUP($D19,表B_RAW!$C:$I,5,0)),"",VLOOKUP($D19,表B_RAW!$C:$I,5,0)) -> 7163003 | H19: =IF(ISERROR(VLOOKUP($D19,表B_RAW!$C:$I,6,0)),"",VLOOKUP($D19,表B_RAW!$C:$I,6,0)/100) -> 0.1153 | I19: =IF(ISERROR(VLOOKUP($D19,表A_RAW!$C:$I,5,0)),"",VLOOKUP($D19,表A_RAW!$C:$I,5,0)) -> 7094410 | J19: =IF(ISERROR(VLOOKUP($D19,表A_RAW!$C:$I,7,0)),"",VLOOKUP($D19,表A_RAW!$C:$I,7,0)) -> 0.1261166186 | K19: =IF(ISERROR(VLOOKUP($D19,表C_RAW!$C:$I,4,0)),"",VLOOKUP($D19,表C_RAW!$C:$I,4,0)) -> 7989133 | L19: =IF(ISERROR(VLOOKUP($D19,表C_RAW!$C:$I,5,0)),"",VLOOKUP($D19,表C_RAW!$C:$I,5,0)) -> 7094410 | M19: =IF(ISERROR(VLOOKUP($D19,表C_RAW!$C:$I,6,0)),"",VLOOKUP($D19,表C_RAW!$C:$I,6,0)/100) -> 0.1261
C20: 5 | D20: =VLOOKUP($B$16&C20,表B_RAW!A:D,3,0) -> 2109 華豐 | F20: =IF(ISERROR(VLOOKUP($D20,表B_RAW!$C:$I,4,0)),"",VLOOKUP($D20,表B_RAW!$C:$I,4,0)) -> 390915 | G20: =IF(ISERROR(VLOOKUP($D20,表B_RAW!$C:$I,5,0)),"",VLOOKUP($D20,表B_RAW!$C:$I,5,0)) -> 366590 | H20: =IF(ISERROR(VLOOKUP($D20,表B_RAW!$C:$I,6,0)),"",VLOOKUP($D20,表B_RAW!$C:$I,6,0)/100) -> 0.0664 | I20: =IF(ISERROR(VLOOKUP($D20,表A_RAW!$C:$I,5,0)),"",VLOOKUP($D20,表A_RAW!$C:$I,5,0)) -> 401695 | J20: =IF(ISERROR(VLOOKUP($D20,表A_RAW!$C:$I,7,0)),"",VLOOKUP($D20,表A_RAW!$C:$I,7,0)) -> -0.02683628126 | K20: =IF(ISERROR(VLOOKUP($D20,表C_RAW!$C:$I,4,0)),"",VLOOKUP($D20,表C_RAW!$C:$I,4,0)) -> 390915 | L20: =IF(ISERROR(VLOOKUP($D20,表C_RAW!$C:$I,5,0)),"",VLOOKUP($D20,表C_RAW!$C:$I,5,0)) -> 401695 | M20: =IF(ISERROR(VLOOKUP($D20,表C_RAW!$C:$I,6,0)),"",VLOOKUP($D20,表C_RAW!$C:$I,6,0)/100) -> -0.0268
A21: 4 | B21: =VLOOKUP(A21,表B_RAW!N:P,3,0) -> 半導體業 | C21: 1 | D21: =VLOOKUP($B$21&C21,表B_RAW!A:D,3,0) -> 6423 億而得 | F21: =IF(ISERROR(VLOOKUP($D21,表B_RAW!$C:$I,4,0)),"",VLOOKUP($D21,表B_RAW!$C:$I,4,0)) -> 55773 | G21: =IF(ISERROR(VLOOKUP($D21,表B_RAW!$C:$I,5,0)),"",VLOOKUP($D21,表B_RAW!$C:$I,5,0)) -> 5236 | H21: =IF(ISERROR(VLOOKUP($D21,表B_RAW!$C:$I,6,0)),"",VLOOKUP($D21,表B_RAW!$C:$I,6,0)/100) -> 9.6518 | I21: =IF(ISERROR(VLOOKUP($D21,表A_RAW!$C:$I,5,0)),"",VLOOKUP($D21,表A_RAW!$C:$I,5,0)) -> 53898 | J21: =IF(ISERROR(VLOOKUP($D21,表A_RAW!$C:$I,7,0)),"",VLOOKUP($D21,表A_RAW!$C:$I,7,0)) -> 0.03478793276 | K21: =IF(ISERROR(VLOOKUP($D21,表C_RAW!$C:$I,4,0)),"",VLOOKUP($D21,表C_RAW!$C:$I,4,0)) -> 55773 | L21: =IF(ISERROR(VLOOKUP($D21,表C_RAW!$C:$I,5,0)),"",VLOOKUP($D21,表C_RAW!$C:$I,5,0)) -> 53898 | M21: =IF(ISERROR(VLOOKUP($D21,表C_RAW!$C:$I,6,0)),"",VLOOKUP($D21,表C_RAW!$C:$I,6,0)/100) -> 0.0348
C22: 2 | D22: =VLOOKUP($B$21&C22,表B_RAW!A:D,3,0) -> 3529 力旺 | F22: =IF(ISERROR(VLOOKUP($D22,表B_RAW!$C:$I,4,0)),"",VLOOKUP($D22,表B_RAW!$C:$I,4,0)) -> 667012 | G22: =IF(ISERROR(VLOOKUP($D22,表B_RAW!$C:$I,5,0)),"",VLOOKUP($D22,表B_RAW!$C:$I,5,0)) -> 80011 | H22: =IF(ISERROR(VLOOKUP($D22,表B_RAW!$C:$I,6,0)),"",VLOOKUP($D22,表B_RAW!$C:$I,6,0)/100) -> 7.3365 | I22: =IF(ISERROR(VLOOKUP($D22,表A_RAW!$C:$I,5,0)),"",VLOOKUP($D22,表A_RAW!$C:$I,5,0)) -> 545007 | J22: =IF(ISERROR(VLOOKUP($D22,表A_RAW!$C:$I,7,0)),"",VLOOKUP($D22,表A_RAW!$C:$I,7,0)) -> 0.2238595101 | K22: =IF(ISERROR(VLOOKUP($D22,表C_RAW!$C:$I,4,0)),"",VLOOKUP($D22,表C_RAW!$C:$I,4,0)) -> 667012 | L22: =IF(ISERROR(VLOOKUP($D22,表C_RAW!$C:$I,5,0)),"",VLOOKUP($D22,表C_RAW!$C:$I,5,0)) -> 545007 | M22: =IF(ISERROR(VLOOKUP($D22,表C_RAW!$C:$I,6,0)),"",VLOOKUP($D22,表C_RAW!$C:$I,6,0)/100) -> 0.2239
C23: 3 | D23: =VLOOKUP($B$21&C23,表B_RAW!A:D,3,0) -> 8271 宇瞻 | F23: =IF(ISERROR(VLOOKUP($D23,表B_RAW!$C:$I,4,0)),"",VLOOKUP($D23,表B_RAW!$C:$I,4,0)) -> 2092486 | G23: =IF(ISERROR(VLOOKUP($D23,表B_RAW!$C:$I,5,0)),"",VLOOKUP($D23,表B_RAW!$C:$I,5,0)) -> 850136 | H23: =IF(ISERROR(VLOOKUP($D23,表B_RAW!$C:$I,6,0)),"",VLOOKUP($D23,表B_RAW!$C:$I,6,0)/100) -> 1.4614 | I23: =IF(ISERROR(VLOOKUP($D23,表A_RAW!$C:$I,5,0)),"",VLOOKUP($D23,表A_RAW!$C:$I,5,0)) -> 627714 | J23: =IF(ISERROR(VLOOKUP($D23,表A_RAW!$C:$I,7,0)),"",VLOOKUP($D23,表A_RAW!$C:$I,7,0)) -> 2.3335022 | K23: =IF(ISERROR(VLOOKUP($D23,表C_RAW!$C:$I,4,0)),"",VLOOKUP($D23,表C_RAW!$C:$I,4,0)) -> 2092486 | L23: =IF(ISERROR(VLOOKUP($D23,表C_RAW!$C:$I,5,0)),"",VLOOKUP($D23,表C_RAW!$C:$I,5,0)) -> 627714 | M23: =IF(ISERROR(VLOOKUP($D23,表C_RAW!$C:$I,6,0)),"",VLOOKUP($D23,表C_RAW!$C:$I,6,0)/100) -> 2.3335
B24: =VLOOKUP(A21,表B_RAW!N:T,7,0) -> 12.47 | C24: 4 | D24: =VLOOKUP($B$21&C24,表B_RAW!A:D,3,0) -> 8054 安國 | F24: =IF(ISERROR(VLOOKUP($D24,表B_RAW!$C:$I,4,0)),"",VLOOKUP($D24,表B_RAW!$C:$I,4,0)) -> 895824 | G24: =IF(ISERROR(VLOOKUP($D24,表B_RAW!$C:$I,5,0)),"",VLOOKUP($D24,表B_RAW!$C:$I,5,0)) -> 389408 | H24: =IF(ISERROR(VLOOKUP($D24,表B_RAW!$C:$I,6,0)),"",VLOOKUP($D24,表B_RAW!$C:$I,6,0)/100) -> 1.3005 | I24: =IF(ISERROR(VLOOKUP($D24,表A_RAW!$C:$I,5,0)),"",VLOOKUP($D24,表A_RAW!$C:$I,5,0)) -> 112127 | J24: =IF(ISERROR(VLOOKUP($D24,表A_RAW!$C:$I,7,0)),"",VLOOKUP($D24,表A_RAW!$C:$I,7,0)) -> 6.989369197 | K24: =IF(ISERROR(VLOOKUP($D24,表C_RAW!$C:$I,4,0)),"",VLOOKUP($D24,表C_RAW!$C:$I,4,0)) -> 895824 | L24: =IF(ISERROR(VLOOKUP($D24,表C_RAW!$C:$I,5,0)),"",VLOOKUP($D24,表C_RAW!$C:$I,5,0)) -> 112127 | M24: =IF(ISERROR(VLOOKUP($D24,表C_RAW!$C:$I,6,0)),"",VLOOKUP($D24,表C_RAW!$C:$I,6,0)/100) -> 6.9894
C25: 5 | D25: =VLOOKUP($B$21&C25,表B_RAW!A:D,3,0) -> 4973 廣穎 | F25: =IF(ISERROR(VLOOKUP($D25,表B_RAW!$C:$I,4,0)),"",VLOOKUP($D25,表B_RAW!$C:$I,4,0)) -> 664813 | G25: =IF(ISERROR(VLOOKUP($D25,表B_RAW!$C:$I,5,0)),"",VLOOKUP($D25,表B_RAW!$C:$I,5,0)) -> 399592 | H25: =IF(ISERROR(VLOOKUP($D25,表B_RAW!$C:$I,6,0)),"",VLOOKUP($D25,表B_RAW!$C:$I,6,0)/100) -> 0.6637 | I25: =IF(ISERROR(VLOOKUP($D25,表A_RAW!$C:$I,5,0)),"",VLOOKUP($D25,表A_RAW!$C:$I,5,0)) -> 370142 | J25: =IF(ISERROR(VLOOKUP($D25,表A_RAW!$C:$I,7,0)),"",VLOOKUP($D25,表A_RAW!$C:$I,7,0)) -> 0.7961025768 | K25: =IF(ISERROR(VLOOKUP($D25,表C_RAW!$C:$I,4,0)),"",VLOOKUP($D25,表C_RAW!$C:$I,4,0)) -> 664813 | L25: =IF(ISERROR(VLOOKUP($D25,表C_RAW!$C:$I,5,0)),"",VLOOKUP($D25,表C_RAW!$C:$I,5,0)) -> 370142 | M25: =IF(ISERROR(VLOOKUP($D25,表C_RAW!$C:$I,6,0)),"",VLOOKUP($D25,表C_RAW!$C:$I,6,0)/100) -> 0.7961
A26: 5 | B26: =VLOOKUP(A26,表B_RAW!N:P,3,0) -> 汽車工業 | C26: 1 | D26: =VLOOKUP($B$26&C26,表B_RAW!A:D,3,0) -> 2227 裕日車 | F26: =IF(ISERROR(VLOOKUP($D26,表B_RAW!$C:$I,4,0)),"",VLOOKUP($D26,表B_RAW!$C:$I,4,0)) -> 1287027 | G26: =IF(ISERROR(VLOOKUP($D26,表B_RAW!$C:$I,5,0)),"",VLOOKUP($D26,表B_RAW!$C:$I,5,0)) -> 839399 | H26: =IF(ISERROR(VLOOKUP($D26,表B_RAW!$C:$I,6,0)),"",VLOOKUP($D26,表B_RAW!$C:$I,6,0)/100) -> 0.5333 | I26: =IF(ISERROR(VLOOKUP($D26,表A_RAW!$C:$I,5,0)),"",VLOOKUP($D26,表A_RAW!$C:$I,5,0)) -> 1927320 | J26: =IF(ISERROR(VLOOKUP($D26,表A_RAW!$C:$I,7,0)),"",VLOOKUP($D26,表A_RAW!$C:$I,7,0)) -> -0.3322193512 | K26: =IF(ISERROR(VLOOKUP($D26,表C_RAW!$C:$I,4,0)),"",VLOOKUP($D26,表C_RAW!$C:$I,4,0)) -> 1287027 | L26: =IF(ISERROR(VLOOKUP($D26,表C_RAW!$C:$I,5,0)),"",VLOOKUP($D26,表C_RAW!$C:$I,5,0)) -> 1927320 | M26: =IF(ISERROR(VLOOKUP($D26,表C_RAW!$C:$I,6,0)),"",VLOOKUP($D26,表C_RAW!$C:$I,6,0)/100) -> -0.3322
C27: 2 | D27: =VLOOKUP($B$26&C27,表B_RAW!A:D,3,0) -> 2236 百達-KY | F27: =IF(ISERROR(VLOOKUP($D27,表B_RAW!$C:$I,4,0)),"",VLOOKUP($D27,表B_RAW!$C:$I,4,0)) -> 962046 | G27: =IF(ISERROR(VLOOKUP($D27,表B_RAW!$C:$I,5,0)),"",VLOOKUP($D27,表B_RAW!$C:$I,5,0)) -> 681291 | H27: =IF(ISERROR(VLOOKUP($D27,表B_RAW!$C:$I,6,0)),"",VLOOKUP($D27,表B_RAW!$C:$I,6,0)/100) -> 0.4121 | I27: =IF(ISERROR(VLOOKUP($D27,表A_RAW!$C:$I,5,0)),"",VLOOKUP($D27,表A_RAW!$C:$I,5,0)) -> 913723 | J27: =IF(ISERROR(VLOOKUP($D27,表A_RAW!$C:$I,7,0)),"",VLOOKUP($D27,表A_RAW!$C:$I,7,0)) -> 0.05288583083 | K27: =IF(ISERROR(VLOOKUP($D27,表C_RAW!$C:$I,4,0)),"",VLOOKUP($D27,表C_RAW!$C:$I,4,0)) -> 962046 | L27: =IF(ISERROR(VLOOKUP($D27,表C_RAW!$C:$I,5,0)),"",VLOOKUP($D27,表C_RAW!$C:$I,5,0)) -> 913723 | M27: =IF(ISERROR(VLOOKUP($D27,表C_RAW!$C:$I,6,0)),"",VLOOKUP($D27,表C_RAW!$C:$I,6,0)/100) -> 0.0529
C28: 3 | D28: =VLOOKUP($B$26&C28,表B_RAW!A:D,3,0) -> 1563 巧新 | F28: =IF(ISERROR(VLOOKUP($D28,表B_RAW!$C:$I,4,0)),"",VLOOKUP($D28,表B_RAW!$C:$I,4,0)) -> 637198 | G28: =IF(ISERROR(VLOOKUP($D28,表B_RAW!$C:$I,5,0)),"",VLOOKUP($D28,表B_RAW!$C:$I,5,0)) -> 469209 | H28: =IF(ISERROR(VLOOKUP($D28,表B_RAW!$C:$I,6,0)),"",VLOOKUP($D28,表B_RAW!$C:$I,6,0)/100) -> 0.358 | I28: =IF(ISERROR(VLOOKUP($D28,表A_RAW!$C:$I,5,0)),"",VLOOKUP($D28,表A_RAW!$C:$I,5,0)) -> 597608 | J28: =IF(ISERROR(VLOOKUP($D28,表A_RAW!$C:$I,7,0)),"",VLOOKUP($D28,表A_RAW!$C:$I,7,0)) -> 0.06624743979 | K28: =IF(ISERROR(VLOOKUP($D28,表C_RAW!$C:$I,4,0)),"",VLOOKUP($D28,表C_RAW!$C:$I,4,0)) -> 637198 | L28: =IF(ISERROR(VLOOKUP($D28,表C_RAW!$C:$I,5,0)),"",VLOOKUP($D28,表C_RAW!$C:$I,5,0)) -> 597608 | M28: =IF(ISERROR(VLOOKUP($D28,表C_RAW!$C:$I,6,0)),"",VLOOKUP($D28,表C_RAW!$C:$I,6,0)/100) -> 0.0662
B29: =VLOOKUP(A26,表B_RAW!N:T,7,0) -> 11.33 | C29: 4 | D29: =VLOOKUP($B$26&C29,表B_RAW!A:D,3,0) -> 2204 中華 | F29: =IF(ISERROR(VLOOKUP($D29,表B_RAW!$C:$I,4,0)),"",VLOOKUP($D29,表B_RAW!$C:$I,4,0)) -> 3911063 | G29: =IF(ISERROR(VLOOKUP($D29,表B_RAW!$C:$I,5,0)),"",VLOOKUP($D29,表B_RAW!$C:$I,5,0)) -> 2964701 | H29: =IF(ISERROR(VLOOKUP($D29,表B_RAW!$C:$I,6,0)),"",VLOOKUP($D29,表B_RAW!$C:$I,6,0)/100) -> 0.3192 | I29: =IF(ISERROR(VLOOKUP($D29,表A_RAW!$C:$I,5,0)),"",VLOOKUP($D29,表A_RAW!$C:$I,5,0)) -> 2651767 | J29: =IF(ISERROR(VLOOKUP($D29,表A_RAW!$C:$I,7,0)),"",VLOOKUP($D29,表A_RAW!$C:$I,7,0)) -> 0.4748893851 | K29: =IF(ISERROR(VLOOKUP($D29,表C_RAW!$C:$I,4,0)),"",VLOOKUP($D29,表C_RAW!$C:$I,4,0)) -> 3911063 | L29: =IF(ISERROR(VLOOKUP($D29,表C_RAW!$C:$I,5,0)),"",VLOOKUP($D29,表C_RAW!$C:$I,5,0)) -> 2651767 | M29: =IF(ISERROR(VLOOKUP($D29,表C_RAW!$C:$I,6,0)),"",VLOOKUP($D29,表C_RAW!$C:$I,6,0)/100) -> 0.4749
C30: 5 | D30: =VLOOKUP($B$26&C30,表B_RAW!A:D,3,0) -> 3717 聯嘉投控 | F30: =IF(ISERROR(VLOOKUP($D30,表B_RAW!$C:$I,4,0)),"",VLOOKUP($D30,表B_RAW!$C:$I,4,0)) -> 564637 | G30: =IF(ISERROR(VLOOKUP($D30,表B_RAW!$C:$I,5,0)),"",VLOOKUP($D30,表B_RAW!$C:$I,5,0)) -> 433682 | H30: =IF(ISERROR(VLOOKUP($D30,表B_RAW!$C:$I,6,0)),"",VLOOKUP($D30,表B_RAW!$C:$I,6,0)/100) -> 0.302 | I30: =IF(ISERROR(VLOOKUP($D30,表A_RAW!$C:$I,5,0)),"",VLOOKUP($D30,表A_RAW!$C:$I,5,0)) -> 0 | J30: =IF(ISERROR(VLOOKUP($D30,表A_RAW!$C:$I,7,0)),"",VLOOKUP($D30,表A_RAW!$C:$I,7,0)) ->  | K30: =IF(ISERROR(VLOOKUP($D30,表C_RAW!$C:$I,4,0)),"",VLOOKUP($D30,表C_RAW!$C:$I,4,0)) -> 564637 | L30: =IF(ISERROR(VLOOKUP($D30,表C_RAW!$C:$I,5,0)),"",VLOOKUP($D30,表C_RAW!$C:$I,5,0)) -> 0 | M30: =IF(ISERROR(VLOOKUP($D30,表C_RAW!$C:$I,6,0)),"",VLOOKUP($D30,表C_RAW!$C:$I,6,0)/100) -> 0
A32: 衰退前五名之產業 MOM% | C32: 該產業衰退前五名之公司 MOM% | F32: 單月營收金額(千元) | G32: 本月與上月相較 | I32: 本月與去年同期相較 | K32: 累計營收金額(千元) | L32: 累計營收與去年同期相較
A33: 衰退 排名 | B33: 產業 | C33: 排名 | D33: 公司代號&簡稱 | G33: 上月營收金額(千元) | H33: 較上月變動比率(%) | I33: 去年同期金額(千元) | J33: 較去年同期變動比率(%) | L33: 去年累計營收金額(千元) | M33: 較去年同期變動比率(%)
A34: 1 | B34: =VLOOKUP(A34,表B_RAW!O:P,2,0) -> 金融業 | C34: 1 | D34: =VLOOKUP($B$34&C34,表B_RAW!B:D,2,0) -> 6024 群益期 | F34: =IF(ISERROR(VLOOKUP($D34,表B_RAW!$C:$I,4,0)),"",VLOOKUP($D34,表B_RAW!$C:$I,4,0)) -> -216509 | G34: =IF(ISERROR(VLOOKUP($D34,表B_RAW!$C:$I,5,0)),"",VLOOKUP($D34,表B_RAW!$C:$I,5,0)) -> 153512 | H34: =IF(ISERROR(VLOOKUP($D34,表B_RAW!$C:$I,6,0)),"",VLOOKUP($D34,表B_RAW!$C:$I,6,0)/100) -> -2.4104 | I34: =IF(ISERROR(VLOOKUP($D34,表A_RAW!$C:$I,5,0)),"",VLOOKUP($D34,表A_RAW!$C:$I,5,0)) -> 202261 | J34: =IF(ISERROR(VLOOKUP($D34,表A_RAW!$C:$I,7,0)),"",VLOOKUP($D34,表A_RAW!$C:$I,7,0)) -> -2.070443635 | K34: =IF(ISERROR(VLOOKUP($D34,表C_RAW!$C:$I,4,0)),"",VLOOKUP($D34,表C_RAW!$C:$I,4,0)) -> -216509 | L34: =IF(ISERROR(VLOOKUP($D34,表C_RAW!$C:$I,5,0)),"",VLOOKUP($D34,表C_RAW!$C:$I,5,0)) -> 202261 | M34: =IF(ISERROR(VLOOKUP($D34,表C_RAW!$C:$I,6,0)),"",VLOOKUP($D34,表C_RAW!$C:$I,6,0)/100) -> -2.0704
C35: 2 | D35: =VLOOKUP($B$34&C35,表B_RAW!B:D,2,0) -> 6026 福邦證 | F35: =IF(ISERROR(VLOOKUP($D35,表B_RAW!$C:$I,4,0)),"",VLOOKUP($D35,表B_RAW!$C:$I,4,0)) -> 32246 | G35: =IF(ISERROR(VLOOKUP($D35,表B_RAW!$C:$I,5,0)),"",VLOOKUP($D35,表B_RAW!$C:$I,5,0)) -> 151508 | H35: =IF(ISERROR(VLOOKUP($D35,表B_RAW!$C:$I,6,0)),"",VLOOKUP($D35,表B_RAW!$C:$I,6,0)/100) -> -0.7872 | I35: =IF(ISERROR(VLOOKUP($D35,表A_RAW!$C:$I,5,0)),"",VLOOKUP($D35,表A_RAW!$C:$I,5,0)) -> 226630 | J35: =IF(ISERROR(VLOOKUP($D35,表A_RAW!$C:$I,7,0)),"",VLOOKUP($D35,表A_RAW!$C:$I,7,0)) -> -0.8577152186 | K35: =IF(ISERROR(VLOOKUP($D35,表C_RAW!$C:$I,4,0)),"",VLOOKUP($D35,表C_RAW!$C:$I,4,0)) -> 32246 | L35: =IF(ISERROR(VLOOKUP($D35,表C_RAW!$C:$I,5,0)),"",VLOOKUP($D35,表C_RAW!$C:$I,5,0)) -> 226630 | M35: =IF(ISERROR(VLOOKUP($D35,表C_RAW!$C:$I,6,0)),"",VLOOKUP($D35,表C_RAW!$C:$I,6,0)/100) -> -0.8577
C36: 3 | D36: =VLOOKUP($B$34&C36,表B_RAW!B:D,2,0) -> 5878 台名 | F36: =IF(ISERROR(VLOOKUP($D36,表B_RAW!$C:$I,4,0)),"",VLOOKUP($D36,表B_RAW!$C:$I,4,0)) -> 81128 | G36: =IF(ISERROR(VLOOKUP($D36,表B_RAW!$C:$I,5,0)),"",VLOOKUP($D36,表B_RAW!$C:$I,5,0)) -> 88307 | H36: =IF(ISERROR(VLOOKUP($D36,表B_RAW!$C:$I,6,0)),"",VLOOKUP($D36,表B_RAW!$C:$I,6,0)/100) -> -0.0813 | I36: =IF(ISERROR(VLOOKUP($D36,表A_RAW!$C:$I,5,0)),"",VLOOKUP($D36,表A_RAW!$C:$I,5,0)) -> 76003 | J36: =IF(ISERROR(VLOOKUP($D36,表A_RAW!$C:$I,7,0)),"",VLOOKUP($D36,表A_RAW!$C:$I,7,0)) -> 0.06743154875 | K36: =IF(ISERROR(VLOOKUP($D36,表C_RAW!$C:$I,4,0)),"",VLOOKUP($D36,表C_RAW!$C:$I,4,0)) -> 81128 | L36: =IF(ISERROR(VLOOKUP($D36,表C_RAW!$C:$I,5,0)),"",VLOOKUP($D36,表C_RAW!$C:$I,5,0)) -> 76003 | M36: =IF(ISERROR(VLOOKUP($D36,表C_RAW!$C:$I,6,0)),"",VLOOKUP($D36,表C_RAW!$C:$I,6,0)/100) -> 0.0674
B37: =VLOOKUP(A34,表B_RAW!O:T,6,0) -> -76.02 | C37: 4 | D37: =VLOOKUP($B$34&C37,表B_RAW!B:D,2,0) -> 2838 聯邦銀 | F37: =IF(ISERROR(VLOOKUP($D37,表B_RAW!$C:$I,4,0)),"",VLOOKUP($D37,表B_RAW!$C:$I,4,0)) -> 1800068 | G37: =IF(ISERROR(VLOOKUP($D37,表B_RAW!$C:$I,5,0)),"",VLOOKUP($D37,表B_RAW!$C:$I,5,0)) -> 1690749 | H37: =IF(ISERROR(VLOOKUP($D37,表B_RAW!$C:$I,6,0)),"",VLOOKUP($D37,表B_RAW!$C:$I,6,0)/100) -> 0.0647 | I37: =IF(ISERROR(VLOOKUP($D37,表A_RAW!$C:$I,5,0)),"",VLOOKUP($D37,表A_RAW!$C:$I,5,0)) -> 1490408 | J37: =IF(ISERROR(VLOOKUP($D37,表A_RAW!$C:$I,7,0)),"",VLOOKUP($D37,表A_RAW!$C:$I,7,0)) -> 0.207768611 | K37: =IF(ISERROR(VLOOKUP($D37,表C_RAW!$C:$I,4,0)),"",VLOOKUP($D37,表C_RAW!$C:$I,4,0)) -> 1800068 | L37: =IF(ISERROR(VLOOKUP($D37,表C_RAW!$C:$I,5,0)),"",VLOOKUP($D37,表C_RAW!$C:$I,5,0)) -> 1490408 | M37: =IF(ISERROR(VLOOKUP($D37,表C_RAW!$C:$I,6,0)),"",VLOOKUP($D37,表C_RAW!$C:$I,6,0)/100) -> 0.2078
C38: 5 | D38: =VLOOKUP($B$34&C38,表B_RAW!B:D,2,0) -> 2812 台中銀 | F38: =IF(ISERROR(VLOOKUP($D38,表B_RAW!$C:$I,4,0)),"",VLOOKUP($D38,表B_RAW!$C:$I,4,0)) -> 1907814 | G38: =IF(ISERROR(VLOOKUP($D38,表B_RAW!$C:$I,5,0)),"",VLOOKUP($D38,表B_RAW!$C:$I,5,0)) -> 1787333 | H38: =IF(ISERROR(VLOOKUP($D38,表B_RAW!$C:$I,6,0)),"",VLOOKUP($D38,表B_RAW!$C:$I,6,0)/100) -> 0.0674 | I38: =IF(ISERROR(VLOOKUP($D38,表A_RAW!$C:$I,5,0)),"",VLOOKUP($D38,表A_RAW!$C:$I,5,0)) -> 1757813 | J38: =IF(ISERROR(VLOOKUP($D38,表A_RAW!$C:$I,7,0)),"",VLOOKUP($D38,表A_RAW!$C:$I,7,0)) -> 0.08533387795 | K38: =IF(ISERROR(VLOOKUP($D38,表C_RAW!$C:$I,4,0)),"",VLOOKUP($D38,表C_RAW!$C:$I,4,0)) -> 1907814 | L38: =IF(ISERROR(VLOOKUP($D38,表C_RAW!$C:$I,5,0)),"",VLOOKUP($D38,表C_RAW!$C:$I,5,0)) -> 1757813 | M38: =IF(ISERROR(VLOOKUP($D38,表C_RAW!$C:$I,6,0)),"",VLOOKUP($D38,表C_RAW!$C:$I,6,0)/100) -> 0.0853
A39: 2 | B39: =VLOOKUP(A39,表B_RAW!O:P,2,0) -> 建材營造 | C39: 1 | D39: =VLOOKUP($B$39&C39,表B_RAW!B:D,2,0) -> 2505 國揚 | F39: =IF(ISERROR(VLOOKUP($D39,表B_RAW!$C:$I,4,0)),"",VLOOKUP($D39,表B_RAW!$C:$I,4,0)) -> -425 | G39: =IF(ISERROR(VLOOKUP($D39,表B_RAW!$C:$I,5,0)),"",VLOOKUP($D39,表B_RAW!$C:$I,5,0)) -> 1730050 | H39: =IF(ISERROR(VLOOKUP($D39,表B_RAW!$C:$I,6,0)),"",VLOOKUP($D39,表B_RAW!$C:$I,6,0)/100) -> -1.0002 | I39: =IF(ISERROR(VLOOKUP($D39,表A_RAW!$C:$I,5,0)),"",VLOOKUP($D39,表A_RAW!$C:$I,5,0)) -> 685 | J39: =IF(ISERROR(VLOOKUP($D39,表A_RAW!$C:$I,7,0)),"",VLOOKUP($D39,表A_RAW!$C:$I,7,0)) -> -1.620437956 | K39: =IF(ISERROR(VLOOKUP($D39,表C_RAW!$C:$I,4,0)),"",VLOOKUP($D39,表C_RAW!$C:$I,4,0)) -> -425 | L39: =IF(ISERROR(VLOOKUP($D39,表C_RAW!$C:$I,5,0)),"",VLOOKUP($D39,表C_RAW!$C:$I,5,0)) -> 685 | M39: =IF(ISERROR(VLOOKUP($D39,表C_RAW!$C:$I,6,0)),"",VLOOKUP($D39,表C_RAW!$C:$I,6,0)/100) -> -1.6204
C40: 2 | D40: =VLOOKUP($B$39&C40,表B_RAW!B:D,2,0) -> 4907 富宇 | F40: =IF(ISERROR(VLOOKUP($D40,表B_RAW!$C:$I,4,0)),"",VLOOKUP($D40,表B_RAW!$C:$I,4,0)) -> 0 | G40: =IF(ISERROR(VLOOKUP($D40,表B_RAW!$C:$I,5,0)),"",VLOOKUP($D40,表B_RAW!$C:$I,5,0)) -> 2 | H40: =IF(ISERROR(VLOOKUP($D40,表B_RAW!$C:$I,6,0)),"",VLOOKUP($D40,表B_RAW!$C:$I,6,0)/100) -> -1 | I40: =IF(ISERROR(VLOOKUP($D40,表A_RAW!$C:$I,5,0)),"",VLOOKUP($D40,表A_RAW!$C:$I,5,0)) -> 331869 | J40: =IF(ISERROR(VLOOKUP($D40,表A_RAW!$C:$I,7,0)),"",VLOOKUP($D40,表A_RAW!$C:$I,7,0)) -> -1 | K40: =IF(ISERROR(VLOOKUP($D40,表C_RAW!$C:$I,4,0)),"",VLOOKUP($D40,表C_RAW!$C:$I,4,0)) -> 0 | L40: =IF(ISERROR(VLOOKUP($D40,表C_RAW!$C:$I,5,0)),"",VLOOKUP($D40,表C_RAW!$C:$I,5,0)) -> 331869 | M40: =IF(ISERROR(VLOOKUP($D40,表C_RAW!$C:$I,6,0)),"",VLOOKUP($D40,表C_RAW!$C:$I,6,0)/100) -> -1
C41: 3 | D41: =VLOOKUP($B$39&C41,表B_RAW!B:D,2,0) -> 1805 寶徠 | F41: =IF(ISERROR(VLOOKUP($D41,表B_RAW!$C:$I,4,0)),"",VLOOKUP($D41,表B_RAW!$C:$I,4,0)) -> 115 | G41: =IF(ISERROR(VLOOKUP($D41,表B_RAW!$C:$I,5,0)),"",VLOOKUP($D41,表B_RAW!$C:$I,5,0)) -> 187429 | H41: =IF(ISERROR(VLOOKUP($D41,表B_RAW!$C:$I,6,0)),"",VLOOKUP($D41,表B_RAW!$C:$I,6,0)/100) -> -0.9994 | I41: =IF(ISERROR(VLOOKUP($D41,表A_RAW!$C:$I,5,0)),"",VLOOKUP($D41,表A_RAW!$C:$I,5,0)) -> 47678 | J41: =IF(ISERROR(VLOOKUP($D41,表A_RAW!$C:$I,7,0)),"",VLOOKUP($D41,表A_RAW!$C:$I,7,0)) -> -0.9975879861 | K41: =IF(ISERROR(VLOOKUP($D41,表C_RAW!$C:$I,4,0)),"",VLOOKUP($D41,表C_RAW!$C:$I,4,0)) -> 115 | L41: =IF(ISERROR(VLOOKUP($D41,表C_RAW!$C:$I,5,0)),"",VLOOKUP($D41,表C_RAW!$C:$I,5,0)) -> 47678 | M41: =IF(ISERROR(VLOOKUP($D41,表C_RAW!$C:$I,6,0)),"",VLOOKUP($D41,表C_RAW!$C:$I,6,0)/100) -> -0.9976
B42: =VLOOKUP(A39,表B_RAW!O:T,6,0) -> -48.44 | C42: 4 | D42: =VLOOKUP($B$39&C42,表B_RAW!B:D,2,0) -> 2442 新美齊 | F42: =IF(ISERROR(VLOOKUP($D42,表B_RAW!$C:$I,4,0)),"",VLOOKUP($D42,表B_RAW!$C:$I,4,0)) -> 86137 | G42: =IF(ISERROR(VLOOKUP($D42,表B_RAW!$C:$I,5,0)),"",VLOOKUP($D42,表B_RAW!$C:$I,5,0)) -> 9883855 | H42: =IF(ISERROR(VLOOKUP($D42,表B_RAW!$C:$I,6,0)),"",VLOOKUP($D42,表B_RAW!$C:$I,6,0)/100) -> -0.9913 | I42: =IF(ISERROR(VLOOKUP($D42,表A_RAW!$C:$I,5,0)),"",VLOOKUP($D42,表A_RAW!$C:$I,5,0)) -> 205313 | J42: =IF(ISERROR(VLOOKUP($D42,表A_RAW!$C:$I,7,0)),"",VLOOKUP($D42,表A_RAW!$C:$I,7,0)) -> -0.580460078 | K42: =IF(ISERROR(VLOOKUP($D42,表C_RAW!$C:$I,4,0)),"",VLOOKUP($D42,表C_RAW!$C:$I,4,0)) -> 86137 | L42: =IF(ISERROR(VLOOKUP($D42,表C_RAW!$C:$I,5,0)),"",VLOOKUP($D42,表C_RAW!$C:$I,5,0)) -> 205313 | M42: =IF(ISERROR(VLOOKUP($D42,表C_RAW!$C:$I,6,0)),"",VLOOKUP($D42,表C_RAW!$C:$I,6,0)/100) -> -0.5805
C43: 5 | D43: =IFERROR(VLOOKUP($B$39&C43,表B_RAW!B:D,2,0),"") -> 2596 綠意 | F43: =IF(ISERROR(VLOOKUP($D43,表B_RAW!$C:$I,4,0)),"",VLOOKUP($D43,表B_RAW!$C:$I,4,0)) -> 4439 | G43: =IF(ISERROR(VLOOKUP($D43,表B_RAW!$C:$I,5,0)),"",VLOOKUP($D43,表B_RAW!$C:$I,5,0)) -> 399237 | H43: =IF(ISERROR(VLOOKUP($D43,表B_RAW!$C:$I,6,0)),"",VLOOKUP($D43,表B_RAW!$C:$I,6,0)/100) -> -0.9889 | I43: =IF(ISERROR(VLOOKUP($D43,表A_RAW!$C:$I,5,0)),"",VLOOKUP($D43,表A_RAW!$C:$I,5,0)) -> 150728 | J43: =IF(ISERROR(VLOOKUP($D43,表A_RAW!$C:$I,7,0)),"",VLOOKUP($D43,表A_RAW!$C:$I,7,0)) -> -0.9705495993 | K43: =IF(ISERROR(VLOOKUP($D43,表C_RAW!$C:$I,4,0)),"",VLOOKUP($D43,表C_RAW!$C:$I,4,0)) -> 4439 | L43: =IF(ISERROR(VLOOKUP($D43,表C_RAW!$C:$I,5,0)),"",VLOOKUP($D43,表C_RAW!$C:$I,5,0)) -> 150728 | M43: =IF(ISERROR(VLOOKUP($D43,表C_RAW!$C:$I,6,0)),"",VLOOKUP($D43,表C_RAW!$C:$I,6,0)/100) -> -0.9705
A44: 3 | B44: =VLOOKUP(A44,表B_RAW!O:P,2,0) -> 綠能環保 | C44: 1 | D44: =VLOOKUP($B$44&C44,表B_RAW!B:D,2,0) -> 6994 富威電力 | F44: =IF(ISERROR(VLOOKUP($D44,表B_RAW!$C:$I,4,0)),"",VLOOKUP($D44,表B_RAW!$C:$I,4,0)) -> 332789 | G44: =IF(ISERROR(VLOOKUP($D44,表B_RAW!$C:$I,5,0)),"",VLOOKUP($D44,表B_RAW!$C:$I,5,0)) -> 1968966 | H44: =IF(ISERROR(VLOOKUP($D44,表B_RAW!$C:$I,6,0)),"",VLOOKUP($D44,表B_RAW!$C:$I,6,0)/100) -> -0.831 | I44: =IF(ISERROR(VLOOKUP($D44,表A_RAW!$C:$I,5,0)),"",VLOOKUP($D44,表A_RAW!$C:$I,5,0)) -> 155236 | J44: =IF(ISERROR(VLOOKUP($D44,表A_RAW!$C:$I,7,0)),"",VLOOKUP($D44,表A_RAW!$C:$I,7,0)) -> 1.143761756 | K44: =IF(ISERROR(VLOOKUP($D44,表C_RAW!$C:$I,4,0)),"",VLOOKUP($D44,表C_RAW!$C:$I,4,0)) -> 332789 | L44: =IF(ISERROR(VLOOKUP($D44,表C_RAW!$C:$I,5,0)),"",VLOOKUP($D44,表C_RAW!$C:$I,5,0)) -> 155236 | M44: =IF(ISERROR(VLOOKUP($D44,表C_RAW!$C:$I,6,0)),"",VLOOKUP($D44,表C_RAW!$C:$I,6,0)/100) -> 1.1438
C45: 2 | D45: =VLOOKUP($B$44&C45,表B_RAW!B:D,2,0) -> 6873 泓德能源 | F45: =IF(ISERROR(VLOOKUP($D45,表B_RAW!$C:$I,4,0)),"",VLOOKUP($D45,表B_RAW!$C:$I,4,0)) -> 316035 | G45: =IF(ISERROR(VLOOKUP($D45,表B_RAW!$C:$I,5,0)),"",VLOOKUP($D45,表B_RAW!$C:$I,5,0)) -> 1635799 | H45: =IF(ISERROR(VLOOKUP($D45,表B_RAW!$C:$I,6,0)),"",VLOOKUP($D45,表B_RAW!$C:$I,6,0)/100) -> -0.8068 | I45: =IF(ISERROR(VLOOKUP($D45,表A_RAW!$C:$I,5,0)),"",VLOOKUP($D45,表A_RAW!$C:$I,5,0)) -> 436896 | J45: =IF(ISERROR(VLOOKUP($D45,表A_RAW!$C:$I,7,0)),"",VLOOKUP($D45,表A_RAW!$C:$I,7,0)) -> -0.2766356295 | K45: =IF(ISERROR(VLOOKUP($D45,表C_RAW!$C:$I,4,0)),"",VLOOKUP($D45,表C_RAW!$C:$I,4,0)) -> 316035 | L45: =IF(ISERROR(VLOOKUP($D45,表C_RAW!$C:$I,5,0)),"",VLOOKUP($D45,表C_RAW!$C:$I,5,0)) -> 436896 | M45: =IF(ISERROR(VLOOKUP($D45,表C_RAW!$C:$I,6,0)),"",VLOOKUP($D45,表C_RAW!$C:$I,6,0)/100) -> -0.2766
C46: 3 | D46: =VLOOKUP($B$44&C46,表B_RAW!B:D,2,0) -> 6806 森崴能源 | F46: =IF(ISERROR(VLOOKUP($D46,表B_RAW!$C:$I,4,0)),"",VLOOKUP($D46,表B_RAW!$C:$I,4,0)) -> 428960 | G46: =IF(ISERROR(VLOOKUP($D46,表B_RAW!$C:$I,5,0)),"",VLOOKUP($D46,表B_RAW!$C:$I,5,0)) -> 1836099 | H46: =IF(ISERROR(VLOOKUP($D46,表B_RAW!$C:$I,6,0)),"",VLOOKUP($D46,表B_RAW!$C:$I,6,0)/100) -> -0.7664 | I46: =IF(ISERROR(VLOOKUP($D46,表A_RAW!$C:$I,5,0)),"",VLOOKUP($D46,表A_RAW!$C:$I,5,0)) -> 2786957 | J46: =IF(ISERROR(VLOOKUP($D46,表A_RAW!$C:$I,7,0)),"",VLOOKUP($D46,表A_RAW!$C:$I,7,0)) -> -0.8460830217 | K46: =IF(ISERROR(VLOOKUP($D46,表C_RAW!$C:$I,4,0)),"",VLOOKUP($D46,表C_RAW!$C:$I,4,0)) -> 428960 | L46: =IF(ISERROR(VLOOKUP($D46,表C_RAW!$C:$I,5,0)),"",VLOOKUP($D46,表C_RAW!$C:$I,5,0)) -> 2786957 | M46: =IF(ISERROR(VLOOKUP($D46,表C_RAW!$C:$I,6,0)),"",VLOOKUP($D46,表C_RAW!$C:$I,6,0)/100) -> -0.8461
B47: =VLOOKUP(A44,表B_RAW!O:T,6,0) -> -41.51 | C47: 4 | D47: =VLOOKUP($B$44&C47,表B_RAW!B:D,2,0) -> 3713 新晶投控 | F47: =IF(ISERROR(VLOOKUP($D47,表B_RAW!$C:$I,4,0)),"",VLOOKUP($D47,表B_RAW!$C:$I,4,0)) -> 17431 | G47: =IF(ISERROR(VLOOKUP($D47,表B_RAW!$C:$I,5,0)),"",VLOOKUP($D47,表B_RAW!$C:$I,5,0)) -> 67971 | H47: =IF(ISERROR(VLOOKUP($D47,表B_RAW!$C:$I,6,0)),"",VLOOKUP($D47,表B_RAW!$C:$I,6,0)/100) -> -0.7436 | I47: =IF(ISERROR(VLOOKUP($D47,表A_RAW!$C:$I,5,0)),"",VLOOKUP($D47,表A_RAW!$C:$I,5,0)) -> 29768 | J47: =IF(ISERROR(VLOOKUP($D47,表A_RAW!$C:$I,7,0)),"",VLOOKUP($D47,表A_RAW!$C:$I,7,0)) -> -0.414438323 | K47: =IF(ISERROR(VLOOKUP($D47,表C_RAW!$C:$I,4,0)),"",VLOOKUP($D47,表C_RAW!$C:$I,4,0)) -> 17431 | L47: =IF(ISERROR(VLOOKUP($D47,表C_RAW!$C:$I,5,0)),"",VLOOKUP($D47,表C_RAW!$C:$I,5,0)) -> 29768 | M47: =IF(ISERROR(VLOOKUP($D47,表C_RAW!$C:$I,6,0)),"",VLOOKUP($D47,表C_RAW!$C:$I,6,0)/100) -> -0.4144
C48: 5 | D48: =IFERROR(VLOOKUP($B$44&C48,表B_RAW!B:D,2,0),"") -> 6887 寶綠特-KY | F48: =IF(ISERROR(VLOOKUP($D48,表B_RAW!$C:$I,4,0)),"",VLOOKUP($D48,表B_RAW!$C:$I,4,0)) -> 280206 | G48: =IF(ISERROR(VLOOKUP($D48,表B_RAW!$C:$I,5,0)),"",VLOOKUP($D48,表B_RAW!$C:$I,5,0)) -> 872356 | H48: =IF(ISERROR(VLOOKUP($D48,表B_RAW!$C:$I,6,0)),"",VLOOKUP($D48,表B_RAW!$C:$I,6,0)/100) -> -0.6788 | I48: =IF(ISERROR(VLOOKUP($D48,表A_RAW!$C:$I,5,0)),"",VLOOKUP($D48,表A_RAW!$C:$I,5,0)) -> 538918 | J48: =IF(ISERROR(VLOOKUP($D48,表A_RAW!$C:$I,7,0)),"",VLOOKUP($D48,表A_RAW!$C:$I,7,0)) -> -0.4800581907 | K48: =IF(ISERROR(VLOOKUP($D48,表C_RAW!$C:$I,4,0)),"",VLOOKUP($D48,表C_RAW!$C:$I,4,0)) -> 280206 | L48: =IF(ISERROR(VLOOKUP($D48,表C_RAW!$C:$I,5,0)),"",VLOOKUP($D48,表C_RAW!$C:$I,5,0)) -> 538918 | M48: =IF(ISERROR(VLOOKUP($D48,表C_RAW!$C:$I,6,0)),"",VLOOKUP($D48,表C_RAW!$C:$I,6,0)/100) -> -0.4801
A49: 4 | B49: =VLOOKUP(A49,表B_RAW!O:P,2,0) -> 貿易百貨 | C49: 1 | D49: =VLOOKUP($B$49&C49,表B_RAW!B:D,2,0) -> 2601 益航 | F49: =IF(ISERROR(VLOOKUP($D49,表B_RAW!$C:$I,4,0)),"",VLOOKUP($D49,表B_RAW!$C:$I,4,0)) -> 126046 | G49: =IF(ISERROR(VLOOKUP($D49,表B_RAW!$C:$I,5,0)),"",VLOOKUP($D49,表B_RAW!$C:$I,5,0)) -> 326248 | H49: =IF(ISERROR(VLOOKUP($D49,表B_RAW!$C:$I,6,0)),"",VLOOKUP($D49,表B_RAW!$C:$I,6,0)/100) -> -0.6136 | I49: =IF(ISERROR(VLOOKUP($D49,表A_RAW!$C:$I,5,0)),"",VLOOKUP($D49,表A_RAW!$C:$I,5,0)) -> 436517 | J49: =IF(ISERROR(VLOOKUP($D49,表A_RAW!$C:$I,7,0)),"",VLOOKUP($D49,表A_RAW!$C:$I,7,0)) -> -0.7112460683 | K49: =IF(ISERROR(VLOOKUP($D49,表C_RAW!$C:$I,4,0)),"",VLOOKUP($D49,表C_RAW!$C:$I,4,0)) -> 126046 | L49: =IF(ISERROR(VLOOKUP($D49,表C_RAW!$C:$I,5,0)),"",VLOOKUP($D49,表C_RAW!$C:$I,5,0)) -> 436517 | M49: =IF(ISERROR(VLOOKUP($D49,表C_RAW!$C:$I,6,0)),"",VLOOKUP($D49,表C_RAW!$C:$I,6,0)/100) -> -0.7112
C50: 2 | D50: =VLOOKUP($B$49&C50,表B_RAW!B:D,2,0) -> 8429 金麗-KY | F50: =IF(ISERROR(VLOOKUP($D50,表B_RAW!$C:$I,4,0)),"",VLOOKUP($D50,表B_RAW!$C:$I,4,0)) -> 8903 | G50: =IF(ISERROR(VLOOKUP($D50,表B_RAW!$C:$I,5,0)),"",VLOOKUP($D50,表B_RAW!$C:$I,5,0)) -> 14958 | H50: =IF(ISERROR(VLOOKUP($D50,表B_RAW!$C:$I,6,0)),"",VLOOKUP($D50,表B_RAW!$C:$I,6,0)/100) -> -0.4048 | I50: =IF(ISERROR(VLOOKUP($D50,表A_RAW!$C:$I,5,0)),"",VLOOKUP($D50,表A_RAW!$C:$I,5,0)) -> 15930 | J50: =IF(ISERROR(VLOOKUP($D50,表A_RAW!$C:$I,7,0)),"",VLOOKUP($D50,表A_RAW!$C:$I,7,0)) -> -0.4411173886 | K50: =IF(ISERROR(VLOOKUP($D50,表C_RAW!$C:$I,4,0)),"",VLOOKUP($D50,表C_RAW!$C:$I,4,0)) -> 8903 | L50: =IF(ISERROR(VLOOKUP($D50,表C_RAW!$C:$I,5,0)),"",VLOOKUP($D50,表C_RAW!$C:$I,5,0)) -> 15930 | M50: =IF(ISERROR(VLOOKUP($D50,表C_RAW!$C:$I,6,0)),"",VLOOKUP($D50,表C_RAW!$C:$I,6,0)/100) -> -0.4411
C51: 3 | D51: =VLOOKUP($B$49&C51,表B_RAW!B:D,2,0) -> 2929 淘帝-KY | F51: =IF(ISERROR(VLOOKUP($D51,表B_RAW!$C:$I,4,0)),"",VLOOKUP($D51,表B_RAW!$C:$I,4,0)) -> 136158 | G51: =IF(ISERROR(VLOOKUP($D51,表B_RAW!$C:$I,5,0)),"",VLOOKUP($D51,表B_RAW!$C:$I,5,0)) -> 183869 | H51: =IF(ISERROR(VLOOKUP($D51,表B_RAW!$C:$I,6,0)),"",VLOOKUP($D51,表B_RAW!$C:$I,6,0)/100) -> -0.2595 | I51: =IF(ISERROR(VLOOKUP($D51,表A_RAW!$C:$I,5,0)),"",VLOOKUP($D51,表A_RAW!$C:$I,5,0)) -> 146299 | J51: =IF(ISERROR(VLOOKUP($D51,表A_RAW!$C:$I,7,0)),"",VLOOKUP($D51,表A_RAW!$C:$I,7,0)) -> -0.0693169468 | K51: =IF(ISERROR(VLOOKUP($D51,表C_RAW!$C:$I,4,0)),"",VLOOKUP($D51,表C_RAW!$C:$I,4,0)) -> 136158 | L51: =IF(ISERROR(VLOOKUP($D51,表C_RAW!$C:$I,5,0)),"",VLOOKUP($D51,表C_RAW!$C:$I,5,0)) -> 146299 | M51: =IF(ISERROR(VLOOKUP($D51,表C_RAW!$C:$I,6,0)),"",VLOOKUP($D51,表C_RAW!$C:$I,6,0)/100) -> -0.0693
B52: =VLOOKUP(A49,表B_RAW!O:T,6,0) -> -28.9 | C52: 4 | D52: =VLOOKUP($B$49&C52,表B_RAW!B:D,2,0) -> 2911 麗嬰房 | F52: =IF(ISERROR(VLOOKUP($D52,表B_RAW!$C:$I,4,0)),"",VLOOKUP($D52,表B_RAW!$C:$I,4,0)) -> 156257 | G52: =IF(ISERROR(VLOOKUP($D52,表B_RAW!$C:$I,5,0)),"",VLOOKUP($D52,表B_RAW!$C:$I,5,0)) -> 175275 | H52: =IF(ISERROR(VLOOKUP($D52,表B_RAW!$C:$I,6,0)),"",VLOOKUP($D52,表B_RAW!$C:$I,6,0)/100) -> -0.1085 | I52: =IF(ISERROR(VLOOKUP($D52,表A_RAW!$C:$I,5,0)),"",VLOOKUP($D52,表A_RAW!$C:$I,5,0)) -> 270801 | J52: =IF(ISERROR(VLOOKUP($D52,表A_RAW!$C:$I,7,0)),"",VLOOKUP($D52,表A_RAW!$C:$I,7,0)) -> -0.4229821899 | K52: =IF(ISERROR(VLOOKUP($D52,表C_RAW!$C:$I,4,0)),"",VLOOKUP($D52,表C_RAW!$C:$I,4,0)) -> 156257 | L52: =IF(ISERROR(VLOOKUP($D52,表C_RAW!$C:$I,5,0)),"",VLOOKUP($D52,表C_RAW!$C:$I,5,0)) -> 270801 | M52: =IF(ISERROR(VLOOKUP($D52,表C_RAW!$C:$I,6,0)),"",VLOOKUP($D52,表C_RAW!$C:$I,6,0)/100) -> -0.423
C53: 5 | D53: =VLOOKUP($B$49&C53,表B_RAW!B:D,2,0) -> 8443 阿瘦 | F53: =IF(ISERROR(VLOOKUP($D53,表B_RAW!$C:$I,4,0)),"",VLOOKUP($D53,表B_RAW!$C:$I,4,0)) -> 97072 | G53: =IF(ISERROR(VLOOKUP($D53,表B_RAW!$C:$I,5,0)),"",VLOOKUP($D53,表B_RAW!$C:$I,5,0)) -> 102458 | H53: =IF(ISERROR(VLOOKUP($D53,表B_RAW!$C:$I,6,0)),"",VLOOKUP($D53,表B_RAW!$C:$I,6,0)/100) -> -0.0526 | I53: =IF(ISERROR(VLOOKUP($D53,表A_RAW!$C:$I,5,0)),"",VLOOKUP($D53,表A_RAW!$C:$I,5,0)) -> 110748 | J53: =IF(ISERROR(VLOOKUP($D53,表A_RAW!$C:$I,7,0)),"",VLOOKUP($D53,表A_RAW!$C:$I,7,0)) -> -0.1234875573 | K53: =IF(ISERROR(VLOOKUP($D53,表C_RAW!$C:$I,4,0)),"",VLOOKUP($D53,表C_RAW!$C:$I,4,0)) -> 97072 | L53: =IF(ISERROR(VLOOKUP($D53,表C_RAW!$C:$I,5,0)),"",VLOOKUP($D53,表C_RAW!$C:$I,5,0)) -> 110748 | M53: =IF(ISERROR(VLOOKUP($D53,表C_RAW!$C:$I,6,0)),"",VLOOKUP($D53,表C_RAW!$C:$I,6,0)/100) -> -0.1235
A54: 5 | B54: =VLOOKUP(A54,表B_RAW!O:P,2,0) -> 其他 | C54: 1 | D54: =VLOOKUP($B$54&C54,表B_RAW!B:D,2,0) -> 6901 鑽石投資 | F54: =IF(ISERROR(VLOOKUP($D54,表B_RAW!$C:$I,4,0)),"",VLOOKUP($D54,表B_RAW!$C:$I,4,0)) -> -16238 | G54: =IF(ISERROR(VLOOKUP($D54,表B_RAW!$C:$I,5,0)),"",VLOOKUP($D54,表B_RAW!$C:$I,5,0)) -> 107844 | H54: =IF(ISERROR(VLOOKUP($D54,表B_RAW!$C:$I,6,0)),"",VLOOKUP($D54,表B_RAW!$C:$I,6,0)/100) -> -1.1506 | I54: =IF(ISERROR(VLOOKUP($D54,表A_RAW!$C:$I,5,0)),"",VLOOKUP($D54,表A_RAW!$C:$I,5,0)) -> -309244 | J54: =IF(ISERROR(VLOOKUP($D54,表A_RAW!$C:$I,7,0)),"",VLOOKUP($D54,表A_RAW!$C:$I,7,0)) -> 0.9474913014 | K54: =IF(ISERROR(VLOOKUP($D54,表C_RAW!$C:$I,4,0)),"",VLOOKUP($D54,表C_RAW!$C:$I,4,0)) -> -16238 | L54: =IF(ISERROR(VLOOKUP($D54,表C_RAW!$C:$I,5,0)),"",VLOOKUP($D54,表C_RAW!$C:$I,5,0)) -> -309244 | M54: =IF(ISERROR(VLOOKUP($D54,表C_RAW!$C:$I,6,0)),"",VLOOKUP($D54,表C_RAW!$C:$I,6,0)/100) -> 0.9475
C55: 2 | D55: =VLOOKUP($B$54&C55,表B_RAW!B:D,2,0) -> 9902 台火 | F55: =IF(ISERROR(VLOOKUP($D55,表B_RAW!$C:$I,4,0)),"",VLOOKUP($D55,表B_RAW!$C:$I,4,0)) -> 4110 | G55: =IF(ISERROR(VLOOKUP($D55,表B_RAW!$C:$I,5,0)),"",VLOOKUP($D55,表B_RAW!$C:$I,5,0)) -> 57463 | H55: =IF(ISERROR(VLOOKUP($D55,表B_RAW!$C:$I,6,0)),"",VLOOKUP($D55,表B_RAW!$C:$I,6,0)/100) -> -0.9285 | I55: =IF(ISERROR(VLOOKUP($D55,表A_RAW!$C:$I,5,0)),"",VLOOKUP($D55,表A_RAW!$C:$I,5,0)) -> 2477 | J55: =IF(ISERROR(VLOOKUP($D55,表A_RAW!$C:$I,7,0)),"",VLOOKUP($D55,表A_RAW!$C:$I,7,0)) -> 0.6592652402 | K55: =IF(ISERROR(VLOOKUP($D55,表C_RAW!$C:$I,4,0)),"",VLOOKUP($D55,表C_RAW!$C:$I,4,0)) -> 4110 | L55: =IF(ISERROR(VLOOKUP($D55,表C_RAW!$C:$I,5,0)),"",VLOOKUP($D55,表C_RAW!$C:$I,5,0)) -> 2477 | M55: =IF(ISERROR(VLOOKUP($D55,表C_RAW!$C:$I,6,0)),"",VLOOKUP($D55,表C_RAW!$C:$I,6,0)/100) -> 0.6593
C56: 3 | D56: =VLOOKUP($B$54&C56,表B_RAW!B:D,2,0) -> 4154 樂威科-KY | F56: =IF(ISERROR(VLOOKUP($D56,表B_RAW!$C:$I,4,0)),"",VLOOKUP($D56,表B_RAW!$C:$I,4,0)) -> 1299 | G56: =IF(ISERROR(VLOOKUP($D56,表B_RAW!$C:$I,5,0)),"",VLOOKUP($D56,表B_RAW!$C:$I,5,0)) -> 6938 | H56: =IF(ISERROR(VLOOKUP($D56,表B_RAW!$C:$I,6,0)),"",VLOOKUP($D56,表B_RAW!$C:$I,6,0)/100) -> -0.8128 | I56: =IF(ISERROR(VLOOKUP($D56,表A_RAW!$C:$I,5,0)),"",VLOOKUP($D56,表A_RAW!$C:$I,5,0)) -> 2190 | J56: =IF(ISERROR(VLOOKUP($D56,表A_RAW!$C:$I,7,0)),"",VLOOKUP($D56,表A_RAW!$C:$I,7,0)) -> -0.4068493151 | K56: =IF(ISERROR(VLOOKUP($D56,表C_RAW!$C:$I,4,0)),"",VLOOKUP($D56,表C_RAW!$C:$I,4,0)) -> 1299 | L56: =IF(ISERROR(VLOOKUP($D56,表C_RAW!$C:$I,5,0)),"",VLOOKUP($D56,表C_RAW!$C:$I,5,0)) -> 2190 | M56: =IF(ISERROR(VLOOKUP($D56,表C_RAW!$C:$I,6,0)),"",VLOOKUP($D56,表C_RAW!$C:$I,6,0)/100) -> -0.4068
B57: =VLOOKUP(A54,表B_RAW!O:T,6,0) -> -18.93 | C57: 4 | D57: =VLOOKUP($B$54&C57,表B_RAW!B:D,2,0) -> 2348 海悅 | F57: =IF(ISERROR(VLOOKUP($D57,表B_RAW!$C:$I,4,0)),"",VLOOKUP($D57,表B_RAW!$C:$I,4,0)) -> 185799 | G57: =IF(ISERROR(VLOOKUP($D57,表B_RAW!$C:$I,5,0)),"",VLOOKUP($D57,表B_RAW!$C:$I,5,0)) -> 824432 | H57: =IF(ISERROR(VLOOKUP($D57,表B_RAW!$C:$I,6,0)),"",VLOOKUP($D57,表B_RAW!$C:$I,6,0)/100) -> -0.7746 | I57: =IF(ISERROR(VLOOKUP($D57,表A_RAW!$C:$I,5,0)),"",VLOOKUP($D57,表A_RAW!$C:$I,5,0)) -> 496970 | J57: =IF(ISERROR(VLOOKUP($D57,表A_RAW!$C:$I,7,0)),"",VLOOKUP($D57,表A_RAW!$C:$I,7,0)) -> -0.6261363865 | K57: =IF(ISERROR(VLOOKUP($D57,表C_RAW!$C:$I,4,0)),"",VLOOKUP($D57,表C_RAW!$C:$I,4,0)) -> 185799 | L57: =IF(ISERROR(VLOOKUP($D57,表C_RAW!$C:$I,5,0)),"",VLOOKUP($D57,表C_RAW!$C:$I,5,0)) -> 496970 | M57: =IF(ISERROR(VLOOKUP($D57,表C_RAW!$C:$I,6,0)),"",VLOOKUP($D57,表C_RAW!$C:$I,6,0)/100) -> -0.6261
C58: 5 | D58: =VLOOKUP($B$54&C58,表B_RAW!B:D,2,0) -> 5345 馥鴻 | F58: =IF(ISERROR(VLOOKUP($D58,表B_RAW!$C:$I,4,0)),"",VLOOKUP($D58,表B_RAW!$C:$I,4,0)) -> 1453 | G58: =IF(ISERROR(VLOOKUP($D58,表B_RAW!$C:$I,5,0)),"",VLOOKUP($D58,表B_RAW!$C:$I,5,0)) -> 5393 | H58: =IF(ISERROR(VLOOKUP($D58,表B_RAW!$C:$I,6,0)),"",VLOOKUP($D58,表B_RAW!$C:$I,6,0)/100) -> -0.7306 | I58: =IF(ISERROR(VLOOKUP($D58,表A_RAW!$C:$I,5,0)),"",VLOOKUP($D58,表A_RAW!$C:$I,5,0)) -> 578 | J58: =IF(ISERROR(VLOOKUP($D58,表A_RAW!$C:$I,7,0)),"",VLOOKUP($D58,表A_RAW!$C:$I,7,0)) -> 1.51384083 | K58: =IF(ISERROR(VLOOKUP($D58,表C_RAW!$C:$I,4,0)),"",VLOOKUP($D58,表C_RAW!$C:$I,4,0)) -> 1453 | L58: =IF(ISERROR(VLOOKUP($D58,表C_RAW!$C:$I,5,0)),"",VLOOKUP($D58,表C_RAW!$C:$I,5,0)) -> 578 | M58: =IF(ISERROR(VLOOKUP($D58,表C_RAW!$C:$I,6,0)),"",VLOOKUP($D58,表C_RAW!$C:$I,6,0)/100) -> 1.5138

Sheet YOY(單月)
B1: =YEAR(表A_RAW!F2)&"年"&MONTH(表A_RAW!F2)&"月" -> 2026年1月
G2: 成長及衰退前五名之產業YOY%(單月)
B4: 成長前五名之產業 YOY(單月)% | D4: 該產業成長前五名之公司 YOY(單月)% | G4: 單月營收金額(千元) | H4: 本月與上月相較 | J4: 本月與去年同期相較 | L4: 累計營收金額(千元) | M4: 累計營收與去年同期相較
B5: 成長 排名 | C5: 產業 | D5: 排名 | E5: 公司代號&簡稱 | H5: 上月營收金額(千元) | I5: 較上月變動比率(%) | J5: 去年同期金額(千元) | K5: 較去年同期變動比率(%) | M5: 去年累計營收金額(千元) | N5: 較去年同期變動比率(%)
B6: 1 | C6: =VLOOKUP(B6,表A_RAW!N:T,3,0) -> 建材營造 | D6: 1 | E6: =VLOOKUP($C$6&D6,表A_RAW!A:I,3,0) -> 2548 華固 | G6: =IF(ISERROR(VLOOKUP($E6,表A_RAW!$C:$I,4,0)),"",VLOOKUP($E6,表A_RAW!$C:$I,4,0)) -> 1103070 | H6: =IF(ISERROR(VLOOKUP($E6,表B_RAW!$C:$I,5,0)),"",VLOOKUP($E6,表B_RAW!$C:$I,5,0)) -> 372698 | I6: =IF(ISERROR(VLOOKUP($E6,表B_RAW!$C:$I,6,0)),"",VLOOKUP($E6,表B_RAW!$C:$I,6,0)/100) -> 1.9597 | J6: =IF(ISERROR(VLOOKUP($E6,表A_RAW!$C:$I,5,0)),"",VLOOKUP($E6,表A_RAW!$C:$I,5,0)) -> 3178 | K6: =IF(ISERROR(VLOOKUP($E6,表A_RAW!$C:$I,7,0)),"",VLOOKUP($E6,表A_RAW!$C:$I,7,0)) -> 346.0956576 | L6: =IF(ISERROR(VLOOKUP($E6,表C_RAW!$C:$I,4,0)),"",VLOOKUP($E6,表C_RAW!$C:$I,4,0)) -> 1103070 | M6: =IF(ISERROR(VLOOKUP($E6,表C_RAW!$C:$I,5,0)),"",VLOOKUP($E6,表C_RAW!$C:$I,5,0)) -> 3178 | N6: =IF(ISERROR(VLOOKUP($E6,表C_RAW!$C:$I,6,0)),"",VLOOKUP($E6,表C_RAW!$C:$I,6,0)/100) -> 346.0957
D7: 2 | E7: =VLOOKUP($C$6&D7,表A_RAW!A:I,3,0) -> 9946 三發地產 | G7: =IF(ISERROR(VLOOKUP($E7,表A_RAW!$C:$I,4,0)),"",VLOOKUP($E7,表A_RAW!$C:$I,4,0)) -> 908579 | H7: =IF(ISERROR(VLOOKUP($E7,表B_RAW!$C:$I,5,0)),"",VLOOKUP($E7,表B_RAW!$C:$I,5,0)) -> 1360270 | I7: =IF(ISERROR(VLOOKUP($E7,表B_RAW!$C:$I,6,0)),"",VLOOKUP($E7,表B_RAW!$C:$I,6,0)/100) -> -0.3321 | J7: =IF(ISERROR(VLOOKUP($E7,表A_RAW!$C:$I,5,0)),"",VLOOKUP($E7,表A_RAW!$C:$I,5,0)) -> 3219 | K7: =IF(ISERROR(VLOOKUP($E7,表A_RAW!$C:$I,7,0)),"",VLOOKUP($E7,表A_RAW!$C:$I,7,0)) -> 281.2550482 | L7: =IF(ISERROR(VLOOKUP($E7,表C_RAW!$C:$I,4,0)),"",VLOOKUP($E7,表C_RAW!$C:$I,4,0)) -> 908579 | M7: =IF(ISERROR(VLOOKUP($E7,表C_RAW!$C:$I,5,0)),"",VLOOKUP($E7,表C_RAW!$C:$I,5,0)) -> 3219 | N7: =IF(ISERROR(VLOOKUP($E7,表C_RAW!$C:$I,6,0)),"",VLOOKUP($E7,表C_RAW!$C:$I,6,0)/100) -> 281.255
D8: 3 | E8: =VLOOKUP($C$6&D8,表A_RAW!A:I,3,0) -> 2718 全心投資控股 | G8: =IF(ISERROR(VLOOKUP($E8,表A_RAW!$C:$I,4,0)),"",VLOOKUP($E8,表A_RAW!$C:$I,4,0)) -> 48686 | H8: =IF(ISERROR(VLOOKUP($E8,表B_RAW!$C:$I,5,0)),"",VLOOKUP($E8,表B_RAW!$C:$I,5,0)) -> 30604 | I8: =IF(ISERROR(VLOOKUP($E8,表B_RAW!$C:$I,6,0)),"",VLOOKUP($E8,表B_RAW!$C:$I,6,0)/100) -> 0.5908 | J8: =IF(ISERROR(VLOOKUP($E8,表A_RAW!$C:$I,5,0)),"",VLOOKUP($E8,表A_RAW!$C:$I,5,0)) -> 370 | K8: =IF(ISERROR(VLOOKUP($E8,表A_RAW!$C:$I,7,0)),"",VLOOKUP($E8,表A_RAW!$C:$I,7,0)) -> 130.5837838 | L8: =IF(ISERROR(VLOOKUP($E8,表C_RAW!$C:$I,4,0)),"",VLOOKUP($E8,表C_RAW!$C:$I,4,0)) -> 48686 | M8: =IF(ISERROR(VLOOKUP($E8,表C_RAW!$C:$I,5,0)),"",VLOOKUP($E8,表C_RAW!$C:$I,5,0)) -> 370 | N8: =IF(ISERROR(VLOOKUP($E8,表C_RAW!$C:$I,6,0)),"",VLOOKUP($E8,表C_RAW!$C:$I,6,0)/100) -> 130.5838
C9: =VLOOKUP(B6,表A_RAW!N:T,7,0) -> 78.39680855 | D9: 4 | E9: =VLOOKUP($C$6&D9,表A_RAW!A:I,3,0) -> 6219 富旺 | G9: =IF(ISERROR(VLOOKUP($E9,表A_RAW!$C:$I,4,0)),"",VLOOKUP($E9,表A_RAW!$C:$I,4,0)) -> 617048 | H9: =IF(ISERROR(VLOOKUP($E9,表B_RAW!$C:$I,5,0)),"",VLOOKUP($E9,表B_RAW!$C:$I,5,0)) -> 2724601 | I9: =IF(ISERROR(VLOOKUP($E9,表B_RAW!$C:$I,6,0)),"",VLOOKUP($E9,表B_RAW!$C:$I,6,0)/100) -> -0.7735 | J9: =IF(ISERROR(VLOOKUP($E9,表A_RAW!$C:$I,5,0)),"",VLOOKUP($E9,表A_RAW!$C:$I,5,0)) -> 5657 | K9: =IF(ISERROR(VLOOKUP($E9,表A_RAW!$C:$I,7,0)),"",VLOOKUP($E9,表A_RAW!$C:$I,7,0)) -> 108.0768959 | L9: =IF(ISERROR(VLOOKUP($E9,表C_RAW!$C:$I,4,0)),"",VLOOKUP($E9,表C_RAW!$C:$I,4,0)) -> 617048 | M9: =IF(ISERROR(VLOOKUP($E9,表C_RAW!$C:$I,5,0)),"",VLOOKUP($E9,表C_RAW!$C:$I,5,0)) -> 5657 | N9: =IF(ISERROR(VLOOKUP($E9,表C_RAW!$C:$I,6,0)),"",VLOOKUP($E9,表C_RAW!$C:$I,6,0)/100) -> 108.0769
D10: 5 | E10: =VLOOKUP($C$6&D10,表A_RAW!A:I,3,0) -> 5514 三豐 | G10: =IF(ISERROR(VLOOKUP($E10,表A_RAW!$C:$I,4,0)),"",VLOOKUP($E10,表A_RAW!$C:$I,4,0)) -> 33508 | H10: =IF(ISERROR(VLOOKUP($E10,表B_RAW!$C:$I,5,0)),"",VLOOKUP($E10,表B_RAW!$C:$I,5,0)) -> 481 | I10: =IF(ISERROR(VLOOKUP($E10,表B_RAW!$C:$I,6,0)),"",VLOOKUP($E10,表B_RAW!$C:$I,6,0)/100) -> 68.6632 | J10: =IF(ISERROR(VLOOKUP($E10,表A_RAW!$C:$I,5,0)),"",VLOOKUP($E10,表A_RAW!$C:$I,5,0)) -> 482 | K10: =IF(ISERROR(VLOOKUP($E10,表A_RAW!$C:$I,7,0)),"",VLOOKUP($E10,表A_RAW!$C:$I,7,0)) -> 68.5186722 | L10: =IF(ISERROR(VLOOKUP($E10,表C_RAW!$C:$I,4,0)),"",VLOOKUP($E10,表C_RAW!$C:$I,4,0)) -> 33508 | M10: =IF(ISERROR(VLOOKUP($E10,表C_RAW!$C:$I,5,0)),"",VLOOKUP($E10,表C_RAW!$C:$I,5,0)) -> 482 | N10: =IF(ISERROR(VLOOKUP($E10,表C_RAW!$C:$I,6,0)),"",VLOOKUP($E10,表C_RAW!$C:$I,6,0)/100) -> 68.5187
B11: 2 | C11: =VLOOKUP(B11,表A_RAW!N:T,3,0) -> 電子通路業 | D11: 1 | E11: =VLOOKUP($C$11&D11,表A_RAW!A:I,3,0) -> 6265 方土昶 | G11: =IF(ISERROR(VLOOKUP($E11,表A_RAW!$C:$I,4,0)),"",VLOOKUP($E11,表A_RAW!$C:$I,4,0)) -> 212986 | H11: =IF(ISERROR(VLOOKUP($E11,表B_RAW!$C:$I,5,0)),"",VLOOKUP($E11,表B_RAW!$C:$I,5,0)) -> 179029 | I11: =IF(ISERROR(VLOOKUP($E11,表B_RAW!$C:$I,6,0)),"",VLOOKUP($E11,表B_RAW!$C:$I,6,0)/100) -> 0.1897 | J11: =IF(ISERROR(VLOOKUP($E11,表A_RAW!$C:$I,5,0)),"",VLOOKUP($E11,表A_RAW!$C:$I,5,0)) -> 39757 | K11: =IF(ISERROR(VLOOKUP($E11,表A_RAW!$C:$I,7,0)),"",VLOOKUP($E11,表A_RAW!$C:$I,7,0)) -> 4.357194959 | L11: =IF(ISERROR(VLOOKUP($E11,表C_RAW!$C:$I,4,0)),"",VLOOKUP($E11,表C_RAW!$C:$I,4,0)) -> 212986 | M11: =IF(ISERROR(VLOOKUP($E11,表C_RAW!$C:$I,5,0)),"",VLOOKUP($E11,表C_RAW!$C:$I,5,0)) -> 39757 | N11: =IF(ISERROR(VLOOKUP($E11,表C_RAW!$C:$I,6,0)),"",VLOOKUP($E11,表C_RAW!$C:$I,6,0)/100) -> 4.3572
D12: 2 | E12: =VLOOKUP($C$11&D12,表A_RAW!A:I,3,0) -> 3360 尚立 | G12: =IF(ISERROR(VLOOKUP($E12,表A_RAW!$C:$I,4,0)),"",VLOOKUP($E12,表A_RAW!$C:$I,4,0)) -> 1035573 | H12: =IF(ISERROR(VLOOKUP($E12,表B_RAW!$C:$I,5,0)),"",VLOOKUP($E12,表B_RAW!$C:$I,5,0)) -> 1010615 | I12: =IF(ISERROR(VLOOKUP($E12,表B_RAW!$C:$I,6,0)),"",VLOOKUP($E12,表B_RAW!$C:$I,6,0)/100) -> 0.0247 | J12: =IF(ISERROR(VLOOKUP($E12,表A_RAW!$C:$I,5,0)),"",VLOOKUP($E12,表A_RAW!$C:$I,5,0)) -> 409768 | K12: =IF(ISERROR(VLOOKUP($E12,表A_RAW!$C:$I,7,0)),"",VLOOKUP($E12,表A_RAW!$C:$I,7,0)) -> 1.52721784 | L12: =IF(ISERROR(VLOOKUP($E12,表C_RAW!$C:$I,4,0)),"",VLOOKUP($E12,表C_RAW!$C:$I,4,0)) -> 1035573 | M12: =IF(ISERROR(VLOOKUP($E12,表C_RAW!$C:$I,5,0)),"",VLOOKUP($E12,表C_RAW!$C:$I,5,0)) -> 409768 | N12: =IF(ISERROR(VLOOKUP($E12,表C_RAW!$C:$I,6,0)),"",VLOOKUP($E12,表C_RAW!$C:$I,6,0)/100) -> 1.5272
D13: 3 | E13: =VLOOKUP($C$11&D13,表A_RAW!A:I,3,0) -> 3036 文曄 | G13: =IF(ISERROR(VLOOKUP($E13,表A_RAW!$C:$I,4,0)),"",VLOOKUP($E13,表A_RAW!$C:$I,4,0)) -> 195746933 | H13: =IF(ISERROR(VLOOKUP($E13,表B_RAW!$C:$I,5,0)),"",VLOOKUP($E13,表B_RAW!$C:$I,5,0)) -> 98615954 | I13: =IF(ISERROR(VLOOKUP($E13,表B_RAW!$C:$I,6,0)),"",VLOOKUP($E13,表B_RAW!$C:$I,6,0)/100) -> 0.9849 | J13: =IF(ISERROR(VLOOKUP($E13,表A_RAW!$C:$I,5,0)),"",VLOOKUP($E13,表A_RAW!$C:$I,5,0)) -> 77779195 | K13: =IF(ISERROR(VLOOKUP($E13,表A_RAW!$C:$I,7,0)),"",VLOOKUP($E13,表A_RAW!$C:$I,7,0)) -> 1.516700424 | L13: =IF(ISERROR(VLOOKUP($E13,表C_RAW!$C:$I,4,0)),"",VLOOKUP($E13,表C_RAW!$C:$I,4,0)) -> 195746933 | M13: =IF(ISERROR(VLOOKUP($E13,表C_RAW!$C:$I,5,0)),"",VLOOKUP($E13,表C_RAW!$C:$I,5,0)) -> 77779195 | N13: =IF(ISERROR(VLOOKUP($E13,表C_RAW!$C:$I,6,0)),"",VLOOKUP($E13,表C_RAW!$C:$I,6,0)/100) -> 1.5167
C14: =VLOOKUP(B11,表A_RAW!N:T,7,0) -> 74.0258782 | D14: 4 | E14: =VLOOKUP($C$11&D14,表A_RAW!A:I,3,0) -> 3528 安馳 | G14: =IF(ISERROR(VLOOKUP($E14,表A_RAW!$C:$I,4,0)),"",VLOOKUP($E14,表A_RAW!$C:$I,4,0)) -> 1456934 | H14: =IF(ISERROR(VLOOKUP($E14,表B_RAW!$C:$I,5,0)),"",VLOOKUP($E14,表B_RAW!$C:$I,5,0)) -> 1011825 | I14: =IF(ISERROR(VLOOKUP($E14,表B_RAW!$C:$I,6,0)),"",VLOOKUP($E14,表B_RAW!$C:$I,6,0)/100) -> 0.4399 | J14: =IF(ISERROR(VLOOKUP($E14,表A_RAW!$C:$I,5,0)),"",VLOOKUP($E14,表A_RAW!$C:$I,5,0)) -> 579075 | K14: =IF(ISERROR(VLOOKUP($E14,表A_RAW!$C:$I,7,0)),"",VLOOKUP($E14,表A_RAW!$C:$I,7,0)) -> 1.515967707 | L14: =IF(ISERROR(VLOOKUP($E14,表C_RAW!$C:$I,4,0)),"",VLOOKUP($E14,表C_RAW!$C:$I,4,0)) -> 1456934 | M14: =IF(ISERROR(VLOOKUP($E14,表C_RAW!$C:$I,5,0)),"",VLOOKUP($E14,表C_RAW!$C:$I,5,0)) -> 579075 | N14: =IF(ISERROR(VLOOKUP($E14,表C_RAW!$C:$I,6,0)),"",VLOOKUP($E14,表C_RAW!$C:$I,6,0)/100) -> 1.516
D15: 5 | E15: =VLOOKUP($C$11&D15,表A_RAW!A:I,3,0) -> 3028 增你強 | G15: =IF(ISERROR(VLOOKUP($E15,表A_RAW!$C:$I,4,0)),"",VLOOKUP($E15,表A_RAW!$C:$I,4,0)) -> 6378194 | H15: =IF(ISERROR(VLOOKUP($E15,表B_RAW!$C:$I,5,0)),"",VLOOKUP($E15,表B_RAW!$C:$I,5,0)) -> 3558818 | I15: =IF(ISERROR(VLOOKUP($E15,表B_RAW!$C:$I,6,0)),"",VLOOKUP($E15,表B_RAW!$C:$I,6,0)/100) -> 0.7922 | J15: =IF(ISERROR(VLOOKUP($E15,表A_RAW!$C:$I,5,0)),"",VLOOKUP($E15,表A_RAW!$C:$I,5,0)) -> 3058362 | K15: =IF(ISERROR(VLOOKUP($E15,表A_RAW!$C:$I,7,0)),"",VLOOKUP($E15,表A_RAW!$C:$I,7,0)) -> 1.085493477 | L15: =IF(ISERROR(VLOOKUP($E15,表C_RAW!$C:$I,4,0)),"",VLOOKUP($E15,表C_RAW!$C:$I,4,0)) -> 6378194 | M15: =IF(ISERROR(VLOOKUP($E15,表C_RAW!$C:$I,5,0)),"",VLOOKUP($E15,表C_RAW!$C:$I,5,0)) -> 3058362 | N15: =IF(ISERROR(VLOOKUP($E15,表C_RAW!$C:$I,6,0)),"",VLOOKUP($E15,表C_RAW!$C:$I,6,0)/100) -> 1.0855
B16: 3 | C16: =VLOOKUP(B16,表A_RAW!N:T,3,0) -> 電腦及週邊設備業 | D16: 1 | E16: =VLOOKUP($C$16&D16,表A_RAW!A:I,3,0) -> 5386 青雲 | G16: =IF(ISERROR(VLOOKUP($E16,表A_RAW!$C:$I,4,0)),"",VLOOKUP($E16,表A_RAW!$C:$I,4,0)) -> 2461029 | H16: =IF(ISERROR(VLOOKUP($E16,表B_RAW!$C:$I,5,0)),"",VLOOKUP($E16,表B_RAW!$C:$I,5,0)) -> 779495 | I16: =IF(ISERROR(VLOOKUP($E16,表B_RAW!$C:$I,6,0)),"",VLOOKUP($E16,表B_RAW!$C:$I,6,0)/100) -> 2.1572 | J16: =IF(ISERROR(VLOOKUP($E16,表A_RAW!$C:$I,5,0)),"",VLOOKUP($E16,表A_RAW!$C:$I,5,0)) -> 485594 | K16: =IF(ISERROR(VLOOKUP($E16,表A_RAW!$C:$I,7,0)),"",VLOOKUP($E16,表A_RAW!$C:$I,7,0)) -> 4.068079507 | L16: =IF(ISERROR(VLOOKUP($E16,表C_RAW!$C:$I,4,0)),"",VLOOKUP($E16,表C_RAW!$C:$I,4,0)) -> 2461029 | M16: =IF(ISERROR(VLOOKUP($E16,表C_RAW!$C:$I,5,0)),"",VLOOKUP($E16,表C_RAW!$C:$I,5,0)) -> 485594 | N16: =IF(ISERROR(VLOOKUP($E16,表C_RAW!$C:$I,6,0)),"",VLOOKUP($E16,表C_RAW!$C:$I,6,0)/100) -> 4.0681
D17: 2 | E17: =VLOOKUP($C$16&D17,表A_RAW!A:I,3,0) -> 5289 宜鼎 | G17: =IF(ISERROR(VLOOKUP($E17,表A_RAW!$C:$I,4,0)),"",VLOOKUP($E17,表A_RAW!$C:$I,4,0)) -> 3331472 | H17: =IF(ISERROR(VLOOKUP($E17,表B_RAW!$C:$I,5,0)),"",VLOOKUP($E17,表B_RAW!$C:$I,5,0)) -> 1813153 | I17: =IF(ISERROR(VLOOKUP($E17,表B_RAW!$C:$I,6,0)),"",VLOOKUP($E17,表B_RAW!$C:$I,6,0)/100) -> 0.8374 | J17: =IF(ISERROR(VLOOKUP($E17,表A_RAW!$C:$I,5,0)),"",VLOOKUP($E17,表A_RAW!$C:$I,5,0)) -> 818323 | K17: =IF(ISERROR(VLOOKUP($E17,表A_RAW!$C:$I,7,0)),"",VLOOKUP($E17,表A_RAW!$C:$I,7,0)) -> 3.071096621 | L17: =IF(ISERROR(VLOOKUP($E17,表C_RAW!$C:$I,4,0)),"",VLOOKUP($E17,表C_RAW!$C:$I,4,0)) -> 3331472 | M17: =IF(ISERROR(VLOOKUP($E17,表C_RAW!$C:$I,5,0)),"",VLOOKUP($E17,表C_RAW!$C:$I,5,0)) -> 818323 | N17: =IF(ISERROR(VLOOKUP($E17,表C_RAW!$C:$I,6,0)),"",VLOOKUP($E17,表C_RAW!$C:$I,6,0)/100) -> 3.0711
D18: 3 | E18: =VLOOKUP($C$16&D18,表A_RAW!A:I,3,0) -> 3231 緯創 | G18: =IF(ISERROR(VLOOKUP($E18,表A_RAW!$C:$I,4,0)),"",VLOOKUP($E18,表A_RAW!$C:$I,4,0)) -> 228366631 | H18: =IF(ISERROR(VLOOKUP($E18,表B_RAW!$C:$I,5,0)),"",VLOOKUP($E18,表B_RAW!$C:$I,5,0)) -> 255254817 | I18: =IF(ISERROR(VLOOKUP($E18,表B_RAW!$C:$I,6,0)),"",VLOOKUP($E18,表B_RAW!$C:$I,6,0)/100) -> -0.1053 | J18: =IF(ISERROR(VLOOKUP($E18,表A_RAW!$C:$I,5,0)),"",VLOOKUP($E18,表A_RAW!$C:$I,5,0)) -> 90786162 | K18: =IF(ISERROR(VLOOKUP($E18,表A_RAW!$C:$I,7,0)),"",VLOOKUP($E18,表A_RAW!$C:$I,7,0)) -> 1.515434357 | L18: =IF(ISERROR(VLOOKUP($E18,表C_RAW!$C:$I,4,0)),"",VLOOKUP($E18,表C_RAW!$C:$I,4,0)) -> 228366631 | M18: =IF(ISERROR(VLOOKUP($E18,表C_RAW!$C:$I,5,0)),"",VLOOKUP($E18,表C_RAW!$C:$I,5,0)) -> 90786162 | N18: =IF(ISERROR(VLOOKUP($E18,表C_RAW!$C:$I,6,0)),"",VLOOKUP($E18,表C_RAW!$C:$I,6,0)/100) -> 1.5154
C19: =VLOOKUP(B16,表A_RAW!N:T,7,0) -> 53.19058297 | D19: 4 | E19: =VLOOKUP($C$16&D19,表A_RAW!A:I,3,0) -> 3017 奇鋐 | G19: =IF(ISERROR(VLOOKUP($E19,表A_RAW!$C:$I,4,0)),"",VLOOKUP($E19,表A_RAW!$C:$I,4,0)) -> 17003457 | H19: =IF(ISERROR(VLOOKUP($E19,表B_RAW!$C:$I,5,0)),"",VLOOKUP($E19,表B_RAW!$C:$I,5,0)) -> 13941273 | I19: =IF(ISERROR(VLOOKUP($E19,表B_RAW!$C:$I,6,0)),"",VLOOKUP($E19,表B_RAW!$C:$I,6,0)/100) -> 0.2196 | J19: =IF(ISERROR(VLOOKUP($E19,表A_RAW!$C:$I,5,0)),"",VLOOKUP($E19,表A_RAW!$C:$I,5,0)) -> 6801065 | K19: =IF(ISERROR(VLOOKUP($E19,表A_RAW!$C:$I,7,0)),"",VLOOKUP($E19,表A_RAW!$C:$I,7,0)) -> 1.50011682 | L19: =IF(ISERROR(VLOOKUP($E19,表C_RAW!$C:$I,4,0)),"",VLOOKUP($E19,表C_RAW!$C:$I,4,0)) -> 17003457 | M19: =IF(ISERROR(VLOOKUP($E19,表C_RAW!$C:$I,5,0)),"",VLOOKUP($E19,表C_RAW!$C:$I,5,0)) -> 6801065 | N19: =IF(ISERROR(VLOOKUP($E19,表C_RAW!$C:$I,6,0)),"",VLOOKUP($E19,表C_RAW!$C:$I,6,0)/100) -> 1.5001
D20: 5 | E20: =VLOOKUP($C$16&D20,表A_RAW!A:I,3,0) -> 8210 勤誠 | G20: =IF(ISERROR(VLOOKUP($E20,表A_RAW!$C:$I,4,0)),"",VLOOKUP($E20,表A_RAW!$C:$I,4,0)) -> 2650248 | H20: =IF(ISERROR(VLOOKUP($E20,表B_RAW!$C:$I,5,0)),"",VLOOKUP($E20,表B_RAW!$C:$I,5,0)) -> 2710524 | I20: =IF(ISERROR(VLOOKUP($E20,表B_RAW!$C:$I,6,0)),"",VLOOKUP($E20,表B_RAW!$C:$I,6,0)/100) -> -0.0222 | J20: =IF(ISERROR(VLOOKUP($E20,表A_RAW!$C:$I,5,0)),"",VLOOKUP($E20,表A_RAW!$C:$I,5,0)) -> 1118196 | K20: =IF(ISERROR(VLOOKUP($E20,表A_RAW!$C:$I,7,0)),"",VLOOKUP($E20,表A_RAW!$C:$I,7,0)) -> 1.370110428 | L20: =IF(ISERROR(VLOOKUP($E20,表C_RAW!$C:$I,4,0)),"",VLOOKUP($E20,表C_RAW!$C:$I,4,0)) -> 2650248 | M20: =IF(ISERROR(VLOOKUP($E20,表C_RAW!$C:$I,5,0)),"",VLOOKUP($E20,表C_RAW!$C:$I,5,0)) -> 1118196 | N20: =IF(ISERROR(VLOOKUP($E20,表C_RAW!$C:$I,6,0)),"",VLOOKUP($E20,表C_RAW!$C:$I,6,0)/100) -> 1.3701
B21: 4 | C21: =VLOOKUP(B21,表A_RAW!N:T,3,0) -> 金融業 | D21: 1 | E21: =VLOOKUP($C$21&D21,表A_RAW!A:I,3,FALSE) -> 5864 致和證 | G21: =IF(ISERROR(VLOOKUP($E21,表A_RAW!$C:$I,4,0)),"",VLOOKUP($E21,表A_RAW!$C:$I,4,0)) -> 1482121 | H21: =IF(ISERROR(VLOOKUP($E21,表B_RAW!$C:$I,5,0)),"",VLOOKUP($E21,表B_RAW!$C:$I,5,0)) -> 425395 | I21: =IF(ISERROR(VLOOKUP($E21,表B_RAW!$C:$I,6,0)),"",VLOOKUP($E21,表B_RAW!$C:$I,6,0)/100) -> 2.4841 | J21: =IF(ISERROR(VLOOKUP($E21,表A_RAW!$C:$I,5,0)),"",VLOOKUP($E21,表A_RAW!$C:$I,5,0)) -> 17137 | K21: =IF(ISERROR(VLOOKUP($E21,表A_RAW!$C:$I,7,0)),"",VLOOKUP($E21,表A_RAW!$C:$I,7,0)) -> 85.48660792 | L21: =IF(ISERROR(VLOOKUP($E21,表C_RAW!$C:$I,4,0)),"",VLOOKUP($E21,表C_RAW!$C:$I,4,0)) -> 1482121 | M21: =IF(ISERROR(VLOOKUP($E21,表C_RAW!$C:$I,5,0)),"",VLOOKUP($E21,表C_RAW!$C:$I,5,0)) -> 17137 | N21: =IF(ISERROR(VLOOKUP($E21,表C_RAW!$C:$I,6,0)),"",VLOOKUP($E21,表C_RAW!$C:$I,6,0)/100) -> 85.4866
D22: 2 | E22: =VLOOKUP($C$21&D22,表A_RAW!A:I,3,FALSE) -> 6020 大展證 | G22: =IF(ISERROR(VLOOKUP($E22,表A_RAW!$C:$I,4,0)),"",VLOOKUP($E22,表A_RAW!$C:$I,4,0)) -> 159278 | H22: =IF(ISERROR(VLOOKUP($E22,表B_RAW!$C:$I,5,0)),"",VLOOKUP($E22,表B_RAW!$C:$I,5,0)) -> 14072 | I22: =IF(ISERROR(VLOOKUP($E22,表B_RAW!$C:$I,6,0)),"",VLOOKUP($E22,表B_RAW!$C:$I,6,0)/100) -> 10.3188 | J22: =IF(ISERROR(VLOOKUP($E22,表A_RAW!$C:$I,5,0)),"",VLOOKUP($E22,表A_RAW!$C:$I,5,0)) -> -4258 | K22: =IF(ISERROR(VLOOKUP($E22,表A_RAW!$C:$I,7,0)),"",VLOOKUP($E22,表A_RAW!$C:$I,7,0)) -> 38.40676374 | L22: =IF(ISERROR(VLOOKUP($E22,表C_RAW!$C:$I,4,0)),"",VLOOKUP($E22,表C_RAW!$C:$I,4,0)) -> 159278 | M22: =IF(ISERROR(VLOOKUP($E22,表C_RAW!$C:$I,5,0)),"",VLOOKUP($E22,表C_RAW!$C:$I,5,0)) -> -4258 | N22: =IF(ISERROR(VLOOKUP($E22,表C_RAW!$C:$I,6,0)),"",VLOOKUP($E22,表C_RAW!$C:$I,6,0)/100) -> 38.4068
D23: 3 | E23: =VLOOKUP($C$21&D23,表A_RAW!A:I,3,FALSE) -> 2855 統一證 | G23: =IF(ISERROR(VLOOKUP($E23,表A_RAW!$C:$I,4,0)),"",VLOOKUP($E23,表A_RAW!$C:$I,4,0)) -> 3259312 | H23: =IF(ISERROR(VLOOKUP($E23,表B_RAW!$C:$I,5,0)),"",VLOOKUP($E23,表B_RAW!$C:$I,5,0)) -> 1650931 | I23: =IF(ISERROR(VLOOKUP($E23,表B_RAW!$C:$I,6,0)),"",VLOOKUP($E23,表B_RAW!$C:$I,6,0)/100) -> 0.9742 | J23: =IF(ISERROR(VLOOKUP($E23,表A_RAW!$C:$I,5,0)),"",VLOOKUP($E23,表A_RAW!$C:$I,5,0)) -> 688353 | K23: =IF(ISERROR(VLOOKUP($E23,表A_RAW!$C:$I,7,0)),"",VLOOKUP($E23,表A_RAW!$C:$I,7,0)) -> 3.734942682 | L23: =IF(ISERROR(VLOOKUP($E23,表C_RAW!$C:$I,4,0)),"",VLOOKUP($E23,表C_RAW!$C:$I,4,0)) -> 3259312 | M23: =IF(ISERROR(VLOOKUP($E23,表C_RAW!$C:$I,5,0)),"",VLOOKUP($E23,表C_RAW!$C:$I,5,0)) -> 688353 | N23: =IF(ISERROR(VLOOKUP($E23,表C_RAW!$C:$I,6,0)),"",VLOOKUP($E23,表C_RAW!$C:$I,6,0)/100) -> 3.7349
C24: =VLOOKUP(B21,表A_RAW!N:T,7,0) -> 46.2914275 | D24: 4 | E24: =VLOOKUP($C$21&D24,表A_RAW!A:I,3,FALSE) -> 6021 美好證 | G24: =IF(ISERROR(VLOOKUP($E24,表A_RAW!$C:$I,4,0)),"",VLOOKUP($E24,表A_RAW!$C:$I,4,0)) -> 495149 | H24: =IF(ISERROR(VLOOKUP($E24,表B_RAW!$C:$I,5,0)),"",VLOOKUP($E24,表B_RAW!$C:$I,5,0)) -> 270232 | I24: =IF(ISERROR(VLOOKUP($E24,表B_RAW!$C:$I,6,0)),"",VLOOKUP($E24,表B_RAW!$C:$I,6,0)/100) -> 0.8323 | J24: =IF(ISERROR(VLOOKUP($E24,表A_RAW!$C:$I,5,0)),"",VLOOKUP($E24,表A_RAW!$C:$I,5,0)) -> 146918 | K24: =IF(ISERROR(VLOOKUP($E24,表A_RAW!$C:$I,7,0)),"",VLOOKUP($E24,表A_RAW!$C:$I,7,0)) -> 2.370240542 | L24: =IF(ISERROR(VLOOKUP($E24,表C_RAW!$C:$I,4,0)),"",VLOOKUP($E24,表C_RAW!$C:$I,4,0)) -> 495149 | M24: =IF(ISERROR(VLOOKUP($E24,表C_RAW!$C:$I,5,0)),"",VLOOKUP($E24,表C_RAW!$C:$I,5,0)) -> 146918 | N24: =IF(ISERROR(VLOOKUP($E24,表C_RAW!$C:$I,6,0)),"",VLOOKUP($E24,表C_RAW!$C:$I,6,0)/100) -> 2.3702
D25: 5 | E25: =VLOOKUP($C$21&D25,表A_RAW!A:I,3,FALSE) -> 6015 宏遠證 | G25: =IF(ISERROR(VLOOKUP($E25,表A_RAW!$C:$I,4,0)),"",VLOOKUP($E25,表A_RAW!$C:$I,4,0)) -> 418612 | H25: =IF(ISERROR(VLOOKUP($E25,表B_RAW!$C:$I,5,0)),"",VLOOKUP($E25,表B_RAW!$C:$I,5,0)) -> 215025 | I25: =IF(ISERROR(VLOOKUP($E25,表B_RAW!$C:$I,6,0)),"",VLOOKUP($E25,表B_RAW!$C:$I,6,0)/100) -> 0.9468 | J25: =IF(ISERROR(VLOOKUP($E25,表A_RAW!$C:$I,5,0)),"",VLOOKUP($E25,表A_RAW!$C:$I,5,0)) -> 128078 | K25: =IF(ISERROR(VLOOKUP($E25,表A_RAW!$C:$I,7,0)),"",VLOOKUP($E25,表A_RAW!$C:$I,7,0)) -> 2.26841456 | L25: =IF(ISERROR(VLOOKUP($E25,表C_RAW!$C:$I,4,0)),"",VLOOKUP($E25,表C_RAW!$C:$I,4,0)) -> 418612 | M25: =IF(ISERROR(VLOOKUP($E25,表C_RAW!$C:$I,5,0)),"",VLOOKUP($E25,表C_RAW!$C:$I,5,0)) -> 128078 | N25: =IF(ISERROR(VLOOKUP($E25,表C_RAW!$C:$I,6,0)),"",VLOOKUP($E25,表C_RAW!$C:$I,6,0)/100) -> 2.2684
B26: 5 | C26: =VLOOKUP(B26,表A_RAW!N:T,3,0) -> 資訊服務業 | D26: 1 | E26: =VLOOKUP($C$26&D26,表A_RAW!A:I,3,FALSE) -> 5310 天剛 | G26: =IF(ISERROR(VLOOKUP($E26,表A_RAW!$C:$I,4,0)),"",VLOOKUP($E26,表A_RAW!$C:$I,4,0)) -> 84 | H26: =IF(ISERROR(VLOOKUP($E26,表B_RAW!$C:$I,5,0)),"",VLOOKUP($E26,表B_RAW!$C:$I,5,0)) -> 9 | I26: =IF(ISERROR(VLOOKUP($E26,表B_RAW!$C:$I,6,0)),"",VLOOKUP($E26,表B_RAW!$C:$I,6,0)/100) -> 8.3333 | J26: =IF(ISERROR(VLOOKUP($E26,表A_RAW!$C:$I,5,0)),"",VLOOKUP($E26,表A_RAW!$C:$I,5,0)) -> 3 | K26: =IF(ISERROR(VLOOKUP($E26,表A_RAW!$C:$I,7,0)),"",VLOOKUP($E26,表A_RAW!$C:$I,7,0)) -> 27 | L26: =IF(ISERROR(VLOOKUP($E26,表C_RAW!$C:$I,4,0)),"",VLOOKUP($E26,表C_RAW!$C:$I,4,0)) -> 84 | M26: =IF(ISERROR(VLOOKUP($E26,表C_RAW!$C:$I,5,0)),"",VLOOKUP($E26,表C_RAW!$C:$I,5,0)) -> 3 | N26: =IF(ISERROR(VLOOKUP($E26,表C_RAW!$C:$I,6,0)),"",VLOOKUP($E26,表C_RAW!$C:$I,6,0)/100) -> 27
D27: 2 | E27: =VLOOKUP($C$26&D27,表A_RAW!A:I,3,FALSE) -> 2427 三商電 | G27: =IF(ISERROR(VLOOKUP($E27,表A_RAW!$C:$I,4,0)),"",VLOOKUP($E27,表A_RAW!$C:$I,4,0)) -> 1487888 | H27: =IF(ISERROR(VLOOKUP($E27,表B_RAW!$C:$I,5,0)),"",VLOOKUP($E27,表B_RAW!$C:$I,5,0)) -> 838932 | I27: =IF(ISERROR(VLOOKUP($E27,表B_RAW!$C:$I,6,0)),"",VLOOKUP($E27,表B_RAW!$C:$I,6,0)/100) -> 0.7736 | J27: =IF(ISERROR(VLOOKUP($E27,表A_RAW!$C:$I,5,0)),"",VLOOKUP($E27,表A_RAW!$C:$I,5,0)) -> 321366 | K27: =IF(ISERROR(VLOOKUP($E27,表A_RAW!$C:$I,7,0)),"",VLOOKUP($E27,表A_RAW!$C:$I,7,0)) -> 3.629886173 | L27: =IF(ISERROR(VLOOKUP($E27,表C_RAW!$C:$I,4,0)),"",VLOOKUP($E27,表C_RAW!$C:$I,4,0)) -> 1487888 | M27: =IF(ISERROR(VLOOKUP($E27,表C_RAW!$C:$I,5,0)),"",VLOOKUP($E27,表C_RAW!$C:$I,5,0)) -> 321366 | N27: =IF(ISERROR(VLOOKUP($E27,表C_RAW!$C:$I,6,0)),"",VLOOKUP($E27,表C_RAW!$C:$I,6,0)/100) -> 3.6299
D28: 3 | E28: =VLOOKUP($C$26&D28,表A_RAW!A:I,3,FALSE) -> 3147 大綜 | G28: =IF(ISERROR(VLOOKUP($E28,表A_RAW!$C:$I,4,0)),"",VLOOKUP($E28,表A_RAW!$C:$I,4,0)) -> 1411601 | H28: =IF(ISERROR(VLOOKUP($E28,表B_RAW!$C:$I,5,0)),"",VLOOKUP($E28,表B_RAW!$C:$I,5,0)) -> 389361 | I28: =IF(ISERROR(VLOOKUP($E28,表B_RAW!$C:$I,6,0)),"",VLOOKUP($E28,表B_RAW!$C:$I,6,0)/100) -> 2.6254 | J28: =IF(ISERROR(VLOOKUP($E28,表A_RAW!$C:$I,5,0)),"",VLOOKUP($E28,表A_RAW!$C:$I,5,0)) -> 460388 | K28: =IF(ISERROR(VLOOKUP($E28,表A_RAW!$C:$I,7,0)),"",VLOOKUP($E28,表A_RAW!$C:$I,7,0)) -> 2.066111628 | L28: =IF(ISERROR(VLOOKUP($E28,表C_RAW!$C:$I,4,0)),"",VLOOKUP($E28,表C_RAW!$C:$I,4,0)) -> 1411601 | M28: =IF(ISERROR(VLOOKUP($E28,表C_RAW!$C:$I,5,0)),"",VLOOKUP($E28,表C_RAW!$C:$I,5,0)) -> 460388 | N28: =IF(ISERROR(VLOOKUP($E28,表C_RAW!$C:$I,6,0)),"",VLOOKUP($E28,表C_RAW!$C:$I,6,0)/100) -> 2.0661
C29: =VLOOKUP(B26,表A_RAW!N:T,7,0) -> 35.59757872 | D29: 4 | E29: =VLOOKUP($C$26&D29,表A_RAW!A:I,3,FALSE) -> 3570 大塚 | G29: =IF(ISERROR(VLOOKUP($E29,表A_RAW!$C:$I,4,0)),"",VLOOKUP($E29,表A_RAW!$C:$I,4,0)) -> 308795 | H29: =IF(ISERROR(VLOOKUP($E29,表B_RAW!$C:$I,5,0)),"",VLOOKUP($E29,表B_RAW!$C:$I,5,0)) -> 196706 | I29: =IF(ISERROR(VLOOKUP($E29,表B_RAW!$C:$I,6,0)),"",VLOOKUP($E29,表B_RAW!$C:$I,6,0)/100) -> 0.5698 | J29: =IF(ISERROR(VLOOKUP($E29,表A_RAW!$C:$I,5,0)),"",VLOOKUP($E29,表A_RAW!$C:$I,5,0)) -> 184134 | K29: =IF(ISERROR(VLOOKUP($E29,表A_RAW!$C:$I,7,0)),"",VLOOKUP($E29,表A_RAW!$C:$I,7,0)) -> 0.6770123931 | L29: =IF(ISERROR(VLOOKUP($E29,表C_RAW!$C:$I,4,0)),"",VLOOKUP($E29,表C_RAW!$C:$I,4,0)) -> 308795 | M29: =IF(ISERROR(VLOOKUP($E29,表C_RAW!$C:$I,5,0)),"",VLOOKUP($E29,表C_RAW!$C:$I,5,0)) -> 184134 | N29: =IF(ISERROR(VLOOKUP($E29,表C_RAW!$C:$I,6,0)),"",VLOOKUP($E29,表C_RAW!$C:$I,6,0)/100) -> 0.677
D30: 5 | E30: =VLOOKUP($C$26&D30,表A_RAW!A:I,3,FALSE) -> 6874 倍力 | G30: =IF(ISERROR(VLOOKUP($E30,表A_RAW!$C:$I,4,0)),"",VLOOKUP($E30,表A_RAW!$C:$I,4,0)) -> 475331 | H30: =IF(ISERROR(VLOOKUP($E30,表B_RAW!$C:$I,5,0)),"",VLOOKUP($E30,表B_RAW!$C:$I,5,0)) -> 97172 | I30: =IF(ISERROR(VLOOKUP($E30,表B_RAW!$C:$I,6,0)),"",VLOOKUP($E30,表B_RAW!$C:$I,6,0)/100) -> 3.8916 | J30: =IF(ISERROR(VLOOKUP($E30,表A_RAW!$C:$I,5,0)),"",VLOOKUP($E30,表A_RAW!$C:$I,5,0)) -> 291549 | K30: =IF(ISERROR(VLOOKUP($E30,表A_RAW!$C:$I,7,0)),"",VLOOKUP($E30,表A_RAW!$C:$I,7,0)) -> 0.6303640211 | L30: =IF(ISERROR(VLOOKUP($E30,表C_RAW!$C:$I,4,0)),"",VLOOKUP($E30,表C_RAW!$C:$I,4,0)) -> 475331 | M30: =IF(ISERROR(VLOOKUP($E30,表C_RAW!$C:$I,5,0)),"",VLOOKUP($E30,表C_RAW!$C:$I,5,0)) -> 291549 | N30: =IF(ISERROR(VLOOKUP($E30,表C_RAW!$C:$I,6,0)),"",VLOOKUP($E30,表C_RAW!$C:$I,6,0)/100) -> 0.6304
B32: 衰退前五名之產業 YOY(單月)% | D32: 該產業衰退前五名之公司 YOY(單月)% | G32: 單月營收金額(千元) | H32: 本月與上月相較 | J32: 本月與去年同期相較 | L32: 累計營收金額(千元) | M32: 累計營收與去年同期相較
B33: 衰退 排名 | C33: 產業 | D33: 排名 | E33: 公司代號&簡稱 | H33: 上月營收金額(千元) | I33: 較上月變動比率(%) | J33: 去年同期金額(千元) | K33: 較去年同期變動比率(%) | M33: 去年累計營收金額(千元) | N33: 較去年同期變動比率(%)
B34: 1 | C34: =VLOOKUP(B34,表A_RAW!O:T,2,0) -> 運動休閒 | D34: 1 | E34: =VLOOKUP($C$34&D34,表A_RAW!B:I,2,0) -> 8478 東哥遊艇 | G34: =IF(ISERROR(VLOOKUP($E34,表A_RAW!$C:$I,4,0)),"",VLOOKUP($E34,表A_RAW!$C:$I,4,0)) -> 31328 | H34: =IF(ISERROR(VLOOKUP($E34,表B_RAW!$C:$I,5,0)),"",VLOOKUP($E34,表B_RAW!$C:$I,5,0)) -> 379368 | I34: =IF(ISERROR(VLOOKUP($E34,表B_RAW!$C:$I,6,0)),"",VLOOKUP($E34,表B_RAW!$C:$I,6,0)/100) -> -0.9174 | J34: =IF(ISERROR(VLOOKUP($E34,表A_RAW!$C:$I,5,0)),"",VLOOKUP($E34,表A_RAW!$C:$I,5,0)) -> 321445 | K34: =IF(ISERROR(VLOOKUP($E34,表A_RAW!$C:$I,7,0)),"",VLOOKUP($E34,表A_RAW!$C:$I,7,0)) -> -0.9025400924 | L34: =IF(ISERROR(VLOOKUP($E34,表C_RAW!$C:$I,4,0)),"",VLOOKUP($E34,表C_RAW!$C:$I,4,0)) -> 31328 | M34: =IF(ISERROR(VLOOKUP($E34,表C_RAW!$C:$I,5,0)),"",VLOOKUP($E34,表C_RAW!$C:$I,5,0)) -> 321445 | N34: =IF(ISERROR(VLOOKUP($E34,表C_RAW!$C:$I,6,0)),"",VLOOKUP($E34,表C_RAW!$C:$I,6,0)/100) -> -0.9025
D35: 2 | E35: =VLOOKUP($C$34&D35,表A_RAW!B:I,2,0) -> 8933 愛地雅 | G35: =IF(ISERROR(VLOOKUP($E35,表A_RAW!$C:$I,4,0)),"",VLOOKUP($E35,表A_RAW!$C:$I,4,0)) -> 117226 | H35: =IF(ISERROR(VLOOKUP($E35,表B_RAW!$C:$I,5,0)),"",VLOOKUP($E35,表B_RAW!$C:$I,5,0)) -> 147907 | I35: =IF(ISERROR(VLOOKUP($E35,表B_RAW!$C:$I,6,0)),"",VLOOKUP($E35,表B_RAW!$C:$I,6,0)/100) -> -0.2074 | J35: =IF(ISERROR(VLOOKUP($E35,表A_RAW!$C:$I,5,0)),"",VLOOKUP($E35,表A_RAW!$C:$I,5,0)) -> 250273 | K35: =IF(ISERROR(VLOOKUP($E35,表A_RAW!$C:$I,7,0)),"",VLOOKUP($E35,表A_RAW!$C:$I,7,0)) -> -0.5316074846 | L35: =IF(ISERROR(VLOOKUP($E35,表C_RAW!$C:$I,4,0)),"",VLOOKUP($E35,表C_RAW!$C:$I,4,0)) -> 117226 | M35: =IF(ISERROR(VLOOKUP($E35,表C_RAW!$C:$I,5,0)),"",VLOOKUP($E35,表C_RAW!$C:$I,5,0)) -> 250273 | N35: =IF(ISERROR(VLOOKUP($E35,表C_RAW!$C:$I,6,0)),"",VLOOKUP($E35,表C_RAW!$C:$I,6,0)/100) -> -0.5316
D36: 3 | E36: =VLOOKUP($C$34&D36,表A_RAW!B:I,2,0) -> 1432 大魯閣 | G36: =IF(ISERROR(VLOOKUP($E36,表A_RAW!$C:$I,4,0)),"",VLOOKUP($E36,表A_RAW!$C:$I,4,0)) -> 65998 | H36: =IF(ISERROR(VLOOKUP($E36,表B_RAW!$C:$I,5,0)),"",VLOOKUP($E36,表B_RAW!$C:$I,5,0)) -> 111500 | I36: =IF(ISERROR(VLOOKUP($E36,表B_RAW!$C:$I,6,0)),"",VLOOKUP($E36,表B_RAW!$C:$I,6,0)/100) -> -0.4081 | J36: =IF(ISERROR(VLOOKUP($E36,表A_RAW!$C:$I,5,0)),"",VLOOKUP($E36,表A_RAW!$C:$I,5,0)) -> 122375 | K36: =IF(ISERROR(VLOOKUP($E36,表A_RAW!$C:$I,7,0)),"",VLOOKUP($E36,表A_RAW!$C:$I,7,0)) -> -0.4606905005 | L36: =IF(ISERROR(VLOOKUP($E36,表C_RAW!$C:$I,4,0)),"",VLOOKUP($E36,表C_RAW!$C:$I,4,0)) -> 65998 | M36: =IF(ISERROR(VLOOKUP($E36,表C_RAW!$C:$I,5,0)),"",VLOOKUP($E36,表C_RAW!$C:$I,5,0)) -> 122375 | N36: =IF(ISERROR(VLOOKUP($E36,表C_RAW!$C:$I,6,0)),"",VLOOKUP($E36,表C_RAW!$C:$I,6,0)/100) -> -0.4607
C37: =VLOOKUP(B34,表A_RAW!O:T,6,0) -> -13.27879415 | D37: 4 | E37: =VLOOKUP($C$34&D37,表A_RAW!B:I,2,0) -> 9914 美利達 | G37: =IF(ISERROR(VLOOKUP($E37,表A_RAW!$C:$I,4,0)),"",VLOOKUP($E37,表A_RAW!$C:$I,4,0)) -> 1391355 | H37: =IF(ISERROR(VLOOKUP($E37,表B_RAW!$C:$I,5,0)),"",VLOOKUP($E37,表B_RAW!$C:$I,5,0)) -> 1596527 | I37: =IF(ISERROR(VLOOKUP($E37,表B_RAW!$C:$I,6,0)),"",VLOOKUP($E37,表B_RAW!$C:$I,6,0)/100) -> -0.1285 | J37: =IF(ISERROR(VLOOKUP($E37,表A_RAW!$C:$I,5,0)),"",VLOOKUP($E37,表A_RAW!$C:$I,5,0)) -> 2500664 | K37: =IF(ISERROR(VLOOKUP($E37,表A_RAW!$C:$I,7,0)),"",VLOOKUP($E37,表A_RAW!$C:$I,7,0)) -> -0.4436057783 | L37: =IF(ISERROR(VLOOKUP($E37,表C_RAW!$C:$I,4,0)),"",VLOOKUP($E37,表C_RAW!$C:$I,4,0)) -> 1391355 | M37: =IF(ISERROR(VLOOKUP($E37,表C_RAW!$C:$I,5,0)),"",VLOOKUP($E37,表C_RAW!$C:$I,5,0)) -> 2500664 | N37: =IF(ISERROR(VLOOKUP($E37,表C_RAW!$C:$I,6,0)),"",VLOOKUP($E37,表C_RAW!$C:$I,6,0)/100) -> -0.4436
D38: 5 | E38: =VLOOKUP($C$34&D38,表A_RAW!B:I,2,0) -> 1598 岱宇 | G38: =IF(ISERROR(VLOOKUP($E38,表A_RAW!$C:$I,4,0)),"",VLOOKUP($E38,表A_RAW!$C:$I,4,0)) -> 475669 | H38: =IF(ISERROR(VLOOKUP($E38,表B_RAW!$C:$I,5,0)),"",VLOOKUP($E38,表B_RAW!$C:$I,5,0)) -> 746675 | I38: =IF(ISERROR(VLOOKUP($E38,表B_RAW!$C:$I,6,0)),"",VLOOKUP($E38,表B_RAW!$C:$I,6,0)/100) -> -0.363 | J38: =IF(ISERROR(VLOOKUP($E38,表A_RAW!$C:$I,5,0)),"",VLOOKUP($E38,表A_RAW!$C:$I,5,0)) -> 725971 | K38: =IF(ISERROR(VLOOKUP($E38,表A_RAW!$C:$I,7,0)),"",VLOOKUP($E38,表A_RAW!$C:$I,7,0)) -> -0.3447823673 | L38: =IF(ISERROR(VLOOKUP($E38,表C_RAW!$C:$I,4,0)),"",VLOOKUP($E38,表C_RAW!$C:$I,4,0)) -> 475669 | M38: =IF(ISERROR(VLOOKUP($E38,表C_RAW!$C:$I,5,0)),"",VLOOKUP($E38,表C_RAW!$C:$I,5,0)) -> 725971 | N38: =IF(ISERROR(VLOOKUP($E38,表C_RAW!$C:$I,6,0)),"",VLOOKUP($E38,表C_RAW!$C:$I,6,0)/100) -> -0.3448
B39: 2 | C39: =VLOOKUP(B39,表A_RAW!O:T,2,0) -> 綠能環保 | D39: 1 | E39: =VLOOKUP($C$39&D39,表A_RAW!B:I,2,0) -> 6806 森崴能源 | G39: =IF(ISERROR(VLOOKUP($E39,表A_RAW!$C:$I,4,0)),"",VLOOKUP($E39,表A_RAW!$C:$I,4,0)) -> 428960 | H39: =IF(ISERROR(VLOOKUP($E39,表B_RAW!$C:$I,5,0)),"",VLOOKUP($E39,表B_RAW!$C:$I,5,0)) -> 1836099 | I39: =IF(ISERROR(VLOOKUP($E39,表B_RAW!$C:$I,6,0)),"",VLOOKUP($E39,表B_RAW!$C:$I,6,0)/100) -> -0.7664 | J39: =IF(ISERROR(VLOOKUP($E39,表A_RAW!$C:$I,5,0)),"",VLOOKUP($E39,表A_RAW!$C:$I,5,0)) -> 2786957 | K39: =IF(ISERROR(VLOOKUP($E39,表A_RAW!$C:$I,7,0)),"",VLOOKUP($E39,表A_RAW!$C:$I,7,0)) -> -0.8460830217 | L39: =IF(ISERROR(VLOOKUP($E39,表C_RAW!$C:$I,4,0)),"",VLOOKUP($E39,表C_RAW!$C:$I,4,0)) -> 428960 | M39: =IF(ISERROR(VLOOKUP($E39,表C_RAW!$C:$I,5,0)),"",VLOOKUP($E39,表C_RAW!$C:$I,5,0)) -> 2786957 | N39: =IF(ISERROR(VLOOKUP($E39,表C_RAW!$C:$I,6,0)),"",VLOOKUP($E39,表C_RAW!$C:$I,6,0)/100) -> -0.8461
D40: 2 | E40: =VLOOKUP($C$39&D40,表A_RAW!B:I,2,0) -> 6692 進能服 | G40: =IF(ISERROR(VLOOKUP($E40,表A_RAW!$C:$I,4,0)),"",VLOOKUP($E40,表A_RAW!$C:$I,4,0)) -> 31523 | H40: =IF(ISERROR(VLOOKUP($E40,表B_RAW!$C:$I,5,0)),"",VLOOKUP($E40,表B_RAW!$C:$I,5,0)) -> 62445 | I40: =IF(ISERROR(VLOOKUP($E40,表B_RAW!$C:$I,6,0)),"",VLOOKUP($E40,表B_RAW!$C:$I,6,0)/100) -> -0.4952 | J40: =IF(ISERROR(VLOOKUP($E40,表A_RAW!$C:$I,5,0)),"",VLOOKUP($E40,表A_RAW!$C:$I,5,0)) -> 198712 | K40: =IF(ISERROR(VLOOKUP($E40,表A_RAW!$C:$I,7,0)),"",VLOOKUP($E40,表A_RAW!$C:$I,7,0)) -> -0.8413633802 | L40: =IF(ISERROR(VLOOKUP($E40,表C_RAW!$C:$I,4,0)),"",VLOOKUP($E40,表C_RAW!$C:$I,4,0)) -> 31523 | M40: =IF(ISERROR(VLOOKUP($E40,表C_RAW!$C:$I,5,0)),"",VLOOKUP($E40,表C_RAW!$C:$I,5,0)) -> 198712 | N40: =IF(ISERROR(VLOOKUP($E40,表C_RAW!$C:$I,6,0)),"",VLOOKUP($E40,表C_RAW!$C:$I,6,0)/100) -> -0.8414
D41: 3 | E41: =VLOOKUP($C$39&D41,表A_RAW!B:I,2,0) -> 3708 上緯投控 | G41: =IF(ISERROR(VLOOKUP($E41,表A_RAW!$C:$I,4,0)),"",VLOOKUP($E41,表A_RAW!$C:$I,4,0)) -> 51108 | H41: =IF(ISERROR(VLOOKUP($E41,表B_RAW!$C:$I,5,0)),"",VLOOKUP($E41,表B_RAW!$C:$I,5,0)) -> 58292 | I41: =IF(ISERROR(VLOOKUP($E41,表B_RAW!$C:$I,6,0)),"",VLOOKUP($E41,表B_RAW!$C:$I,6,0)/100) -> -0.1232 | J41: =IF(ISERROR(VLOOKUP($E41,表A_RAW!$C:$I,5,0)),"",VLOOKUP($E41,表A_RAW!$C:$I,5,0)) -> 135209 | K41: =IF(ISERROR(VLOOKUP($E41,表A_RAW!$C:$I,7,0)),"",VLOOKUP($E41,表A_RAW!$C:$I,7,0)) -> -0.6220074107 | L41: =IF(ISERROR(VLOOKUP($E41,表C_RAW!$C:$I,4,0)),"",VLOOKUP($E41,表C_RAW!$C:$I,4,0)) -> 51108 | M41: =IF(ISERROR(VLOOKUP($E41,表C_RAW!$C:$I,5,0)),"",VLOOKUP($E41,表C_RAW!$C:$I,5,0)) -> 135209 | N41: =IF(ISERROR(VLOOKUP($E41,表C_RAW!$C:$I,6,0)),"",VLOOKUP($E41,表C_RAW!$C:$I,6,0)/100) -> -0.622
C42: =VLOOKUP(B39,表A_RAW!O:T,6,0) -> -12.01389265 | D42: 4 | E42: =VLOOKUP($C$39&D42,表A_RAW!B:I,2,0) -> 7715 裕山 | G42: =IF(ISERROR(VLOOKUP($E42,表A_RAW!$C:$I,4,0)),"",VLOOKUP($E42,表A_RAW!$C:$I,4,0)) -> 40658 | H42: =IF(ISERROR(VLOOKUP($E42,表B_RAW!$C:$I,5,0)),"",VLOOKUP($E42,表B_RAW!$C:$I,5,0)) -> 81595 | I42: =IF(ISERROR(VLOOKUP($E42,表B_RAW!$C:$I,6,0)),"",VLOOKUP($E42,表B_RAW!$C:$I,6,0)/100) -> -0.5017 | J42: =IF(ISERROR(VLOOKUP($E42,表A_RAW!$C:$I,5,0)),"",VLOOKUP($E42,表A_RAW!$C:$I,5,0)) -> 79540 | K42: =IF(ISERROR(VLOOKUP($E42,表A_RAW!$C:$I,7,0)),"",VLOOKUP($E42,表A_RAW!$C:$I,7,0)) -> -0.4888358059 | L42: =IF(ISERROR(VLOOKUP($E42,表C_RAW!$C:$I,4,0)),"",VLOOKUP($E42,表C_RAW!$C:$I,4,0)) -> 40658 | M42: =IF(ISERROR(VLOOKUP($E42,表C_RAW!$C:$I,5,0)),"",VLOOKUP($E42,表C_RAW!$C:$I,5,0)) -> 79540 | N42: =IF(ISERROR(VLOOKUP($E42,表C_RAW!$C:$I,6,0)),"",VLOOKUP($E42,表C_RAW!$C:$I,6,0)/100) -> -0.4888
D43: 5 | E43: =IFERROR(VLOOKUP($C$39&D43,表A_RAW!B:I,2,0),"") -> 6887 寶綠特-KY | G43: =IF(ISERROR(VLOOKUP($E43,表A_RAW!$C:$I,4,0)),"",VLOOKUP($E43,表A_RAW!$C:$I,4,0)) -> 280206 | H43: =IF(ISERROR(VLOOKUP($E43,表B_RAW!$C:$I,5,0)),"",VLOOKUP($E43,表B_RAW!$C:$I,5,0)) -> 872356 | I43: =IF(ISERROR(VLOOKUP($E43,表B_RAW!$C:$I,6,0)),"",VLOOKUP($E43,表B_RAW!$C:$I,6,0)/100) -> -0.6788 | J43: =IF(ISERROR(VLOOKUP($E43,表A_RAW!$C:$I,5,0)),"",VLOOKUP($E43,表A_RAW!$C:$I,5,0)) -> 538918 | K43: =IF(ISERROR(VLOOKUP($E43,表A_RAW!$C:$I,7,0)),"",VLOOKUP($E43,表A_RAW!$C:$I,7,0)) -> -0.4800581907 | L43: =IF(ISERROR(VLOOKUP($E43,表C_RAW!$C:$I,4,0)),"",VLOOKUP($E43,表C_RAW!$C:$I,4,0)) -> 280206 | M43: =IF(ISERROR(VLOOKUP($E43,表C_RAW!$C:$I,5,0)),"",VLOOKUP($E43,表C_RAW!$C:$I,5,0)) -> 538918 | N43: =IF(ISERROR(VLOOKUP($E43,表C_RAW!$C:$I,6,0)),"",VLOOKUP($E43,表C_RAW!$C:$I,6,0)/100) -> -0.4801
B44: 3 | C44: =VLOOKUP(B44,表A_RAW!O:T,2,0) -> 航運業 | D44: 1 | E44: =VLOOKUP($C$44&D44,表A_RAW!B:I,2,0) -> 2630 亞航 | G44: =IF(ISERROR(VLOOKUP($E44,表A_RAW!$C:$I,4,0)),"",VLOOKUP($E44,表A_RAW!$C:$I,4,0)) -> 259989 | H44: =IF(ISERROR(VLOOKUP($E44,表B_RAW!$C:$I,5,0)),"",VLOOKUP($E44,表B_RAW!$C:$I,5,0)) -> 403309 | I44: =IF(ISERROR(VLOOKUP($E44,表B_RAW!$C:$I,6,0)),"",VLOOKUP($E44,表B_RAW!$C:$I,6,0)/100) -> -0.3554 | J44: =IF(ISERROR(VLOOKUP($E44,表A_RAW!$C:$I,5,0)),"",VLOOKUP($E44,表A_RAW!$C:$I,5,0)) -> 403845 | K44: =IF(ISERROR(VLOOKUP($E44,表A_RAW!$C:$I,7,0)),"",VLOOKUP($E44,表A_RAW!$C:$I,7,0)) -> -0.3562158749 | L44: =IF(ISERROR(VLOOKUP($E44,表C_RAW!$C:$I,4,0)),"",VLOOKUP($E44,表C_RAW!$C:$I,4,0)) -> 259989 | M44: =IF(ISERROR(VLOOKUP($E44,表C_RAW!$C:$I,5,0)),"",VLOOKUP($E44,表C_RAW!$C:$I,5,0)) -> 403845 | N44: =IF(ISERROR(VLOOKUP($E44,表C_RAW!$C:$I,6,0)),"",VLOOKUP($E44,表C_RAW!$C:$I,6,0)/100) -> -0.3562
D45: 2 | E45: =VLOOKUP($C$44&D45,表A_RAW!B:I,2,0) -> 2603 長榮 | G45: =IF(ISERROR(VLOOKUP($E45,表A_RAW!$C:$I,4,0)),"",VLOOKUP($E45,表A_RAW!$C:$I,4,0)) -> 31898627 | H45: =IF(ISERROR(VLOOKUP($E45,表B_RAW!$C:$I,5,0)),"",VLOOKUP($E45,表B_RAW!$C:$I,5,0)) -> 30705794 | I45: =IF(ISERROR(VLOOKUP($E45,表B_RAW!$C:$I,6,0)),"",VLOOKUP($E45,表B_RAW!$C:$I,6,0)/100) -> 0.0388 | J45: =IF(ISERROR(VLOOKUP($E45,表A_RAW!$C:$I,5,0)),"",VLOOKUP($E45,表A_RAW!$C:$I,5,0)) -> 42247957 | K45: =IF(ISERROR(VLOOKUP($E45,表A_RAW!$C:$I,7,0)),"",VLOOKUP($E45,表A_RAW!$C:$I,7,0)) -> -0.2449664016 | L45: =IF(ISERROR(VLOOKUP($E45,表C_RAW!$C:$I,4,0)),"",VLOOKUP($E45,表C_RAW!$C:$I,4,0)) -> 31898627 | M45: =IF(ISERROR(VLOOKUP($E45,表C_RAW!$C:$I,5,0)),"",VLOOKUP($E45,表C_RAW!$C:$I,5,0)) -> 42247957 | N45: =IF(ISERROR(VLOOKUP($E45,表C_RAW!$C:$I,6,0)),"",VLOOKUP($E45,表C_RAW!$C:$I,6,0)/100) -> -0.245
D46: 3 | E46: =VLOOKUP($C$44&D46,表A_RAW!B:I,2,0) -> 2609 陽明 | G46: =IF(ISERROR(VLOOKUP($E46,表A_RAW!$C:$I,4,0)),"",VLOOKUP($E46,表A_RAW!$C:$I,4,0)) -> 13761884 | H46: =IF(ISERROR(VLOOKUP($E46,表B_RAW!$C:$I,5,0)),"",VLOOKUP($E46,表B_RAW!$C:$I,5,0)) -> 13239996 | I46: =IF(ISERROR(VLOOKUP($E46,表B_RAW!$C:$I,6,0)),"",VLOOKUP($E46,表B_RAW!$C:$I,6,0)/100) -> 0.0394 | J46: =IF(ISERROR(VLOOKUP($E46,表A_RAW!$C:$I,5,0)),"",VLOOKUP($E46,表A_RAW!$C:$I,5,0)) -> 17592891 | K46: =IF(ISERROR(VLOOKUP($E46,表A_RAW!$C:$I,7,0)),"",VLOOKUP($E46,表A_RAW!$C:$I,7,0)) -> -0.2177588095 | L46: =IF(ISERROR(VLOOKUP($E46,表C_RAW!$C:$I,4,0)),"",VLOOKUP($E46,表C_RAW!$C:$I,4,0)) -> 13761884 | M46: =IF(ISERROR(VLOOKUP($E46,表C_RAW!$C:$I,5,0)),"",VLOOKUP($E46,表C_RAW!$C:$I,5,0)) -> 17592891 | N46: =IF(ISERROR(VLOOKUP($E46,表C_RAW!$C:$I,6,0)),"",VLOOKUP($E46,表C_RAW!$C:$I,6,0)/100) -> -0.2178
C47: =VLOOKUP(B44,表A_RAW!O:T,6,0) -> -11.44773319 | D47: 4 | E47: =VLOOKUP($C$44&D47,表A_RAW!B:I,2,0) -> 2607 榮運 | G47: =IF(ISERROR(VLOOKUP($E47,表A_RAW!$C:$I,4,0)),"",VLOOKUP($E47,表A_RAW!$C:$I,4,0)) -> 1369353 | H47: =IF(ISERROR(VLOOKUP($E47,表B_RAW!$C:$I,5,0)),"",VLOOKUP($E47,表B_RAW!$C:$I,5,0)) -> 1433189 | I47: =IF(ISERROR(VLOOKUP($E47,表B_RAW!$C:$I,6,0)),"",VLOOKUP($E47,表B_RAW!$C:$I,6,0)/100) -> -0.0445 | J47: =IF(ISERROR(VLOOKUP($E47,表A_RAW!$C:$I,5,0)),"",VLOOKUP($E47,表A_RAW!$C:$I,5,0)) -> 1723470 | K47: =IF(ISERROR(VLOOKUP($E47,表A_RAW!$C:$I,7,0)),"",VLOOKUP($E47,表A_RAW!$C:$I,7,0)) -> -0.2054674581 | L47: =IF(ISERROR(VLOOKUP($E47,表C_RAW!$C:$I,4,0)),"",VLOOKUP($E47,表C_RAW!$C:$I,4,0)) -> 1369353 | M47: =IF(ISERROR(VLOOKUP($E47,表C_RAW!$C:$I,5,0)),"",VLOOKUP($E47,表C_RAW!$C:$I,5,0)) -> 1723470 | N47: =IF(ISERROR(VLOOKUP($E47,表C_RAW!$C:$I,6,0)),"",VLOOKUP($E47,表C_RAW!$C:$I,6,0)/100) -> -0.2055
D48: 5 | E48: =VLOOKUP($C$44&D48,表A_RAW!B:I,2,0) -> 2636 台驊控股 | G48: =IF(ISERROR(VLOOKUP($E48,表A_RAW!$C:$I,4,0)),"",VLOOKUP($E48,表A_RAW!$C:$I,4,0)) -> 1750726 | H48: =IF(ISERROR(VLOOKUP($E48,表B_RAW!$C:$I,5,0)),"",VLOOKUP($E48,表B_RAW!$C:$I,5,0)) -> 1662430 | I48: =IF(ISERROR(VLOOKUP($E48,表B_RAW!$C:$I,6,0)),"",VLOOKUP($E48,表B_RAW!$C:$I,6,0)/100) -> 0.0531 | J48: =IF(ISERROR(VLOOKUP($E48,表A_RAW!$C:$I,5,0)),"",VLOOKUP($E48,表A_RAW!$C:$I,5,0)) -> 2161588 | K48: =IF(ISERROR(VLOOKUP($E48,表A_RAW!$C:$I,7,0)),"",VLOOKUP($E48,表A_RAW!$C:$I,7,0)) -> -0.1900741492 | L48: =IF(ISERROR(VLOOKUP($E48,表C_RAW!$C:$I,4,0)),"",VLOOKUP($E48,表C_RAW!$C:$I,4,0)) -> 1750726 | M48: =IF(ISERROR(VLOOKUP($E48,表C_RAW!$C:$I,5,0)),"",VLOOKUP($E48,表C_RAW!$C:$I,5,0)) -> 2161588 | N48: =IF(ISERROR(VLOOKUP($E48,表C_RAW!$C:$I,6,0)),"",VLOOKUP($E48,表C_RAW!$C:$I,6,0)/100) -> -0.1901
B49: 4 | C49: =VLOOKUP(B49,表A_RAW!O:T,2,0) -> 觀光餐旅 | D49: 1 | E49: =VLOOKUP($C$49&D49,表A_RAW!B:I,2,0) -> 2740 天蔥 | G49: =IF(ISERROR(VLOOKUP($E49,表A_RAW!$C:$I,4,0)),"",VLOOKUP($E49,表A_RAW!$C:$I,4,0)) -> 6326 | H49: =IF(ISERROR(VLOOKUP($E49,表B_RAW!$C:$I,5,0)),"",VLOOKUP($E49,表B_RAW!$C:$I,5,0)) -> 6595 | I49: =IF(ISERROR(VLOOKUP($E49,表B_RAW!$C:$I,6,0)),"",VLOOKUP($E49,表B_RAW!$C:$I,6,0)/100) -> -0.0408 | J49: =IF(ISERROR(VLOOKUP($E49,表A_RAW!$C:$I,5,0)),"",VLOOKUP($E49,表A_RAW!$C:$I,5,0)) -> 17762 | K49: =IF(ISERROR(VLOOKUP($E49,表A_RAW!$C:$I,7,0)),"",VLOOKUP($E49,表A_RAW!$C:$I,7,0)) -> -0.6438464137 | L49: =IF(ISERROR(VLOOKUP($E49,表C_RAW!$C:$I,4,0)),"",VLOOKUP($E49,表C_RAW!$C:$I,4,0)) -> 6326 | M49: =IF(ISERROR(VLOOKUP($E49,表C_RAW!$C:$I,5,0)),"",VLOOKUP($E49,表C_RAW!$C:$I,5,0)) -> 17762 | N49: =IF(ISERROR(VLOOKUP($E49,表C_RAW!$C:$I,6,0)),"",VLOOKUP($E49,表C_RAW!$C:$I,6,0)/100) -> -0.6438
D50: 2 | E50: =VLOOKUP($C$49&D50,表A_RAW!B:I,2,0) -> 2722 夏都 | G50: =IF(ISERROR(VLOOKUP($E50,表A_RAW!$C:$I,4,0)),"",VLOOKUP($E50,表A_RAW!$C:$I,4,0)) -> 28218 | H50: =IF(ISERROR(VLOOKUP($E50,表B_RAW!$C:$I,5,0)),"",VLOOKUP($E50,表B_RAW!$C:$I,5,0)) -> 34963 | I50: =IF(ISERROR(VLOOKUP($E50,表B_RAW!$C:$I,6,0)),"",VLOOKUP($E50,表B_RAW!$C:$I,6,0)/100) -> -0.1929 | J50: =IF(ISERROR(VLOOKUP($E50,表A_RAW!$C:$I,5,0)),"",VLOOKUP($E50,表A_RAW!$C:$I,5,0)) -> 55465 | K50: =IF(ISERROR(VLOOKUP($E50,表A_RAW!$C:$I,7,0)),"",VLOOKUP($E50,表A_RAW!$C:$I,7,0)) -> -0.4912467322 | L50: =IF(ISERROR(VLOOKUP($E50,表C_RAW!$C:$I,4,0)),"",VLOOKUP($E50,表C_RAW!$C:$I,4,0)) -> 28218 | M50: =IF(ISERROR(VLOOKUP($E50,表C_RAW!$C:$I,5,0)),"",VLOOKUP($E50,表C_RAW!$C:$I,5,0)) -> 55465 | N50: =IF(ISERROR(VLOOKUP($E50,表C_RAW!$C:$I,6,0)),"",VLOOKUP($E50,表C_RAW!$C:$I,6,0)/100) -> -0.4912
D51: 3 | E51: =VLOOKUP($C$49&D51,表A_RAW!B:I,2,0) -> 5706 鳳凰 | G51: =IF(ISERROR(VLOOKUP($E51,表A_RAW!$C:$I,4,0)),"",VLOOKUP($E51,表A_RAW!$C:$I,4,0)) -> 154892 | H51: =IF(ISERROR(VLOOKUP($E51,表B_RAW!$C:$I,5,0)),"",VLOOKUP($E51,表B_RAW!$C:$I,5,0)) -> 148755 | I51: =IF(ISERROR(VLOOKUP($E51,表B_RAW!$C:$I,6,0)),"",VLOOKUP($E51,表B_RAW!$C:$I,6,0)/100) -> 0.0413 | J51: =IF(ISERROR(VLOOKUP($E51,表A_RAW!$C:$I,5,0)),"",VLOOKUP($E51,表A_RAW!$C:$I,5,0)) -> 259090 | K51: =IF(ISERROR(VLOOKUP($E51,表A_RAW!$C:$I,7,0)),"",VLOOKUP($E51,表A_RAW!$C:$I,7,0)) -> -0.4021691304 | L51: =IF(ISERROR(VLOOKUP($E51,表C_RAW!$C:$I,4,0)),"",VLOOKUP($E51,表C_RAW!$C:$I,4,0)) -> 154892 | M51: =IF(ISERROR(VLOOKUP($E51,表C_RAW!$C:$I,5,0)),"",VLOOKUP($E51,表C_RAW!$C:$I,5,0)) -> 259090 | N51: =IF(ISERROR(VLOOKUP($E51,表C_RAW!$C:$I,6,0)),"",VLOOKUP($E51,表C_RAW!$C:$I,6,0)/100) -> -0.4022
C52: =VLOOKUP(B49,表A_RAW!O:T,6,0) -> -8.959432605 | D52: 4 | E52: =VLOOKUP($C$49&D52,表A_RAW!B:I,2,0) -> 2712 遠雄來 | G52: =IF(ISERROR(VLOOKUP($E52,表A_RAW!$C:$I,4,0)),"",VLOOKUP($E52,表A_RAW!$C:$I,4,0)) -> 35147 | H52: =IF(ISERROR(VLOOKUP($E52,表B_RAW!$C:$I,5,0)),"",VLOOKUP($E52,表B_RAW!$C:$I,5,0)) -> 29593 | I52: =IF(ISERROR(VLOOKUP($E52,表B_RAW!$C:$I,6,0)),"",VLOOKUP($E52,表B_RAW!$C:$I,6,0)/100) -> 0.1877 | J52: =IF(ISERROR(VLOOKUP($E52,表A_RAW!$C:$I,5,0)),"",VLOOKUP($E52,表A_RAW!$C:$I,5,0)) -> 52192 | K52: =IF(ISERROR(VLOOKUP($E52,表A_RAW!$C:$I,7,0)),"",VLOOKUP($E52,表A_RAW!$C:$I,7,0)) -> -0.326582618 | L52: =IF(ISERROR(VLOOKUP($E52,表C_RAW!$C:$I,4,0)),"",VLOOKUP($E52,表C_RAW!$C:$I,4,0)) -> 35147 | M52: =IF(ISERROR(VLOOKUP($E52,表C_RAW!$C:$I,5,0)),"",VLOOKUP($E52,表C_RAW!$C:$I,5,0)) -> 52192 | N52: =IF(ISERROR(VLOOKUP($E52,表C_RAW!$C:$I,6,0)),"",VLOOKUP($E52,表C_RAW!$C:$I,6,0)/100) -> -0.3266
D53: 5 | E53: =VLOOKUP($C$49&D53,表A_RAW!B:I,2,0) -> 2719 燦星旅 | G53: =IF(ISERROR(VLOOKUP($E53,表A_RAW!$C:$I,4,0)),"",VLOOKUP($E53,表A_RAW!$C:$I,4,0)) -> 162849 | H53: =IF(ISERROR(VLOOKUP($E53,表B_RAW!$C:$I,5,0)),"",VLOOKUP($E53,表B_RAW!$C:$I,5,0)) -> 131108 | I53: =IF(ISERROR(VLOOKUP($E53,表B_RAW!$C:$I,6,0)),"",VLOOKUP($E53,表B_RAW!$C:$I,6,0)/100) -> 0.2421 | J53: =IF(ISERROR(VLOOKUP($E53,表A_RAW!$C:$I,5,0)),"",VLOOKUP($E53,表A_RAW!$C:$I,5,0)) -> 239336 | K53: =IF(ISERROR(VLOOKUP($E53,表A_RAW!$C:$I,7,0)),"",VLOOKUP($E53,表A_RAW!$C:$I,7,0)) -> -0.3195800047 | L53: =IF(ISERROR(VLOOKUP($E53,表C_RAW!$C:$I,4,0)),"",VLOOKUP($E53,表C_RAW!$C:$I,4,0)) -> 162849 | M53: =IF(ISERROR(VLOOKUP($E53,表C_RAW!$C:$I,5,0)),"",VLOOKUP($E53,表C_RAW!$C:$I,5,0)) -> 239336 | N53: =IF(ISERROR(VLOOKUP($E53,表C_RAW!$C:$I,6,0)),"",VLOOKUP($E53,表C_RAW!$C:$I,6,0)/100) -> -0.3196
B54: 5 | C54: =VLOOKUP(B54,表A_RAW!O:T,2,0) -> 油電燃氣業 | D54: 1 | E54: =VLOOKUP($C$54&D54,表A_RAW!B:I,2,0) -> 6505 台塑化 | G54: =IF(ISERROR(VLOOKUP($E54,表A_RAW!$C:$I,4,0)),"",VLOOKUP($E54,表A_RAW!$C:$I,4,0)) -> 53173547 | H54: =IF(ISERROR(VLOOKUP($E54,表B_RAW!$C:$I,5,0)),"",VLOOKUP($E54,表B_RAW!$C:$I,5,0)) -> 52936902 | I54: =IF(ISERROR(VLOOKUP($E54,表B_RAW!$C:$I,6,0)),"",VLOOKUP($E54,表B_RAW!$C:$I,6,0)/100) -> 0.0045 | J54: =IF(ISERROR(VLOOKUP($E54,表A_RAW!$C:$I,5,0)),"",VLOOKUP($E54,表A_RAW!$C:$I,5,0)) -> 59540547 | K54: =IF(ISERROR(VLOOKUP($E54,表A_RAW!$C:$I,7,0)),"",VLOOKUP($E54,表A_RAW!$C:$I,7,0)) -> -0.1069355308 | L54: =IF(ISERROR(VLOOKUP($E54,表C_RAW!$C:$I,4,0)),"",VLOOKUP($E54,表C_RAW!$C:$I,4,0)) -> 53173547 | M54: =IF(ISERROR(VLOOKUP($E54,表C_RAW!$C:$I,5,0)),"",VLOOKUP($E54,表C_RAW!$C:$I,5,0)) -> 59540547 | N54: =IF(ISERROR(VLOOKUP($E54,表C_RAW!$C:$I,6,0)),"",VLOOKUP($E54,表C_RAW!$C:$I,6,0)/100) -> -0.1069
D55: 2 | E55: =VLOOKUP($C$54&D55,表A_RAW!B:I,2,0) -> 9918 欣天然 | G55: =IF(ISERROR(VLOOKUP($E55,表A_RAW!$C:$I,4,0)),"",VLOOKUP($E55,表A_RAW!$C:$I,4,0)) -> 240657 | H55: =IF(ISERROR(VLOOKUP($E55,表B_RAW!$C:$I,5,0)),"",VLOOKUP($E55,表B_RAW!$C:$I,5,0)) -> 169569 | I55: =IF(ISERROR(VLOOKUP($E55,表B_RAW!$C:$I,6,0)),"",VLOOKUP($E55,表B_RAW!$C:$I,6,0)/100) -> 0.4192 | J55: =IF(ISERROR(VLOOKUP($E55,表A_RAW!$C:$I,5,0)),"",VLOOKUP($E55,表A_RAW!$C:$I,5,0)) -> 263970 | K55: =IF(ISERROR(VLOOKUP($E55,表A_RAW!$C:$I,7,0)),"",VLOOKUP($E55,表A_RAW!$C:$I,7,0)) -> -0.08831685419 | L55: =IF(ISERROR(VLOOKUP($E55,表C_RAW!$C:$I,4,0)),"",VLOOKUP($E55,表C_RAW!$C:$I,4,0)) -> 240657 | M55: =IF(ISERROR(VLOOKUP($E55,表C_RAW!$C:$I,5,0)),"",VLOOKUP($E55,表C_RAW!$C:$I,5,0)) -> 263970 | N55: =IF(ISERROR(VLOOKUP($E55,表C_RAW!$C:$I,6,0)),"",VLOOKUP($E55,表C_RAW!$C:$I,6,0)/100) -> -0.0883
D56: 3 | E56: =VLOOKUP($C$54&D56,表A_RAW!B:I,2,0) -> 9937 全國 | G56: =IF(ISERROR(VLOOKUP($E56,表A_RAW!$C:$I,4,0)),"",VLOOKUP($E56,表A_RAW!$C:$I,4,0)) -> 1801649 | H56: =IF(ISERROR(VLOOKUP($E56,表B_RAW!$C:$I,5,0)),"",VLOOKUP($E56,表B_RAW!$C:$I,5,0)) -> 1866399 | I56: =IF(ISERROR(VLOOKUP($E56,表B_RAW!$C:$I,6,0)),"",VLOOKUP($E56,表B_RAW!$C:$I,6,0)/100) -> -0.0347 | J56: =IF(ISERROR(VLOOKUP($E56,表A_RAW!$C:$I,5,0)),"",VLOOKUP($E56,表A_RAW!$C:$I,5,0)) -> 1971557 | K56: =IF(ISERROR(VLOOKUP($E56,表A_RAW!$C:$I,7,0)),"",VLOOKUP($E56,表A_RAW!$C:$I,7,0)) -> -0.08617960323 | L56: =IF(ISERROR(VLOOKUP($E56,表C_RAW!$C:$I,4,0)),"",VLOOKUP($E56,表C_RAW!$C:$I,4,0)) -> 1801649 | M56: =IF(ISERROR(VLOOKUP($E56,表C_RAW!$C:$I,5,0)),"",VLOOKUP($E56,表C_RAW!$C:$I,5,0)) -> 1971557 | N56: =IF(ISERROR(VLOOKUP($E56,表C_RAW!$C:$I,6,0)),"",VLOOKUP($E56,表C_RAW!$C:$I,6,0)/100) -> -0.0862
C57: =VLOOKUP(B54,表A_RAW!O:T,6,0) -> -1.620496713 | D57: 4 | E57: =VLOOKUP($C$54&D57,表A_RAW!B:I,2,0) -> 9926 新海 | G57: =IF(ISERROR(VLOOKUP($E57,表A_RAW!$C:$I,4,0)),"",VLOOKUP($E57,表A_RAW!$C:$I,4,0)) -> 258769 | H57: =IF(ISERROR(VLOOKUP($E57,表B_RAW!$C:$I,5,0)),"",VLOOKUP($E57,表B_RAW!$C:$I,5,0)) -> 218308 | I57: =IF(ISERROR(VLOOKUP($E57,表B_RAW!$C:$I,6,0)),"",VLOOKUP($E57,表B_RAW!$C:$I,6,0)/100) -> 0.1853 | J57: =IF(ISERROR(VLOOKUP($E57,表A_RAW!$C:$I,5,0)),"",VLOOKUP($E57,表A_RAW!$C:$I,5,0)) -> 258752 | K57: =IF(ISERROR(VLOOKUP($E57,表A_RAW!$C:$I,7,0)),"",VLOOKUP($E57,表A_RAW!$C:$I,7,0)) -> 6.569997527e-05 | L57: =IF(ISERROR(VLOOKUP($E57,表C_RAW!$C:$I,4,0)),"",VLOOKUP($E57,表C_RAW!$C:$I,4,0)) -> 258769 | M57: =IF(ISERROR(VLOOKUP($E57,表C_RAW!$C:$I,5,0)),"",VLOOKUP($E57,表C_RAW!$C:$I,5,0)) -> 258752 | N57: =IF(ISERROR(VLOOKUP($E57,表C_RAW!$C:$I,6,0)),"",VLOOKUP($E57,表C_RAW!$C:$I,6,0)/100) -> 0.0001
D58: 5 | E58: =IFERROR(VLOOKUP($C$54&D58,表A_RAW!B:I,2,0),"") -> 9908 大台北 | G58: =IF(ISERROR(VLOOKUP($E58,表A_RAW!$C:$I,4,0)),"",VLOOKUP($E58,表A_RAW!$C:$I,4,0)) -> 329343 | H58: =IF(ISERROR(VLOOKUP($E58,表B_RAW!$C:$I,5,0)),"",VLOOKUP($E58,表B_RAW!$C:$I,5,0)) -> 287754 | I58: =IF(ISERROR(VLOOKUP($E58,表B_RAW!$C:$I,6,0)),"",VLOOKUP($E58,表B_RAW!$C:$I,6,0)/100) -> 0.1445 | J58: =IF(ISERROR(VLOOKUP($E58,表A_RAW!$C:$I,5,0)),"",VLOOKUP($E58,表A_RAW!$C:$I,5,0)) -> 314939 | K58: =IF(ISERROR(VLOOKUP($E58,表A_RAW!$C:$I,7,0)),"",VLOOKUP($E58,表A_RAW!$C:$I,7,0)) -> 0.04573584091 | L58: =IF(ISERROR(VLOOKUP($E58,表C_RAW!$C:$I,4,0)),"",VLOOKUP($E58,表C_RAW!$C:$I,4,0)) -> 329343 | M58: =IF(ISERROR(VLOOKUP($E58,表C_RAW!$C:$I,5,0)),"",VLOOKUP($E58,表C_RAW!$C:$I,5,0)) -> 314939 | N58: =IF(ISERROR(VLOOKUP($E58,表C_RAW!$C:$I,6,0)),"",VLOOKUP($E58,表C_RAW!$C:$I,6,0)/100) -> 0.0457

Sheet YOY(累計)
B1: =YEAR(表A_RAW!F2)&"年"&MONTH(表A_RAW!F2)&"月" -> 2026年1月
C2: 成長及衰退前五名之產業YOY%(累計)
B4: 成長前五名之產業 YOY(累計)% | D4: 該產業成長前五名之公司 YOY(累計)% | G4: 單月營收金額(千元) | H4: 本月與上月相較 | J4: 本月與去年同期相較 | L4: 累計營收金額(千元) | M4: 累計營收與去年同期相較
B5: 成長 排名 | C5: 產業 | D5: 排名 | E5: 公司代號&簡稱 | H5: 上月營收金額(千元) | I5: 較上月變動比率(%) | J5: 去年同期金額(千元) | K5: 較去年同期變動比率(%) | M5: 去年累計營收金額(千元) | N5: 較去年同期變動比率(%)
B6: 1 | C6: =VLOOKUP(B6,表C_RAW!N:P,3,0) -> 建材營造 | D6: 1 | E6: =IFERROR(VLOOKUP($C$6&D6,表C_RAW!A:D,3,0),"") -> 2548 華固 | G6: =IF(ISERROR(VLOOKUP($E6,表B_RAW!$C:$I,4,0)),"",VLOOKUP($E6,表B_RAW!$C:$I,4,0)) -> 1103070 | H6: =IF(ISERROR(VLOOKUP($E6,表B_RAW!$C:$I,5,0)),"",VLOOKUP($E6,表B_RAW!$C:$I,5,0)) -> 372698 | I6: =IF(ISERROR(VLOOKUP($E6,表B_RAW!$C:$I,6,0)),"",VLOOKUP($E6,表B_RAW!$C:$I,6,0)/100) -> 1.9597 | J6: =IF(ISERROR(VLOOKUP($E6,表A_RAW!$C:$I,5,0)),"",VLOOKUP($E6,表A_RAW!$C:$I,5,0)) -> 3178 | K6: =IF(ISERROR(VLOOKUP($E6,表A_RAW!$C:$I,7,0)),"",VLOOKUP($E6,表A_RAW!$C:$I,7,0)) -> 346.0956576 | L6: =IF(ISERROR(VLOOKUP($E6,表C_RAW!$C:$I,4,0)),"",VLOOKUP($E6,表C_RAW!$C:$I,4,0)) -> 1103070 | M6: =IF(ISERROR(VLOOKUP($E6,表C_RAW!$C:$I,5,0)),"",VLOOKUP($E6,表C_RAW!$C:$I,5,0)) -> 3178 | N6: =IF(ISERROR(VLOOKUP($E6,表C_RAW!$C:$I,6,0)),"",VLOOKUP($E6,表C_RAW!$C:$I,6,0)/100) -> 346.0957
D7: 2 | E7: =IFERROR(VLOOKUP($C$6&D7,表C_RAW!A:D,3,0),"") -> 9946 三發地產 | G7: =IF(ISERROR(VLOOKUP($E7,表B_RAW!$C:$I,4,0)),"",VLOOKUP($E7,表B_RAW!$C:$I,4,0)) -> 908579 | H7: =IF(ISERROR(VLOOKUP($E7,表B_RAW!$C:$I,5,0)),"",VLOOKUP($E7,表B_RAW!$C:$I,5,0)) -> 1360270 | I7: =IF(ISERROR(VLOOKUP($E7,表B_RAW!$C:$I,6,0)),"",VLOOKUP($E7,表B_RAW!$C:$I,6,0)/100) -> -0.3321 | J7: =IF(ISERROR(VLOOKUP($E7,表A_RAW!$C:$I,5,0)),"",VLOOKUP($E7,表A_RAW!$C:$I,5,0)) -> 3219 | K7: =IF(ISERROR(VLOOKUP($E7,表A_RAW!$C:$I,7,0)),"",VLOOKUP($E7,表A_RAW!$C:$I,7,0)) -> 281.2550482 | L7: =IF(ISERROR(VLOOKUP($E7,表C_RAW!$C:$I,4,0)),"",VLOOKUP($E7,表C_RAW!$C:$I,4,0)) -> 908579 | M7: =IF(ISERROR(VLOOKUP($E7,表C_RAW!$C:$I,5,0)),"",VLOOKUP($E7,表C_RAW!$C:$I,5,0)) -> 3219 | N7: =IF(ISERROR(VLOOKUP($E7,表C_RAW!$C:$I,6,0)),"",VLOOKUP($E7,表C_RAW!$C:$I,6,0)/100) -> 281.255
D8: 3 | E8: =IFERROR(VLOOKUP($C$6&D8,表C_RAW!A:D,3,0),"") -> 2718 全心投資控股 | G8: =IF(ISERROR(VLOOKUP($E8,表B_RAW!$C:$I,4,0)),"",VLOOKUP($E8,表B_RAW!$C:$I,4,0)) -> 48686 | H8: =IF(ISERROR(VLOOKUP($E8,表B_RAW!$C:$I,5,0)),"",VLOOKUP($E8,表B_RAW!$C:$I,5,0)) -> 30604 | I8: =IF(ISERROR(VLOOKUP($E8,表B_RAW!$C:$I,6,0)),"",VLOOKUP($E8,表B_RAW!$C:$I,6,0)/100) -> 0.5908 | J8: =IF(ISERROR(VLOOKUP($E8,表A_RAW!$C:$I,5,0)),"",VLOOKUP($E8,表A_RAW!$C:$I,5,0)) -> 370 | K8: =IF(ISERROR(VLOOKUP($E8,表A_RAW!$C:$I,7,0)),"",VLOOKUP($E8,表A_RAW!$C:$I,7,0)) -> 130.5837838 | L8: =IF(ISERROR(VLOOKUP($E8,表C_RAW!$C:$I,4,0)),"",VLOOKUP($E8,表C_RAW!$C:$I,4,0)) -> 48686 | M8: =IF(ISERROR(VLOOKUP($E8,表C_RAW!$C:$I,5,0)),"",VLOOKUP($E8,表C_RAW!$C:$I,5,0)) -> 370 | N8: =IF(ISERROR(VLOOKUP($E8,表C_RAW!$C:$I,6,0)),"",VLOOKUP($E8,表C_RAW!$C:$I,6,0)/100) -> 130.5838
C9: =VLOOKUP(B6,表C_RAW!N:T,7,0) -> 78.4 | D9: 4 | E9: =IFERROR(VLOOKUP($C$6&D9,表C_RAW!A:D,3,0),"") -> 6219 富旺 | G9: =IF(ISERROR(VLOOKUP($E9,表B_RAW!$C:$I,4,0)),"",VLOOKUP($E9,表B_RAW!$C:$I,4,0)) -> 617048 | H9: =IF(ISERROR(VLOOKUP($E9,表B_RAW!$C:$I,5,0)),"",VLOOKUP($E9,表B_RAW!$C:$I,5,0)) -> 2724601 | I9: =IF(ISERROR(VLOOKUP($E9,表B_RAW!$C:$I,6,0)),"",VLOOKUP($E9,表B_RAW!$C:$I,6,0)/100) -> -0.7735 | J9: =IF(ISERROR(VLOOKUP($E9,表A_RAW!$C:$I,5,0)),"",VLOOKUP($E9,表A_RAW!$C:$I,5,0)) -> 5657 | K9: =IF(ISERROR(VLOOKUP($E9,表A_RAW!$C:$I,7,0)),"",VLOOKUP($E9,表A_RAW!$C:$I,7,0)) -> 108.0768959 | L9: =IF(ISERROR(VLOOKUP($E9,表C_RAW!$C:$I,4,0)),"",VLOOKUP($E9,表C_RAW!$C:$I,4,0)) -> 617048 | M9: =IF(ISERROR(VLOOKUP($E9,表C_RAW!$C:$I,5,0)),"",VLOOKUP($E9,表C_RAW!$C:$I,5,0)) -> 5657 | N9: =IF(ISERROR(VLOOKUP($E9,表C_RAW!$C:$I,6,0)),"",VLOOKUP($E9,表C_RAW!$C:$I,6,0)/100) -> 108.0769
D10: 5 | E10: =IFERROR(VLOOKUP($C$6&D10,表C_RAW!A:D,3,0),"") -> 5514 三豐 | G10: =IF(ISERROR(VLOOKUP($E10,表B_RAW!$C:$I,4,0)),"",VLOOKUP($E10,表B_RAW!$C:$I,4,0)) -> 33508 | H10: =IF(ISERROR(VLOOKUP($E10,表B_RAW!$C:$I,5,0)),"",VLOOKUP($E10,表B_RAW!$C:$I,5,0)) -> 481 | I10: =IF(ISERROR(VLOOKUP($E10,表B_RAW!$C:$I,6,0)),"",VLOOKUP($E10,表B_RAW!$C:$I,6,0)/100) -> 68.6632 | J10: =IF(ISERROR(VLOOKUP($E10,表A_RAW!$C:$I,5,0)),"",VLOOKUP($E10,表A_RAW!$C:$I,5,0)) -> 482 | K10: =IF(ISERROR(VLOOKUP($E10,表A_RAW!$C:$I,7,0)),"",VLOOKUP($E10,表A_RAW!$C:$I,7,0)) -> 68.5186722 | L10: =IF(ISERROR(VLOOKUP($E10,表C_RAW!$C:$I,4,0)),"",VLOOKUP($E10,表C_RAW!$C:$I,4,0)) -> 33508 | M10: =IF(ISERROR(VLOOKUP($E10,表C_RAW!$C:$I,5,0)),"",VLOOKUP($E10,表C_RAW!$C:$I,5,0)) -> 482 | N10: =IF(ISERROR(VLOOKUP($E10,表C_RAW!$C:$I,6,0)),"",VLOOKUP($E10,表C_RAW!$C:$I,6,0)/100) -> 68.5187
B11: 2 | C11: =VLOOKUP(B11,表C_RAW!N:P,3,0) -> 電子通路業 | D11: 1 | E11: =VLOOKUP($C$11&D11,表C_RAW!A:D,3,0) -> 6265 方土昶 | G11: =IF(ISERROR(VLOOKUP($E11,表B_RAW!$C:$I,4,0)),"",VLOOKUP($E11,表B_RAW!$C:$I,4,0)) -> 212986 | H11: =IF(ISERROR(VLOOKUP($E11,表B_RAW!$C:$I,5,0)),"",VLOOKUP($E11,表B_RAW!$C:$I,5,0)) -> 179029 | I11: =IF(ISERROR(VLOOKUP($E11,表B_RAW!$C:$I,6,0)),"",VLOOKUP($E11,表B_RAW!$C:$I,6,0)/100) -> 0.1897 | J11: =IF(ISERROR(VLOOKUP($E11,表A_RAW!$C:$I,5,0)),"",VLOOKUP($E11,表A_RAW!$C:$I,5,0)) -> 39757 | K11: =IF(ISERROR(VLOOKUP($E11,表A_RAW!$C:$I,7,0)),"",VLOOKUP($E11,表A_RAW!$C:$I,7,0)) -> 4.357194959 | L11: =IF(ISERROR(VLOOKUP($E11,表C_RAW!$C:$I,4,0)),"",VLOOKUP($E11,表C_RAW!$C:$I,4,0)) -> 212986 | M11: =IF(ISERROR(VLOOKUP($E11,表C_RAW!$C:$I,5,0)),"",VLOOKUP($E11,表C_RAW!$C:$I,5,0)) -> 39757 | N11: =IF(ISERROR(VLOOKUP($E11,表C_RAW!$C:$I,6,0)),"",VLOOKUP($E11,表C_RAW!$C:$I,6,0)/100) -> 4.3572
D12: 2 | E12: =VLOOKUP($C$11&D12,表C_RAW!A:D,3,0) -> 3360 尚立 | G12: =IF(ISERROR(VLOOKUP($E12,表B_RAW!$C:$I,4,0)),"",VLOOKUP($E12,表B_RAW!$C:$I,4,0)) -> 1035573 | H12: =IF(ISERROR(VLOOKUP($E12,表B_RAW!$C:$I,5,0)),"",VLOOKUP($E12,表B_RAW!$C:$I,5,0)) -> 1010615 | I12: =IF(ISERROR(VLOOKUP($E12,表B_RAW!$C:$I,6,0)),"",VLOOKUP($E12,表B_RAW!$C:$I,6,0)/100) -> 0.0247 | J12: =IF(ISERROR(VLOOKUP($E12,表A_RAW!$C:$I,5,0)),"",VLOOKUP($E12,表A_RAW!$C:$I,5,0)) -> 409768 | K12: =IF(ISERROR(VLOOKUP($E12,表A_RAW!$C:$I,7,0)),"",VLOOKUP($E12,表A_RAW!$C:$I,7,0)) -> 1.52721784 | L12: =IF(ISERROR(VLOOKUP($E12,表C_RAW!$C:$I,4,0)),"",VLOOKUP($E12,表C_RAW!$C:$I,4,0)) -> 1035573 | M12: =IF(ISERROR(VLOOKUP($E12,表C_RAW!$C:$I,5,0)),"",VLOOKUP($E12,表C_RAW!$C:$I,5,0)) -> 409768 | N12: =IF(ISERROR(VLOOKUP($E12,表C_RAW!$C:$I,6,0)),"",VLOOKUP($E12,表C_RAW!$C:$I,6,0)/100) -> 1.5272
D13: 3 | E13: =VLOOKUP($C$11&D13,表C_RAW!A:D,3,0) -> 3036 文曄 | G13: =IF(ISERROR(VLOOKUP($E13,表B_RAW!$C:$I,4,0)),"",VLOOKUP($E13,表B_RAW!$C:$I,4,0)) -> 195746933 | H13: =IF(ISERROR(VLOOKUP($E13,表B_RAW!$C:$I,5,0)),"",VLOOKUP($E13,表B_RAW!$C:$I,5,0)) -> 98615954 | I13: =IF(ISERROR(VLOOKUP($E13,表B_RAW!$C:$I,6,0)),"",VLOOKUP($E13,表B_RAW!$C:$I,6,0)/100) -> 0.9849 | J13: =IF(ISERROR(VLOOKUP($E13,表A_RAW!$C:$I,5,0)),"",VLOOKUP($E13,表A_RAW!$C:$I,5,0)) -> 77779195 | K13: =IF(ISERROR(VLOOKUP($E13,表A_RAW!$C:$I,7,0)),"",VLOOKUP($E13,表A_RAW!$C:$I,7,0)) -> 1.516700424 | L13: =IF(ISERROR(VLOOKUP($E13,表C_RAW!$C:$I,4,0)),"",VLOOKUP($E13,表C_RAW!$C:$I,4,0)) -> 195746933 | M13: =IF(ISERROR(VLOOKUP($E13,表C_RAW!$C:$I,5,0)),"",VLOOKUP($E13,表C_RAW!$C:$I,5,0)) -> 77779195 | N13: =IF(ISERROR(VLOOKUP($E13,表C_RAW!$C:$I,6,0)),"",VLOOKUP($E13,表C_RAW!$C:$I,6,0)/100) -> 1.5167
C14: =VLOOKUP(B11,表C_RAW!N:T,7,0) -> 74.03 | D14: 4 | E14: =VLOOKUP($C$11&D14,表C_RAW!A:D,3,0) -> 3528 安馳 | G14: =IF(ISERROR(VLOOKUP($E14,表B_RAW!$C:$I,4,0)),"",VLOOKUP($E14,表B_RAW!$C:$I,4,0)) -> 1456934 | H14: =IF(ISERROR(VLOOKUP($E14,表B_RAW!$C:$I,5,0)),"",VLOOKUP($E14,表B_RAW!$C:$I,5,0)) -> 1011825 | I14: =IF(ISERROR(VLOOKUP($E14,表B_RAW!$C:$I,6,0)),"",VLOOKUP($E14,表B_RAW!$C:$I,6,0)/100) -> 0.4399 | J14: =IF(ISERROR(VLOOKUP($E14,表A_RAW!$C:$I,5,0)),"",VLOOKUP($E14,表A_RAW!$C:$I,5,0)) -> 579075 | K14: =IF(ISERROR(VLOOKUP($E14,表A_RAW!$C:$I,7,0)),"",VLOOKUP($E14,表A_RAW!$C:$I,7,0)) -> 1.515967707 | L14: =IF(ISERROR(VLOOKUP($E14,表C_RAW!$C:$I,4,0)),"",VLOOKUP($E14,表C_RAW!$C:$I,4,0)) -> 1456934 | M14: =IF(ISERROR(VLOOKUP($E14,表C_RAW!$C:$I,5,0)),"",VLOOKUP($E14,表C_RAW!$C:$I,5,0)) -> 579075 | N14: =IF(ISERROR(VLOOKUP($E14,表C_RAW!$C:$I,6,0)),"",VLOOKUP($E14,表C_RAW!$C:$I,6,0)/100) -> 1.516
D15: 5 | E15: =VLOOKUP($C$11&D15,表C_RAW!A:D,3,0) -> 3028 增你強 | G15: =IF(ISERROR(VLOOKUP($E15,表B_RAW!$C:$I,4,0)),"",VLOOKUP($E15,表B_RAW!$C:$I,4,0)) -> 6378194 | H15: =IF(ISERROR(VLOOKUP($E15,表B_RAW!$C:$I,5,0)),"",VLOOKUP($E15,表B_RAW!$C:$I,5,0)) -> 3558818 | I15: =IF(ISERROR(VLOOKUP($E15,表B_RAW!$C:$I,6,0)),"",VLOOKUP($E15,表B_RAW!$C:$I,6,0)/100) -> 0.7922 | J15: =IF(ISERROR(VLOOKUP($E15,表A_RAW!$C:$I,5,0)),"",VLOOKUP($E15,表A_RAW!$C:$I,5,0)) -> 3058362 | K15: =IF(ISERROR(VLOOKUP($E15,表A_RAW!$C:$I,7,0)),"",VLOOKUP($E15,表A_RAW!$C:$I,7,0)) -> 1.085493477 | L15: =IF(ISERROR(VLOOKUP($E15,表C_RAW!$C:$I,4,0)),"",VLOOKUP($E15,表C_RAW!$C:$I,4,0)) -> 6378194 | M15: =IF(ISERROR(VLOOKUP($E15,表C_RAW!$C:$I,5,0)),"",VLOOKUP($E15,表C_RAW!$C:$I,5,0)) -> 3058362 | N15: =IF(ISERROR(VLOOKUP($E15,表C_RAW!$C:$I,6,0)),"",VLOOKUP($E15,表C_RAW!$C:$I,6,0)/100) -> 1.0855
B16: 3 | C16: =VLOOKUP(B16,表C_RAW!N:P,3,0) -> 電腦及週邊設備業 | D16: 1 | E16: =VLOOKUP($C$16&D16,表C_RAW!A:D,3,0) -> 5386 青雲 | G16: =IF(ISERROR(VLOOKUP($E16,表B_RAW!$C:$I,4,0)),"",VLOOKUP($E16,表B_RAW!$C:$I,4,0)) -> 2461029 | H16: =IF(ISERROR(VLOOKUP($E16,表B_RAW!$C:$I,5,0)),"",VLOOKUP($E16,表B_RAW!$C:$I,5,0)) -> 779495 | I16: =IF(ISERROR(VLOOKUP($E16,表B_RAW!$C:$I,6,0)),"",VLOOKUP($E16,表B_RAW!$C:$I,6,0)/100) -> 2.1572 | J16: =IF(ISERROR(VLOOKUP($E16,表A_RAW!$C:$I,5,0)),"",VLOOKUP($E16,表A_RAW!$C:$I,5,0)) -> 485594 | K16: =IF(ISERROR(VLOOKUP($E16,表A_RAW!$C:$I,7,0)),"",VLOOKUP($E16,表A_RAW!$C:$I,7,0)) -> 4.068079507 | L16: =IF(ISERROR(VLOOKUP($E16,表C_RAW!$C:$I,4,0)),"",VLOOKUP($E16,表C_RAW!$C:$I,4,0)) -> 2461029 | M16: =IF(ISERROR(VLOOKUP($E16,表C_RAW!$C:$I,5,0)),"",VLOOKUP($E16,表C_RAW!$C:$I,5,0)) -> 485594 | N16: =IF(ISERROR(VLOOKUP($E16,表C_RAW!$C:$I,6,0)),"",VLOOKUP($E16,表C_RAW!$C:$I,6,0)/100) -> 4.0681
D17: 2 | E17: =VLOOKUP($C$16&D17,表C_RAW!A:D,3,0) -> 5289 宜鼎 | G17: =IF(ISERROR(VLOOKUP($E17,表B_RAW!$C:$I,4,0)),"",VLOOKUP($E17,表B_RAW!$C:$I,4,0)) -> 3331472 | H17: =IF(ISERROR(VLOOKUP($E17,表B_RAW!$C:$I,5,0)),"",VLOOKUP($E17,表B_RAW!$C:$I,5,0)) -> 1813153 | I17: =IF(ISERROR(VLOOKUP($E17,表B_RAW!$C:$I,6,0)),"",VLOOKUP($E17,表B_RAW!$C:$I,6,0)/100) -> 0.8374 | J17: =IF(ISERROR(VLOOKUP($E17,表A_RAW!$C:$I,5,0)),"",VLOOKUP($E17,表A_RAW!$C:$I,5,0)) -> 818323 | K17: =IF(ISERROR(VLOOKUP($E17,表A_RAW!$C:$I,7,0)),"",VLOOKUP($E17,表A_RAW!$C:$I,7,0)) -> 3.071096621 | L17: =IF(ISERROR(VLOOKUP($E17,表C_RAW!$C:$I,4,0)),"",VLOOKUP($E17,表C_RAW!$C:$I,4,0)) -> 3331472 | M17: =IF(ISERROR(VLOOKUP($E17,表C_RAW!$C:$I,5,0)),"",VLOOKUP($E17,表C_RAW!$C:$I,5,0)) -> 818323 | N17: =IF(ISERROR(VLOOKUP($E17,表C_RAW!$C:$I,6,0)),"",VLOOKUP($E17,表C_RAW!$C:$I,6,0)/100) -> 3.0711
D18: 3 | E18: =VLOOKUP($C$16&D18,表C_RAW!A:D,3,0) -> 3231 緯創 | G18: =IF(ISERROR(VLOOKUP($E18,表B_RAW!$C:$I,4,0)),"",VLOOKUP($E18,表B_RAW!$C:$I,4,0)) -> 228366631 | H18: =IF(ISERROR(VLOOKUP($E18,表B_RAW!$C:$I,5,0)),"",VLOOKUP($E18,表B_RAW!$C:$I,5,0)) -> 255254817 | I18: =IF(ISERROR(VLOOKUP($E18,表B_RAW!$C:$I,6,0)),"",VLOOKUP($E18,表B_RAW!$C:$I,6,0)/100) -> -0.1053 | J18: =IF(ISERROR(VLOOKUP($E18,表A_RAW!$C:$I,5,0)),"",VLOOKUP($E18,表A_RAW!$C:$I,5,0)) -> 90786162 | K18: =IF(ISERROR(VLOOKUP($E18,表A_RAW!$C:$I,7,0)),"",VLOOKUP($E18,表A_RAW!$C:$I,7,0)) -> 1.515434357 | L18: =IF(ISERROR(VLOOKUP($E18,表C_RAW!$C:$I,4,0)),"",VLOOKUP($E18,表C_RAW!$C:$I,4,0)) -> 228366631 | M18: =IF(ISERROR(VLOOKUP($E18,表C_RAW!$C:$I,5,0)),"",VLOOKUP($E18,表C_RAW!$C:$I,5,0)) -> 90786162 | N18: =IF(ISERROR(VLOOKUP($E18,表C_RAW!$C:$I,6,0)),"",VLOOKUP($E18,表C_RAW!$C:$I,6,0)/100) -> 1.5154
C19: =VLOOKUP(B16,表C_RAW!N:T,7,0) -> 53.19 | D19: 4 | E19: =VLOOKUP($C$16&D19,表C_RAW!A:D,3,0) -> 3017 奇鋐 | G19: =IF(ISERROR(VLOOKUP($E19,表B_RAW!$C:$I,4,0)),"",VLOOKUP($E19,表B_RAW!$C:$I,4,0)) -> 17003457 | H19: =IF(ISERROR(VLOOKUP($E19,表B_RAW!$C:$I,5,0)),"",VLOOKUP($E19,表B_RAW!$C:$I,5,0)) -> 13941273 | I19: =IF(ISERROR(VLOOKUP($E19,表B_RAW!$C:$I,6,0)),"",VLOOKUP($E19,表B_RAW!$C:$I,6,0)/100) -> 0.2196 | J19: =IF(ISERROR(VLOOKUP($E19,表A_RAW!$C:$I,5,0)),"",VLOOKUP($E19,表A_RAW!$C:$I,5,0)) -> 6801065 | K19: =IF(ISERROR(VLOOKUP($E19,表A_RAW!$C:$I,7,0)),"",VLOOKUP($E19,表A_RAW!$C:$I,7,0)) -> 1.50011682 | L19: =IF(ISERROR(VLOOKUP($E19,表C_RAW!$C:$I,4,0)),"",VLOOKUP($E19,表C_RAW!$C:$I,4,0)) -> 17003457 | M19: =IF(ISERROR(VLOOKUP($E19,表C_RAW!$C:$I,5,0)),"",VLOOKUP($E19,表C_RAW!$C:$I,5,0)) -> 6801065 | N19: =IF(ISERROR(VLOOKUP($E19,表C_RAW!$C:$I,6,0)),"",VLOOKUP($E19,表C_RAW!$C:$I,6,0)/100) -> 1.5001
D20: 5 | E20: =VLOOKUP($C$16&D20,表C_RAW!A:D,3,0) -> 8210 勤誠 | G20: =IF(ISERROR(VLOOKUP($E20,表B_RAW!$C:$I,4,0)),"",VLOOKUP($E20,表B_RAW!$C:$I,4,0)) -> 2650248 | H20: =IF(ISERROR(VLOOKUP($E20,表B_RAW!$C:$I,5,0)),"",VLOOKUP($E20,表B_RAW!$C:$I,5,0)) -> 2710524 | I20: =IF(ISERROR(VLOOKUP($E20,表B_RAW!$C:$I,6,0)),"",VLOOKUP($E20,表B_RAW!$C:$I,6,0)/100) -> -0.0222 | J20: =IF(ISERROR(VLOOKUP($E20,表A_RAW!$C:$I,5,0)),"",VLOOKUP($E20,表A_RAW!$C:$I,5,0)) -> 1118196 | K20: =IF(ISERROR(VLOOKUP($E20,表A_RAW!$C:$I,7,0)),"",VLOOKUP($E20,表A_RAW!$C:$I,7,0)) -> 1.370110428 | L20: =IF(ISERROR(VLOOKUP($E20,表C_RAW!$C:$I,4,0)),"",VLOOKUP($E20,表C_RAW!$C:$I,4,0)) -> 2650248 | M20: =IF(ISERROR(VLOOKUP($E20,表C_RAW!$C:$I,5,0)),"",VLOOKUP($E20,表C_RAW!$C:$I,5,0)) -> 1118196 | N20: =IF(ISERROR(VLOOKUP($E20,表C_RAW!$C:$I,6,0)),"",VLOOKUP($E20,表C_RAW!$C:$I,6,0)/100) -> 1.3701
B21: 4 | C21: =VLOOKUP(B21,表C_RAW!N:P,3,0) -> 金融業 | D21: 1 | E21: =VLOOKUP($C$21&D21,表C_RAW!A:D,3,0) -> 5864 致和證 | G21: =IF(ISERROR(VLOOKUP($E21,表B_RAW!$C:$I,4,0)),"",VLOOKUP($E21,表B_RAW!$C:$I,4,0)) -> 1482121 | H21: =IF(ISERROR(VLOOKUP($E21,表B_RAW!$C:$I,5,0)),"",VLOOKUP($E21,表B_RAW!$C:$I,5,0)) -> 425395 | I21: =IF(ISERROR(VLOOKUP($E21,表B_RAW!$C:$I,6,0)),"",VLOOKUP($E21,表B_RAW!$C:$I,6,0)/100) -> 2.4841 | J21: =IF(ISERROR(VLOOKUP($E21,表A_RAW!$C:$I,5,0)),"",VLOOKUP($E21,表A_RAW!$C:$I,5,0)) -> 17137 | K21: =IF(ISERROR(VLOOKUP($E21,表A_RAW!$C:$I,7,0)),"",VLOOKUP($E21,表A_RAW!$C:$I,7,0)) -> 85.48660792 | L21: =IF(ISERROR(VLOOKUP($E21,表C_RAW!$C:$I,4,0)),"",VLOOKUP($E21,表C_RAW!$C:$I,4,0)) -> 1482121 | M21: =IF(ISERROR(VLOOKUP($E21,表C_RAW!$C:$I,5,0)),"",VLOOKUP($E21,表C_RAW!$C:$I,5,0)) -> 17137 | N21: =IF(ISERROR(VLOOKUP($E21,表C_RAW!$C:$I,6,0)),"",VLOOKUP($E21,表C_RAW!$C:$I,6,0)/100) -> 85.4866
D22: 2 | E22: =VLOOKUP($C$21&D22,表C_RAW!A:D,3,0) -> 6020 大展證 | G22: =IF(ISERROR(VLOOKUP($E22,表B_RAW!$C:$I,4,0)),"",VLOOKUP($E22,表B_RAW!$C:$I,4,0)) -> 159278 | H22: =IF(ISERROR(VLOOKUP($E22,表B_RAW!$C:$I,5,0)),"",VLOOKUP($E22,表B_RAW!$C:$I,5,0)) -> 14072 | I22: =IF(ISERROR(VLOOKUP($E22,表B_RAW!$C:$I,6,0)),"",VLOOKUP($E22,表B_RAW!$C:$I,6,0)/100) -> 10.3188 | J22: =IF(ISERROR(VLOOKUP($E22,表A_RAW!$C:$I,5,0)),"",VLOOKUP($E22,表A_RAW!$C:$I,5,0)) -> -4258 | K22: =IF(ISERROR(VLOOKUP($E22,表A_RAW!$C:$I,7,0)),"",VLOOKUP($E22,表A_RAW!$C:$I,7,0)) -> 38.40676374 | L22: =IF(ISERROR(VLOOKUP($E22,表C_RAW!$C:$I,4,0)),"",VLOOKUP($E22,表C_RAW!$C:$I,4,0)) -> 159278 | M22: =IF(ISERROR(VLOOKUP($E22,表C_RAW!$C:$I,5,0)),"",VLOOKUP($E22,表C_RAW!$C:$I,5,0)) -> -4258 | N22: =IF(ISERROR(VLOOKUP($E22,表C_RAW!$C:$I,6,0)),"",VLOOKUP($E22,表C_RAW!$C:$I,6,0)/100) -> 38.4068
D23: 3 | E23: =VLOOKUP($C$21&D23,表C_RAW!A:D,3,0) -> 2855 統一證 | G23: =IF(ISERROR(VLOOKUP($E23,表B_RAW!$C:$I,4,0)),"",VLOOKUP($E23,表B_RAW!$C:$I,4,0)) -> 3259312 | H23: =IF(ISERROR(VLOOKUP($E23,表B_RAW!$C:$I,5,0)),"",VLOOKUP($E23,表B_RAW!$C:$I,5,0)) -> 1650931 | I23: =IF(ISERROR(VLOOKUP($E23,表B_RAW!$C:$I,6,0)),"",VLOOKUP($E23,表B_RAW!$C:$I,6,0)/100) -> 0.9742 | J23: =IF(ISERROR(VLOOKUP($E23,表A_RAW!$C:$I,5,0)),"",VLOOKUP($E23,表A_RAW!$C:$I,5,0)) -> 688353 | K23: =IF(ISERROR(VLOOKUP($E23,表A_RAW!$C:$I,7,0)),"",VLOOKUP($E23,表A_RAW!$C:$I,7,0)) -> 3.734942682 | L23: =IF(ISERROR(VLOOKUP($E23,表C_RAW!$C:$I,4,0)),"",VLOOKUP($E23,表C_RAW!$C:$I,4,0)) -> 3259312 | M23: =IF(ISERROR(VLOOKUP($E23,表C_RAW!$C:$I,5,0)),"",VLOOKUP($E23,表C_RAW!$C:$I,5,0)) -> 688353 | N23: =IF(ISERROR(VLOOKUP($E23,表C_RAW!$C:$I,6,0)),"",VLOOKUP($E23,表C_RAW!$C:$I,6,0)/100) -> 3.7349
C24: =VLOOKUP(B21,表C_RAW!N:T,7,0) -> 46.29 | D24: 4 | E24: =VLOOKUP($C$21&D24,表C_RAW!A:D,3,0) -> 6021 美好證 | G24: =IF(ISERROR(VLOOKUP($E24,表B_RAW!$C:$I,4,0)),"",VLOOKUP($E24,表B_RAW!$C:$I,4,0)) -> 495149 | H24: =IF(ISERROR(VLOOKUP($E24,表B_RAW!$C:$I,5,0)),"",VLOOKUP($E24,表B_RAW!$C:$I,5,0)) -> 270232 | I24: =IF(ISERROR(VLOOKUP($E24,表B_RAW!$C:$I,6,0)),"",VLOOKUP($E24,表B_RAW!$C:$I,6,0)/100) -> 0.8323 | J24: =IF(ISERROR(VLOOKUP($E24,表A_RAW!$C:$I,5,0)),"",VLOOKUP($E24,表A_RAW!$C:$I,5,0)) -> 146918 | K24: =IF(ISERROR(VLOOKUP($E24,表A_RAW!$C:$I,7,0)),"",VLOOKUP($E24,表A_RAW!$C:$I,7,0)) -> 2.370240542 | L24: =IF(ISERROR(VLOOKUP($E24,表C_RAW!$C:$I,4,0)),"",VLOOKUP($E24,表C_RAW!$C:$I,4,0)) -> 495149 | M24: =IF(ISERROR(VLOOKUP($E24,表C_RAW!$C:$I,5,0)),"",VLOOKUP($E24,表C_RAW!$C:$I,5,0)) -> 146918 | N24: =IF(ISERROR(VLOOKUP($E24,表C_RAW!$C:$I,6,0)),"",VLOOKUP($E24,表C_RAW!$C:$I,6,0)/100) -> 2.3702
D25: 5 | E25: =VLOOKUP($C$21&D25,表C_RAW!A:D,3,0) -> 6015 宏遠證 | G25: =IF(ISERROR(VLOOKUP($E25,表B_RAW!$C:$I,4,0)),"",VLOOKUP($E25,表B_RAW!$C:$I,4,0)) -> 418612 | H25: =IF(ISERROR(VLOOKUP($E25,表B_RAW!$C:$I,5,0)),"",VLOOKUP($E25,表B_RAW!$C:$I,5,0)) -> 215025 | I25: =IF(ISERROR(VLOOKUP($E25,表B_RAW!$C:$I,6,0)),"",VLOOKUP($E25,表B_RAW!$C:$I,6,0)/100) -> 0.9468 | J25: =IF(ISERROR(VLOOKUP($E25,表A_RAW!$C:$I,5,0)),"",VLOOKUP($E25,表A_RAW!$C:$I,5,0)) -> 128078 | K25: =IF(ISERROR(VLOOKUP($E25,表A_RAW!$C:$I,7,0)),"",VLOOKUP($E25,表A_RAW!$C:$I,7,0)) -> 2.26841456 | L25: =IF(ISERROR(VLOOKUP($E25,表C_RAW!$C:$I,4,0)),"",VLOOKUP($E25,表C_RAW!$C:$I,4,0)) -> 418612 | M25: =IF(ISERROR(VLOOKUP($E25,表C_RAW!$C:$I,5,0)),"",VLOOKUP($E25,表C_RAW!$C:$I,5,0)) -> 128078 | N25: =IF(ISERROR(VLOOKUP($E25,表C_RAW!$C:$I,6,0)),"",VLOOKUP($E25,表C_RAW!$C:$I,6,0)/100) -> 2.2684
B26: 5 | C26: =VLOOKUP(B26,表C_RAW!N:P,3,0) -> 資訊服務業 | D26: 1 | E26: =VLOOKUP($C$26&D26,表C_RAW!A:D,3,0) -> 5310 天剛 | G26: =IF(ISERROR(VLOOKUP($E26,表B_RAW!$C:$I,4,0)),"",VLOOKUP($E26,表B_RAW!$C:$I,4,0)) -> 84 | H26: =IF(ISERROR(VLOOKUP($E26,表B_RAW!$C:$I,5,0)),"",VLOOKUP($E26,表B_RAW!$C:$I,5,0)) -> 9 | I26: =IF(ISERROR(VLOOKUP($E26,表B_RAW!$C:$I,6,0)),"",VLOOKUP($E26,表B_RAW!$C:$I,6,0)/100) -> 8.3333 | J26: =IF(ISERROR(VLOOKUP($E26,表A_RAW!$C:$I,5,0)),"",VLOOKUP($E26,表A_RAW!$C:$I,5,0)) -> 3 | K26: =IF(ISERROR(VLOOKUP($E26,表A_RAW!$C:$I,7,0)),"",VLOOKUP($E26,表A_RAW!$C:$I,7,0)) -> 27 | L26: =IF(ISERROR(VLOOKUP($E26,表C_RAW!$C:$I,4,0)),"",VLOOKUP($E26,表C_RAW!$C:$I,4,0)) -> 84 | M26: =IF(ISERROR(VLOOKUP($E26,表C_RAW!$C:$I,5,0)),"",VLOOKUP($E26,表C_RAW!$C:$I,5,0)) -> 3 | N26: =IF(ISERROR(VLOOKUP($E26,表C_RAW!$C:$I,6,0)),"",VLOOKUP($E26,表C_RAW!$C:$I,6,0)/100) -> 27
D27: 2 | E27: =VLOOKUP($C$26&D27,表C_RAW!A:D,3,0) -> 2427 三商電 | G27: =IF(ISERROR(VLOOKUP($E27,表B_RAW!$C:$I,4,0)),"",VLOOKUP($E27,表B_RAW!$C:$I,4,0)) -> 1487888 | H27: =IF(ISERROR(VLOOKUP($E27,表B_RAW!$C:$I,5,0)),"",VLOOKUP($E27,表B_RAW!$C:$I,5,0)) -> 838932 | I27: =IF(ISERROR(VLOOKUP($E27,表B_RAW!$C:$I,6,0)),"",VLOOKUP($E27,表B_RAW!$C:$I,6,0)/100) -> 0.7736 | J27: =IF(ISERROR(VLOOKUP($E27,表A_RAW!$C:$I,5,0)),"",VLOOKUP($E27,表A_RAW!$C:$I,5,0)) -> 321366 | K27: =IF(ISERROR(VLOOKUP($E27,表A_RAW!$C:$I,7,0)),"",VLOOKUP($E27,表A_RAW!$C:$I,7,0)) -> 3.629886173 | L27: =IF(ISERROR(VLOOKUP($E27,表C_RAW!$C:$I,4,0)),"",VLOOKUP($E27,表C_RAW!$C:$I,4,0)) -> 1487888 | M27: =IF(ISERROR(VLOOKUP($E27,表C_RAW!$C:$I,5,0)),"",VLOOKUP($E27,表C_RAW!$C:$I,5,0)) -> 321366 | N27: =IF(ISERROR(VLOOKUP($E27,表C_RAW!$C:$I,6,0)),"",VLOOKUP($E27,表C_RAW!$C:$I,6,0)/100) -> 3.6299
D28: 3 | E28: =VLOOKUP($C$26&D28,表C_RAW!A:D,3,0) -> 3147 大綜 | G28: =IF(ISERROR(VLOOKUP($E28,表B_RAW!$C:$I,4,0)),"",VLOOKUP($E28,表B_RAW!$C:$I,4,0)) -> 1411601 | H28: =IF(ISERROR(VLOOKUP($E28,表B_RAW!$C:$I,5,0)),"",VLOOKUP($E28,表B_RAW!$C:$I,5,0)) -> 389361 | I28: =IF(ISERROR(VLOOKUP($E28,表B_RAW!$C:$I,6,0)),"",VLOOKUP($E28,表B_RAW!$C:$I,6,0)/100) -> 2.6254 | J28: =IF(ISERROR(VLOOKUP($E28,表A_RAW!$C:$I,5,0)),"",VLOOKUP($E28,表A_RAW!$C:$I,5,0)) -> 460388 | K28: =IF(ISERROR(VLOOKUP($E28,表A_RAW!$C:$I,7,0)),"",VLOOKUP($E28,表A_RAW!$C:$I,7,0)) -> 2.066111628 | L28: =IF(ISERROR(VLOOKUP($E28,表C_RAW!$C:$I,4,0)),"",VLOOKUP($E28,表C_RAW!$C:$I,4,0)) -> 1411601 | M28: =IF(ISERROR(VLOOKUP($E28,表C_RAW!$C:$I,5,0)),"",VLOOKUP($E28,表C_RAW!$C:$I,5,0)) -> 460388 | N28: =IF(ISERROR(VLOOKUP($E28,表C_RAW!$C:$I,6,0)),"",VLOOKUP($E28,表C_RAW!$C:$I,6,0)/100) -> 2.0661
C29: =VLOOKUP(B26,表C_RAW!N:T,7,0) -> 35.6 | D29: 4 | E29: =VLOOKUP($C$26&D29,表C_RAW!A:D,3,0) -> 3570 大塚 | G29: =IF(ISERROR(VLOOKUP($E29,表B_RAW!$C:$I,4,0)),"",VLOOKUP($E29,表B_RAW!$C:$I,4,0)) -> 308795 | H29: =IF(ISERROR(VLOOKUP($E29,表B_RAW!$C:$I,5,0)),"",VLOOKUP($E29,表B_RAW!$C:$I,5,0)) -> 196706 | I29: =IF(ISERROR(VLOOKUP($E29,表B_RAW!$C:$I,6,0)),"",VLOOKUP($E29,表B_RAW!$C:$I,6,0)/100) -> 0.5698 | J29: =IF(ISERROR(VLOOKUP($E29,表A_RAW!$C:$I,5,0)),"",VLOOKUP($E29,表A_RAW!$C:$I,5,0)) -> 184134 | K29: =IF(ISERROR(VLOOKUP($E29,表A_RAW!$C:$I,7,0)),"",VLOOKUP($E29,表A_RAW!$C:$I,7,0)) -> 0.6770123931 | L29: =IF(ISERROR(VLOOKUP($E29,表C_RAW!$C:$I,4,0)),"",VLOOKUP($E29,表C_RAW!$C:$I,4,0)) -> 308795 | M29: =IF(ISERROR(VLOOKUP($E29,表C_RAW!$C:$I,5,0)),"",VLOOKUP($E29,表C_RAW!$C:$I,5,0)) -> 184134 | N29: =IF(ISERROR(VLOOKUP($E29,表C_RAW!$C:$I,6,0)),"",VLOOKUP($E29,表C_RAW!$C:$I,6,0)/100) -> 0.677
D30: 5 | E30: =VLOOKUP($C$26&D30,表C_RAW!A:D,3,0) -> 6874 倍力 | G30: =IF(ISERROR(VLOOKUP($E30,表B_RAW!$C:$I,4,0)),"",VLOOKUP($E30,表B_RAW!$C:$I,4,0)) -> 475331 | H30: =IF(ISERROR(VLOOKUP($E30,表B_RAW!$C:$I,5,0)),"",VLOOKUP($E30,表B_RAW!$C:$I,5,0)) -> 97172 | I30: =IF(ISERROR(VLOOKUP($E30,表B_RAW!$C:$I,6,0)),"",VLOOKUP($E30,表B_RAW!$C:$I,6,0)/100) -> 3.8916 | J30: =IF(ISERROR(VLOOKUP($E30,表A_RAW!$C:$I,5,0)),"",VLOOKUP($E30,表A_RAW!$C:$I,5,0)) -> 291549 | K30: =IF(ISERROR(VLOOKUP($E30,表A_RAW!$C:$I,7,0)),"",VLOOKUP($E30,表A_RAW!$C:$I,7,0)) -> 0.6303640211 | L30: =IF(ISERROR(VLOOKUP($E30,表C_RAW!$C:$I,4,0)),"",VLOOKUP($E30,表C_RAW!$C:$I,4,0)) -> 475331 | M30: =IF(ISERROR(VLOOKUP($E30,表C_RAW!$C:$I,5,0)),"",VLOOKUP($E30,表C_RAW!$C:$I,5,0)) -> 291549 | N30: =IF(ISERROR(VLOOKUP($E30,表C_RAW!$C:$I,6,0)),"",VLOOKUP($E30,表C_RAW!$C:$I,6,0)/100) -> 0.6304
B32: 衰退前五名之產業 YOY(累計)% | D32: 該產業衰退前五名之公司 YOY(累計)% | G32: 單月營收金額(千元) | H32: 本月與上月相較 | J32: 本月與去年同期相較 | L32: 累計營收金額(千元) | M32: 累計營收與去年同期相較
B33: 衰退 排名 | C33: 產業 | D33: 排名 | E33: 公司代號&簡稱 | H33: 上月營收金額(千元) | I33: 較上月變動比率(%) | J33: 去年同期金額(千元) | K33: 較去年同期變動比率(%) | M33: 去年累計營收金額(千元) | N33: 較去年同期變動比率(%)
B34: 1 | C34: =VLOOKUP(B34,表C_RAW!O:P,2,0) -> 運動休閒 | D34: 1 | E34: =VLOOKUP($C$34&D34,表C_RAW!B:D,2,0) -> 8478 東哥遊艇 | G34: =IF(ISERROR(VLOOKUP($E34,表B_RAW!$C:$I,4,0)),"",VLOOKUP($E34,表B_RAW!$C:$I,4,0)) -> 31328 | H34: =IF(ISERROR(VLOOKUP($E34,表B_RAW!$C:$I,5,0)),"",VLOOKUP($E34,表B_RAW!$C:$I,5,0)) -> 379368 | I34: =IF(ISERROR(VLOOKUP($E34,表B_RAW!$C:$I,6,0)),"",VLOOKUP($E34,表B_RAW!$C:$I,6,0)/100) -> -0.9174 | J34: =IF(ISERROR(VLOOKUP($E34,表A_RAW!$C:$I,5,0)),"",VLOOKUP($E34,表A_RAW!$C:$I,5,0)) -> 321445 | K34: =IF(ISERROR(VLOOKUP($E34,表A_RAW!$C:$I,7,0)),"",VLOOKUP($E34,表A_RAW!$C:$I,7,0)) -> -0.9025400924 | L34: =IF(ISERROR(VLOOKUP($E34,表C_RAW!$C:$I,4,0)),"",VLOOKUP($E34,表C_RAW!$C:$I,4,0)) -> 31328 | M34: =IF(ISERROR(VLOOKUP($E34,表C_RAW!$C:$I,5,0)),"",VLOOKUP($E34,表C_RAW!$C:$I,5,0)) -> 321445 | N34: =IF(ISERROR(VLOOKUP($E34,表C_RAW!$C:$I,6,0)),"",VLOOKUP($E34,表C_RAW!$C:$I,6,0)/100) -> -0.9025
D35: 2 | E35: =VLOOKUP($C$34&D35,表C_RAW!B:D,2,0) -> 8933 愛地雅 | G35: =IF(ISERROR(VLOOKUP($E35,表B_RAW!$C:$I,4,0)),"",VLOOKUP($E35,表B_RAW!$C:$I,4,0)) -> 117226 | H35: =IF(ISERROR(VLOOKUP($E35,表B_RAW!$C:$I,5,0)),"",VLOOKUP($E35,表B_RAW!$C:$I,5,0)) -> 147907 | I35: =IF(ISERROR(VLOOKUP($E35,表B_RAW!$C:$I,6,0)),"",VLOOKUP($E35,表B_RAW!$C:$I,6,0)/100) -> -0.2074 | J35: =IF(ISERROR(VLOOKUP($E35,表A_RAW!$C:$I,5,0)),"",VLOOKUP($E35,表A_RAW!$C:$I,5,0)) -> 250273 | K35: =IF(ISERROR(VLOOKUP($E35,表A_RAW!$C:$I,7,0)),"",VLOOKUP($E35,表A_RAW!$C:$I,7,0)) -> -0.5316074846 | L35: =IF(ISERROR(VLOOKUP($E35,表C_RAW!$C:$I,4,0)),"",VLOOKUP($E35,表C_RAW!$C:$I,4,0)) -> 117226 | M35: =IF(ISERROR(VLOOKUP($E35,表C_RAW!$C:$I,5,0)),"",VLOOKUP($E35,表C_RAW!$C:$I,5,0)) -> 250273 | N35: =IF(ISERROR(VLOOKUP($E35,表C_RAW!$C:$I,6,0)),"",VLOOKUP($E35,表C_RAW!$C:$I,6,0)/100) -> -0.5316
D36: 3 | E36: =VLOOKUP($C$34&D36,表C_RAW!B:D,2,0) -> 1432 大魯閣 | G36: =IF(ISERROR(VLOOKUP($E36,表B_RAW!$C:$I,4,0)),"",VLOOKUP($E36,表B_RAW!$C:$I,4,0)) -> 65998 | H36: =IF(ISERROR(VLOOKUP($E36,表B_RAW!$C:$I,5,0)),"",VLOOKUP($E36,表B_RAW!$C:$I,5,0)) -> 111500 | I36: =IF(ISERROR(VLOOKUP($E36,表B_RAW!$C:$I,6,0)),"",VLOOKUP($E36,表B_RAW!$C:$I,6,0)/100) -> -0.4081 | J36: =IF(ISERROR(VLOOKUP($E36,表A_RAW!$C:$I,5,0)),"",VLOOKUP($E36,表A_RAW!$C:$I,5,0)) -> 122375 | K36: =IF(ISERROR(VLOOKUP($E36,表A_RAW!$C:$I,7,0)),"",VLOOKUP($E36,表A_RAW!$C:$I,7,0)) -> -0.4606905005 | L36: =IF(ISERROR(VLOOKUP($E36,表C_RAW!$C:$I,4,0)),"",VLOOKUP($E36,表C_RAW!$C:$I,4,0)) -> 65998 | M36: =IF(ISERROR(VLOOKUP($E36,表C_RAW!$C:$I,5,0)),"",VLOOKUP($E36,表C_RAW!$C:$I,5,0)) -> 122375 | N36: =IF(ISERROR(VLOOKUP($E36,表C_RAW!$C:$I,6,0)),"",VLOOKUP($E36,表C_RAW!$C:$I,6,0)/100) -> -0.4607
C37: =VLOOKUP(B34,表C_RAW!O:T,6,0) -> -13.28 | D37: 4 | E37: =VLOOKUP($C$34&D37,表C_RAW!B:D,2,0) -> 9914 美利達 | G37: =IF(ISERROR(VLOOKUP($E37,表B_RAW!$C:$I,4,0)),"",VLOOKUP($E37,表B_RAW!$C:$I,4,0)) -> 1391355 | H37: =IF(ISERROR(VLOOKUP($E37,表B_RAW!$C:$I,5,0)),"",VLOOKUP($E37,表B_RAW!$C:$I,5,0)) -> 1596527 | I37: =IF(ISERROR(VLOOKUP($E37,表B_RAW!$C:$I,6,0)),"",VLOOKUP($E37,表B_RAW!$C:$I,6,0)/100) -> -0.1285 | J37: =IF(ISERROR(VLOOKUP($E37,表A_RAW!$C:$I,5,0)),"",VLOOKUP($E37,表A_RAW!$C:$I,5,0)) -> 2500664 | K37: =IF(ISERROR(VLOOKUP($E37,表A_RAW!$C:$I,7,0)),"",VLOOKUP($E37,表A_RAW!$C:$I,7,0)) -> -0.4436057783 | L37: =IF(ISERROR(VLOOKUP($E37,表C_RAW!$C:$I,4,0)),"",VLOOKUP($E37,表C_RAW!$C:$I,4,0)) -> 1391355 | M37: =IF(ISERROR(VLOOKUP($E37,表C_RAW!$C:$I,5,0)),"",VLOOKUP($E37,表C_RAW!$C:$I,5,0)) -> 2500664 | N37: =IF(ISERROR(VLOOKUP($E37,表C_RAW!$C:$I,6,0)),"",VLOOKUP($E37,表C_RAW!$C:$I,6,0)/100) -> -0.4436
D38: 5 | E38: =VLOOKUP($C$34&D38,表C_RAW!B:D,2,0) -> 1598 岱宇 | G38: =IF(ISERROR(VLOOKUP($E38,表B_RAW!$C:$I,4,0)),"",VLOOKUP($E38,表B_RAW!$C:$I,4,0)) -> 475669 | H38: =IF(ISERROR(VLOOKUP($E38,表B_RAW!$C:$I,5,0)),"",VLOOKUP($E38,表B_RAW!$C:$I,5,0)) -> 746675 | I38: =IF(ISERROR(VLOOKUP($E38,表B_RAW!$C:$I,6,0)),"",VLOOKUP($E38,表B_RAW!$C:$I,6,0)/100) -> -0.363 | J38: =IF(ISERROR(VLOOKUP($E38,表A_RAW!$C:$I,5,0)),"",VLOOKUP($E38,表A_RAW!$C:$I,5,0)) -> 725971 | K38: =IF(ISERROR(VLOOKUP($E38,表A_RAW!$C:$I,7,0)),"",VLOOKUP($E38,表A_RAW!$C:$I,7,0)) -> -0.3447823673 | L38: =IF(ISERROR(VLOOKUP($E38,表C_RAW!$C:$I,4,0)),"",VLOOKUP($E38,表C_RAW!$C:$I,4,0)) -> 475669 | M38: =IF(ISERROR(VLOOKUP($E38,表C_RAW!$C:$I,5,0)),"",VLOOKUP($E38,表C_RAW!$C:$I,5,0)) -> 725971 | N38: =IF(ISERROR(VLOOKUP($E38,表C_RAW!$C:$I,6,0)),"",VLOOKUP($E38,表C_RAW!$C:$I,6,0)/100) -> -0.3448
B39: 2 | C39: =VLOOKUP(B39,表C_RAW!O:P,2,0) -> 綠能環保 | D39: 1 | E39: =VLOOKUP($C$39&D39,表C_RAW!B:D,2,0) -> 6806 森崴能源 | G39: =IF(ISERROR(VLOOKUP($E39,表B_RAW!$C:$I,4,0)),"",VLOOKUP($E39,表B_RAW!$C:$I,4,0)) -> 428960 | H39: =IF(ISERROR(VLOOKUP($E39,表B_RAW!$C:$I,5,0)),"",VLOOKUP($E39,表B_RAW!$C:$I,5,0)) -> 1836099 | I39: =IF(ISERROR(VLOOKUP($E39,表B_RAW!$C:$I,6,0)),"",VLOOKUP($E39,表B_RAW!$C:$I,6,0)/100) -> -0.7664 | J39: =IF(ISERROR(VLOOKUP($E39,表A_RAW!$C:$I,5,0)),"",VLOOKUP($E39,表A_RAW!$C:$I,5,0)) -> 2786957 | K39: =IF(ISERROR(VLOOKUP($E39,表A_RAW!$C:$I,7,0)),"",VLOOKUP($E39,表A_RAW!$C:$I,7,0)) -> -0.8460830217 | L39: =IF(ISERROR(VLOOKUP($E39,表C_RAW!$C:$I,4,0)),"",VLOOKUP($E39,表C_RAW!$C:$I,4,0)) -> 428960 | M39: =IF(ISERROR(VLOOKUP($E39,表C_RAW!$C:$I,5,0)),"",VLOOKUP($E39,表C_RAW!$C:$I,5,0)) -> 2786957 | N39: =IF(ISERROR(VLOOKUP($E39,表C_RAW!$C:$I,6,0)),"",VLOOKUP($E39,表C_RAW!$C:$I,6,0)/100) -> -0.8461
D40: 2 | E40: =VLOOKUP($C$39&D40,表C_RAW!B:D,2,0) -> 6692 進能服 | G40: =IF(ISERROR(VLOOKUP($E40,表B_RAW!$C:$I,4,0)),"",VLOOKUP($E40,表B_RAW!$C:$I,4,0)) -> 31523 | H40: =IF(ISERROR(VLOOKUP($E40,表B_RAW!$C:$I,5,0)),"",VLOOKUP($E40,表B_RAW!$C:$I,5,0)) -> 62445 | I40: =IF(ISERROR(VLOOKUP($E40,表B_RAW!$C:$I,6,0)),"",VLOOKUP($E40,表B_RAW!$C:$I,6,0)/100) -> -0.4952 | J40: =IF(ISERROR(VLOOKUP($E40,表A_RAW!$C:$I,5,0)),"",VLOOKUP($E40,表A_RAW!$C:$I,5,0)) -> 198712 | K40: =IF(ISERROR(VLOOKUP($E40,表A_RAW!$C:$I,7,0)),"",VLOOKUP($E40,表A_RAW!$C:$I,7,0)) -> -0.8413633802 | L40: =IF(ISERROR(VLOOKUP($E40,表C_RAW!$C:$I,4,0)),"",VLOOKUP($E40,表C_RAW!$C:$I,4,0)) -> 31523 | M40: =IF(ISERROR(VLOOKUP($E40,表C_RAW!$C:$I,5,0)),"",VLOOKUP($E40,表C_RAW!$C:$I,5,0)) -> 198712 | N40: =IF(ISERROR(VLOOKUP($E40,表C_RAW!$C:$I,6,0)),"",VLOOKUP($E40,表C_RAW!$C:$I,6,0)/100) -> -0.8414
D41: 3 | E41: =VLOOKUP($C$39&D41,表C_RAW!B:D,2,0) -> 3708 上緯投控 | G41: =IF(ISERROR(VLOOKUP($E41,表B_RAW!$C:$I,4,0)),"",VLOOKUP($E41,表B_RAW!$C:$I,4,0)) -> 51108 | H41: =IF(ISERROR(VLOOKUP($E41,表B_RAW!$C:$I,5,0)),"",VLOOKUP($E41,表B_RAW!$C:$I,5,0)) -> 58292 | I41: =IF(ISERROR(VLOOKUP($E41,表B_RAW!$C:$I,6,0)),"",VLOOKUP($E41,表B_RAW!$C:$I,6,0)/100) -> -0.1232 | J41: =IF(ISERROR(VLOOKUP($E41,表A_RAW!$C:$I,5,0)),"",VLOOKUP($E41,表A_RAW!$C:$I,5,0)) -> 135209 | K41: =IF(ISERROR(VLOOKUP($E41,表A_RAW!$C:$I,7,0)),"",VLOOKUP($E41,表A_RAW!$C:$I,7,0)) -> -0.6220074107 | L41: =IF(ISERROR(VLOOKUP($E41,表C_RAW!$C:$I,4,0)),"",VLOOKUP($E41,表C_RAW!$C:$I,4,0)) -> 51108 | M41: =IF(ISERROR(VLOOKUP($E41,表C_RAW!$C:$I,5,0)),"",VLOOKUP($E41,表C_RAW!$C:$I,5,0)) -> 135209 | N41: =IF(ISERROR(VLOOKUP($E41,表C_RAW!$C:$I,6,0)),"",VLOOKUP($E41,表C_RAW!$C:$I,6,0)/100) -> -0.622
C42: =VLOOKUP(B39,表C_RAW!O:T,6,0) -> -12.01 | D42: 4 | E42: =VLOOKUP($C$39&D42,表C_RAW!B:D,2,0) -> 7715 裕山 | G42: =IF(ISERROR(VLOOKUP($E42,表B_RAW!$C:$I,4,0)),"",VLOOKUP($E42,表B_RAW!$C:$I,4,0)) -> 40658 | H42: =IF(ISERROR(VLOOKUP($E42,表B_RAW!$C:$I,5,0)),"",VLOOKUP($E42,表B_RAW!$C:$I,5,0)) -> 81595 | I42: =IF(ISERROR(VLOOKUP($E42,表B_RAW!$C:$I,6,0)),"",VLOOKUP($E42,表B_RAW!$C:$I,6,0)/100) -> -0.5017 | J42: =IF(ISERROR(VLOOKUP($E42,表A_RAW!$C:$I,5,0)),"",VLOOKUP($E42,表A_RAW!$C:$I,5,0)) -> 79540 | K42: =IF(ISERROR(VLOOKUP($E42,表A_RAW!$C:$I,7,0)),"",VLOOKUP($E42,表A_RAW!$C:$I,7,0)) -> -0.4888358059 | L42: =IF(ISERROR(VLOOKUP($E42,表C_RAW!$C:$I,4,0)),"",VLOOKUP($E42,表C_RAW!$C:$I,4,0)) -> 40658 | M42: =IF(ISERROR(VLOOKUP($E42,表C_RAW!$C:$I,5,0)),"",VLOOKUP($E42,表C_RAW!$C:$I,5,0)) -> 79540 | N42: =IF(ISERROR(VLOOKUP($E42,表C_RAW!$C:$I,6,0)),"",VLOOKUP($E42,表C_RAW!$C:$I,6,0)/100) -> -0.4888
D43: 5 | E43: =IFERROR(VLOOKUP($C$39&D43,表C_RAW!B:D,2,0),"") -> 6887 寶綠特-KY | G43: =IF(ISERROR(VLOOKUP($E43,表B_RAW!$C:$I,4,0)),"",VLOOKUP($E43,表B_RAW!$C:$I,4,0)) -> 280206 | H43: =IF(ISERROR(VLOOKUP($E43,表B_RAW!$C:$I,5,0)),"",VLOOKUP($E43,表B_RAW!$C:$I,5,0)) -> 872356 | I43: =IF(ISERROR(VLOOKUP($E43,表B_RAW!$C:$I,6,0)),"",VLOOKUP($E43,表B_RAW!$C:$I,6,0)/100) -> -0.6788 | J43: =IF(ISERROR(VLOOKUP($E43,表A_RAW!$C:$I,5,0)),"",VLOOKUP($E43,表A_RAW!$C:$I,5,0)) -> 538918 | K43: =IF(ISERROR(VLOOKUP($E43,表A_RAW!$C:$I,7,0)),"",VLOOKUP($E43,表A_RAW!$C:$I,7,0)) -> -0.4800581907 | L43: =IF(ISERROR(VLOOKUP($E43,表C_RAW!$C:$I,4,0)),"",VLOOKUP($E43,表C_RAW!$C:$I,4,0)) -> 280206 | M43: =IF(ISERROR(VLOOKUP($E43,表C_RAW!$C:$I,5,0)),"",VLOOKUP($E43,表C_RAW!$C:$I,5,0)) -> 538918 | N43: =IF(ISERROR(VLOOKUP($E43,表C_RAW!$C:$I,6,0)),"",VLOOKUP($E43,表C_RAW!$C:$I,6,0)/100) -> -0.4801
B44: 3 | C44: =VLOOKUP(B44,表C_RAW!O:P,2,0) -> 航運業 | D44: 1 | E44: =VLOOKUP($C$44&D44,表C_RAW!B:D,2,0) -> 2630 亞航 | G44: =IF(ISERROR(VLOOKUP($E44,表B_RAW!$C:$I,4,0)),"",VLOOKUP($E44,表B_RAW!$C:$I,4,0)) -> 259989 | H44: =IF(ISERROR(VLOOKUP($E44,表B_RAW!$C:$I,5,0)),"",VLOOKUP($E44,表B_RAW!$C:$I,5,0)) -> 403309 | I44: =IF(ISERROR(VLOOKUP($E44,表B_RAW!$C:$I,6,0)),"",VLOOKUP($E44,表B_RAW!$C:$I,6,0)/100) -> -0.3554 | J44: =IF(ISERROR(VLOOKUP($E44,表A_RAW!$C:$I,5,0)),"",VLOOKUP($E44,表A_RAW!$C:$I,5,0)) -> 403845 | K44: =IF(ISERROR(VLOOKUP($E44,表A_RAW!$C:$I,7,0)),"",VLOOKUP($E44,表A_RAW!$C:$I,7,0)) -> -0.3562158749 | L44: =IF(ISERROR(VLOOKUP($E44,表C_RAW!$C:$I,4,0)),"",VLOOKUP($E44,表C_RAW!$C:$I,4,0)) -> 259989 | M44: =IF(ISERROR(VLOOKUP($E44,表C_RAW!$C:$I,5,0)),"",VLOOKUP($E44,表C_RAW!$C:$I,5,0)) -> 403845 | N44: =IF(ISERROR(VLOOKUP($E44,表C_RAW!$C:$I,6,0)),"",VLOOKUP($E44,表C_RAW!$C:$I,6,0)/100) -> -0.3562
D45: 2 | E45: =VLOOKUP($C$44&D45,表C_RAW!B:D,2,0) -> 2603 長榮 | G45: =IF(ISERROR(VLOOKUP($E45,表B_RAW!$C:$I,4,0)),"",VLOOKUP($E45,表B_RAW!$C:$I,4,0)) -> 31898627 | H45: =IF(ISERROR(VLOOKUP($E45,表B_RAW!$C:$I,5,0)),"",VLOOKUP($E45,表B_RAW!$C:$I,5,0)) -> 30705794 | I45: =IF(ISERROR(VLOOKUP($E45,表B_RAW!$C:$I,6,0)),"",VLOOKUP($E45,表B_RAW!$C:$I,6,0)/100) -> 0.0388 | J45: =IF(ISERROR(VLOOKUP($E45,表A_RAW!$C:$I,5,0)),"",VLOOKUP($E45,表A_RAW!$C:$I,5,0)) -> 42247957 | K45: =IF(ISERROR(VLOOKUP($E45,表A_RAW!$C:$I,7,0)),"",VLOOKUP($E45,表A_RAW!$C:$I,7,0)) -> -0.2449664016 | L45: =IF(ISERROR(VLOOKUP($E45,表C_RAW!$C:$I,4,0)),"",VLOOKUP($E45,表C_RAW!$C:$I,4,0)) -> 31898627 | M45: =IF(ISERROR(VLOOKUP($E45,表C_RAW!$C:$I,5,0)),"",VLOOKUP($E45,表C_RAW!$C:$I,5,0)) -> 42247957 | N45: =IF(ISERROR(VLOOKUP($E45,表C_RAW!$C:$I,6,0)),"",VLOOKUP($E45,表C_RAW!$C:$I,6,0)/100) -> -0.245
D46: 3 | E46: =VLOOKUP($C$44&D46,表C_RAW!B:D,2,0) -> 2609 陽明 | G46: =IF(ISERROR(VLOOKUP($E46,表B_RAW!$C:$I,4,0)),"",VLOOKUP($E46,表B_RAW!$C:$I,4,0)) -> 13761884 | H46: =IF(ISERROR(VLOOKUP($E46,表B_RAW!$C:$I,5,0)),"",VLOOKUP($E46,表B_RAW!$C:$I,5,0)) -> 13239996 | I46: =IF(ISERROR(VLOOKUP($E46,表B_RAW!$C:$I,6,0)),"",VLOOKUP($E46,表B_RAW!$C:$I,6,0)/100) -> 0.0394 | J46: =IF(ISERROR(VLOOKUP($E46,表A_RAW!$C:$I,5,0)),"",VLOOKUP($E46,表A_RAW!$C:$I,5,0)) -> 17592891 | K46: =IF(ISERROR(VLOOKUP($E46,表A_RAW!$C:$I,7,0)),"",VLOOKUP($E46,表A_RAW!$C:$I,7,0)) -> -0.2177588095 | L46: =IF(ISERROR(VLOOKUP($E46,表C_RAW!$C:$I,4,0)),"",VLOOKUP($E46,表C_RAW!$C:$I,4,0)) -> 13761884 | M46: =IF(ISERROR(VLOOKUP($E46,表C_RAW!$C:$I,5,0)),"",VLOOKUP($E46,表C_RAW!$C:$I,5,0)) -> 17592891 | N46: =IF(ISERROR(VLOOKUP($E46,表C_RAW!$C:$I,6,0)),"",VLOOKUP($E46,表C_RAW!$C:$I,6,0)/100) -> -0.2178
C47: =VLOOKUP(B44,表C_RAW!O:T,6,0) -> -11.45 | D47: 4 | E47: =VLOOKUP($C$44&D47,表C_RAW!B:D,2,0) -> 2607 榮運 | G47: =IF(ISERROR(VLOOKUP($E47,表B_RAW!$C:$I,4,0)),"",VLOOKUP($E47,表B_RAW!$C:$I,4,0)) -> 1369353 | H47: =IF(ISERROR(VLOOKUP($E47,表B_RAW!$C:$I,5,0)),"",VLOOKUP($E47,表B_RAW!$C:$I,5,0)) -> 1433189 | I47: =IF(ISERROR(VLOOKUP($E47,表B_RAW!$C:$I,6,0)),"",VLOOKUP($E47,表B_RAW!$C:$I,6,0)/100) -> -0.0445 | J47: =IF(ISERROR(VLOOKUP($E47,表A_RAW!$C:$I,5,0)),"",VLOOKUP($E47,表A_RAW!$C:$I,5,0)) -> 1723470 | K47: =IF(ISERROR(VLOOKUP($E47,表A_RAW!$C:$I,7,0)),"",VLOOKUP($E47,表A_RAW!$C:$I,7,0)) -> -0.2054674581 | L47: =IF(ISERROR(VLOOKUP($E47,表C_RAW!$C:$I,4,0)),"",VLOOKUP($E47,表C_RAW!$C:$I,4,0)) -> 1369353 | M47: =IF(ISERROR(VLOOKUP($E47,表C_RAW!$C:$I,5,0)),"",VLOOKUP($E47,表C_RAW!$C:$I,5,0)) -> 1723470 | N47: =IF(ISERROR(VLOOKUP($E47,表C_RAW!$C:$I,6,0)),"",VLOOKUP($E47,表C_RAW!$C:$I,6,0)/100) -> -0.2055
D48: 5 | E48: =IFERROR(VLOOKUP($C$44&D48,表C_RAW!B:D,2,0),"") -> 2636 台驊控股 | G48: =IF(ISERROR(VLOOKUP($E48,表B_RAW!$C:$I,4,0)),"",VLOOKUP($E48,表B_RAW!$C:$I,4,0)) -> 1750726 | H48: =IF(ISERROR(VLOOKUP($E48,表B_RAW!$C:$I,5,0)),"",VLOOKUP($E48,表B_RAW!$C:$I,5,0)) -> 1662430 | I48: =IF(ISERROR(VLOOKUP($E48,表B_RAW!$C:$I,6,0)),"",VLOOKUP($E48,表B_RAW!$C:$I,6,0)/100) -> 0.0531 | J48: =IF(ISERROR(VLOOKUP($E48,表A_RAW!$C:$I,5,0)),"",VLOOKUP($E48,表A_RAW!$C:$I,5,0)) -> 2161588 | K48: =IF(ISERROR(VLOOKUP($E48,表A_RAW!$C:$I,7,0)),"",VLOOKUP($E48,表A_RAW!$C:$I,7,0)) -> -0.1900741492 | L48: =IF(ISERROR(VLOOKUP($E48,表C_RAW!$C:$I,4,0)),"",VLOOKUP($E48,表C_RAW!$C:$I,4,0)) -> 1750726 | M48: =IF(ISERROR(VLOOKUP($E48,表C_RAW!$C:$I,5,0)),"",VLOOKUP($E48,表C_RAW!$C:$I,5,0)) -> 2161588 | N48: =IF(ISERROR(VLOOKUP($E48,表C_RAW!$C:$I,6,0)),"",VLOOKUP($E48,表C_RAW!$C:$I,6,0)/100) -> -0.1901
B49: 4 | C49: =VLOOKUP(B49,表C_RAW!O:P,2,0) -> 觀光餐旅 | D49: 1 | E49: =VLOOKUP($C$49&D49,表C_RAW!B:D,2,0) -> 2740 天蔥 | G49: =IF(ISERROR(VLOOKUP($E49,表B_RAW!$C:$I,4,0)),"",VLOOKUP($E49,表B_RAW!$C:$I,4,0)) -> 6326 | H49: =IF(ISERROR(VLOOKUP($E49,表B_RAW!$C:$I,5,0)),"",VLOOKUP($E49,表B_RAW!$C:$I,5,0)) -> 6595 | I49: =IF(ISERROR(VLOOKUP($E49,表B_RAW!$C:$I,6,0)),"",VLOOKUP($E49,表B_RAW!$C:$I,6,0)/100) -> -0.0408 | J49: =IF(ISERROR(VLOOKUP($E49,表A_RAW!$C:$I,5,0)),"",VLOOKUP($E49,表A_RAW!$C:$I,5,0)) -> 17762 | K49: =IF(ISERROR(VLOOKUP($E49,表A_RAW!$C:$I,7,0)),"",VLOOKUP($E49,表A_RAW!$C:$I,7,0)) -> -0.6438464137 | L49: =IF(ISERROR(VLOOKUP($E49,表C_RAW!$C:$I,4,0)),"",VLOOKUP($E49,表C_RAW!$C:$I,4,0)) -> 6326 | M49: =IF(ISERROR(VLOOKUP($E49,表C_RAW!$C:$I,5,0)),"",VLOOKUP($E49,表C_RAW!$C:$I,5,0)) -> 17762 | N49: =IF(ISERROR(VLOOKUP($E49,表C_RAW!$C:$I,6,0)),"",VLOOKUP($E49,表C_RAW!$C:$I,6,0)/100) -> -0.6438
D50: 2 | E50: =VLOOKUP($C$49&D50,表C_RAW!B:D,2,0) -> 2722 夏都 | G50: =IF(ISERROR(VLOOKUP($E50,表B_RAW!$C:$I,4,0)),"",VLOOKUP($E50,表B_RAW!$C:$I,4,0)) -> 28218 | H50: =IF(ISERROR(VLOOKUP($E50,表B_RAW!$C:$I,5,0)),"",VLOOKUP($E50,表B_RAW!$C:$I,5,0)) -> 34963 | I50: =IF(ISERROR(VLOOKUP($E50,表B_RAW!$C:$I,6,0)),"",VLOOKUP($E50,表B_RAW!$C:$I,6,0)/100) -> -0.1929 | J50: =IF(ISERROR(VLOOKUP($E50,表A_RAW!$C:$I,5,0)),"",VLOOKUP($E50,表A_RAW!$C:$I,5,0)) -> 55465 | K50: =IF(ISERROR(VLOOKUP($E50,表A_RAW!$C:$I,7,0)),"",VLOOKUP($E50,表A_RAW!$C:$I,7,0)) -> -0.4912467322 | L50: =IF(ISERROR(VLOOKUP($E50,表C_RAW!$C:$I,4,0)),"",VLOOKUP($E50,表C_RAW!$C:$I,4,0)) -> 28218 | M50: =IF(ISERROR(VLOOKUP($E50,表C_RAW!$C:$I,5,0)),"",VLOOKUP($E50,表C_RAW!$C:$I,5,0)) -> 55465 | N50: =IF(ISERROR(VLOOKUP($E50,表C_RAW!$C:$I,6,0)),"",VLOOKUP($E50,表C_RAW!$C:$I,6,0)/100) -> -0.4912
D51: 3 | E51: =VLOOKUP($C$49&D51,表C_RAW!B:D,2,0) -> 5706 鳳凰 | G51: =IF(ISERROR(VLOOKUP($E51,表B_RAW!$C:$I,4,0)),"",VLOOKUP($E51,表B_RAW!$C:$I,4,0)) -> 154892 | H51: =IF(ISERROR(VLOOKUP($E51,表B_RAW!$C:$I,5,0)),"",VLOOKUP($E51,表B_RAW!$C:$I,5,0)) -> 148755 | I51: =IF(ISERROR(VLOOKUP($E51,表B_RAW!$C:$I,6,0)),"",VLOOKUP($E51,表B_RAW!$C:$I,6,0)/100) -> 0.0413 | J51: =IF(ISERROR(VLOOKUP($E51,表A_RAW!$C:$I,5,0)),"",VLOOKUP($E51,表A_RAW!$C:$I,5,0)) -> 259090 | K51: =IF(ISERROR(VLOOKUP($E51,表A_RAW!$C:$I,7,0)),"",VLOOKUP($E51,表A_RAW!$C:$I,7,0)) -> -0.4021691304 | L51: =IF(ISERROR(VLOOKUP($E51,表C_RAW!$C:$I,4,0)),"",VLOOKUP($E51,表C_RAW!$C:$I,4,0)) -> 154892 | M51: =IF(ISERROR(VLOOKUP($E51,表C_RAW!$C:$I,5,0)),"",VLOOKUP($E51,表C_RAW!$C:$I,5,0)) -> 259090 | N51: =IF(ISERROR(VLOOKUP($E51,表C_RAW!$C:$I,6,0)),"",VLOOKUP($E51,表C_RAW!$C:$I,6,0)/100) -> -0.4022
C52: =VLOOKUP(B49,表C_RAW!O:T,6,0) -> -8.96 | D52: 4 | E52: =VLOOKUP($C$49&D52,表C_RAW!B:D,2,0) -> 2712 遠雄來 | G52: =IF(ISERROR(VLOOKUP($E52,表B_RAW!$C:$I,4,0)),"",VLOOKUP($E52,表B_RAW!$C:$I,4,0)) -> 35147 | H52: =IF(ISERROR(VLOOKUP($E52,表B_RAW!$C:$I,5,0)),"",VLOOKUP($E52,表B_RAW!$C:$I,5,0)) -> 29593 | I52: =IF(ISERROR(VLOOKUP($E52,表B_RAW!$C:$I,6,0)),"",VLOOKUP($E52,表B_RAW!$C:$I,6,0)/100) -> 0.1877 | J52: =IF(ISERROR(VLOOKUP($E52,表A_RAW!$C:$I,5,0)),"",VLOOKUP($E52,表A_RAW!$C:$I,5,0)) -> 52192 | K52: =IF(ISERROR(VLOOKUP($E52,表A_RAW!$C:$I,7,0)),"",VLOOKUP($E52,表A_RAW!$C:$I,7,0)) -> -0.326582618 | L52: =IF(ISERROR(VLOOKUP($E52,表C_RAW!$C:$I,4,0)),"",VLOOKUP($E52,表C_RAW!$C:$I,4,0)) -> 35147 | M52: =IF(ISERROR(VLOOKUP($E52,表C_RAW!$C:$I,5,0)),"",VLOOKUP($E52,表C_RAW!$C:$I,5,0)) -> 52192 | N52: =IF(ISERROR(VLOOKUP($E52,表C_RAW!$C:$I,6,0)),"",VLOOKUP($E52,表C_RAW!$C:$I,6,0)/100) -> -0.3266
D53: 5 | E53: =VLOOKUP($C$49&D53,表C_RAW!B:D,2,0) -> 2719 燦星旅 | G53: =IF(ISERROR(VLOOKUP($E53,表B_RAW!$C:$I,4,0)),"",VLOOKUP($E53,表B_RAW!$C:$I,4,0)) -> 162849 | H53: =IF(ISERROR(VLOOKUP($E53,表B_RAW!$C:$I,5,0)),"",VLOOKUP($E53,表B_RAW!$C:$I,5,0)) -> 131108 | I53: =IF(ISERROR(VLOOKUP($E53,表B_RAW!$C:$I,6,0)),"",VLOOKUP($E53,表B_RAW!$C:$I,6,0)/100) -> 0.2421 | J53: =IF(ISERROR(VLOOKUP($E53,表A_RAW!$C:$I,5,0)),"",VLOOKUP($E53,表A_RAW!$C:$I,5,0)) -> 239336 | K53: =IF(ISERROR(VLOOKUP($E53,表A_RAW!$C:$I,7,0)),"",VLOOKUP($E53,表A_RAW!$C:$I,7,0)) -> -0.3195800047 | L53: =IF(ISERROR(VLOOKUP($E53,表C_RAW!$C:$I,4,0)),"",VLOOKUP($E53,表C_RAW!$C:$I,4,0)) -> 162849 | M53: =IF(ISERROR(VLOOKUP($E53,表C_RAW!$C:$I,5,0)),"",VLOOKUP($E53,表C_RAW!$C:$I,5,0)) -> 239336 | N53: =IF(ISERROR(VLOOKUP($E53,表C_RAW!$C:$I,6,0)),"",VLOOKUP($E53,表C_RAW!$C:$I,6,0)/100) -> -0.3196
B54: 5 | C54: =VLOOKUP(B54,表C_RAW!O:P,2,0) -> 油電燃氣業 | D54: 1 | E54: =VLOOKUP($C$54&D54,表C_RAW!B:D,2,0) -> 6505 台塑化 | G54: =IF(ISERROR(VLOOKUP($E54,表B_RAW!$C:$I,4,0)),"",VLOOKUP($E54,表B_RAW!$C:$I,4,0)) -> 53173547 | H54: =IF(ISERROR(VLOOKUP($E54,表B_RAW!$C:$I,5,0)),"",VLOOKUP($E54,表B_RAW!$C:$I,5,0)) -> 52936902 | I54: =IF(ISERROR(VLOOKUP($E54,表B_RAW!$C:$I,6,0)),"",VLOOKUP($E54,表B_RAW!$C:$I,6,0)/100) -> 0.0045 | J54: =IF(ISERROR(VLOOKUP($E54,表A_RAW!$C:$I,5,0)),"",VLOOKUP($E54,表A_RAW!$C:$I,5,0)) -> 59540547 | K54: =IF(ISERROR(VLOOKUP($E54,表A_RAW!$C:$I,7,0)),"",VLOOKUP($E54,表A_RAW!$C:$I,7,0)) -> -0.1069355308 | L54: =IF(ISERROR(VLOOKUP($E54,表C_RAW!$C:$I,4,0)),"",VLOOKUP($E54,表C_RAW!$C:$I,4,0)) -> 53173547 | M54: =IF(ISERROR(VLOOKUP($E54,表C_RAW!$C:$I,5,0)),"",VLOOKUP($E54,表C_RAW!$C:$I,5,0)) -> 59540547 | N54: =IF(ISERROR(VLOOKUP($E54,表C_RAW!$C:$I,6,0)),"",VLOOKUP($E54,表C_RAW!$C:$I,6,0)/100) -> -0.1069
D55: 2 | E55: =VLOOKUP($C$54&D55,表C_RAW!B:D,2,0) -> 9918 欣天然 | G55: =IF(ISERROR(VLOOKUP($E55,表B_RAW!$C:$I,4,0)),"",VLOOKUP($E55,表B_RAW!$C:$I,4,0)) -> 240657 | H55: =IF(ISERROR(VLOOKUP($E55,表B_RAW!$C:$I,5,0)),"",VLOOKUP($E55,表B_RAW!$C:$I,5,0)) -> 169569 | I55: =IF(ISERROR(VLOOKUP($E55,表B_RAW!$C:$I,6,0)),"",VLOOKUP($E55,表B_RAW!$C:$I,6,0)/100) -> 0.4192 | J55: =IF(ISERROR(VLOOKUP($E55,表A_RAW!$C:$I,5,0)),"",VLOOKUP($E55,表A_RAW!$C:$I,5,0)) -> 263970 | K55: =IF(ISERROR(VLOOKUP($E55,表A_RAW!$C:$I,7,0)),"",VLOOKUP($E55,表A_RAW!$C:$I,7,0)) -> -0.08831685419 | L55: =IF(ISERROR(VLOOKUP($E55,表C_RAW!$C:$I,4,0)),"",VLOOKUP($E55,表C_RAW!$C:$I,4,0)) -> 240657 | M55: =IF(ISERROR(VLOOKUP($E55,表C_RAW!$C:$I,5,0)),"",VLOOKUP($E55,表C_RAW!$C:$I,5,0)) -> 263970 | N55: =IF(ISERROR(VLOOKUP($E55,表C_RAW!$C:$I,6,0)),"",VLOOKUP($E55,表C_RAW!$C:$I,6,0)/100) -> -0.0883
D56: 3 | E56: =VLOOKUP($C$54&D56,表C_RAW!B:D,2,0) -> 9937 全國 | G56: =IF(ISERROR(VLOOKUP($E56,表B_RAW!$C:$I,4,0)),"",VLOOKUP($E56,表B_RAW!$C:$I,4,0)) -> 1801649 | H56: =IF(ISERROR(VLOOKUP($E56,表B_RAW!$C:$I,5,0)),"",VLOOKUP($E56,表B_RAW!$C:$I,5,0)) -> 1866399 | I56: =IF(ISERROR(VLOOKUP($E56,表B_RAW!$C:$I,6,0)),"",VLOOKUP($E56,表B_RAW!$C:$I,6,0)/100) -> -0.0347 | J56: =IF(ISERROR(VLOOKUP($E56,表A_RAW!$C:$I,5,0)),"",VLOOKUP($E56,表A_RAW!$C:$I,5,0)) -> 1971557 | K56: =IF(ISERROR(VLOOKUP($E56,表A_RAW!$C:$I,7,0)),"",VLOOKUP($E56,表A_RAW!$C:$I,7,0)) -> -0.08617960323 | L56: =IF(ISERROR(VLOOKUP($E56,表C_RAW!$C:$I,4,0)),"",VLOOKUP($E56,表C_RAW!$C:$I,4,0)) -> 1801649 | M56: =IF(ISERROR(VLOOKUP($E56,表C_RAW!$C:$I,5,0)),"",VLOOKUP($E56,表C_RAW!$C:$I,5,0)) -> 1971557 | N56: =IF(ISERROR(VLOOKUP($E56,表C_RAW!$C:$I,6,0)),"",VLOOKUP($E56,表C_RAW!$C:$I,6,0)/100) -> -0.0862
C57: =VLOOKUP(B54,表C_RAW!O:T,6,0) -> -1.62 | D57: 4 | E57: =VLOOKUP($C$54&D57,表C_RAW!B:D,2,0) -> 9926 新海 | G57: =IF(ISERROR(VLOOKUP($E57,表B_RAW!$C:$I,4,0)),"",VLOOKUP($E57,表B_RAW!$C:$I,4,0)) -> 258769 | H57: =IF(ISERROR(VLOOKUP($E57,表B_RAW!$C:$I,5,0)),"",VLOOKUP($E57,表B_RAW!$C:$I,5,0)) -> 218308 | I57: =IF(ISERROR(VLOOKUP($E57,表B_RAW!$C:$I,6,0)),"",VLOOKUP($E57,表B_RAW!$C:$I,6,0)/100) -> 0.1853 | J57: =IF(ISERROR(VLOOKUP($E57,表A_RAW!$C:$I,5,0)),"",VLOOKUP($E57,表A_RAW!$C:$I,5,0)) -> 258752 | K57: =IF(ISERROR(VLOOKUP($E57,表A_RAW!$C:$I,7,0)),"",VLOOKUP($E57,表A_RAW!$C:$I,7,0)) -> 6.569997527e-05 | L57: =IF(ISERROR(VLOOKUP($E57,表C_RAW!$C:$I,4,0)),"",VLOOKUP($E57,表C_RAW!$C:$I,4,0)) -> 258769 | M57: =IF(ISERROR(VLOOKUP($E57,表C_RAW!$C:$I,5,0)),"",VLOOKUP($E57,表C_RAW!$C:$I,5,0)) -> 258752 | N57: =IF(ISERROR(VLOOKUP($E57,表C_RAW!$C:$I,6,0)),"",VLOOKUP($E57,表C_RAW!$C:$I,6,0)/100) -> 0.0001
D58: 5 | E58: =VLOOKUP($C$54&D58,表C_RAW!B:D,2,0) -> 9908 大台北 | G58: =IF(ISERROR(VLOOKUP($E58,表B_RAW!$C:$I,4,0)),"",VLOOKUP($E58,表B_RAW!$C:$I,4,0)) -> 329343 | H58: =IF(ISERROR(VLOOKUP($E58,表B_RAW!$C:$I,5,0)),"",VLOOKUP($E58,表B_RAW!$C:$I,5,0)) -> 287754 | I58: =IF(ISERROR(VLOOKUP($E58,表B_RAW!$C:$I,6,0)),"",VLOOKUP($E58,表B_RAW!$C:$I,6,0)/100) -> 0.1445 | J58: =IF(ISERROR(VLOOKUP($E58,表A_RAW!$C:$I,5,0)),"",VLOOKUP($E58,表A_RAW!$C:$I,5,0)) -> 314939 | K58: =IF(ISERROR(VLOOKUP($E58,表A_RAW!$C:$I,7,0)),"",VLOOKUP($E58,表A_RAW!$C:$I,7,0)) -> 0.04573584091 | L58: =IF(ISERROR(VLOOKUP($E58,表C_RAW!$C:$I,4,0)),"",VLOOKUP($E58,表C_RAW!$C:$I,4,0)) -> 329343 | M58: =IF(ISERROR(VLOOKUP($E58,表C_RAW!$C:$I,5,0)),"",VLOOKUP($E58,表C_RAW!$C:$I,5,0)) -> 314939 | N58: =IF(ISERROR(VLOOKUP($E58,表C_RAW!$C:$I,6,0)),"",VLOOKUP($E58,表C_RAW!$C:$I,6,0)/100) -> 0.0457

Sheet 表A_RAW
D1: TSE新產業_名稱 | E1: TSE新產業_代碼 | F1: 單月營收(千元) | G1: 去年單月營收(千元) | H1: 本月較去年同期變動金額 | I1: 較去年同期變動比率(%) | J1: 產業位址 | K1: 產業家數 | L1: 排名(正向) | M1: 排名(反向) | N1: 排名(正向) | O1: 排名(反向) | P1: 產業營收 | Q1: 單月營收(千元) | R1: 去年單月營收(千元) | S1: 本月較去年同期變動金額 | T1: 較去年同期變動比率(%) | U1: 排名(正向) | V1: 排名(反向)
A2: 排名(正向) | B2: 排名(反向) | C2: 公司 | E2: 2026-01-30 | F2: 2026-01-30 | G2: 2026-01-30 | N2: =U2 -> 27 | O2: =V2 -> 8 | P2: =_xlfn.UNIQUE($D$3:$D$2500,FALSE,FALSE) -> 水泥工業 | Q2: =SUMIF($D:$D,$P2,F:F) -> 20162036 | R2: =SUMIF($D:$D,$P2,G:G) -> 20036404 | S2: =Q2-R2 -> 125632 | T2: =IF(VLOOKUP(P2,$D:$K,8,0)=1,"",S2/R2*100) -> 0.6270187006 | U2: =IF($T2="",0,_xlfn.RANK.EQ(T2,T:T)) -> 27 | V2: =IF($T2="",0,_xlfn.RANK.EQ(T2,T:T,1)) -> 8
A3: =$D3&L3 -> 水泥工業4 | B3: =$D3&M3 -> 水泥工業4 | C3: 1101 台泥 | D3: 水泥工業 | E3: M1100 | F3: 12252892 | G3: 12213350 | H3: =F3-G3 -> 39542 | I3: =IF(ISERROR((H3/G3)*100),"",(H3/(ABS(G3)))) -> 0.003237604752 | J3: =IF(E3="","",MATCH(E3,E:E,0)) -> 3 | K3: =COUNTIF(D:D,D3) -> 7 | L3: =IF(I3="","",RANK(I3,OFFSET(I$1,$J3-1,,$K3,),0)) -> 4 | M3: =IF(I3="","",RANK(I3,OFFSET(I$1,$J3-1,,$K3,),1)) -> 4 | N3: =U3 -> 25 | O3: =V3 -> 10 | P3: 食品工業 | Q3: =SUMIF($D:$D,$P3,F:F) -> 99345447 | R3: 96356113 | S3: =Q3-R3 -> 2989334 | T3: =IF(VLOOKUP(P3,$D:$K,8,0)=1,"",S3/R3*100) -> 3.102381268 | U3: =IF($T3="",0,_xlfn.RANK.EQ(T3,T:T)) -> 25 | V3: =IF($T3="",0,_xlfn.RANK.EQ(T3,T:T,1)) -> 10
A4: 水泥工業3 | B4: 水泥工業5 | C4: 1102 亞泥 | D4: 水泥工業 | E4: M1100 | F4: 5986964 | G4: 5877674 | H4: =F4-G4 -> 109290 | I4: =IF(ISERROR((H4/G4)*100),"",(H4/(ABS(G4)))) -> 0.01859409011 | J4: =IF(E4="","",MATCH(E4,E:E,0)) -> 3 | K4: =COUNTIF(D:D,D4) -> 7 | L4: =IF(I4="","",RANK(I4,OFFSET(I$1,$J4-1,,$K4,),0)) -> 3 | M4: =IF(I4="","",RANK(I4,OFFSET(I$1,$J4-1,,$K4,),1)) -> 5 | N4: 22 | O4: 13 | P4: 塑膠工業 | Q4: 81526757 | R4: 76953163 | S4: 4573594 | T4: 5.943347644 | U4: 22 | V4: 13
A5: 水泥工業5 | B5: 水泥工業3 | C5: 1103 嘉泥 | D5: 水泥工業 | E5: M1100 | F5: 256819 | G5: 268003 | H5: -11184 | I5: =IF(ISERROR((H5/G5)*100),"",(H5/(ABS(G5)))) -> -0.04173087615 | J5: 3 | K5: 7 | L5: =IF(I5="","",RANK(I5,OFFSET(I$1,$J5-1,,$K5,),0)) -> 5 | M5: 3 | N5: 28 | O5: 7 | P5: 紡織纖維 | Q5: 49614535 | R5: 50311582 | S5: -697047 | T5: -1.38546031 | U5: 28 | V5: 7
A6: 水泥工業2 | B6: 水泥工業6 | C6: 1104 環泥 | D6: 水泥工業 | E6: M1100 | F6: 718229 | G6: 687804 | H6: 30425 | I6: 0.04423498555 | J6: 3 | K6: 7 | L6: 2 | M6: 6 | N6: 12 | O6: 23 | P6: 電機機械 | Q6: 49101812 | R6: 42161729 | S6: 6940083 | T6: 16.46062238 | U6: 12 | V6: 23
A7: 水泥工業7 | B7: 水泥工業1 | C7: 1108 幸福 | D7: 水泥工業 | E7: M1100 | F7: 374664 | G7: 448229 | H7: -73565 | I7: -0.1641236957 | J7: 3 | K7: 7 | L7: 7 | M7: 1 | N7: 19 | O7: 16 | P7: 電器電纜 | Q7: 24771537 | R7: 22877519 | S7: 1894018 | T7: 8.27894843 | U7: 19 | V7: 16
A8: 水泥工業1 | B8: 水泥工業7 | C8: 1109 信大 | D8: 水泥工業 | E8: M1100 | F8: 373777 | G8: 304555 | H8: 69222 | I8: 0.2272889954 | J8: 3 | K8: 7 | L8: 1 | M8: 7 | N8: 14 | O8: 21 | P8: 化學工業 | Q8: 29949353 | R8: 25881121 | S8: 4068232 | T8: 15.71891728 | U8: 14 | V8: 21
A9: 水泥工業6 | B9: 水泥工業2 | C9: 1110 東泥 | D9: 水泥工業 | E9: M1100 | F9: 198691 | G9: 236789 | H9: -38098 | I9: -0.1608942983 | J9: 3 | K9: 7 | L9: 6 | M9: 2 | N9: 18 | O9: 17 | P9: 生技醫療業 | Q9: 28272824 | R9: 26000919 | S9: 2271905 | T9: 8.737787307 | U9: 18 | V9: 17
A10: 食品工業30 | B10: 食品工業4 | C10: 1201 味全 | D10: 食品工業 | E10: M1200 | F10: 1676231 | G10: 1913014 | H10: -236783 | I10: -0.1237748391 | J10: 10 | K10: 33 | L10: 30 | M10: 4 | N10: 11 | O10: 24 | P10: 玻璃陶瓷 | Q10: 4830965 | R10: 4115602 | S10: 715363 | T10: 17.38173419 | U10: 11 | V10: 24
A11: 食品工業31 | B11: 食品工業3 | C11: 1203 味王 | D11: 食品工業 | E11: M1200 | F11: 461815 | G11: 540262 | H11: -78447 | I11: -0.1452017725 | J11: 10 | K11: 33 | L11: 31 | M11: 3 | N11: 9 | O11: 26 | P11: 造紙工業 | Q11: 17112294 | R11: 14506646 | S11: 2605648 | T11: 17.96175353 | U11: 9 | V11: 26
A12: 食品工業15 | B12: 食品工業19 | C12: 1210 大成 | D12: 食品工業 | E12: M1200 | F12: 9726934 | G12: 8684590 | H12: 1042344 | I12: 0.1200222463 | J12: 10 | K12: 33 | L12: 15 | M12: 19 | N12: 21 | O12: 14 | P12: 鋼鐵工業 | Q12: 79087864 | R12: 74354462 | S12: 4733402 | T12: 6.365995897 | U12: 21 | V12: 14
A13: 食品工業16 | B13: 食品工業18 | C13: 1213 大飲 | D13: 食品工業 | E13: M1200 | F13: 24751 | G13: 22379 | H13: 2372 | I13: 0.1059922249 | J13: 10 | K13: 33 | L13: 16 | M13: 18 | N13: 20 | O13: 15 | P13: 橡膠工業 | Q13: 18103612 | R13: 16960831 | S13: 1142781 | T13: 6.737765384 | U13: 20 | V13: 15
A14: 食品工業14 | B14: 食品工業20 | C14: 1215 卜蜂 | D14: 食品工業 | E14: M1200 | F14: 2634849 | G14: 2331017 | H14: 303832 | I14: 0.1303431078 | J14: 10 | K14: 33 | L14: 14 | M14: 20 | N14: 23 | O14: 12 | P14: 汽車工業 | Q14: 65277076 | R14: 62369147 | S14: 2907929 | T14: 4.662447925 | U14: 23 | V14: 12
A15: 食品工業22 | B15: 食品工業12 | C15: 1216 統一 | D15: 食品工業 | E15: M1200 | F15: 66104462 | G15: 65755516 | H15: 348946 | I15: 0.005306718299 | J15: 10 | K15: 33 | L15: 22 | M15: 12 | N15: 7 | O15: 28 | P15: 半導體業 | Q15: 732978896 | R15: 555006101 | S15: 177972795 | T15: =IF(VLOOKUP(P15,$D:$K,8,0)=1,"",S15/R15*100) -> 32.06681777 | U15: 7 | V15: 28
A16: 食品工業24 | B16: 食品工業10 | C16: 1217 愛之味 | D16: 食品工業 | E16: M1200 | F16: 462021 | G16: 469134 | H16: -7113 | I16: -0.01516197931 | J16: 10 | K16: 33 | L16: 24 | M16: 10 | N16: 3 | O16: 32 | P16: 電腦及週邊設備業 | Q16: 1047774254 | R16: 683967796 | S16: 363806458 | T16: =IF(VLOOKUP(P16,$D:$K,8,0)=1,"",S16/R16*100) -> 53.19058297 | U16: 3 | V16: 32
A17: 食品工業19 | B17: 食品工業15 | C17: 1218 泰山 | D17: 食品工業 | E17: M1200 | F17: 943672 | G17: 887717 | H17: 55955 | I17: 0.06303247544 | J17: 10 | K17: 33 | L17: 19 | M17: 15 | N17: 15 | O17: 20 | P17: 光電業 | Q17: 114362584 | R17: 99096976 | S17: 15265608 | T17: 15.40471629 | U17: 15 | V17: 20
A18: 食品工業17 | B18: 食品工業17 | C18: 1219 福壽 | D18: 食品工業 | E18: M1200 | F18: 1271934 | G18: 1178879 | H18: 93055 | I18: 0.07893515789 | J18: 10 | K18: 33 | L18: 17 | M18: 17 | N18: 10 | O18: 25 | P18: 通訊網路業 | Q18: 116795549 | R18: 99176191 | S18: 17619358 | T18: 17.76571355 | U18: 10 | V18: 25
A19: 食品工業7 | B19: 食品工業27 | C19: 1220 台榮 | D19: 食品工業 | E19: M1200 | F19: 288493 | G19: 218906 | H19: 69587 | I19: 0.3178853024 | J19: 10 | K19: 33 | L19: 7 | M19: 27 | N19: 8 | O19: 27 | P19: 電子零組件 | Q19: 255208320 | R19: 203859043 | S19: 51349277 | T19: 25.18861869 | U19: 8 | V19: 27
A20: 食品工業9 | B20: 食品工業25 | C20: 1225 福懋油 | D20: 食品工業 | E20: M1200 | F20: 1313398 | G20: 1090255 | H20: 223143 | I20: 0.204670467 | J20: 10 | K20: 33 | L20: 9 | M20: 25 | N20: 2 | O20: 33 | P20: 電子通路業 | Q20: 432604697 | R20: 248586418 | S20: =Q20-R20 -> 184018279 | T20: 74.0258782 | U20: 2 | V20: 33
A21: 食品工業11 | B21: 食品工業23 | C21: 1227 佳格 | D21: 食品工業 | E21: M1200 | F21: 3796317 | G21: 3268631 | H21: 527686 | I21: 0.1614394528 | J21: 10 | K21: 33 | L21: 11 | M21: 23 | N21: 5 | O21: 30 | P21: 資訊服務業 | Q21: 20300243 | R21: 14970948 | S21: 5329295 | T21: 35.59757872 | U21: 5 | V21: 30
A22: 食品工業12 | B22: 食品工業22 | C22: 1229 聯華 | D22: 食品工業 | E22: M1200 | F22: 996429 | G22: 864201 | H22: 132228 | I22: 0.1530060715 | J22: 10 | K22: 33 | L22: 12 | M22: 22 | N22: 6 | O22: 29 | P22: 其他電子業 | Q22: 825073414 | R22: 612478079 | S22: 212595335 | T22: 34.71068472 | U22: 6 | V22: 29
A23: 食品工業23 | B23: 食品工業11 | C23: 1231 聯華食 | D23: 食品工業 | E23: M1200 | F23: 1271114 | G23: 1289469 | H23: -18355 | I23: -0.01423454151 | J23: 10 | K23: 33 | L23: 23 | M23: 11 | N23: 1 | O23: 34 | P23: 建材營造 | Q23: 54557667 | R23: 30582199 | S23: 23975468 | T23: 78.39680855 | U23: 1 | V23: 34
A24: 食品工業8 | B24: 食品工業26 | C24: 1232 大統益 | D24: 食品工業 | E24: M1200 | F24: 2213265 | G24: 1828340 | H24: 384925 | I24: 0.2105325049 | J24: 10 | K24: 33 | L24: 8 | M24: 26 | N24: 32 | O24: 3 | P24: 航運業 | Q24: 126948450 | R24: 143359910 | S24: -16411460 | T24: -11.44773319 | U24: 32 | V24: 3
A25: 食品工業28 | B25: 食品工業6 | C25: 1233 天仁 | D25: 食品工業 | E25: M1200 | F25: 198102 | G25: 220238 | H25: -22136 | I25: -0.1005094489 | J25: 10 | K25: 33 | L25: 28 | M25: 6 | N25: 31 | O25: 4 | P25: 觀光餐旅 | Q25: 16709766 | R25: 18354198 | S25: -1644432 | T25: -8.959432605 | U25: 31 | V25: 4
A26: 食品工業27 | B26: 食品工業7 | C26: 1234 黑松 | D26: 食品工業 | E26: M1200 | F26: 794428 | G26: 842531 | H26: -48103 | I26: -0.05709344819 | J26: 10 | K26: 33 | L26: 27 | M26: 7 | N26: 4 | O26: 31 | P26: 金融業 | Q26: 51970271 | R26: 35525165 | S26: 16445106 | T26: 46.2914275 | U26: 4 | V26: 31
A27: 食品工業1 | B27: 食品工業33 | C27: 1235 興泰 | D27: 食品工業 | E27: M1200 | F27: 23862 | G27: 8607 | H27: 15255 | I27: 1.772394563 | J27: 10 | K27: 33 | L27: 1 | M27: 33 | N27: 29 | O27: 6 | P27: 貿易百貨 | Q27: 40590833 | R27: 41212914 | S27: -622081 | T27: -1.509432213 | U27: 29 | V27: 6
A28: 食品工業21 | B28: 食品工業13 | C28: 1236 宏亞 | D28: 食品工業 | E28: M1200 | F28: 303656 | G28: 295078 | H28: 8578 | I28: 0.02907027972 | J28: 10 | K28: 33 | L28: 21 | M28: 13 | N28: 13 | O28: 22 | P28: 文化創意業 | Q28: 6362101 | R28: 5477509 | S28: 884592 | T28: 16.14953074 | U28: 13 | V28: 22
A29: 食品工業6 | B29: 食品工業28 | C29: 1256 鮮活果汁-KY | D29: 食品工業 | E29: M1200 | F29: 448137 | G29: 328850 | H29: 119287 | I29: 0.362739851 | J29: 10 | K29: 33 | L29: 6 | M29: 28 | N29: 24 | O29: 11 | P29: 農業科技 | Q29: 396942 | R29: 383114 | S29: 13828 | T29: 3.609369535 | U29: 24 | V29: 11
A30: 食品工業20 | B30: 食品工業14 | C30: 1264 德麥 | D30: 食品工業 | E30: M1200 | F30: 720821 | G30: 681442 | H30: 39379 | I30: 0.05778775009 | J30: 10 | K30: 33 | L30: 20 | M30: 14 | N30: =U30 -> 33 | O30: =V30 -> 2 | P30: 綠能環保 | Q30: =SUMIF($D:$D,$P30,F:F) -> 9461169 | R30: =SUMIF($D:$D,$P30,G:G) -> 10753026 | S30: =Q30-R30 -> -1291857 | T30: -12.01389265 | U30: 33 | V30: 2
A31: 食品工業3 | B31: 食品工業31 | C31: 1294 漢田生技 | D31: 食品工業 | E31: M1200 | F31: 90427 | G31: 41491 | H31: 48936 | I31: 1.179436504 | J31: 10 | K31: 33 | L31: 3 | M31: 31 | N31: 16 | O31: 19 | P31: 數位雲端 | Q31: 20994337 | R31: 19007916 | S31: 1986421 | T31: 10.45049336 | U31: 16 | V31: 19
A32: 食品工業13 | B32: 食品工業21 | C32: 1295 生合 | D32: 食品工業 | E32: M1200 | F32: 81085 | G32: 70889 | H32: 10196 | I32: 0.1438304956 | J32: 10 | K32: 33 | L32: 13 | M32: 21 | N32: 34 | O32: 1 | P32: 運動休閒 | Q32: 54974397 | R32: 63392104 | S32: -8417707 | T32: -13.27879415 | U32: 34 | V32: 1
A33: 食品工業26 | B33: 食品工業8 | C33: 1702 南僑 | D33: 食品工業 | E33: M1200 | F33: 2104739 | G33: 2169615 | H33: -64876 | I33: -0.0299020794 | J33: 10 | K33: 33 | L33: 26 | M33: 8 | N33: 26 | O33: 9 | P33: 居家生活 | Q33: 23726462 | R33: 23236752 | S33: 489710 | T33: 2.107480426 | U33: 26 | V33: 9
A34: 食品工業32 | B34: 食品工業2 | C34: 1737 臺鹽 | D34: 食品工業 | E34: M1200 | F34: 277168 | G34: 327834 | H34: -50666 | I34: -0.1545477284 | J34: 10 | K34: 33 | L34: 32 | M34: 2 | N34: 30 | O34: 5 | P34: 油電燃氣業 | Q34: 64507216 | R34: 65569772 | S34: -1062556 | T34: -1.620496713 | U34: 30 | V34: 5
A35: 食品工業29 | B35: 食品工業5 | C35: 1796 金穎生技 | D35: 食品工業 | E35: M1200 | F35: 54413 | G35: 61025 | H35: -6612 | I35: -0.1083490373 | J35: 10 | K35: 33 | L35: 29 | M35: 5 | N35: 17 | O35: 18 | P35: 其他 | Q35: 54619731 | R35: 49971860 | S35: 4647871 | T35: 9.30097659 | U35: 17 | V35: 18
A36: 食品工業2 | B36: 食品工業32 | C36: 3054 立萬利 | D36: 食品工業 | E36: M1200 | F36: 13427 | G36: 6052 | H36: 7375 | I36: 1.21860542 | J36: 10 | K36: 33 | L36: 2 | M36: 32 | N36: 0 | O36: 0 | P36: 存託憑證 | W36: *存託憑證不納入統計
A37: 食品工業25 | B37: 食品工業9 | C37: 4205 中華食 | D37: 食品工業 | E37: M1200 | F37: 173777 | G37: 178851 | H37: -5074 | I37: -0.02836998395 | J37: 10 | K37: 33 | L37: 25 | M37: 9 | N37: 0 | O37: 0 | P37: 0
A38: 食品工業10 | B38: 食品工業24 | C38: 4207 環泰 | D38: 食品工業 | E38: M1200 | F38: 495326 | G38: 422493 | H38: 72833 | I38: 0.172388655 | J38: 10 | K38: 33 | L38: 10 | M38: 24 | N38: 0 | O38: 0
A39: 食品工業18 | B39: 食品工業16 | C39: 6846 綠茵 | D39: 食品工業 | E39: M1200 | F39: 55897 | G39: 52565 | H39: 3332 | I39: 0.06338818606 | J39: 10 | K39: 33 | L39: 18 | M39: 16 | N39: 0 | O39: 0
A40: 食品工業5 | B40: 食品工業29 | C40: 7743 金利食安 | D40: 食品工業 | E40: M1200 | F40: 46325 | G40: 31887 | H40: 14438 | I40: 0.452786402 | J40: 10 | K40: 33 | L40: 5 | M40: 29 | N40: 0 | O40: 0
A41: 食品工業4 | B41: 食品工業30 | C41: 7780 大研生醫* | D41: 食品工業 | E41: M1200 | F41: 138385 | G41: 85763 | H41: 52622 | I41: 0.6135746184 | J41: 10 | K41: 33 | L41: 4 | M41: 30 | N41: 0 | O41: 0
A42: 食品工業33 | B42: 食品工業1 | C42: 7791 皇家可口 | D42: 食品工業 | E42: M1200 | F42: 139787 | G42: 188592 | H42: -48805 | I42: -0.2587861627 | J42: 10 | K42: 33 | L42: 33 | M42: 1 | N42: 0 | O42: 0
A43: 塑膠工業15 | B43: 塑膠工業11 | C43: 1301 台塑 | D43: 塑膠工業 | E43: M1300 | F43: 13891082 | G43: 13980022 | H43: -88940 | I43: -0.006361935625 | J43: 43 | K43: 25 | L43: 15 | M43: 11 | N43: 0 | O43: 0
A44: 塑膠工業7 | B44: 塑膠工業19 | C44: 1303 南亞 | D44: 塑膠工業 | E44: M1300 | F44: 22872625 | G44: 20458289 | H44: 2414336 | I44: 0.118012606 | J44: 43 | K44: 25 | L44: 7 | M44: 19 | N44: 0 | O44: 0
A45: 塑膠工業16 | B45: 塑膠工業10 | C45: 1304 台聚 | D45: 塑膠工業 | E45: M1300 | F45: 3583459 | G45: 3685781 | H45: -102322 | I45: -0.02776128045 | J45: 43 | K45: 25 | L45: 16 | M45: 10 | N45: 0 | O45: 0
A46: 塑膠工業11 | B46: 塑膠工業15 | C46: 1305 華夏 | D46: 塑膠工業 | E46: M1300 | F46: 806175 | G46: 775346 | H46: 30829 | I46: 0.03976160321 | J46: 43 | K46: 25 | L46: 11 | M46: 15 | N46: 0 | O46: 0
A47: 塑膠工業6 | B47: 塑膠工業20 | C47: 1307 三芳 | D47: 塑膠工業 | E47: M1300 | F47: 1151903 | G47: 959988 | H47: 191915 | I47: 0.1999139573 | J47: 43 | K47: 25 | L47: 6 | M47: 20 | N47: 0 | O47: 0
A48: 塑膠工業13 | B48: 塑膠工業13 | C48: 1308 亞聚 | D48: 塑膠工業 | E48: M1300 | F48: 448082 | G48: 437450 | H48: 10632 | I48: 0.02430449194 | J48: 43 | K48: 25 | L48: 13 | M48: 13 | N48: 0 | O48: 0
A49: 塑膠工業18 | B49: 塑膠工業8 | C49: 1309 台達化 | D49: 塑膠工業 | E49: M1300 | F49: 1135298 | G49: 1285028 | H49: -149730 | I49: -0.1165188618 | J49: 43 | K49: 25 | L49: 18 | M49: 8 | N49: 0 | O49: 0
A50: 塑膠工業20 | B50: 塑膠工業6 | C50: 1310 台苯 | D50: 塑膠工業 | E50: M1300 | F50: 705741 | G50: 877555 | H50: -171814 | I50: -0.1957871586 | J50: 43 | K50: 25 | L50: 20 | M50: 6 | N50: 0 | O50: 0
A51: 塑膠工業1 | B51: 塑膠工業25 | C51: 1312 國喬 | D51: 塑膠工業 | E51: M1300 | F51: 2321933 | G51: 1259065 | H51: 1062868 | I51: 0.8441724613 | J51: 43 | K51: 25 | L51: 1 | M51: 25 | N51: 0 | O51: 0
A52: 塑膠工業5 | B52: 塑膠工業21 | C52: 1313 聯成 | D52: 塑膠工業 | E52: M1300 | F52: 5300917 | G52: 4384870 | H52: 916047 | I52: 0.2089108685 | J52: 43 | K52: 25 | L52: 5 | M52: 21 | N52: 0 | O52: 0
A53: 塑膠工業23 | B53: 塑膠工業3 | C53: 1314 中石化 | D53: 塑膠工業 | E53: M1300 | F53: 1589699 | G53: 2362119 | H53: -772420 | I53: -0.3270030003 | J53: 43 | K53: 25 | L53: 23 | M53: 3 | N53: 0 | O53: 0
A54: 塑膠工業24 | B54: 塑膠工業2 | C54: 1315 達新 | D54: 塑膠工業 | E54: M1300 | F54: 126246 | G54: 202243 | H54: -75997 | I54: -0.3757707312 | J54: 43 | K54: 25 | L54: 24 | M54: 2 | N54: 0 | O54: 0
A55: 塑膠工業14 | B55: 塑膠工業12 | C55: 1321 大洋 | D55: 塑膠工業 | E55: M1300 | F55: 330086 | G55: 326211 | H55: 3875 | I55: 0.01187881463 | J55: 43 | K55: 25 | L55: 14 | M55: 12 | N55: 0 | O55: 0
A56: 塑膠工業17 | B56: 塑膠工業9 | C56: 1323 永裕 | D56: 塑膠工業 | E56: M1300 | F56: 179252 | G56: 189115 | H56: -9863 | I56: -0.0521534516 | J56: 43 | K56: 25 | L56: 17 | M56: 9 | N56: 0 | O56: 0
A57: 塑膠工業8 | B57: 塑膠工業18 | C57: 1324 地球 | D57: 塑膠工業 | E57: M1300 | F57: 59958 | G57: 54847 | H57: 5111 | I57: 0.09318650063 | J57: 43 | K57: 25 | L57: 8 | M57: 18 | N57: 0 | O57: 0
A58: 塑膠工業19 | B58: 塑膠工業7 | C58: 1325 恒大 | D58: 塑膠工業 | E58: M1300 | F58: 24322 | G58: 29223 | H58: -4901 | I58: -0.1677103651 | J58: 43 | K58: 25 | L58: 19 | M58: 7 | N58: 0 | O58: 0
A59: 塑膠工業10 | B59: 塑膠工業16 | C59: 1326 台化 | D59: 塑膠工業 | E59: M1300 | F59: 25040014 | G59: 24019167 | H59: 1020847 | I59: 0.04250134903 | J59: 43 | K59: 25 | L59: 10 | M59: 16 | N59: 0 | O59: 0
A60: 塑膠工業22 | B60: 塑膠工業4 | C60: 1337 再生-KY | D60: 塑膠工業 | E60: M1300 | F60: 54359 | G60: 75613 | H60: -21254 | I60: -0.2810892307 | J60: 43 | K60: 25 | L60: 22 | M60: 4 | N60: 0 | O60: 0
A61: 塑膠工業25 | B61: 塑膠工業1 | C61: 1340 勝悅-KY | D61: 塑膠工業 | E61: M1300 | F61: 2967 | G61: 16514 | H61: -13547 | I61: -0.8203342618 | J61: 43 | K61: 25 | L61: 25 | M61: 1 | N61: 0 | O61: 0
A62: 塑膠工業9 | B62: 塑膠工業17 | C62: 1341 富林-KY | D62: 塑膠工業 | E62: M1300 | F62: 248122 | G62: 234302 | H62: 13820 | I62: 0.05898370479 | J62: 43 | K62: 25 | L62: 9 | M62: 17 | N62: 0 | O62: 0
A63: 塑膠工業3 | B63: 塑膠工業23 | C63: 4303 信立 | D63: 塑膠工業 | E63: M1300 | F63: 82925 | G63: 63992 | H63: 18933 | I63: 0.2958651081 | J63: 43 | K63: 25 | L63: 3 | M63: 23 | N63: 0 | O63: 0
A64: 塑膠工業21 | B64: 塑膠工業5 | C64: 4304 勝昱 | D64: 塑膠工業 | E64: M1300 | F64: 25027 | G64: 34196 | H64: -9169 | I64: -0.2681307755 | J64: 43 | K64: 25 | L64: 21 | M64: 5 | N64: 0 | O64: 0
A65: 塑膠工業2 | B65: 塑膠工業24 | C65: 4305 世坤 | D65: 塑膠工業 | E65: M1300 | F65: 95641 | G65: 73762 | H65: 21879 | I65: 0.2966161438 | J65: 43 | K65: 25 | L65: 2 | M65: 24 | N65: 0 | O65: 0
A66: 塑膠工業4 | B66: 塑膠工業22 | C66: 4306 炎洲 | D66: 塑膠工業 | E66: M1300 | F66: 1225902 | G66: 949610 | H66: 276292 | I66: 0.2909531281 | J66: 43 | K66: 25 | L66: 4 | M66: 22 | N66: 0 | O66: 0
A67: =$D67&L67 -> 塑膠工業12 | B67: =$D67&M67 -> 塑膠工業14 | C67: 9950 萬國通 | D67: 塑膠工業 | E67: M1300 | F67: 225022 | G67: 218855 | H67: 6167 | I67: 0.02817847433 | J67: =IF(E67="","",MATCH(E67,E:E,0)) -> 43 | K67: =COUNTIF(D:D,D67) -> 25 | L67: 12 | M67: 14 | N67: 0 | O67: 0
A68: 紡織纖維28 | B68: 紡織纖維25 | C68: 1402 遠東新 | D68: 紡織纖維 | E68: M1400 | F68: 21993415 | G68: 22045002 | H68: =F68-G68 -> -51587 | I68: =IF(ISERROR((H68/G68)*100),"",(H68/(ABS(G68)))) -> -0.002340076903 | J68: 68 | K68: 52 | L68: =IF(I68="","",RANK(I68,OFFSET(I$1,$J68-1,,$K68,),0)) -> 28 | M68: =IF(I68="","",RANK(I68,OFFSET(I$1,$J68-1,,$K68,),1)) -> 25 | N68: 0 | O68: 0
A69: 紡織纖維29 | B69: 紡織纖維24 | C69: 1409 新纖 | D69: 紡織纖維 | E69: M1400 | F69: 3334219 | G69: 3387023 | H69: -52804 | I69: -0.01559009195 | J69: 68 | K69: 52 | L69: 29 | M69: 24 | N69: 0 | O69: 0
A70: 紡織纖維12 | B70: 紡織纖維41 | C70: 1410 南染 | D70: 紡織纖維 | E70: M1400 | F70: 14210 | G70: 11987 | H70: 2223 | I70: 0.1854509051 | J70: 68 | K70: 52 | L70: 12 | M70: 41 | N70: 0 | O70: 0
A71: 紡織纖維48 | B71: 紡織纖維5 | C71: 1413 宏洲 | D71: 紡織纖維 | E71: M1400 | F71: 144951 | G71: 196446 | H71: -51495 | I71: -0.2621331053 | J71: 68 | K71: 52 | L71: 48 | M71: 5 | N71: 0 | O71: 0
A72: 紡織纖維23 | B72: 紡織纖維30 | C72: 1414 東和 | D72: 紡織纖維 | E72: M1400 | F72: 41048 | G72: 39790 | H72: 1258 | I72: 0.03161598392 | J72: 68 | K72: 52 | L72: 23 | M72: 30 | N72: 0 | O72: 0
A73: 紡織纖維3 | B73: 紡織纖維50 | C73: 1417 嘉裕 | D73: 紡織纖維 | E73: M1400 | F73: 30235 | G73: 19960 | H73: 10275 | I73: 0.5147795591 | J73: 68 | K73: 52 | L73: 3 | M73: 50 | N73: 0 | O73: 0
A74: 紡織纖維35 | B74: 紡織纖維18 | C74: 1418 東華 | D74: 紡織纖維 | E74: M1400 | F74: 613 | G74: 679 | H74: -66 | I74: -0.0972017673 | J74: 68 | K74: 52 | L74: 35 | M74: 18 | N74: 0 | O74: 0
A75: 紡織纖維4 | B75: 紡織纖維49 | C75: 1419 新紡 | D75: 紡織纖維 | E75: M1400 | F75: 509836 | G75: 337096 | H75: 172740 | I75: 0.5124356266 | J75: 68 | K75: 52 | L75: 4 | M75: 49 | N75: 0 | O75: 0
A76: 紡織纖維38 | B76: 紡織纖維15 | C76: 1423 利華 | D76: 紡織纖維 | E76: M1400 | F76: 5852 | G76: 6712 | H76: -860 | I76: -0.1281287247 | J76: 68 | K76: 52 | L76: 38 | M76: 15 | N76: 0 | O76: 0
A77: 紡織纖維21 | B77: 紡織纖維32 | C77: 1434 福懋 | D77: 紡織纖維 | E77: M1400 | F77: 2426027 | G77: 2308607 | H77: 117420 | I77: 0.05086184006 | J77: 68 | K77: 52 | L77: 21 | M77: 32 | N77: 0 | O77: 0
A78: 紡織纖維42 | B78: 紡織纖維11 | C78: 1440 南紡 | D78: 紡織纖維 | E78: M1400 | F78: 1103124 | G78: 1314202 | H78: -211078 | I78: -0.1606130564 | J78: 68 | K78: 52 | L78: 42 | M78: 11 | N78: 0 | O78: 0
A79: 紡織纖維39 | B79: 紡織纖維14 | C79: 1441 大東 | D79: 紡織纖維 | E79: M1400 | F79: 117500 | G79: 134774 | H79: -17274 | I79: -0.1281701218 | J79: 68 | K79: 52 | L79: 39 | M79: 14 | N79: 0 | O79: 0
A80: 紡織纖維43 | B80: 紡織纖維10 | C80: 1444 力麗 | D80: 紡織纖維 | E80: M1400 | F80: 527231 | G80: 631626 | H80: -104395 | I80: -0.16527977 | J80: 68 | K80: 52 | L80: 43 | M80: 10 | N80: 0 | O80: 0
A81: 紡織纖維34 | B81: 紡織纖維19 | C81: 1445 大宇 | D81: 紡織纖維 | E81: M1400 | F81: 73686 | G81: 79857 | H81: -6171 | I81: -0.07727563019 | J81: 68 | K81: 52 | L81: 34 | M81: 19 | N81: 0 | O81: 0
A82: 紡織纖維52 | B82: 紡織纖維1 | C82: 1446 宏和 | D82: 紡織纖維 | E82: M1400 | F82: 6715 | G82: 143087 | H82: -136372 | I82: -0.9530705096 | J82: 68 | K82: 52 | L82: 52 | M82: 1 | N82: 0 | O82: 0
A83: 紡織纖維22 | B83: 紡織纖維31 | C83: 1447 力鵬 | D83: 紡織纖維 | E83: M1400 | F83: 2477005 | G83: 2368662 | H83: 108343 | I83: 0.04574016892 | J83: 68 | K83: 52 | L83: 22 | M83: 31 | N83: 0 | O83: 0
A84: 紡織纖維14 | B84: 紡織纖維39 | C84: 1449 佳和 | D84: 紡織纖維 | E84: M1400 | F84: 228333 | G84: 207114 | H84: 21219 | I84: 0.1024508242 | J84: 68 | K84: 52 | L84: 14 | M84: 39 | N84: 0 | O84: 0
A85: 紡織纖維10 | B85: 紡織纖維43 | C85: 1451 年興 | D85: 紡織纖維 | E85: M1400 | F85: 550618 | G85: 458452 | H85: 92166 | I85: 0.2010374041 | J85: 68 | K85: 52 | L85: 10 | M85: 43 | N85: 0 | O85: 0
A86: 紡織纖維37 | B86: 紡織纖維16 | C86: 1452 宏益 | D86: 紡織纖維 | E86: M1400 | F86: 91925 | G86: 105403 | H86: -13478 | I86: -0.1278711232 | J86: 68 | K86: 52 | L86: 37 | M86: 16 | N86: 0 | O86: 0
A87: 紡織纖維33 | B87: 紡織纖維20 | C87: 1454 台富 | D87: 紡織纖維 | E87: M1400 | F87: 108456 | G87: 117467 | H87: -9011 | I87: -0.07671090604 | J87: 68 | K87: 52 | L87: 33 | M87: 20 | N87: 0 | O87: 0
A88: 紡織纖維47 | B88: 紡織纖維6 | C88: 1455 集盛 | D88: 紡織纖維 | E88: M1400 | F88: 417747 | G88: 547969 | H88: -130222 | I88: -0.2376448303 | J88: 68 | K88: 52 | L88: 47 | M88: 6 | N88: 0 | O88: 0
A89: 紡織纖維46 | B89: 紡織纖維7 | C89: 1457 宜進 | D89: 紡織纖維 | E89: M1400 | F89: 218095 | G89: 284681 | H89: -66586 | I89: -0.2338968881 | J89: 68 | K89: 52 | L89: 46 | M89: 7 | N89: 0 | O89: 0
A90: 紡織纖維41 | B90: 紡織纖維12 | C90: 1459 聯發 | D90: 紡織纖維 | E90: M1400 | F90: 82826 | G90: 98437 | H90: -15611 | I90: -0.158588742 | J90: 68 | K90: 52 | L90: 41 | M90: 12 | N90: 0 | O90: 0
A91: 紡織纖維30 | B91: 紡織纖維23 | C91: 1460 宏遠 | D91: 紡織纖維 | E91: M1400 | F91: 662268 | G91: 683189 | H91: -20921 | I91: -0.03062256564 | J91: 68 | K91: 52 | L91: 30 | M91: 23 | N91: 0 | O91: 0
A92: 紡織纖維51 | B92: 紡織纖維2 | C92: 1463 強盛新 | D92: 紡織纖維 | E92: M1400 | F92: 27016 | G92: 450723 | H92: -423707 | I92: -0.9400607468 | J92: 68 | K92: 52 | L92: 51 | M92: 2 | N92: 0 | O92: 0
A93: 紡織纖維24 | B93: 紡織纖維29 | C93: 1464 得力 | D93: 紡織纖維 | E93: M1400 | F93: 1061584 | G93: 1036037 | H93: 25547 | I93: 0.02465838575 | J93: 68 | K93: 52 | L93: 24 | M93: 29 | N93: 0 | O93: 0
A94: 紡織纖維26 | B94: 紡織纖維27 | C94: 1465 偉全 | D94: 紡織纖維 | E94: M1400 | F94: 43758 | G94: 42887 | H94: 871 | I94: 0.0203091846 | J94: 68 | K94: 52 | L94: 26 | M94: 27 | N94: =U94 -> 0 | O94: =V94 -> 0
A95: 紡織纖維40 | B95: 紡織纖維13 | C95: 1466 聚隆 | D95: 紡織纖維 | E95: M1400 | F95: 194990 | G95: 223697 | H95: -28707 | I95: -0.128329839 | J95: 68 | K95: 52 | L95: 40 | M95: 13 | N95: 0 | O95: 0
A96: 紡織纖維32 | B96: 紡織纖維21 | C96: 1467 南緯 | D96: 紡織纖維 | E96: M1400 | F96: 345912 | G96: 372010 | H96: -26098 | I96: -0.07015402812 | J96: 68 | K96: 52 | L96: 32 | M96: 21 | N96: 0 | O96: 0
A97: 紡織纖維7 | B97: 紡織纖維46 | C97: 1468 昶和 | D97: 紡織纖維 | E97: M1400 | F97: 74788 | G97: 55590 | H97: 19198 | I97: 0.3453498831 | J97: 68 | K97: 52 | L97: 7 | M97: 46 | N97: 0 | O97: 0
A98: 紡織纖維16 | B98: 紡織纖維37 | C98: 1470 大統新創 | D98: 紡織纖維 | E98: M1400 | F98: 73862 | G98: 67897 | H98: 5965 | I98: 0.08785366069 | J98: 68 | K98: 52 | L98: 16 | M98: 37 | N98: 0 | O98: 0
A99: 紡織纖維36 | B99: 紡織纖維17 | C99: 1473 台南 | D99: 紡織纖維 | E99: M1400 | F99: 696586 | G99: 788461 | H99: -91875 | I99: -0.1165244698 | J99: 68 | K99: 52 | L99: 36 | M99: 17 | N99: 0 | O99: 0
A100: 紡織纖維15 | B100: 紡織纖維38 | C100: 1474 弘裕 | D100: 紡織纖維 | E100: M1400 | F100: 239437 | G100: 218813 | H100: 20624 | I100: 0.09425399771 | J100: 68 | K100: 52 | L100: 15 | M100: 38 | N100: 0 | O100: 0
A101: 紡織纖維31 | B101: 紡織纖維22 | C101: 1475 業旺 | D101: 紡織纖維 | E101: M1400 | F101: 129122 | G101: 135817 | H101: -6695 | I101: -0.04929427097 | J101: 68 | K101: 52 | L101: 31 | M101: 22 | N101: 0 | O101: 0
A102: 紡織纖維18 | B102: 紡織纖維35 | C102: 1476 儒鴻 | D102: 紡織纖維 | E102: M1400 | F102: 3581621 | G102: 3330196 | H102: 251425 | I102: 0.07549855924 | J102: 68 | K102: 52 | L102: 18 | M102: 35 | N102: 0 | O102: 0
A103: 紡織纖維45 | B103: 紡織纖維8 | C103: 1477 聚陽 | D103: 紡織纖維 | E103: M1400 | F103: 2828261 | G103: 3500665 | H103: -672404 | I103: -0.1920789336 | J103: 68 | K103: 52 | L103: 45 | M103: 8 | N103: 0 | O103: 0
A104: 紡織纖維5 | B104: 紡織纖維48 | C104: 4401 東隆興 | D104: 紡織纖維 | E104: M1400 | F104: 325432 | G104: 223081 | H104: 102351 | I104: 0.4588064425 | J104: 68 | K104: 52 | L104: 5 | M104: 48 | N104: 0 | O104: 0
A105: 紡織纖維49 | B105: 紡織纖維4 | C105: 4402 郡都開發 | D105: 紡織纖維 | E105: M1400 | F105: 1853 | G105: 2521 | H105: -668 | I105: -0.2649742166 | J105: 68 | K105: 52 | L105: 49 | M105: 4 | N105: 0 | O105: 0
A106: 紡織纖維20 | B106: 紡織纖維33 | C106: 4406 新昕纖 | D106: 紡織纖維 | E106: M1400 | F106: 38958 | G106: 37066 | H106: 1892 | I106: 0.05104408353 | J106: 68 | K106: 52 | L106: 20 | M106: 33 | N106: 0 | O106: 0
A107: 紡織纖維1 | B107: 紡織纖維52 | C107: 4413 飛寶企業 | D107: 紡織纖維 | E107: M1400 | F107: 67093 | G107: 25476 | H107: 41617 | I107: 1.6335767 | J107: 68 | K107: 52 | L107: 1 | M107: 52 | N107: 0 | O107: 0
A108: 紡織纖維27 | B108: 紡織纖維26 | C108: 4414 如興 | D108: 紡織纖維 | E108: M1400 | F108: 1163385 | G108: 1148538 | H108: 14847 | I108: 0.01292686877 | J108: 68 | K108: 52 | L108: 27 | M108: 26 | N108: 0 | O108: 0
A109: 紡織纖維19 | B109: 紡織纖維34 | C109: 4417 金洲 | D109: 紡織纖維 | E109: M1400 | F109: 322651 | G109: 305154 | H109: 17497 | I109: 0.05733826199 | J109: 68 | K109: 52 | L109: 19 | M109: 34 | N109: 0 | O109: 0
A110: 紡織纖維17 | B110: 紡織纖維36 | C110: 4420 光明 | D110: 紡織纖維 | E110: M1400 | F110: 75075 | G110: 69568 | H110: 5507 | I110: 0.0791599586 | J110: 68 | K110: 52 | L110: 17 | M110: 36 | N110: 0 | O110: 0
A111: 紡織纖維13 | B111: 紡織纖維40 | C111: 4426 利勤 | D111: 紡織纖維 | E111: M1400 | F111: 79261 | G111: 68360 | H111: 10901 | I111: 0.1594645992 | J111: 68 | K111: 52 | L111: 13 | M111: 40 | N111: 0 | O111: 0
A112: 紡織纖維50 | B112: 紡織纖維3 | C112: 4432 銘旺實 | D112: 紡織纖維 | E112: M1400 | F112: 89402 | G112: 156235 | H112: -66833 | I112: -0.4277722661 | J112: 68 | K112: 52 | L112: 50 | M112: 3 | N112: 0 | O112: 0
A113: 紡織纖維9 | B113: 紡織纖維44 | C113: 4433 興采 | D113: 紡織纖維 | E113: M1400 | F113: 278459 | G113: 224529 | H113: 53930 | I113: 0.2401916902 | J113: 68 | K113: 52 | L113: 9 | M113: 44 | N113: 0 | O113: 0
A114: 紡織纖維25 | B114: 紡織纖維28 | C114: 4438 廣越 | D114: 紡織纖維 | E114: M1400 | F114: 1039301 | G114: 1015421 | H114: 23880 | I114: 0.02351733911 | J114: 68 | K114: 52 | L114: 25 | M114: 28 | N114: 0 | O114: 0
A115: 紡織纖維11 | B115: 紡織纖維42 | C115: 4439 冠星-KY | D115: 紡織纖維 | E115: M1400 | F115: 543689 | G115: 454519 | H115: 89170 | I115: 0.196185418 | J115: 68 | K115: 52 | L115: 11 | M115: 42 | N115: 0 | O115: 0
A116: 紡織纖維8 | B116: 紡織纖維45 | C116: 4440 宜新實業 | D116: 紡織纖維 | E116: M1400 | F116: 105543 | G116: 80950 | H116: 24593 | I116: 0.3038048178 | J116: 68 | K116: 52 | L116: 8 | M116: 45 | N116: 0 | O116: 0
A117: 紡織纖維2 | B117: 紡織纖維51 | C117: 4441 振大環球 | D117: 紡織纖維 | E117: M1400 | F117: 701250 | G117: 457969 | H117: 243281 | I117: 0.5312171785 | J117: 68 | K117: 52 | L117: 2 | M117: 51 | N117: 0 | O117: 0
A118: 紡織纖維44 | B118: 紡織纖維9 | C118: 4442 竣邦-KY | D118: 紡織纖維 | E118: M1400 | F118: 112346 | G118: 137199 | H118: -24853 | I118: -0.1811456352 | J118: 68 | K118: 52 | L118: 44 | M118: 9 | N118: 0 | O118: 0
A119: 紡織纖維6 | B119: 紡織纖維47 | C119: 6506 雙邦 | D119: 紡織纖維 | E119: M1400 | F119: 207965 | G119: 153981 | H119: 53984 | I119: 0.350588709 | J119: 68 | K119: 52 | L119: 6 | M119: 47 | N119: 0 | O119: 0
A120: 電機機械59 | B120: 電機機械40 | C120: 1503 士電 | D120: 電機機械 | E120: M1500 | F120: 4483948 | G120: 4248122 | H120: 235826 | I120: 0.0555130008 | J120: 120 | K120: 98 | L120: 59 | M120: 40 | N120: 0 | O120: 0
A121: 電機機械53 | B121: 電機機械46 | C121: 1504 東元 | D121: 電機機械 | E121: M1500 | F121: 4643699 | G121: 4303352 | H121: 340347 | I121: 0.07908881263 | J121: 120 | K121: 98 | L121: 53 | M121: 46 | N121: 0 | O121: 0
A122: 電機機械30 | B122: 電機機械69 | C122: 1506 正道 | D122: 電機機械 | E122: M1500 | F122: 95635 | G122: 74550 | H122: 21085 | I122: 0.2828303152 | J122: 120 | K122: 98 | L122: 30 | M122: 69 | N122: 0 | O122: 0
A123: 電機機械50 | B123: 電機機械49 | C123: 1513 中興電 | D123: 電機機械 | E123: M1500 | F123: 2133688 | G123: 1929217 | H123: 204471 | I123: 0.105986522 | J123: 120 | K123: 98 | L123: 50 | M123: 49 | N123: 0 | O123: 0
A124: 電機機械13 | B124: 電機機械86 | C124: 1514 亞力 | D124: 電機機械 | E124: M1500 | F124: 965888 | G124: 571823 | H124: 394065 | I124: 0.6891380724 | J124: 120 | K124: 98 | L124: 13 | M124: 86 | N124: 0 | O124: 0
A125: 電機機械26 | B125: 電機機械73 | C125: 1515 力山 | D125: 電機機械 | E125: M1500 | F125: 450296 | G125: 335834 | H125: 114462 | I125: 0.3408291001 | J125: 120 | K125: 98 | L125: 26 | M125: 73 | N125: 0 | O125: 0
A126: 電機機械67 | B126: 電機機械32 | C126: 1517 利奇 | D126: 電機機械 | E126: M1500 | F126: 181152 | G126: 178660 | H126: 2492 | I126: 0.01394828165 | J126: 120 | K126: 98 | L126: 67 | M126: 32 | N126: 0 | O126: 0
A127: 電機機械55 | B127: 電機機械44 | C127: 1519 華城 | D127: 電機機械 | E127: M1500 | F127: 1356774 | G127: 1275049 | H127: 81725 | I127: 0.06409557593 | J127: 120 | K127: 98 | L127: 55 | M127: 44 | N127: 0 | O127: 0
A128: 電機機械75 | B128: 電機機械24 | C128: 1526 日馳 | D128: 電機機械 | E128: M1500 | F128: 55083 | G128: 60941 | H128: -5858 | I128: -0.09612576098 | J128: 120 | K128: 98 | L128: 75 | M128: 24 | N128: 0 | O128: 0
A129: 電機機械82 | B129: 電機機械17 | C129: 1527 鑽全 | D129: 電機機械 | E129: M1500 | F129: 240478 | G129: 293324 | H129: -52846 | I129: -0.1801625506 | J129: 120 | K129: 98 | L129: 82 | M129: 17 | N129: 0 | O129: 0
A130: 電機機械18 | B130: 電機機械81 | C130: 1528 恩德 | D130: 電機機械 | E130: M1500 | F130: 250494 | G130: 173640 | H130: 76854 | I130: 0.4426053905 | J130: 120 | K130: 98 | L130: 18 | M130: 81 | N130: 0 | O130: 0
A131: =$D131&L131 -> 電機機械4 | B131: =$D131&M131 -> 電機機械95 | C131: 1529 樂事綠能 | D131: 電機機械 | E131: M1500 | F131: 156851 | G131: 41581 | H131: 115270 | I131: 2.772179601 | J131: =IF(E131="","",MATCH(E131,E:E,0)) -> 120 | K131: =COUNTIF(D:D,D131) -> 98 | L131: 4 | M131: 95 | N131: 0 | O131: 0
A132: 電機機械90 | B132: 電機機械9 | C132: 1530 亞崴 | D132: 電機機械 | E132: M1500 | F132: 141251 | G132: 206986 | H132: =F132-G132 -> -65735 | I132: =IF(ISERROR((H132/G132)*100),"",(H132/(ABS(G132)))) -> -0.3175818654 | J132: 120 | K132: 98 | L132: =IF(I132="","",RANK(I132,OFFSET(I$1,$J132-1,,$K132,),0)) -> 90 | M132: =IF(I132="","",RANK(I132,OFFSET(I$1,$J132-1,,$K132,),1)) -> 9 | N132: 0 | O132: 0
A133: 電機機械79 | B133: 電機機械20 | C133: 1531 高林股 | D133: 電機機械 | E133: M1500 | F133: 117207 | G133: 135929 | H133: -18722 | I133: -0.1377336698 | J133: 120 | K133: 98 | L133: 79 | M133: 20 | N133: 0 | O133: 0
A134: 電機機械68 | B134: 電機機械31 | C134: 1532 勤美 | D134: 電機機械 | E134: M1500 | F134: 1082068 | G134: 1068173 | H134: 13895 | I134: 0.01300819249 | J134: 120 | K134: 98 | L134: 68 | M134: 31 | N134: 0 | O134: 0
A135: 電機機械86 | B135: 電機機械13 | C135: 1535 中宇 | D135: 電機機械 | E135: M1500 | F135: 630751 | G135: 821315 | H135: -190564 | I135: -0.2320230362 | J135: 120 | K135: 98 | L135: 86 | M135: 13 | N135: 0 | O135: 0
A136: 電機機械70 | B136: 電機機械29 | C136: 1537 廣隆 | D136: 電機機械 | E136: M1500 | F136: 618676 | G136: 649163 | H136: -30487 | I136: -0.04696355153 | J136: 120 | K136: 98 | L136: 70 | M136: 29 | N136: 0 | O136: 0
A137: 電機機械98 | B137: 電機機械1 | C137: 1538 正峰 | D137: 電機機械 | E137: M1500 | F137: 4606 | G137: 8910 | H137: -4304 | I137: -0.4830527497 | J137: 120 | K137: 98 | L137: 98 | M137: 1 | N137: 0 | O137: 0
A138: 電機機械96 | B138: 電機機械3 | C138: 1539 巨庭 | D138: 電機機械 | E138: M1500 | F138: 92097 | G138: 150123 | H138: -58026 | I138: -0.3865230511 | J138: 120 | K138: 98 | L138: 96 | M138: 3 | N138: 0 | O138: 0
A139: 電機機械92 | B139: 電機機械7 | C139: 1540 喬福 | D139: 電機機械 | E139: M1500 | F139: 36298 | G139: 53499 | H139: -17201 | I139: -0.3215200284 | J139: 120 | K139: 98 | L139: 92 | M139: 7 | N139: 0 | O139: 0
A140: 電機機械87 | B140: 電機機械12 | C140: 1541 錩泰 | D140: 電機機械 | E140: M1500 | F140: 248105 | G140: 323932 | H140: -75827 | I140: -0.2340830792 | J140: 120 | K140: 98 | L140: 87 | M140: 12 | N140: 0 | O140: 0
A141: 電機機械74 | B141: 電機機械25 | C141: 1558 伸興 | D141: 電機機械 | E141: M1500 | F141: 719888 | G141: 783818 | H141: -63930 | I141: -0.08156230145 | J141: 120 | K141: 98 | L141: 74 | M141: 25 | N141: 0 | O141: 0
A142: 電機機械28 | B142: 電機機械71 | C142: 1560 中砂 | D142: 電機機械 | E142: M1500 | F142: 752917 | G142: 565808 | H142: 187109 | I142: 0.3306934508 | J142: 120 | K142: 98 | L142: 28 | M142: 71 | N142: 0 | O142: 0
A143: 電機機械83 | B143: 電機機械16 | C143: 1570 力肯 | D143: 電機機械 | E143: M1500 | F143: 44781 | G143: 55007 | H143: -10226 | I143: -0.1859036123 | J143: 120 | K143: 98 | L143: 83 | M143: 16 | N143: 0 | O143: 0
A144: 電機機械47 | B144: 電機機械52 | C144: 1580 新麥 | D144: 電機機械 | E144: M1500 | F144: 430388 | G144: 381500 | H144: 48888 | I144: 0.128146789 | J144: 120 | K144: 98 | L144: 47 | M144: 52 | N144: 0 | O144: 0
A145: 電機機械65 | B145: 電機機械34 | C145: 1583 程泰 | D145: 電機機械 | E145: M1500 | F145: 312111 | G145: 306298 | H145: 5813 | I145: 0.01897824994 | J145: 120 | K145: 98 | L145: 65 | M145: 34 | N145: 0 | O145: 0
A146: 電機機械41 | B146: 電機機械58 | C146: 1586 和勤 | D146: 電機機械 | E146: M1500 | F146: 218429 | G146: 186978 | H146: 31451 | I146: 0.1682069548 | J146: 120 | K146: 98 | L146: 41 | M146: 58 | N146: 0 | O146: 0
A147: 電機機械27 | B147: 電機機械72 | C147: 1589 永冠-KY | D147: 電機機械 | E147: M1500 | F147: 645088 | G147: 481634 | H147: 163454 | I147: 0.3393738814 | J147: 120 | K147: 98 | L147: 27 | M147: 72 | N147: 0 | O147: 0
A148: 電機機械14 | B148: 電機機械85 | C148: 1590 亞德客-KY | D148: 電機機械 | E148: M1500 | F148: 3702382 | G148: 2219508 | H148: 1482874 | I148: 0.6681093287 | J148: 120 | K148: 98 | L148: 14 | M148: 85 | N148: 0 | O148: 0
A149: 電機機械1 | B149: 電機機械98 | C149: 1591 駿吉-KY | D149: 電機機械 | E149: M1500 | F149: 44016 | G149: 3965 | H149: 40051 | I149: 10.10113493 | J149: 120 | K149: 98 | L149: 1 | M149: 98 | N149: 0 | O149: 0
A150: 電機機械22 | B150: 電機機械77 | C150: 1597 直得 | D150: 電機機械 | E150: M1500 | F150: 107622 | G150: 76931 | H150: 30691 | I150: 0.398941909 | J150: 120 | K150: 98 | L150: 22 | M150: 77 | N150: 0 | O150: 0
A151: 電機機械23 | B151: 電機機械76 | C151: 1599 宏佳騰 | D151: 電機機械 | E151: M1500 | F151: 213510 | G151: 152660 | H151: 60850 | I151: 0.3985981921 | J151: 120 | K151: 98 | L151: 23 | M151: 76 | N151: 0 | O151: 0
A152: 電機機械46 | B152: 電機機械53 | C152: 2049 上銀 | D152: 電機機械 | E152: M1500 | F152: 2150023 | G152: 1900341 | H152: 249682 | I152: 0.1313879983 | J152: 120 | K152: 98 | L152: 46 | M152: 53 | N152: 0 | O152: 0
A153: 電機機械66 | B153: 電機機械33 | C153: 2066 世德 | D153: 電機機械 | E153: M1500 | F153: 238572 | G153: 234176 | H153: 4396 | I153: 0.01877220552 | J153: 120 | K153: 98 | L153: 66 | M153: 33 | N153: 0 | O153: 0
A154: 電機機械25 | B154: 電機機械74 | C154: 2067 嘉鋼 | D154: 電機機械 | E154: M1500 | F154: 87856 | G154: 65271 | H154: 22585 | I154: 0.3460189058 | J154: 120 | K154: 98 | L154: 25 | M154: 74 | N154: 0 | O154: 0
A155: 電機機械44 | B155: 電機機械55 | C155: 2070 精湛 | D155: 電機機械 | E155: M1500 | F155: 46109 | G155: 40492 | H155: 5617 | I155: 0.1387187593 | J155: 120 | K155: 98 | L155: 44 | M155: 55 | N155: 0 | O155: 0
A156: 電機機械54 | B156: 電機機械45 | C156: 2230 泰茂 | D156: 電機機械 | E156: M1500 | F156: 256031 | G156: 237655 | H156: 18376 | I156: 0.07732216869 | J156: 120 | K156: 98 | L156: 54 | M156: 45 | N156: 0 | O156: 0
A157: 電機機械17 | B157: 電機機械82 | C157: 2235 謚源 | D157: 電機機械 | E157: M1500 | F157: 51770 | G157: 35691 | H157: 16079 | I157: 0.4505057297 | J157: 120 | K157: 98 | L157: 17 | M157: 82 | N157: 0 | O157: 0
A158: 電機機械37 | B158: 電機機械62 | C158: 2371 大同 | D158: 電機機械 | E158: M1500 | F158: 4244071 | G158: 3558687 | H158: 685384 | I158: 0.1925946283 | J158: 120 | K158: 98 | L158: 37 | M158: 62 | N158: =U158 -> 0 | O158: =V158 -> 0
A159: 電機機械29 | B159: 電機機械70 | C159: 3162 精確 | D159: 電機機械 | E159: M1500 | F159: 749985 | G159: 572741 | H159: 177244 | I159: 0.3094662334 | J159: 120 | K159: 98 | L159: 29 | M159: 70 | N159: 0 | O159: 0
A160: 電機機械6 | B160: 電機機械93 | C160: 3167 大量 | D160: 電機機械 | E160: M1500 | F160: 601545 | G160: 273970 | H160: 327575 | I160: 1.195660109 | J160: 120 | K160: 98 | L160: 6 | M160: 93 | N160: 0 | O160: 0
A161: 電機機械91 | B161: 電機機械8 | C161: 3226 龍鋒 | D161: 電機機械 | E161: M1500 | F161: 124369 | G161: 182309 | H161: -57940 | I161: -0.3178120663 | J161: 120 | K161: 98 | L161: 91 | M161: 8 | N161: 0 | O161: 0
A162: 電機機械80 | B162: 電機機械19 | C162: 3379 彬台 | D162: 電機機械 | E162: M1500 | F162: 79889 | G162: 92958 | H162: -13069 | I162: -0.1405903741 | J162: 120 | K162: 98 | L162: 80 | M162: 19 | N162: 0 | O162: 0
A163: 電機機械89 | B163: 電機機械10 | C163: 3426 台興 | D163: 電機機械 | E163: M1500 | F163: 46352 | G163: 65560 | H163: -19208 | I163: -0.2929835265 | J163: 120 | K163: 98 | L163: 89 | M163: 10 | N163: 0 | O163: 0
A164: 電機機械15 | B164: 電機機械84 | C164: 3685 元創精密 | D164: 電機機械 | E164: M1500 | F164: 118762 | G164: 79033 | H164: 39729 | I164: 0.5026887503 | J164: 120 | K164: 98 | L164: 15 | M164: 84 | N164: 0 | O164: 0
A165: 電機機械56 | B165: 電機機械43 | C165: 4502 健信 | D165: 電機機械 | E165: M1500 | F165: 80533 | G165: 75743 | H165: 4790 | I165: 0.06324016741 | J165: 120 | K165: 98 | L165: 56 | M165: 43 | N165: 0 | O165: 0
A166: 電機機械38 | B166: 電機機械61 | C166: 4503 金雨 | D166: 電機機械 | E166: M1500 | F166: 40962 | G166: 34481 | H166: 6481 | I166: 0.1879585859 | J166: 120 | K166: 98 | L166: 38 | M166: 61 | N166: 0 | O166: 0
A167: 電機機械51 | B167: 電機機械48 | C167: 4506 崇友 | D167: 電機機械 | E167: M1500 | F167: 659335 | G167: 596731 | H167: 62604 | I167: 0.1049115933 | J167: 120 | K167: 98 | L167: 51 | M167: 48 | N167: 0 | O167: 0
A168: 電機機械24 | B168: 電機機械75 | C168: 4510 高鋒 | D168: 電機機械 | E168: M1500 | F168: 142530 | G168: 102793 | H168: 39737 | I168: 0.3865730157 | J168: 120 | K168: 98 | L168: 24 | M168: 75 | N168: 0 | O168: 0
A169: 電機機械32 | B169: 電機機械67 | C169: 4513 福裕 | D169: 電機機械 | E169: M1500 | F169: 83606 | G169: 66601 | H169: 17005 | I169: 0.2553264966 | J169: 120 | K169: 98 | L169: 32 | M169: 67 | N169: 0 | O169: 0
A170: 電機機械2 | B170: 電機機械97 | C170: 4523 永彰 | D170: 電機機械 | E170: M1500 | F170: 211809 | G170: 47845 | H170: 163964 | I170: 3.426982966 | J170: 120 | K170: 98 | L170: 2 | M170: 97 | N170: 0 | O170: 0
A171: 電機機械85 | B171: 電機機械14 | C171: 4526 東台 | D171: 電機機械 | E171: M1500 | F171: 357638 | G171: 456844 | H171: -99206 | I171: -0.2171550901 | J171: 120 | K171: 98 | L171: 85 | M171: 14 | N171: 0 | O171: 0
A172: 電機機械63 | B172: 電機機械36 | C172: 4527 方方土霖 | D172: 電機機械 | E172: M1500 | F172: 180285 | G172: 175326 | H172: 4959 | I172: 0.02828445296 | J172: 120 | K172: 98 | L172: 63 | M172: 36 | N172: 0 | O172: 0
A173: 電機機械61 | B173: 電機機械38 | C173: 4528 江興鍛 | D173: 電機機械 | E173: M1500 | F173: 143809 | G173: 139369 | H173: 4440 | I173: 0.0318578737 | J173: 120 | K173: 98 | L173: 61 | M173: 38 | N173: 0 | O173: 0
A174: 電機機械78 | B174: 電機機械21 | C174: 4532 瑞智 | D174: 電機機械 | E174: M1500 | F174: 1964103 | G174: 2248382 | H174: -284279 | I174: -0.1264371446 | J174: 120 | K174: 98 | L174: 78 | M174: 21 | N174: 0 | O174: 0
A175: 電機機械88 | B175: 電機機械11 | C175: 4533 協易機 | D175: 電機機械 | E175: M1500 | F175: 345624 | G175: 478805 | H175: -133181 | I175: -0.2781529015 | J175: 120 | K175: 98 | L175: 88 | M175: 11 | N175: 0 | O175: 0
A176: 電機機械39 | B176: 電機機械60 | C176: 4534 慶騰 | D176: 電機機械 | E176: M1500 | F176: 88015 | G176: 74184 | H176: 13831 | I176: 0.1864418203 | J176: 120 | K176: 98 | L176: 39 | M176: 60 | N176: 0 | O176: 0
A177: 電機機械52 | B177: 電機機械47 | C177: 4535 至興 | D177: 電機機械 | E177: M1500 | F177: 243338 | G177: 222381 | H177: 20957 | I177: 0.09423916612 | J177: 120 | K177: 98 | L177: 52 | M177: 47 | N177: 0 | O177: 0
A178: 電機機械5 | B178: 電機機械94 | C178: 4538 大詠城 | D178: 電機機械 | E178: M1500 | F178: 33769 | G178: 15160 | H178: 18609 | I178: 1.227506596 | J178: 120 | K178: 98 | L178: 5 | M178: 94 | N178: 0 | O178: 0
A179: 電機機械9 | B179: 電機機械90 | C179: 4540 全球傳動 | D179: 電機機械 | E179: M1500 | F179: 269099 | G179: 145376 | H179: 123723 | I179: 0.8510551948 | J179: 120 | K179: 98 | L179: 9 | M179: 90 | N179: 0 | O179: 0
A180: 電機機械10 | B180: 電機機械89 | C180: 4543 萬在 | D180: 電機機械 | E180: M1500 | F180: 84163 | G180: 46675 | H180: 37488 | I180: 0.8031708623 | J180: 120 | K180: 98 | L180: 10 | M180: 89 | N180: 0 | O180: 0
A181: 電機機械48 | B181: 電機機械51 | C181: 4549 桓達 | D181: 電機機械 | E181: M1500 | F181: 94428 | G181: 84398 | H181: 10030 | I181: 0.1188416787 | J181: 120 | K181: 98 | L181: 48 | M181: 51 | N181: 0 | O181: 0
A182: 電機機械7 | B182: 電機機械92 | C182: 4550 長佳 | D182: 電機機械 | E182: M1500 | F182: 104841 | G182: 49384 | H182: 55457 | I182: 1.122975053 | J182: 120 | K182: 98 | L182: 7 | M182: 92 | N182: 0 | O182: 0
A183: 電機機械60 | B183: 電機機械39 | C183: 4552 力達-KY | D183: 電機機械 | E183: M1500 | F183: 280599 | G183: 266760 | H183: 13839 | I183: 0.05187809267 | J183: 120 | K183: 98 | L183: 60 | M183: 39 | N183: 0 | O183: 0
A184: 電機機械33 | B184: 電機機械66 | C184: 4555 氣立 | D184: 電機機械 | E184: M1500 | F184: 143315 | G184: 114595 | H184: 28720 | I184: 0.2506217549 | J184: 120 | K184: 98 | L184: 33 | M184: 66 | N184: 0 | O184: 0
A185: 電機機械73 | B185: 電機機械26 | C185: 4558 寶緯 | D185: 電機機械 | E185: M1500 | F185: 101456 | G185: 109717 | H185: -8261 | I185: -0.07529371018 | J185: 120 | K185: 98 | L185: 73 | M185: 26 | N185: 0 | O185: 0
A186: 電機機械42 | B186: 電機機械57 | C186: 4560 強信-KY | D186: 電機機械 | E186: M1500 | F186: 144830 | G186: 126684 | H186: 18146 | I186: 0.1432382937 | J186: 120 | K186: 98 | L186: 42 | M186: 57 | N186: 0 | O186: 0
A187: 電機機械11 | B187: 電機機械88 | C187: 4561 健椿 | D187: 電機機械 | E187: M1500 | F187: 87281 | G187: 49762 | H187: 37519 | I187: 0.7539688919 | J187: 120 | K187: 98 | L187: 11 | M187: 88 | N187: 0 | O187: 0
A188: 電機機械62 | B188: 電機機械37 | C188: 4562 穎漢 | D188: 電機機械 | E188: M1500 | F188: 70920 | G188: 68922 | H188: 1998 | I188: 0.02898929224 | J188: 120 | K188: 98 | L188: 62 | M188: 37 | N188: 0 | O188: 0
A189: 電機機械94 | B189: 電機機械5 | C189: 4563 百德 | D189: 電機機械 | E189: M1500 | F189: 143729 | G189: 217953 | H189: -74224 | I189: -0.3405504857 | J189: 120 | K189: 98 | L189: 94 | M189: 5 | N189: 0 | O189: 0
A190: 電機機械95 | B190: 電機機械4 | C190: 4564 元翎 | D190: 電機機械 | E190: M1500 | F190: 82887 | G190: 127240 | H190: -44353 | I190: -0.3485774914 | J190: 120 | K190: 98 | L190: 95 | M190: 4 | N190: 0 | O190: 0
A191: 電機機械45 | B191: 電機機械54 | C191: 4566 時碩工業 | D191: 電機機械 | E191: M1500 | F191: 507793 | G191: 446931 | H191: 60862 | I191: 0.1361776203 | J191: 120 | K191: 98 | L191: 45 | M191: 54 | N191: 0 | O191: 0
A192: 電機機械84 | B192: 電機機械15 | C192: 4568 科際精密 | D192: 電機機械 | E192: M1500 | F192: 105619 | G192: 134164 | H192: -28545 | I192: -0.2127619928 | J192: 120 | K192: 98 | L192: 84 | M192: 15 | N192: 0 | O192: 0
A193: 電機機械76 | B193: 電機機械23 | C193: 4571 鈞興-KY | D193: 電機機械 | E193: M1500 | F193: 332623 | G193: 369147 | H193: -36524 | I193: -0.09894161405 | J193: 120 | K193: 98 | L193: 76 | M193: 23 | N193: 0 | O193: 0
A194: 電機機械77 | B194: 電機機械22 | C194: 4572 駐龍 | D194: 電機機械 | E194: M1500 | F194: 56391 | G194: 63329 | H194: -6938 | I194: -0.1095548643 | J194: 120 | K194: 98 | L194: 77 | M194: 22 | N194: 0 | O194: 0
A195: =$D195&L195 -> 電機機械12 | B195: =$D195&M195 -> 電機機械87 | C195: 4576 大銀微系統 | D195: 電機機械 | E195: M1500 | F195: 278321 | G195: 163550 | H195: 114771 | I195: 0.7017487007 | J195: =IF(E195="","",MATCH(E195,E:E,0)) -> 120 | K195: =COUNTIF(D:D,D195) -> 98 | L195: 12 | M195: 87 | N195: 0 | O195: 0
A196: 電機機械58 | B196: 電機機械41 | C196: 4580 捷流閥業 | D196: 電機機械 | E196: M1500 | F196: 195090 | G196: 184761 | H196: =F196-G196 -> 10329 | I196: =IF(ISERROR((H196/G196)*100),"",(H196/(ABS(G196)))) -> 0.0559046552 | J196: 120 | K196: 98 | L196: =IF(I196="","",RANK(I196,OFFSET(I$1,$J196-1,,$K196,),0)) -> 58 | M196: =IF(I196="","",RANK(I196,OFFSET(I$1,$J196-1,,$K196,),1)) -> 41 | N196: 0 | O196: 0
A197: 電機機械34 | B197: 電機機械65 | C197: 4583 台灣精銳 | D197: 電機機械 | E197: M1500 | F197: 296883 | G197: 238744 | H197: 58139 | I197: 0.243520256 | J197: 120 | K197: 98 | L197: 34 | M197: 65 | N197: 0 | O197: 0
A198: 電機機械81 | B198: 電機機械18 | C198: 4584 君帆 | D198: 電機機械 | E198: M1500 | F198: 97835 | G198: 116948 | H198: -19113 | I198: -0.1634316106 | J198: 120 | K198: 98 | L198: 81 | M198: 18 | N198: 0 | O198: 0
A199: 電機機械35 | B199: 電機機械64 | C199: 5288 豐祥-KY | D199: 電機機械 | E199: M1500 | F199: 804362 | G199: 649624 | H199: 154738 | I199: 0.2381962489 | J199: 120 | K199: 98 | L199: 35 | M199: 64 | N199: 0 | O199: 0
A200: 電機機械57 | B200: 電機機械42 | C200: 6122 擎邦 | D200: 電機機械 | E200: M1500 | F200: 291171 | G200: 275659 | H200: 15512 | I200: 0.05627242354 | J200: 120 | K200: 98 | L200: 57 | M200: 42 | N200: 0 | O200: 0
... 2800 more rows

Sheet 表B_RAW
A1: 排名(正向) | B1: 排名(反向) | D1: TSE新產業_名稱 | E1: TSE新產業_代碼 | F1: 單月營收(千元) | G1: 單月營收(千元) | H1: 單月營收與上月比％ | J1: 產業位址 | K1: 產業家數 | L1: 排名(正向) | M1: 排名(反向) | N1: 排名(正向) | O1: 排名(反向) | P1: 產業營收 | Q1: 單月營收(千元) | R1: 上月單月營收(千元) | S1: 本月較上月變動金額 | T1: 單月營收與上月比％ | U1: 排名(正向) | V1: 排名(反向)
C2: 公司 | F2: 2026-01-30 | G2: 2025-12-31 | H2: 2026-01-30 | N2: =U2 -> 26 | O2: =V2 -> 9 | P2: =_xlfn.UNIQUE($D$3:$D$2500,FALSE,FALSE) -> 水泥工業 | Q2: =SUMIF($D:$D,$P2,F:F) -> 20162036 | R2: =SUMIF($D:$D,$P2,G:G) -> 22471451 | S2: =Q2-R2 -> -2309415 | T2: =IF(VLOOKUP(P2,$D:$K,8,0)=1,"",ROUND(S2/R2*100,2)) -> -10.28 | U2: =IF($T2="",0,_xlfn.RANK.EQ(T2,T:T)) -> 26 | V2: =IF($T2="",0,_xlfn.RANK.EQ(T2,T:T,1)) -> 9
A3: =D3&L3 -> 水泥工業6 | B3: =D3&M3 -> 水泥工業2 | C3: 1101 台泥 | D3: 水泥工業 | E3: M1100 | F3: 12252892 | G3: 14219975 | H3: -13.83 | I3: =F3-G3 -> -1967083 | J3: =IF(E3="","",MATCH(E3,E:E,0)) -> 3 | K3: =COUNTIF(D:D,D3) -> 7 | L3: =IF(H3="","",RANK(H3,OFFSET(H$1,$J3-1,,$K3,),0)) -> 6 | M3: =IF(H3="","",RANK(H3,OFFSET(H$1,$J3-1,,$K3,),1)) -> 2 | N3: =U3 -> 2 | O3: =V3 -> 33 | P3: 食品工業 | Q3: =SUMIF($D:$D,$P3,F:F) -> 99345447 | R3: =SUMIF($D:$D,$P3,G:G) -> 83944545 | S3: =Q3-R3 -> 15400902 | T3: =IF(VLOOKUP(P3,$D:$K,8,0)=1,"",ROUND(S3/R3*100,2)) -> 18.35 | U3: =IF($T3="",0,_xlfn.RANK.EQ(T3,T:T)) -> 2 | V3: =IF($T3="",0,_xlfn.RANK.EQ(T3,T:T,1)) -> 33
A4: =D4&L4 -> 水泥工業2 | B4: =D4&M4 -> 水泥工業6 | C4: 1102 亞泥 | D4: 水泥工業 | E4: M1100 | F4: 5986964 | G4: 6172608 | H4: -3.01 | I4: =F4-G4 -> -185644 | J4: =IF(E4="","",MATCH(E4,E:E,0)) -> 3 | K4: =COUNTIF(D:D,D4) -> 7 | L4: =IF(H4="","",RANK(H4,OFFSET(H$1,$J4-1,,$K4,),0)) -> 2 | M4: =IF(H4="","",RANK(H4,OFFSET(H$1,$J4-1,,$K4,),1)) -> 6 | N4: 10 | O4: 25 | P4: 塑膠工業 | Q4: 81526757 | R4: 76776061 | S4: 4750696 | T4: 6.19 | U4: 10 | V4: 25
A5: 水泥工業3 | B5: 水泥工業5 | C5: 1103 嘉泥 | D5: 水泥工業 | E5: M1100 | F5: 256819 | G5: 274867 | H5: -6.57 | I5: -18048 | J5: 3 | K5: 7 | L5: 3 | M5: 5 | N5: 22 | O5: 13 | P5: 紡織纖維 | Q5: 49614535 | R5: 51663235 | S5: -2048700 | T5: -3.97 | U5: 22 | V5: 13
A6: 水泥工業4 | B6: 水泥工業4 | C6: 1104 環泥 | D6: 水泥工業 | E6: M1100 | F6: 718229 | G6: 779128 | H6: -7.82 | I6: -60899 | J6: 3 | K6: 7 | L6: 4 | M6: 4 | N6: 24 | O6: 11 | P6: 電機機械 | Q6: 49101812 | R6: 53468325 | S6: -4366513 | T6: -8.17 | U6: 24 | V6: 11
A7: 水泥工業1 | B7: 水泥工業7 | C7: 1108 幸福 | D7: 水泥工業 | E7: M1100 | F7: 374664 | G7: 373043 | H7: 0.43 | I7: 1621 | J7: 3 | K7: 7 | L7: 1 | M7: 7 | N7: 17 | O7: 18 | P7: 電器電纜 | Q7: 24771537 | R7: 24762428 | S7: 9109 | T7: 0.04 | U7: 17 | V7: 18
A8: 水泥工業5 | B8: 水泥工業3 | C8: 1109 信大 | D8: 水泥工業 | E8: M1100 | F8: 373777 | G8: 415638 | H8: -10.07 | I8: -41861 | J8: 3 | K8: 7 | L8: 5 | M8: 3 | N8: 7 | O8: 28 | P8: 化學工業 | Q8: 29949353 | R8: 27165845 | S8: 2783508 | T8: 10.25 | U8: 7 | V8: 28
A9: 水泥工業7 | B9: 水泥工業1 | C9: 1110 東泥 | D9: 水泥工業 | E9: M1100 | F9: 198691 | G9: 236192 | H9: -15.88 | I9: -37501 | J9: 3 | K9: 7 | L9: 7 | M9: 1 | N9: 27 | O9: 8 | P9: 生技醫療業 | Q9: 28272824 | R9: 31728268 | S9: -3455444 | T9: -10.89 | U9: 27 | V9: 8
A10: 食品工業19 | B10: 食品工業15 | C10: 1201 味全 | D10: 食品工業 | E10: M1200 | F10: 1676231 | G10: 1670916 | H10: 0.32 | I10: 5315 | J10: 10 | K10: 33 | L10: 19 | M10: 15 | N10: 14 | O10: 21 | P10: 玻璃陶瓷 | Q10: 4830965 | R10: 4788153 | S10: 42812 | T10: 0.89 | U10: 14 | V10: 21
A11: 食品工業15 | B11: 食品工業19 | C11: 1203 味王 | D11: 食品工業 | E11: M1200 | F11: 461815 | G11: 435027 | H11: 6.16 | I11: 26788 | J11: 10 | K11: 33 | L11: 15 | M11: 19 | N11: 18 | O11: 17 | P11: 造紙工業 | Q11: 17112294 | R11: 17126855 | S11: -14561 | T11: -0.09 | U11: 18 | V11: 17
A12: 食品工業18 | B12: 食品工業16 | C12: 1210 大成 | D12: 食品工業 | E12: M1200 | F12: 9726934 | G12: 9592082 | H12: 1.41 | I12: 134852 | J12: 10 | K12: 33 | L12: 18 | M12: 16 | N12: 11 | O12: 24 | P12: 鋼鐵工業 | Q12: 79087864 | R12: 74715507 | S12: 4372357 | T12: 5.85 | U12: 11 | V12: 24
A13: 食品工業8 | B13: 食品工業26 | C13: 1213 大飲 | D13: 食品工業 | E13: M1200 | F13: 24751 | G13: 20948 | H13: 18.15 | I13: 3803 | J13: 10 | K13: 33 | L13: 8 | M13: 26 | N13: 3 | O13: 32 | P13: 橡膠工業 | Q13: 18103612 | R13: 15602642 | S13: 2500970 | T13: 16.03 | U13: 3 | V13: 32
A14: 食品工業23 | B14: 食品工業11 | C14: 1215 卜蜂 | D14: 食品工業 | E14: M1200 | F14: 2634849 | G14: 2749915 | H14: -4.18 | I14: -115066 | J14: 10 | K14: 33 | L14: 23 | M14: 11 | N14: 5 | O14: 30 | P14: 汽車工業 | Q14: 65277076 | R14: 58635386 | S14: 6641690 | T14: 11.33 | U14: 5 | V14: 30
A15: 食品工業6 | B15: 食品工業28 | C15: 1216 統一 | D15: 食品工業 | E15: M1200 | F15: 66104462 | G15: 52311321 | H15: 26.37 | I15: 13793141 | J15: 10 | K15: 33 | L15: 6 | M15: 28 | N15: 4 | O15: 31 | P15: 半導體業 | Q15: 732978896 | R15: 651714880 | S15: 81264016 | T15: 12.47 | U15: 4 | V15: 31
A16: 食品工業4 | B16: 食品工業30 | C16: 1217 愛之味 | D16: 食品工業 | E16: M1200 | F16: 462021 | G16: 314958 | H16: 46.69 | I16: 147063 | J16: 10 | K16: 33 | L16: 4 | M16: 30 | N16: 25 | O16: 10 | P16: 電腦及週邊設備業 | Q16: 1047774254 | R16: 1152113103 | S16: -104338849 | T16: -9.06 | U16: 25 | V16: 10
A17: 食品工業11 | B17: 食品工業23 | C17: 1218 泰山 | D17: 食品工業 | E17: M1200 | F17: 943672 | G17: 832865 | H17: 13.3 | I17: 110807 | J17: 10 | K17: 33 | L17: 11 | M17: 23 | N17: 16 | O17: 19 | P17: 光電業 | Q17: 114362584 | R17: 113856377 | S17: 506207 | T17: 0.44 | U17: 16 | V17: 19
A18: 食品工業24 | B18: 食品工業10 | C18: 1219 福壽 | D18: 食品工業 | E18: M1200 | F18: 1271934 | G18: 1332578 | H18: -4.55 | I18: -60644 | J18: 10 | K18: 33 | L18: 24 | M18: 10 | N18: 28 | O18: 7 | P18: 通訊網路業 | Q18: 116795549 | R18: 133959694 | S18: -17164145 | T18: -12.81 | U18: 28 | V18: 7
A19: 食品工業26 | B19: 食品工業8 | C19: 1220 台榮 | D19: 食品工業 | E19: M1200 | F19: 288493 | G19: 308992 | H19: -6.63 | I19: -20499 | J19: 10 | K19: 33 | L19: 26 | M19: 8 | N19: 13 | O19: 22 | P19: 電子零組件 | Q19: 255208320 | R19: 252521592 | S19: 2686728 | T19: 1.06 | U19: 13 | V19: 22
A20: 食品工業10 | B20: 食品工業24 | C20: 1225 福懋油 | D20: 食品工業 | E20: M1200 | F20: 1313398 | G20: 1130151 | H20: 16.21 | I20: 183247 | J20: 10 | K20: 33 | L20: 10 | M20: 24 | N20: 1 | O20: 34 | P20: 電子通路業 | Q20: 432604697 | R20: 328842207 | S20: 103762490 | T20: 31.55 | U20: 1 | V20: 34
A21: 食品工業5 | B21: 食品工業29 | C21: 1227 佳格 | D21: 食品工業 | E21: M1200 | F21: 3796317 | G21: 2774103 | H21: 36.85 | I21: 1022214 | J21: 10 | K21: 33 | L21: 5 | M21: 29 | N21: 9 | O21: 26 | P21: 資訊服務業 | Q21: 20300243 | R21: 18788562 | S21: 1511681 | T21: 8.05 | U21: 9 | V21: 26
A22: 食品工業32 | B22: 食品工業2 | C22: 1229 聯華 | D22: 食品工業 | E22: M1200 | F22: 996429 | G22: 1367820 | H22: -27.15 | I22: -371391 | J22: 10 | K22: 33 | L22: 32 | M22: 2 | N22: 29 | O22: 6 | P22: 其他電子業 | Q22: 825073414 | R22: 964397333 | S22: -139323919 | T22: -14.45 | U22: 29 | V22: 6
A23: 食品工業21 | B23: 食品工業13 | C23: 1231 聯華食 | D23: 食品工業 | E23: M1200 | F23: 1271114 | G23: 1303204 | H23: -2.46 | I23: -32090 | J23: 10 | K23: 33 | L23: 21 | M23: 13 | N23: 33 | O23: 2 | P23: 建材營造 | Q23: 54557667 | R23: 105811816 | S23: -51254149 | T23: -48.44 | U23: 33 | V23: 2
A24: 食品工業12 | B24: 食品工業22 | C24: 1232 大統益 | D24: 食品工業 | E24: M1200 | F24: 2213265 | G24: 1993530 | H24: 11.02 | I24: 219735 | J24: 10 | K24: 33 | L24: 12 | M24: 22 | N24: 20 | O24: 15 | P24: 航運業 | Q24: 126948450 | R24: 128717743 | S24: -1769293 | T24: -1.37 | U24: 20 | V24: 15
A25: 食品工業20 | B25: 食品工業14 | C25: 1233 天仁 | D25: 食品工業 | E25: M1200 | F25: 198102 | G25: 202853 | H25: -2.34 | I25: -4751 | J25: 10 | K25: 33 | L25: 20 | M25: 14 | N25: 15 | O25: 20 | P25: 觀光餐旅 | Q25: 16709766 | R25: 16610832 | S25: 98934 | T25: 0.6 | U25: 15 | V25: 20
A26: 食品工業7 | B26: 食品工業27 | C26: 1234 黑松 | D26: 食品工業 | E26: M1200 | F26: 794428 | G26: 640539 | H26: 24.02 | I26: 153889 | J26: 10 | K26: 33 | L26: 7 | M26: 27 | N26: 34 | O26: 1 | P26: 金融業 | Q26: 51970271 | R26: 216702182 | S26: -164731911 | T26: -76.02 | U26: 34 | V26: 1
A27: 食品工業1 | B27: 食品工業33 | C27: 1235 興泰 | D27: 食品工業 | E27: M1200 | F27: 23862 | G27: 11362 | H27: 110.02 | I27: 12500 | J27: 10 | K27: 33 | L27: 1 | M27: 33 | N27: 31 | O27: 4 | P27: 貿易百貨 | Q27: 40590833 | R27: 57089850 | S27: -16499017 | T27: -28.9 | U27: 31 | V27: 4
A28: 食品工業2 | B28: 食品工業32 | C28: 1236 宏亞 | D28: 食品工業 | E28: M1200 | F28: 303656 | G28: 196864 | H28: 54.25 | I28: 106792 | J28: 10 | K28: 33 | L28: 2 | M28: 32 | N28: 12 | O28: 23 | P28: 文化創意業 | Q28: 6362101 | R28: 6204249 | S28: 157852 | T28: 2.54 | U28: 12 | V28: 23
A29: 食品工業13 | B29: 食品工業21 | C29: 1256 鮮活果汁-KY | D29: 食品工業 | E29: M1200 | F29: 448137 | G29: 408763 | H29: 9.63 | I29: 39374 | J29: 10 | K29: 33 | L29: 13 | M29: 21 | N29: 6 | O29: 29 | P29: 農業科技 | Q29: 396942 | R29: 358089 | S29: 38853 | T29: 10.85 | U29: 6 | V29: 29
A30: 食品工業16 | B30: 食品工業18 | C30: 1264 德麥 | D30: 食品工業 | E30: M1200 | F30: 720821 | G30: 685986 | H30: 5.08 | I30: 34835 | J30: 10 | K30: 33 | L30: 16 | M30: 18 | N30: =U30 -> 32 | O30: =V30 -> 3 | P30: 綠能環保 | Q30: =SUMIF($D:$D,$P30,F:F) -> 9461169 | R30: =SUMIF($D:$D,$P30,G:G) -> 16174605 | S30: =Q30-R30 -> -6713436 | T30: -41.51 | U30: 32 | V30: 3
A31: 食品工業14 | B31: 食品工業20 | C31: 1294 漢田生技 | D31: 食品工業 | E31: M1200 | F31: 90427 | G31: 83640 | H31: 8.11 | I31: 6787 | J31: 10 | K31: 33 | L31: 14 | M31: 20 | N31: 21 | O31: 14 | P31: 數位雲端 | Q31: 20994337 | R31: 21432907 | S31: -438570 | T31: -2.05 | U31: 21 | V31: 14
A32: 食品工業30 | B32: 食品工業4 | C32: 1295 生合 | D32: 食品工業 | E32: M1200 | F32: 81085 | G32: 106769 | H32: -24.06 | I32: -25684 | J32: 10 | K32: 33 | L32: 30 | M32: 4 | N32: 23 | O32: 12 | P32: 運動休閒 | Q32: 54974397 | R32: 59236768 | S32: -4262371 | T32: -7.2 | U32: 23 | V32: 12
A33: 食品工業17 | B33: 食品工業17 | C33: 1702 南僑 | D33: 食品工業 | E33: M1200 | F33: 2104739 | G33: 2010718 | H33: 4.68 | I33: 94021 | J33: 10 | K33: 33 | L33: 17 | M33: 17 | N33: 19 | O33: 16 | P33: 居家生活 | Q33: 23726462 | R33: 23989118 | S33: -262656 | T33: -1.09 | U33: 19 | V33: 16
A34: 食品工業22 | B34: 食品工業12 | C34: 1737 臺鹽 | D34: 食品工業 | E34: M1200 | F34: 277168 | G34: 285940 | H34: -3.07 | I34: -8772 | J34: 10 | K34: 33 | L34: 22 | M34: 12 | N34: 8 | O34: 27 | P34: 油電燃氣業 | Q34: 64507216 | R34: 59034998 | S34: 5472218 | T34: 9.27 | U34: 8 | V34: 27
A35: 食品工業29 | B35: 食品工業5 | C35: 1796 金穎生技 | D35: 食品工業 | E35: M1200 | F35: 54413 | G35: 61869 | H35: -12.05 | I35: -7456 | J35: 10 | K35: 33 | L35: 29 | M35: 5 | N35: 30 | O35: 5 | P35: 其他 | Q35: 54619731 | R35: 67371832 | S35: -12752101 | T35: -18.93 | U35: 30 | V35: 5
A36: 食品工業3 | B36: 食品工業31 | C36: 3054 立萬利 | D36: 食品工業 | E36: M1200 | F36: 13427 | G36: 9041 | H36: 48.51 | I36: 4386 | J36: 10 | K36: 33 | L36: 3 | M36: 31 | N36: 0 | O36: 0 | P36: 存託憑證 | W36: *存託憑證不納入統計
A37: 食品工業27 | B37: 食品工業7 | C37: 4205 中華食 | D37: 食品工業 | E37: M1200 | F37: 173777 | G37: 189595 | H37: -8.34 | I37: -15818 | J37: 10 | K37: 33 | L37: 27 | M37: 7 | N37: 0 | O37: 0 | P37: 0
A38: 食品工業9 | B38: 食品工業25 | C38: 4207 環泰 | D38: 食品工業 | E38: M1200 | F38: 495326 | G38: 423481 | H38: 16.97 | I38: 71845 | J38: 10 | K38: 33 | L38: 9 | M38: 25 | N38: 0 | O38: 0
A39: 食品工業33 | B39: 食品工業1 | C39: 6846 綠茵 | D39: 食品工業 | E39: M1200 | F39: 55897 | G39: 104797 | H39: -46.66 | I39: -48900 | J39: 10 | K39: 33 | L39: 33 | M39: 1 | N39: 0 | O39: 0
A40: 食品工業28 | B40: 食品工業6 | C40: 7743 金利食安 | D40: 食品工業 | E40: M1200 | F40: 46325 | G40: 52329 | H40: -11.47 | I40: -6004 | J40: 10 | K40: 33 | L40: 28 | M40: 6 | N40: 0 | O40: 0
A41: 食品工業31 | B41: 食品工業3 | C41: 7780 大研生醫* | D41: 食品工業 | E41: M1200 | F41: 138385 | G41: 182993 | H41: -24.38 | I41: -44608 | J41: 10 | K41: 33 | L41: 31 | M41: 3 | N41: 0 | O41: 0
A42: 食品工業25 | B42: 食品工業9 | C42: 7791 皇家可口 | D42: 食品工業 | E42: M1200 | F42: 139787 | G42: 148596 | H42: -5.93 | I42: -8809 | J42: 10 | K42: 33 | L42: 25 | M42: 9 | N42: 0 | O42: 0
A43: 塑膠工業19 | B43: 塑膠工業7 | C43: 1301 台塑 | D43: 塑膠工業 | E43: M1300 | F43: 13891082 | G43: 14304735 | H43: -2.89 | I43: -413653 | J43: 43 | K43: 25 | L43: 19 | M43: 7 | N43: 0 | O43: 0
A44: 塑膠工業15 | B44: 塑膠工業11 | C44: 1303 南亞 | D44: 塑膠工業 | E44: M1300 | F44: 22872625 | G44: 22097720 | H44: 3.51 | I44: 774905 | J44: 43 | K44: 25 | L44: 15 | M44: 11 | N44: 0 | O44: 0
A45: 塑膠工業13 | B45: 塑膠工業13 | C45: 1304 台聚 | D45: 塑膠工業 | E45: M1300 | F45: 3583459 | G45: 3416559 | H45: 4.89 | I45: 166900 | J45: 43 | K45: 25 | L45: 13 | M45: 13 | N45: 0 | O45: 0
A46: 塑膠工業5 | B46: 塑膠工業21 | C46: 1305 華夏 | D46: 塑膠工業 | E46: M1300 | F46: 806175 | G46: 656140 | H46: 22.87 | I46: 150035 | J46: 43 | K46: 25 | L46: 5 | M46: 21 | N46: 0 | O46: 0
A47: 塑膠工業1 | B47: 塑膠工業25 | C47: 1307 三芳 | D47: 塑膠工業 | E47: M1300 | F47: 1151903 | G47: 799144 | H47: 44.14 | I47: 352759 | J47: 43 | K47: 25 | L47: 1 | M47: 25 | N47: 0 | O47: 0
A48: 塑膠工業22 | B48: 塑膠工業4 | C48: 1308 亞聚 | D48: 塑膠工業 | E48: M1300 | F48: 448082 | G48: 494254 | H48: -9.34 | I48: -46172 | J48: 43 | K48: 25 | L48: 22 | M48: 4 | N48: 0 | O48: 0
A49: 塑膠工業12 | B49: 塑膠工業14 | C49: 1309 台達化 | D49: 塑膠工業 | E49: M1300 | F49: 1135298 | G49: 1042274 | H49: 8.93 | I49: 93024 | J49: 43 | K49: 25 | L49: 12 | M49: 14 | N49: 0 | O49: 0
A50: 塑膠工業2 | B50: 塑膠工業24 | C50: 1310 台苯 | D50: 塑膠工業 | E50: M1300 | F50: 705741 | G50: 535318 | H50: 31.84 | I50: 170423 | J50: 43 | K50: 25 | L50: 2 | M50: 24 | N50: 0 | O50: 0
A51: 塑膠工業17 | B51: 塑膠工業9 | C51: 1312 國喬 | D51: 塑膠工業 | E51: M1300 | F51: 2321933 | G51: 2356924 | H51: -1.48 | I51: -34991 | J51: 43 | K51: 25 | L51: 17 | M51: 9 | N51: 0 | O51: 0
A52: 塑膠工業14 | B52: 塑膠工業12 | C52: 1313 聯成 | D52: 塑膠工業 | E52: M1300 | F52: 5300917 | G52: 5084497 | H52: 4.26 | I52: 216420 | J52: 43 | K52: 25 | L52: 14 | M52: 12 | N52: 0 | O52: 0
A53: 塑膠工業6 | B53: 塑膠工業20 | C53: 1314 中石化 | D53: 塑膠工業 | E53: M1300 | F53: 1589699 | G53: 1347475 | H53: 17.98 | I53: 242224 | J53: 43 | K53: 25 | L53: 6 | M53: 20 | N53: 0 | O53: 0
A54: 塑膠工業24 | B54: 塑膠工業2 | C54: 1315 達新 | D54: 塑膠工業 | E54: M1300 | F54: 126246 | G54: 174011 | H54: -27.45 | I54: -47765 | J54: 43 | K54: 25 | L54: 24 | M54: 2 | N54: 0 | O54: 0
A55: 塑膠工業7 | B55: 塑膠工業19 | C55: 1321 大洋 | D55: 塑膠工業 | E55: M1300 | F55: 330086 | G55: 284182 | H55: 16.15 | I55: 45904 | J55: 43 | K55: 25 | L55: 7 | M55: 19 | N55: 0 | O55: 0
A56: 塑膠工業11 | B56: 塑膠工業15 | C56: 1323 永裕 | D56: 塑膠工業 | E56: M1300 | F56: 179252 | G56: 162846 | H56: 10.07 | I56: 16406 | J56: 43 | K56: 25 | L56: 11 | M56: 15 | N56: 0 | O56: 0
A57: 塑膠工業21 | B57: 塑膠工業5 | C57: 1324 地球 | D57: 塑膠工業 | E57: M1300 | F57: 59958 | G57: 66089 | H57: -9.28 | I57: -6131 | J57: 43 | K57: 25 | L57: 21 | M57: 5 | N57: 0 | O57: 0
A58: 塑膠工業3 | B58: 塑膠工業23 | C58: 1325 恒大 | D58: 塑膠工業 | E58: M1300 | F58: 24322 | G58: 19061 | H58: 27.6 | I58: 5261 | J58: 43 | K58: 25 | L58: 3 | M58: 23 | N58: 0 | O58: 0
A59: 塑膠工業8 | B59: 塑膠工業18 | C59: 1326 台化 | D59: 塑膠工業 | E59: M1300 | F59: 25040014 | G59: 21972816 | H59: 13.96 | I59: 3067198 | J59: 43 | K59: 25 | L59: 8 | M59: 18 | N59: 0 | O59: 0
A60: 塑膠工業23 | B60: 塑膠工業3 | C60: 1337 再生-KY | D60: 塑膠工業 | E60: M1300 | F60: 54359 | G60: 61227 | H60: -11.22 | I60: -6868 | J60: 43 | K60: 25 | L60: 23 | M60: 3 | N60: 0 | O60: 0
A61: 塑膠工業20 | B61: 塑膠工業6 | C61: 1340 勝悅-KY | D61: 塑膠工業 | E61: M1300 | F61: 2967 | G61: 3200 | H61: -7.28 | I61: -233 | J61: 43 | K61: 25 | L61: 20 | M61: 6 | N61: 0 | O61: 0
A62: 塑膠工業16 | B62: 塑膠工業10 | C62: 1341 富林-KY | D62: 塑膠工業 | E62: M1300 | F62: 248122 | G62: 242554 | H62: 2.3 | I62: 5568 | J62: 43 | K62: 25 | L62: 16 | M62: 10 | N62: 0 | O62: 0
A63: 塑膠工業4 | B63: 塑膠工業22 | C63: 4303 信立 | D63: 塑膠工業 | E63: M1300 | F63: 82925 | G63: 65013 | H63: 27.55 | I63: 17912 | J63: 43 | K63: 25 | L63: 4 | M63: 22 | N63: 0 | O63: 0
A64: 塑膠工業25 | B64: 塑膠工業1 | C64: 4304 勝昱 | D64: 塑膠工業 | E64: M1300 | F64: 25027 | G64: 42507 | H64: -41.12 | I64: -17480 | J64: 43 | K64: 25 | L64: 25 | M64: 1 | N64: 0 | O64: 0
A65: 塑膠工業9 | B65: 塑膠工業17 | C65: 4305 世坤 | D65: 塑膠工業 | E65: M1300 | F65: 95641 | G65: 84541 | H65: 13.13 | I65: 11100 | J65: 43 | K65: 25 | L65: 9 | M65: 17 | N65: 0 | O65: 0
A66: 塑膠工業18 | B66: 塑膠工業8 | C66: 4306 炎洲 | D66: 塑膠工業 | E66: M1300 | F66: 1225902 | G66: 1260135 | H66: -2.72 | I66: -34233 | J66: 43 | K66: 25 | L66: 18 | M66: 8 | N66: 0 | O66: 0
A67: 塑膠工業10 | B67: 塑膠工業16 | C67: 9950 萬國通 | D67: 塑膠工業 | E67: M1300 | F67: 225022 | G67: 202839 | H67: 10.94 | I67: 22183 | J67: 43 | K67: 25 | L67: 10 | M67: 16 | N67: 0 | O67: 0
A68: =D68&L68 -> 紡織纖維33 | B68: =D68&M68 -> 紡織纖維20 | C68: 1402 遠東新 | D68: 紡織纖維 | E68: M1400 | F68: 21993415 | G68: 23787210 | H68: -7.54 | I68: =F68-G68 -> -1793795 | J68: =IF(E68="","",MATCH(E68,E:E,0)) -> 68 | K68: =COUNTIF(D:D,D68) -> 52 | L68: =IF(H68="","",RANK(H68,OFFSET(H$1,$J68-1,,$K68,),0)) -> 33 | M68: =IF(H68="","",RANK(H68,OFFSET(H$1,$J68-1,,$K68,),1)) -> 20 | N68: 0 | O68: 0
A69: 紡織纖維14 | B69: 紡織纖維39 | C69: 1409 新纖 | D69: 紡織纖維 | E69: M1400 | F69: 3334219 | G69: 3085248 | H69: 8.07 | I69: 248971 | J69: 68 | K69: 52 | L69: 14 | M69: 39 | N69: 0 | O69: 0
A70: 紡織纖維24 | B70: 紡織纖維29 | C70: 1410 南染 | D70: 紡織纖維 | E70: M1400 | F70: 14210 | G70: 14249 | H70: -0.27 | I70: -39 | J70: 68 | K70: 52 | L70: 24 | M70: 29 | N70: 0 | O70: 0
A71: 紡織纖維31 | B71: 紡織纖維22 | C71: 1413 宏洲 | D71: 紡織纖維 | E71: M1400 | F71: 144951 | G71: 154304 | H71: -6.06 | I71: -9353 | J71: 68 | K71: 52 | L71: 31 | M71: 22 | N71: 0 | O71: 0
A72: 紡織纖維23 | B72: 紡織纖維30 | C72: 1414 東和 | D72: 紡織纖維 | E72: M1400 | F72: 41048 | G72: 40662 | H72: 0.95 | I72: 386 | J72: 68 | K72: 52 | L72: 23 | M72: 30 | N72: 0 | O72: 0
A73: 紡織纖維29 | B73: 紡織纖維24 | C73: 1417 嘉裕 | D73: 紡織纖維 | E73: M1400 | F73: 30235 | G73: 31994 | H73: -5.5 | I73: -1759 | J73: 68 | K73: 52 | L73: 29 | M73: 24 | N73: 0 | O73: 0
A74: 紡織纖維1 | B74: 紡織纖維52 | C74: 1418 東華 | D74: 紡織纖維 | E74: M1400 | F74: 613 | G74: 17 | H74: 3505.88 | I74: 596 | J74: 68 | K74: 52 | L74: 1 | M74: 52 | N74: 0 | O74: 0
A75: 紡織纖維38 | B75: 紡織纖維15 | C75: 1419 新紡 | D75: 紡織纖維 | E75: M1400 | F75: 509836 | G75: 585763 | H75: -12.96 | I75: -75927 | J75: 68 | K75: 52 | L75: 38 | M75: 15 | N75: 0 | O75: 0
A76: 紡織纖維48 | B76: 紡織纖維5 | C76: 1423 利華 | D76: 紡織纖維 | E76: M1400 | F76: 5852 | G76: 7798 | H76: -24.96 | I76: -1946 | J76: 68 | K76: 52 | L76: 48 | M76: 5 | N76: 0 | O76: 0
A77: 紡織纖維15 | B77: 紡織纖維38 | C77: 1434 福懋 | D77: 紡織纖維 | E77: M1400 | F77: 2426027 | G77: 2275014 | H77: 6.64 | I77: 151013 | J77: 68 | K77: 52 | L77: 15 | M77: 38 | N77: 0 | O77: 0
A78: 紡織纖維27 | B78: 紡織纖維26 | C78: 1440 南紡 | D78: 紡織纖維 | E78: M1400 | F78: 1103124 | G78: 1156698 | H78: -4.63 | I78: -53574 | J78: 68 | K78: 52 | L78: 27 | M78: 26 | N78: 0 | O78: 0
A79: 紡織纖維32 | B79: 紡織纖維21 | C79: 1441 大東 | D79: 紡織纖維 | E79: M1400 | F79: 117500 | G79: 126517 | H79: -7.13 | I79: -9017 | J79: 68 | K79: 52 | L79: 32 | M79: 21 | N79: 0 | O79: 0
A80: 紡織纖維25 | B80: 紡織纖維28 | C80: 1444 力麗 | D80: 紡織纖維 | E80: M1400 | F80: 527231 | G80: 544906 | H80: -3.24 | I80: -17675 | J80: 68 | K80: 52 | L80: 25 | M80: 28 | N80: 0 | O80: 0
A81: 紡織纖維11 | B81: 紡織纖維42 | C81: 1445 大宇 | D81: 紡織纖維 | E81: M1400 | F81: 73686 | G81: 65402 | H81: 12.67 | I81: 8284 | J81: 68 | K81: 52 | L81: 11 | M81: 42 | N81: 0 | O81: 0
A82: 紡織纖維47 | B82: 紡織纖維6 | C82: 1446 宏和 | D82: 紡織纖維 | E82: M1400 | F82: 6715 | G82: 8724 | H82: -23.03 | I82: -2009 | J82: 68 | K82: 52 | L82: 47 | M82: 6 | N82: 0 | O82: 0
A83: 紡織纖維5 | B83: 紡織纖維48 | C83: 1447 力鵬 | D83: 紡織纖維 | E83: M1400 | F83: 2477005 | G83: 1895903 | H83: 30.65 | I83: 581102 | J83: 68 | K83: 52 | L83: 5 | M83: 48 | N83: 0 | O83: 0
A84: 紡織纖維51 | B84: 紡織纖維2 | C84: 1449 佳和 | D84: 紡織纖維 | E84: M1400 | F84: 228333 | G84: 482486 | H84: -52.68 | I84: -254153 | J84: 68 | K84: 52 | L84: 51 | M84: 2 | N84: 0 | O84: 0
A85: 紡織纖維21 | B85: 紡織纖維32 | C85: 1451 年興 | D85: 紡織纖維 | E85: M1400 | F85: 550618 | G85: 535664 | H85: 2.79 | I85: 14954 | J85: 68 | K85: 52 | L85: 21 | M85: 32 | N85: 0 | O85: 0
A86: 紡織纖維35 | B86: 紡織纖維18 | C86: 1452 宏益 | D86: 紡織纖維 | E86: M1400 | F86: 91925 | G86: 101890 | H86: -9.78 | I86: -9965 | J86: 68 | K86: 52 | L86: 35 | M86: 18 | N86: 0 | O86: 0
A87: 紡織纖維45 | B87: 紡織纖維8 | C87: 1454 台富 | D87: 紡織纖維 | E87: M1400 | F87: 108456 | G87: 137106 | H87: -20.9 | I87: -28650 | J87: 68 | K87: 52 | L87: 45 | M87: 8 | N87: 0 | O87: 0
A88: 紡織纖維19 | B88: 紡織纖維34 | C88: 1455 集盛 | D88: 紡織纖維 | E88: M1400 | F88: 417747 | G88: 403214 | H88: 3.6 | I88: 14533 | J88: 68 | K88: 52 | L88: 19 | M88: 34 | N88: 0 | O88: 0
A89: 紡織纖維20 | B89: 紡織纖維33 | C89: 1457 宜進 | D89: 紡織纖維 | E89: M1400 | F89: 218095 | G89: 211614 | H89: 3.06 | I89: 6481 | J89: 68 | K89: 52 | L89: 20 | M89: 33 | N89: 0 | O89: 0
A90: 紡織纖維12 | B90: 紡織纖維41 | C90: 1459 聯發 | D90: 紡織纖維 | E90: M1400 | F90: 82826 | G90: 74746 | H90: 10.81 | I90: 8080 | J90: 68 | K90: 52 | L90: 12 | M90: 41 | N90: 0 | O90: 0
A91: 紡織纖維39 | B91: 紡織纖維14 | C91: 1460 宏遠 | D91: 紡織纖維 | E91: M1400 | F91: 662268 | G91: 771403 | H91: -14.15 | I91: -109135 | J91: 68 | K91: 52 | L91: 39 | M91: 14 | N91: 0 | O91: 0
A92: 紡織纖維3 | B92: 紡織纖維50 | C92: 1463 強盛新 | D92: 紡織纖維 | E92: M1400 | F92: 27016 | G92: 19310 | H92: 39.91 | I92: 7706 | J92: 68 | K92: 52 | L92: 3 | M92: 50 | N92: 0 | O92: 0
A93: 紡織纖維30 | B93: 紡織纖維23 | C93: 1464 得力 | D93: 紡織纖維 | E93: M1400 | F93: 1061584 | G93: 1123593 | H93: -5.52 | I93: -62009 | J93: 68 | K93: 52 | L93: 30 | M93: 23 | N93: 0 | O93: 0
A94: 紡織纖維4 | B94: 紡織纖維49 | C94: 1465 偉全 | D94: 紡織纖維 | E94: M1400 | F94: 43758 | G94: 31554 | H94: 38.68 | I94: 12204 | J94: 68 | K94: 52 | L94: 4 | M94: 49 | N94: =U94 -> 0 | O94: =V94 -> 0
A95: 紡織纖維43 | B95: 紡織纖維10 | C95: 1466 聚隆 | D95: 紡織纖維 | E95: M1400 | F95: 194990 | G95: 240567 | H95: -18.95 | I95: -45577 | J95: 68 | K95: 52 | L95: 43 | M95: 10 | N95: 0 | O95: 0
A96: 紡織纖維46 | B96: 紡織纖維7 | C96: 1467 南緯 | D96: 紡織纖維 | E96: M1400 | F96: 345912 | G96: 442747 | H96: -21.87 | I96: -96835 | J96: 68 | K96: 52 | L96: 46 | M96: 7 | N96: 0 | O96: 0
A97: 紡織纖維6 | B97: 紡織纖維47 | C97: 1468 昶和 | D97: 紡織纖維 | E97: M1400 | F97: 74788 | G97: 59766 | H97: 25.13 | I97: 15022 | J97: 68 | K97: 52 | L97: 6 | M97: 47 | N97: 0 | O97: 0
A98: 紡織纖維40 | B98: 紡織纖維13 | C98: 1470 大統新創 | D98: 紡織纖維 | E98: M1400 | F98: 73862 | G98: 87108 | H98: -15.21 | I98: -13246 | J98: 68 | K98: 52 | L98: 40 | M98: 13 | N98: 0 | O98: 0
A99: 紡織纖維2 | B99: 紡織纖維51 | C99: 1473 台南 | D99: 紡織纖維 | E99: M1400 | F99: 696586 | G99: 470114 | H99: 48.17 | I99: 226472 | J99: 68 | K99: 52 | L99: 2 | M99: 51 | N99: 0 | O99: 0
A100: 紡織纖維34 | B100: 紡織纖維19 | C100: 1474 弘裕 | D100: 紡織纖維 | E100: M1400 | F100: 239437 | G100: 262667 | H100: -8.84 | I100: -23230 | J100: 68 | K100: 52 | L100: 34 | M100: 19 | N100: 0 | O100: 0
A101: 紡織纖維28 | B101: 紡織纖維25 | C101: 1475 業旺 | D101: 紡織纖維 | E101: M1400 | F101: 129122 | G101: 136128 | H101: -5.15 | I101: -7006 | J101: 68 | K101: 52 | L101: 28 | M101: 25 | N101: 0 | O101: 0
A102: 紡織纖維13 | B102: 紡織纖維40 | C102: 1476 儒鴻 | D102: 紡織纖維 | E102: M1400 | F102: 3581621 | G102: 3300238 | H102: 8.53 | I102: 281383 | J102: 68 | K102: 52 | L102: 13 | M102: 40 | N102: 0 | O102: 0
A103: 紡織纖維36 | B103: 紡織纖維17 | C103: 1477 聚陽 | D103: 紡織纖維 | E103: M1400 | F103: 2828261 | G103: 3204380 | H103: -11.74 | I103: -376119 | J103: 68 | K103: 52 | L103: 36 | M103: 17 | N103: 0 | O103: 0
A104: 紡織纖維9 | B104: 紡織纖維44 | C104: 4401 東隆興 | D104: 紡織纖維 | E104: M1400 | F104: 325432 | G104: 279350 | H104: 16.5 | I104: 46082 | J104: 68 | K104: 52 | L104: 9 | M104: 44 | N104: 0 | O104: 0
A105: 紡織纖維41 | B105: 紡織纖維12 | C105: 4402 郡都開發 | D105: 紡織纖維 | E105: M1400 | F105: 1853 | G105: 2219 | H105: -16.49 | I105: -366 | J105: 68 | K105: 52 | L105: 41 | M105: 12 | N105: 0 | O105: 0
A106: 紡織纖維17 | B106: 紡織纖維36 | C106: 4406 新昕纖 | D106: 紡織纖維 | E106: M1400 | F106: 38958 | G106: 37183 | H106: 4.77 | I106: 1775 | J106: 68 | K106: 52 | L106: 17 | M106: 36 | N106: 0 | O106: 0
A107: 紡織纖維49 | B107: 紡織纖維4 | C107: 4413 飛寶企業 | D107: 紡織纖維 | E107: M1400 | F107: 67093 | G107: 108986 | H107: -38.44 | I107: -41893 | J107: 68 | K107: 52 | L107: 49 | M107: 4 | N107: 0 | O107: 0
A108: 紡織纖維37 | B108: 紡織纖維16 | C108: 4414 如興 | D108: 紡織纖維 | E108: M1400 | F108: 1163385 | G108: 1325867 | H108: -12.25 | I108: -162482 | J108: 68 | K108: 52 | L108: 37 | M108: 16 | N108: 0 | O108: 0
A109: 紡織纖維16 | B109: 紡織纖維37 | C109: 4417 金洲 | D109: 紡織纖維 | E109: M1400 | F109: 322651 | G109: 306063 | H109: 5.42 | I109: 16588 | J109: 68 | K109: 52 | L109: 16 | M109: 37 | N109: 0 | O109: 0
A110: 紡織纖維44 | B110: 紡織纖維9 | C110: 4420 光明 | D110: 紡織纖維 | E110: M1400 | F110: 75075 | G110: 94177 | H110: -20.28 | I110: -19102 | J110: 68 | K110: 52 | L110: 44 | M110: 9 | N110: 0 | O110: 0
A111: 紡織纖維18 | B111: 紡織纖維35 | C111: 4426 利勤 | D111: 紡織纖維 | E111: M1400 | F111: 79261 | G111: 76215 | H111: 4 | I111: 3046 | J111: 68 | K111: 52 | L111: 18 | M111: 35 | N111: 0 | O111: 0
A112: 紡織纖維10 | B112: 紡織纖維43 | C112: 4432 銘旺實 | D112: 紡織纖維 | E112: M1400 | F112: 89402 | G112: 76881 | H112: 16.29 | I112: 12521 | J112: 68 | K112: 52 | L112: 10 | M112: 43 | N112: 0 | O112: 0
A113: 紡織纖維52 | B113: 紡織纖維1 | C113: 4433 興采 | D113: 紡織纖維 | E113: M1400 | F113: 278459 | G113: 608689 | H113: -54.25 | I113: -330230 | J113: 68 | K113: 52 | L113: 52 | M113: 1 | N113: 0 | O113: 0
A114: 紡織纖維42 | B114: 紡織纖維11 | C114: 4438 廣越 | D114: 紡織纖維 | E114: M1400 | F114: 1039301 | G114: 1253373 | H114: -17.08 | I114: -214072 | J114: 68 | K114: 52 | L114: 42 | M114: 11 | N114: 0 | O114: 0
A115: 紡織纖維8 | B115: 紡織纖維45 | C115: 4439 冠星-KY | D115: 紡織纖維 | E115: M1400 | F115: 543689 | G115: 454088 | H115: 19.73 | I115: 89601 | J115: 68 | K115: 52 | L115: 8 | M115: 45 | N115: 0 | O115: 0
A116: 紡織纖維26 | B116: 紡織纖維27 | C116: 4440 宜新實業 | D116: 紡織纖維 | E116: M1400 | F116: 105543 | G116: 110406 | H116: -4.4 | I116: -4863 | J116: 68 | K116: 52 | L116: 26 | M116: 27 | N116: 0 | O116: 0
A117: 紡織纖維22 | B117: 紡織纖維31 | C117: 4441 振大環球 | D117: 紡織纖維 | E117: M1400 | F117: 701250 | G117: 683432 | H117: 2.61 | I117: 17818 | J117: 68 | K117: 52 | L117: 22 | M117: 31 | N117: 0 | O117: 0
A118: 紡織纖維50 | B118: 紡織纖維3 | C118: 4442 竣邦-KY | D118: 紡織纖維 | E118: M1400 | F118: 112346 | G118: 202709 | H118: -44.58 | I118: -90363 | J118: 68 | K118: 52 | L118: 50 | M118: 3 | N118: 0 | O118: 0
A119: 紡織纖維7 | B119: 紡織纖維46 | C119: 6506 雙邦 | D119: 紡織纖維 | E119: M1400 | F119: 207965 | G119: 166893 | H119: 24.61 | I119: 41072 | J119: 68 | K119: 52 | L119: 7 | M119: 46 | N119: 0 | O119: 0
A120: 電機機械33 | B120: 電機機械66 | C120: 1503 士電 | D120: 電機機械 | E120: M1500 | F120: 4483948 | G120: 4072311 | H120: 10.11 | I120: 411637 | J120: 120 | K120: 98 | L120: 33 | M120: 66 | N120: 0 | O120: 0
A121: 電機機械74 | B121: 電機機械25 | C121: 1504 東元 | D121: 電機機械 | E121: M1500 | F121: 4643699 | G121: 5662223 | H121: -17.99 | I121: -1018524 | J121: 120 | K121: 98 | L121: 74 | M121: 25 | N121: 0 | O121: 0
A122: 電機機械20 | B122: 電機機械79 | C122: 1506 正道 | D122: 電機機械 | E122: M1500 | F122: 95635 | G122: 80275 | H122: 19.13 | I122: 15360 | J122: 120 | K122: 98 | L122: 20 | M122: 79 | N122: 0 | O122: 0
A123: 電機機械72 | B123: 電機機械27 | C123: 1513 中興電 | D123: 電機機械 | E123: M1500 | F123: 2133688 | G123: 2564559 | H123: -16.8 | I123: -430871 | J123: 120 | K123: 98 | L123: 72 | M123: 27 | N123: 0 | O123: 0
A124: 電機機械79 | B124: 電機機械20 | C124: 1514 亞力 | D124: 電機機械 | E124: M1500 | F124: 965888 | G124: 1223463 | H124: -21.05 | I124: -257575 | J124: 120 | K124: 98 | L124: 79 | M124: 20 | N124: 0 | O124: 0
A125: 電機機械77 | B125: 電機機械22 | C125: 1515 力山 | D125: 電機機械 | E125: M1500 | F125: 450296 | G125: 555964 | H125: -19.01 | I125: -105668 | J125: 120 | K125: 98 | L125: 77 | M125: 22 | N125: 0 | O125: 0
A126: 電機機械54 | B126: 電機機械45 | C126: 1517 利奇 | D126: 電機機械 | E126: M1500 | F126: 181152 | G126: 183763 | H126: -1.42 | I126: -2611 | J126: 120 | K126: 98 | L126: 54 | M126: 45 | N126: 0 | O126: 0
A127: 電機機械94 | B127: 電機機械5 | C127: 1519 華城 | D127: 電機機械 | E127: M1500 | F127: 1356774 | G127: 3888791 | H127: -65.11 | I127: -2532017 | J127: 120 | K127: 98 | L127: 94 | M127: 5 | N127: 0 | O127: 0
A128: 電機機械60 | B128: 電機機械39 | C128: 1526 日馳 | D128: 電機機械 | E128: M1500 | F128: 55083 | G128: 59074 | H128: -6.76 | I128: -3991 | J128: 120 | K128: 98 | L128: 60 | M128: 39 | N128: 0 | O128: 0
A129: 電機機械14 | B129: 電機機械85 | C129: 1527 鑽全 | D129: 電機機械 | E129: M1500 | F129: 240478 | G129: 188483 | H129: 27.59 | I129: 51995 | J129: 120 | K129: 98 | L129: 14 | M129: 85 | N129: 0 | O129: 0
A130: 電機機械21 | B130: 電機機械78 | C130: 1528 恩德 | D130: 電機機械 | E130: M1500 | F130: 250494 | G130: 210545 | H130: 18.97 | I130: 39949 | J130: 120 | K130: 98 | L130: 21 | M130: 78 | N130: 0 | O130: 0
A131: 電機機械13 | B131: 電機機械86 | C131: 1529 樂事綠能 | D131: 電機機械 | E131: M1500 | F131: 156851 | G131: 121570 | H131: 29.02 | I131: 35281 | J131: 120 | K131: 98 | L131: 13 | M131: 86 | N131: 0 | O131: 0
A132: =D132&L132 -> 電機機械83 | B132: =D132&M132 -> 電機機械16 | C132: 1530 亞崴 | D132: 電機機械 | E132: M1500 | F132: 141251 | G132: 184549 | H132: -23.46 | I132: =F132-G132 -> -43298 | J132: =IF(E132="","",MATCH(E132,E:E,0)) -> 120 | K132: =COUNTIF(D:D,D132) -> 98 | L132: =IF(H132="","",RANK(H132,OFFSET(H$1,$J132-1,,$K132,),0)) -> 83 | M132: =IF(H132="","",RANK(H132,OFFSET(H$1,$J132-1,,$K132,),1)) -> 16 | N132: 0 | O132: 0
A133: 電機機械70 | B133: 電機機械29 | C133: 1531 高林股 | D133: 電機機械 | E133: M1500 | F133: 117207 | G133: 133712 | H133: -12.34 | I133: -16505 | J133: 120 | K133: 98 | L133: 70 | M133: 29 | N133: 0 | O133: 0
A134: 電機機械37 | B134: 電機機械62 | C134: 1532 勤美 | D134: 電機機械 | E134: M1500 | F134: 1082068 | G134: 1017860 | H134: 6.31 | I134: 64208 | J134: 120 | K134: 98 | L134: 37 | M134: 62 | N134: 0 | O134: 0
A135: 電機機械85 | B135: 電機機械14 | C135: 1535 中宇 | D135: 電機機械 | E135: M1500 | F135: 630751 | G135: 910342 | H135: -30.71 | I135: -279591 | J135: 120 | K135: 98 | L135: 85 | M135: 14 | N135: 0 | O135: 0
A136: 電機機械31 | B136: 電機機械68 | C136: 1537 廣隆 | D136: 電機機械 | E136: M1500 | F136: 618676 | G136: 557114 | H136: 11.05 | I136: 61562 | J136: 120 | K136: 98 | L136: 31 | M136: 68 | N136: 0 | O136: 0
A137: 電機機械93 | B137: 電機機械6 | C137: 1538 正峰 | D137: 電機機械 | E137: M1500 | F137: 4606 | G137: 9989 | H137: -53.89 | I137: -5383 | J137: 120 | K137: 98 | L137: 93 | M137: 6 | N137: 0 | O137: 0
A138: 電機機械24 | B138: 電機機械75 | C138: 1539 巨庭 | D138: 電機機械 | E138: M1500 | F138: 92097 | G138: 78913 | H138: 16.71 | I138: 13184 | J138: 120 | K138: 98 | L138: 24 | M138: 75 | N138: 0 | O138: 0
A139: 電機機械16 | B139: 電機機械83 | C139: 1540 喬福 | D139: 電機機械 | E139: M1500 | F139: 36298 | G139: 29325 | H139: 23.78 | I139: 6973 | J139: 120 | K139: 98 | L139: 16 | M139: 83 | N139: 0 | O139: 0
A140: 電機機械32 | B140: 電機機械67 | C140: 1541 錩泰 | D140: 電機機械 | E140: M1500 | F140: 248105 | G140: 224189 | H140: 10.67 | I140: 23916 | J140: 120 | K140: 98 | L140: 32 | M140: 67 | N140: 0 | O140: 0
A141: 電機機械8 | B141: 電機機械91 | C141: 1558 伸興 | D141: 電機機械 | E141: M1500 | F141: 719888 | G141: 516979 | H141: 39.25 | I141: 202909 | J141: 120 | K141: 98 | L141: 8 | M141: 91 | N141: 0 | O141: 0
A142: 電機機械43 | B142: 電機機械56 | C142: 1560 中砂 | D142: 電機機械 | E142: M1500 | F142: 752917 | G142: 735634 | H142: 2.35 | I142: 17283 | J142: 120 | K142: 98 | L142: 43 | M142: 56 | N142: 0 | O142: 0
A143: 電機機械1 | B143: 電機機械98 | C143: 1570 力肯 | D143: 電機機械 | E143: M1500 | F143: 44781 | G143: 7049 | H143: 535.28 | I143: 37732 | J143: 120 | K143: 98 | L143: 1 | M143: 98 | N143: 0 | O143: 0
A144: 電機機械46 | B144: 電機機械53 | C144: 1580 新麥 | D144: 電機機械 | E144: M1500 | F144: 430388 | G144: 422961 | H144: 1.76 | I144: 7427 | J144: 120 | K144: 98 | L144: 46 | M144: 53 | N144: 0 | O144: 0
A145: 電機機械73 | B145: 電機機械26 | C145: 1583 程泰 | D145: 電機機械 | E145: M1500 | F145: 312111 | G145: 380350 | H145: -17.94 | I145: -68239 | J145: 120 | K145: 98 | L145: 73 | M145: 26 | N145: 0 | O145: 0
A146: 電機機械39 | B146: 電機機械60 | C146: 1586 和勤 | D146: 電機機械 | E146: M1500 | F146: 218429 | G146: 208815 | H146: 4.6 | I146: 9614 | J146: 120 | K146: 98 | L146: 39 | M146: 60 | N146: 0 | O146: 0
A147: 電機機械63 | B147: 電機機械36 | C147: 1589 永冠-KY | D147: 電機機械 | E147: M1500 | F147: 645088 | G147: 701808 | H147: -8.08 | I147: -56720 | J147: 120 | K147: 98 | L147: 63 | M147: 36 | N147: 0 | O147: 0
A148: 電機機械30 | B148: 電機機械69 | C148: 1590 亞德客-KY | D148: 電機機械 | E148: M1500 | F148: 3702382 | G148: 3312944 | H148: 11.76 | I148: 389438 | J148: 120 | K148: 98 | L148: 30 | M148: 69 | N148: 0 | O148: 0
A149: 電機機械5 | B149: 電機機械94 | C149: 1591 駿吉-KY | D149: 電機機械 | E149: M1500 | F149: 44016 | G149: 26971 | H149: 63.2 | I149: 17045 | J149: 120 | K149: 98 | L149: 5 | M149: 94 | N149: 0 | O149: 0
A150: 電機機械67 | B150: 電機機械32 | C150: 1597 直得 | D150: 電機機械 | E150: M1500 | F150: 107622 | G150: 119726 | H150: -10.11 | I150: -12104 | J150: 120 | K150: 98 | L150: 67 | M150: 32 | N150: 0 | O150: 0
A151: 電機機械4 | B151: 電機機械95 | C151: 1599 宏佳騰 | D151: 電機機械 | E151: M1500 | F151: 213510 | G151: 122881 | H151: 73.75 | I151: 90629 | J151: 120 | K151: 98 | L151: 4 | M151: 95 | N151: 0 | O151: 0
A152: 電機機械56 | B152: 電機機械43 | C152: 2049 上銀 | D152: 電機機械 | E152: M1500 | F152: 2150023 | G152: 2219675 | H152: -3.14 | I152: -69652 | J152: 120 | K152: 98 | L152: 56 | M152: 43 | N152: 0 | O152: 0
A153: 電機機械7 | B153: 電機機械92 | C153: 2066 世德 | D153: 電機機械 | E153: M1500 | F153: 238572 | G153: 166574 | H153: 43.22 | I153: 71998 | J153: 120 | K153: 98 | L153: 7 | M153: 92 | N153: 0 | O153: 0
A154: 電機機械65 | B154: 電機機械34 | C154: 2067 嘉鋼 | D154: 電機機械 | E154: M1500 | F154: 87856 | G154: 96694 | H154: -9.14 | I154: -8838 | J154: 120 | K154: 98 | L154: 65 | M154: 34 | N154: 0 | O154: 0
A155: 電機機械91 | B155: 電機機械8 | C155: 2070 精湛 | D155: 電機機械 | E155: M1500 | F155: 46109 | G155: 92780 | H155: -50.3 | I155: -46671 | J155: 120 | K155: 98 | L155: 91 | M155: 8 | N155: 0 | O155: 0
A156: 電機機械71 | B156: 電機機械28 | C156: 2230 泰茂 | D156: 電機機械 | E156: M1500 | F156: 256031 | G156: 295349 | H156: -13.31 | I156: -39318 | J156: 120 | K156: 98 | L156: 71 | M156: 28 | N156: 0 | O156: 0
A157: 電機機械17 | B157: 電機機械82 | C157: 2235 謚源 | D157: 電機機械 | E157: M1500 | F157: 51770 | G157: 42401 | H157: 22.1 | I157: 9369 | J157: 120 | K157: 98 | L157: 17 | M157: 82 | N157: 0 | O157: 0
A158: 電機機械69 | B158: 電機機械30 | C158: 2371 大同 | D158: 電機機械 | E158: M1500 | F158: 4244071 | G158: 4803047 | H158: -11.64 | I158: -558976 | J158: 120 | K158: 98 | L158: 69 | M158: 30 | N158: =U158 -> 0 | O158: =V158 -> 0
A159: 電機機械49 | B159: 電機機械50 | C159: 3162 精確 | D159: 電機機械 | E159: M1500 | F159: 749985 | G159: 746450 | H159: 0.47 | I159: 3535 | J159: 120 | K159: 98 | L159: 49 | M159: 50 | N159: 0 | O159: 0
A160: 電機機械34 | B160: 電機機械65 | C160: 3167 大量 | D160: 電機機械 | E160: M1500 | F160: 601545 | G160: 559398 | H160: 7.53 | I160: 42147 | J160: 120 | K160: 98 | L160: 34 | M160: 65 | N160: 0 | O160: 0
A161: 電機機械42 | B161: 電機機械57 | C161: 3226 龍鋒 | D161: 電機機械 | E161: M1500 | F161: 124369 | G161: 121023 | H161: 2.76 | I161: 3346 | J161: 120 | K161: 98 | L161: 42 | M161: 57 | N161: 0 | O161: 0
A162: 電機機械98 | B162: 電機機械1 | C162: 3379 彬台 | D162: 電機機械 | E162: M1500 | F162: 79889 | G162: 354514 | H162: -77.47 | I162: -274625 | J162: 120 | K162: 98 | L162: 98 | M162: 1 | N162: 0 | O162: 0
A163: 電機機械9 | B163: 電機機械90 | C163: 3426 台興 | D163: 電機機械 | E163: M1500 | F163: 46352 | G163: 33486 | H163: 38.42 | I163: 12866 | J163: 120 | K163: 98 | L163: 9 | M163: 90 | N163: 0 | O163: 0
A164: 電機機械86 | B164: 電機機械13 | C164: 3685 元創精密 | D164: 電機機械 | E164: M1500 | F164: 118762 | G164: 173935 | H164: -31.72 | I164: -55173 | J164: 120 | K164: 98 | L164: 86 | M164: 13 | N164: 0 | O164: 0
A165: 電機機械50 | B165: 電機機械49 | C165: 4502 健信 | D165: 電機機械 | E165: M1500 | F165: 80533 | G165: 80550 | H165: -0.02 | I165: -17 | J165: 120 | K165: 98 | L165: 50 | M165: 49 | N165: 0 | O165: 0
A166: 電機機械48 | B166: 電機機械51 | C166: 4503 金雨 | D166: 電機機械 | E166: M1500 | F166: 40962 | G166: 40576 | H166: 0.95 | I166: 386 | J166: 120 | K166: 98 | L166: 48 | M166: 51 | N166: 0 | O166: 0
A167: 電機機械3 | B167: 電機機械96 | C167: 4506 崇友 | D167: 電機機械 | E167: M1500 | F167: 659335 | G167: 375083 | H167: 75.78 | I167: 284252 | J167: 120 | K167: 98 | L167: 3 | M167: 96 | N167: 0 | O167: 0
A168: 電機機械78 | B168: 電機機械21 | C168: 4510 高鋒 | D168: 電機機械 | E168: M1500 | F168: 142530 | G168: 176601 | H168: -19.29 | I168: -34071 | J168: 120 | K168: 98 | L168: 78 | M168: 21 | N168: 0 | O168: 0
A169: 電機機械84 | B169: 電機機械15 | C169: 4513 福裕 | D169: 電機機械 | E169: M1500 | F169: 83606 | G169: 114080 | H169: -26.71 | I169: -30474 | J169: 120 | K169: 98 | L169: 84 | M169: 15 | N169: 0 | O169: 0
A170: 電機機械2 | B170: 電機機械97 | C170: 4523 永彰 | D170: 電機機械 | E170: M1500 | F170: 211809 | G170: 40598 | H170: 421.72 | I170: 171211 | J170: 120 | K170: 98 | L170: 2 | M170: 97 | N170: 0 | O170: 0
A171: 電機機械88 | B171: 電機機械11 | C171: 4526 東台 | D171: 電機機械 | E171: M1500 | F171: 357638 | G171: 563707 | H171: -36.56 | I171: -206069 | J171: 120 | K171: 98 | L171: 88 | M171: 11 | N171: 0 | O171: 0
A172: 電機機械95 | B172: 電機機械4 | C172: 4527 方方土霖 | D172: 電機機械 | E172: M1500 | F172: 180285 | G172: 580681 | H172: -68.95 | I172: -400396 | J172: 120 | K172: 98 | L172: 95 | M172: 4 | N172: 0 | O172: 0
A173: 電機機械62 | B173: 電機機械37 | C173: 4528 江興鍛 | D173: 電機機械 | E173: M1500 | F173: 143809 | G173: 155923 | H173: -7.77 | I173: -12114 | J173: 120 | K173: 98 | L173: 62 | M173: 37 | N173: 0 | O173: 0
A174: 電機機械23 | B174: 電機機械76 | C174: 4532 瑞智 | D174: 電機機械 | E174: M1500 | F174: 1964103 | G174: 1682788 | H174: 16.72 | I174: 281315 | J174: 120 | K174: 98 | L174: 23 | M174: 76 | N174: 0 | O174: 0
A175: 電機機械66 | B175: 電機機械33 | C175: 4533 協易機 | D175: 電機機械 | E175: M1500 | F175: 345624 | G175: 383165 | H175: -9.8 | I175: -37541 | J175: 120 | K175: 98 | L175: 66 | M175: 33 | N175: 0 | O175: 0
A176: 電機機械68 | B176: 電機機械31 | C176: 4534 慶騰 | D176: 電機機械 | E176: M1500 | F176: 88015 | G176: 99101 | H176: -11.19 | I176: -11086 | J176: 120 | K176: 98 | L176: 68 | M176: 31 | N176: 0 | O176: 0
A177: 電機機械28 | B177: 電機機械71 | C177: 4535 至興 | D177: 電機機械 | E177: M1500 | F177: 243338 | G177: 213972 | H177: 13.72 | I177: 29366 | J177: 120 | K177: 98 | L177: 28 | M177: 71 | N177: 0 | O177: 0
A178: 電機機械53 | B178: 電機機械46 | C178: 4538 大詠城 | D178: 電機機械 | E178: M1500 | F178: 33769 | G178: 34218 | H178: -1.31 | I178: -449 | J178: 120 | K178: 98 | L178: 53 | M178: 46 | N178: 0 | O178: 0
A179: 電機機械52 | B179: 電機機械47 | C179: 4540 全球傳動 | D179: 電機機械 | E179: M1500 | F179: 269099 | G179: 271685 | H179: -0.95 | I179: -2586 | J179: 120 | K179: 98 | L179: 52 | M179: 47 | N179: 0 | O179: 0
A180: 電機機械41 | B180: 電機機械58 | C180: 4543 萬在 | D180: 電機機械 | E180: M1500 | F180: 84163 | G180: 81685 | H180: 3.03 | I180: 2478 | J180: 120 | K180: 98 | L180: 41 | M180: 58 | N180: 0 | O180: 0
A181: 電機機械40 | B181: 電機機械59 | C181: 4549 桓達 | D181: 電機機械 | E181: M1500 | F181: 94428 | G181: 90833 | H181: 3.96 | I181: 3595 | J181: 120 | K181: 98 | L181: 40 | M181: 59 | N181: 0 | O181: 0
A182: 電機機械80 | B182: 電機機械19 | C182: 4550 長佳 | D182: 電機機械 | E182: M1500 | F182: 104841 | G182: 134117 | H182: -21.83 | I182: -29276 | J182: 120 | K182: 98 | L182: 80 | M182: 19 | N182: 0 | O182: 0
A183: 電機機械47 | B183: 電機機械52 | C183: 4552 力達-KY | D183: 電機機械 | E183: M1500 | F183: 280599 | G183: 277458 | H183: 1.13 | I183: 3141 | J183: 120 | K183: 98 | L183: 47 | M183: 52 | N183: 0 | O183: 0
A184: 電機機械55 | B184: 電機機械44 | C184: 4555 氣立 | D184: 電機機械 | E184: M1500 | F184: 143315 | G184: 147040 | H184: -2.53 | I184: -3725 | J184: 120 | K184: 98 | L184: 55 | M184: 44 | N184: 0 | O184: 0
A185: 電機機械26 | B185: 電機機械73 | C185: 4558 寶緯 | D185: 電機機械 | E185: M1500 | F185: 101456 | G185: 88719 | H185: 14.36 | I185: 12737 | J185: 120 | K185: 98 | L185: 26 | M185: 73 | N185: 0 | O185: 0
A186: 電機機械61 | B186: 電機機械38 | C186: 4560 強信-KY | D186: 電機機械 | E186: M1500 | F186: 144830 | G186: 156396 | H186: -7.4 | I186: -11566 | J186: 120 | K186: 98 | L186: 61 | M186: 38 | N186: 0 | O186: 0
A187: 電機機械6 | B187: 電機機械93 | C187: 4561 健椿 | D187: 電機機械 | E187: M1500 | F187: 87281 | G187: 58193 | H187: 49.99 | I187: 29088 | J187: 120 | K187: 98 | L187: 6 | M187: 93 | N187: 0 | O187: 0
A188: 電機機械12 | B188: 電機機械87 | C188: 4562 穎漢 | D188: 電機機械 | E188: M1500 | F188: 70920 | G188: 54747 | H188: 29.54 | I188: 16173 | J188: 120 | K188: 98 | L188: 12 | M188: 87 | N188: 0 | O188: 0
A189: 電機機械92 | B189: 電機機械7 | C189: 4563 百德 | D189: 電機機械 | E189: M1500 | F189: 143729 | G189: 301361 | H189: -52.31 | I189: -157632 | J189: 120 | K189: 98 | L189: 92 | M189: 7 | N189: 0 | O189: 0
A190: 電機機械82 | B190: 電機機械17 | C190: 4564 元翎 | D190: 電機機械 | E190: M1500 | F190: 82887 | G190: 107284 | H190: -22.74 | I190: -24397 | J190: 120 | K190: 98 | L190: 82 | M190: 17 | N190: 0 | O190: 0
A191: 電機機械15 | B191: 電機機械84 | C191: 4566 時碩工業 | D191: 電機機械 | E191: M1500 | F191: 507793 | G191: 399679 | H191: 27.05 | I191: 108114 | J191: 120 | K191: 98 | L191: 15 | M191: 84 | N191: 0 | O191: 0
A192: 電機機械58 | B192: 電機機械41 | C192: 4568 科際精密 | D192: 電機機械 | E192: M1500 | F192: 105619 | G192: 110434 | H192: -4.36 | I192: -4815 | J192: 120 | K192: 98 | L192: 58 | M192: 41 | N192: 0 | O192: 0
A193: 電機機械10 | B193: 電機機械89 | C193: 4571 鈞興-KY | D193: 電機機械 | E193: M1500 | F193: 332623 | G193: 251857 | H193: 32.07 | I193: 80766 | J193: 120 | K193: 98 | L193: 10 | M193: 89 | N193: 0 | O193: 0
A194: 電機機械35 | B194: 電機機械63 | C194: 4572 駐龍 | D194: 電機機械 | E194: M1500 | F194: 56391 | G194: 52571 | H194: 7.27 | I194: 3820 | J194: 120 | K194: 98 | L194: 35 | M194: 63 | N194: 0 | O194: 0
A195: 電機機械51 | B195: 電機機械48 | C195: 4576 大銀微系統 | D195: 電機機械 | E195: M1500 | F195: 278321 | G195: 279398 | H195: -0.39 | I195: -1077 | J195: 120 | K195: 98 | L195: 51 | M195: 48 | N195: 0 | O195: 0
A196: =D196&L196 -> 電機機械44 | B196: =D196&M196 -> 電機機械55 | C196: 4580 捷流閥業 | D196: 電機機械 | E196: M1500 | F196: 195090 | G196: 191168 | H196: 2.05 | I196: =F196-G196 -> 3922 | J196: =IF(E196="","",MATCH(E196,E:E,0)) -> 120 | K196: =COUNTIF(D:D,D196) -> 98 | L196: =IF(H196="","",RANK(H196,OFFSET(H$1,$J196-1,,$K196,),0)) -> 44 | M196: =IF(H196="","",RANK(H196,OFFSET(H$1,$J196-1,,$K196,),1)) -> 55 | N196: 0 | O196: 0
A197: 電機機械19 | B197: 電機機械80 | C197: 4583 台灣精銳 | D197: 電機機械 | E197: M1500 | F197: 296883 | G197: 248519 | H197: 19.46 | I197: 48364 | J197: 120 | K197: 98 | L197: 19 | M197: 80 | N197: 0 | O197: 0
A198: 電機機械45 | B198: 電機機械54 | C198: 4584 君帆 | D198: 電機機械 | E198: M1500 | F198: 97835 | G198: 95911 | H198: 2.01 | I198: 1924 | J198: 120 | K198: 98 | L198: 45 | M198: 54 | N198: 0 | O198: 0
A199: 電機機械22 | B199: 電機機械77 | C199: 5288 豐祥-KY | D199: 電機機械 | E199: M1500 | F199: 804362 | G199: 678521 | H199: 18.55 | I199: 125841 | J199: 120 | K199: 98 | L199: 22 | M199: 77 | N199: 0 | O199: 0
A200: 電機機械89 | B200: 電機機械10 | C200: 6122 擎邦 | D200: 電機機械 | E200: M1500 | F200: 291171 | G200: 516567 | H200: -43.63 | I200: -225396 | J200: 120 | K200: 98 | L200: 89 | M200: 10 | N200: 0 | O200: 0
... 2800 more rows

Sheet 表C_RAW
A1: 排名(正向) | B1: 排名(反向) | D1: TSE新產業_名稱 | E1: TSE新產業_代碼 | F1: 累計營收(千元) | G1: 去年累計營收(千元) | H1: 累計營收成長率％ | J1: 產業位址 | K1: 產業家數 | L1: 排名(正向) | M1: 排名(反向) | N1: 排名(正向) | O1: 排名(反向) | P1: 產業營收 | Q1: 單月營收(千元) | R1: 上月單月營收(千元) | S1: 本月較上月變動金額 | T1: 單月營收與上月比％ | U1: 排名(正向) | V1: 排名(反向)
C2: 公司 | E2: 2026-01-30 | F2: 2026-01-30 | G2: 2026-01-30 | H2: 2026-01-30 | N2: =U2 -> 27 | O2: =V2 -> 8 | P2: =_xlfn.UNIQUE($D$3:$D$2500,FALSE,FALSE) -> 水泥工業 | Q2: =SUMIF($D:$D,$P2,F:F) -> 20162036 | R2: =SUMIF($D:$D,$P2,G:G) -> 20036404 | S2: =Q2-R2 -> 125632 | T2: =IF(VLOOKUP(P2,$D:$K,8,0)=1,"",ROUND(S2/R2*100,2)) -> 0.63 | U2: =IF($T2="",0,_xlfn.RANK.EQ(T2,T:T)) -> 27 | V2: =IF($T2="",0,_xlfn.RANK.EQ(T2,T:T,1)) -> 8
A3: =D3&L3 -> 水泥工業4 | B3: =D3&M3 -> 水泥工業4 | C3: 1101 台泥 | D3: 水泥工業 | E3: M1100 | F3: 12252892 | G3: 12213350 | H3: 0.32 | I3: =F3-G3 -> 39542 | J3: =IF(E3="","",MATCH(E3,E:E,0)) -> 3 | K3: =COUNTIF(D:D,D3) -> 7 | L3: =IF(H3="","",RANK(H3,OFFSET(H$1,$J3-1,,$K3,),0)) -> 4 | M3: =IF(H3="","",RANK(H3,OFFSET(H$1,$J3-1,,$K3,),1)) -> 4 | N3: =U3 -> 25 | O3: 10 | P3: 食品工業 | Q3: =SUMIF($D:$D,$P3,F:F) -> 99345447 | R3: 96356113 | S3: =Q3-R3 -> 2989334 | T3: =IF(VLOOKUP(P3,$D:$K,8,0)=1,"",ROUND(S3/R3*100,2)) -> 3.1 | U3: =IF($T3="",0,_xlfn.RANK.EQ(T3,T:T)) -> 25 | V3: =IF($T3="",0,_xlfn.RANK.EQ(T3,T:T,1)) -> 10
A4: =D4&L4 -> 水泥工業3 | B4: =D4&M4 -> 水泥工業5 | C4: 1102 亞泥 | D4: 水泥工業 | E4: M1100 | F4: 5986964 | G4: 5877674 | H4: 1.86 | I4: =F4-G4 -> 109290 | J4: =IF(E4="","",MATCH(E4,E:E,0)) -> 3 | K4: =COUNTIF(D:D,D4) -> 7 | L4: =IF(H4="","",RANK(H4,OFFSET(H$1,$J4-1,,$K4,),0)) -> 3 | M4: =IF(H4="","",RANK(H4,OFFSET(H$1,$J4-1,,$K4,),1)) -> 5 | N4: 22 | O4: 13 | P4: 塑膠工業 | Q4: 81526757 | R4: 76953163 | S4: 4573594 | T4: 5.94 | U4: 22 | V4: 13
A5: 水泥工業5 | B5: 水泥工業3 | C5: 1103 嘉泥 | D5: 水泥工業 | E5: M1100 | F5: 256819 | G5: 268003 | H5: -4.17 | I5: -11184 | J5: 3 | K5: 7 | L5: 5 | M5: 3 | N5: 28 | O5: 7 | P5: 紡織纖維 | Q5: 49614535 | R5: 50311582 | S5: -697047 | T5: -1.39 | U5: 28 | V5: 7
A6: 水泥工業2 | B6: 水泥工業6 | C6: 1104 環泥 | D6: 水泥工業 | E6: M1100 | F6: 718229 | G6: 687804 | H6: 4.42 | I6: 30425 | J6: 3 | K6: 7 | L6: 2 | M6: 6 | N6: 12 | O6: 23 | P6: 電機機械 | Q6: 49101812 | R6: 42161729 | S6: 6940083 | T6: 16.46 | U6: 12 | V6: 23
A7: 水泥工業7 | B7: 水泥工業1 | C7: 1108 幸福 | D7: 水泥工業 | E7: M1100 | F7: 374664 | G7: 448229 | H7: -16.41 | I7: -73565 | J7: 3 | K7: 7 | L7: 7 | M7: 1 | N7: 19 | O7: 16 | P7: 電器電纜 | Q7: 24771537 | R7: 22877519 | S7: 1894018 | T7: 8.28 | U7: 19 | V7: 16
A8: 水泥工業1 | B8: 水泥工業7 | C8: 1109 信大 | D8: 水泥工業 | E8: M1100 | F8: 373777 | G8: 304555 | H8: 22.73 | I8: 69222 | J8: 3 | K8: 7 | L8: 1 | M8: 7 | N8: 14 | O8: 21 | P8: 化學工業 | Q8: 29949353 | R8: 25881121 | S8: 4068232 | T8: 15.72 | U8: 14 | V8: 21
A9: 水泥工業6 | B9: 水泥工業2 | C9: 1110 東泥 | D9: 水泥工業 | E9: M1100 | F9: 198691 | G9: 236789 | H9: -16.09 | I9: -38098 | J9: 3 | K9: 7 | L9: 6 | M9: 2 | N9: 18 | O9: 17 | P9: 生技醫療業 | Q9: 28272824 | R9: 26000919 | S9: 2271905 | T9: 8.74 | U9: 18 | V9: 17
A10: 食品工業30 | B10: 食品工業4 | C10: 1201 味全 | D10: 食品工業 | E10: M1200 | F10: 1676231 | G10: 1913014 | H10: -12.38 | I10: -236783 | J10: 10 | K10: 33 | L10: 30 | M10: 4 | N10: 11 | O10: 24 | P10: 玻璃陶瓷 | Q10: 4830965 | R10: 4115602 | S10: 715363 | T10: 17.38 | U10: 11 | V10: 24
A11: 食品工業31 | B11: 食品工業3 | C11: 1203 味王 | D11: 食品工業 | E11: M1200 | F11: 461815 | G11: 540262 | H11: -14.52 | I11: -78447 | J11: 10 | K11: 33 | L11: 31 | M11: 3 | N11: 9 | O11: 26 | P11: 造紙工業 | Q11: 17112294 | R11: 14506646 | S11: 2605648 | T11: 17.96 | U11: 9 | V11: 26
A12: 食品工業15 | B12: 食品工業19 | C12: 1210 大成 | D12: 食品工業 | E12: M1200 | F12: 9726934 | G12: 8684590 | H12: 12 | I12: 1042344 | J12: 10 | K12: 33 | L12: 15 | M12: 19 | N12: 21 | O12: 14 | P12: 鋼鐵工業 | Q12: 79087864 | R12: 74354462 | S12: 4733402 | T12: 6.37 | U12: 21 | V12: 14
A13: 食品工業16 | B13: 食品工業18 | C13: 1213 大飲 | D13: 食品工業 | E13: M1200 | F13: 24751 | G13: 22379 | H13: 10.6 | I13: 2372 | J13: 10 | K13: 33 | L13: 16 | M13: 18 | N13: 20 | O13: 15 | P13: 橡膠工業 | Q13: 18103612 | R13: 16960831 | S13: 1142781 | T13: 6.74 | U13: 20 | V13: 15
A14: 食品工業14 | B14: 食品工業20 | C14: 1215 卜蜂 | D14: 食品工業 | E14: M1200 | F14: 2634849 | G14: 2331017 | H14: 13.03 | I14: 303832 | J14: 10 | K14: 33 | L14: 14 | M14: 20 | N14: 23 | O14: 12 | P14: 汽車工業 | Q14: 65277076 | R14: 62369147 | S14: 2907929 | T14: 4.66 | U14: 23 | V14: 12
A15: 食品工業22 | B15: 食品工業12 | C15: 1216 統一 | D15: 食品工業 | E15: M1200 | F15: 66104462 | G15: 65755516 | H15: 0.53 | I15: 348946 | J15: 10 | K15: 33 | L15: 22 | M15: 12 | N15: 7 | O15: 28 | P15: 半導體業 | Q15: 732978896 | R15: 555006101 | S15: 177972795 | T15: 32.07 | U15: 7 | V15: 28
A16: 食品工業24 | B16: 食品工業10 | C16: 1217 愛之味 | D16: 食品工業 | E16: M1200 | F16: 462021 | G16: 469134 | H16: -1.52 | I16: -7113 | J16: 10 | K16: 33 | L16: 24 | M16: 10 | N16: 3 | O16: 32 | P16: 電腦及週邊設備業 | Q16: 1047774254 | R16: 683967796 | S16: 363806458 | T16: 53.19 | U16: 3 | V16: 32
A17: 食品工業19 | B17: 食品工業15 | C17: 1218 泰山 | D17: 食品工業 | E17: M1200 | F17: 943672 | G17: 887717 | H17: 6.3 | I17: 55955 | J17: 10 | K17: 33 | L17: 19 | M17: 15 | N17: 15 | O17: 20 | P17: 光電業 | Q17: 114362584 | R17: 99096976 | S17: 15265608 | T17: 15.4 | U17: 15 | V17: 20
A18: 食品工業17 | B18: 食品工業17 | C18: 1219 福壽 | D18: 食品工業 | E18: M1200 | F18: 1271934 | G18: 1178879 | H18: 7.89 | I18: 93055 | J18: 10 | K18: 33 | L18: 17 | M18: 17 | N18: 10 | O18: 25 | P18: 通訊網路業 | Q18: 116795549 | R18: 99176191 | S18: 17619358 | T18: 17.77 | U18: 10 | V18: 25
A19: 食品工業7 | B19: 食品工業27 | C19: 1220 台榮 | D19: 食品工業 | E19: M1200 | F19: 288493 | G19: 218906 | H19: 31.79 | I19: 69587 | J19: 10 | K19: 33 | L19: 7 | M19: 27 | N19: 8 | O19: 27 | P19: 電子零組件 | Q19: 255208320 | R19: 203859043 | S19: 51349277 | T19: 25.19 | U19: 8 | V19: 27
A20: 食品工業9 | B20: 食品工業25 | C20: 1225 福懋油 | D20: 食品工業 | E20: M1200 | F20: 1313398 | G20: 1090255 | H20: 20.47 | I20: 223143 | J20: 10 | K20: 33 | L20: 9 | M20: 25 | N20: 2 | O20: 33 | P20: 電子通路業 | Q20: 432604697 | R20: 248586418 | S20: 184018279 | T20: 74.03 | U20: 2 | V20: 33
A21: 食品工業11 | B21: 食品工業23 | C21: 1227 佳格 | D21: 食品工業 | E21: M1200 | F21: 3796317 | G21: 3268631 | H21: 16.14 | I21: 527686 | J21: 10 | K21: 33 | L21: 11 | M21: 23 | N21: 5 | O21: 30 | P21: 資訊服務業 | Q21: 20300243 | R21: 14970948 | S21: 5329295 | T21: 35.6 | U21: 5 | V21: 30
A22: 食品工業12 | B22: 食品工業22 | C22: 1229 聯華 | D22: 食品工業 | E22: M1200 | F22: 996429 | G22: 864201 | H22: 15.3 | I22: 132228 | J22: 10 | K22: 33 | L22: 12 | M22: 22 | N22: 6 | O22: 29 | P22: 其他電子業 | Q22: 825073414 | R22: 612478079 | S22: 212595335 | T22: 34.71 | U22: 6 | V22: 29
A23: 食品工業23 | B23: 食品工業11 | C23: 1231 聯華食 | D23: 食品工業 | E23: M1200 | F23: 1271114 | G23: 1289469 | H23: -1.42 | I23: -18355 | J23: 10 | K23: 33 | L23: 23 | M23: 11 | N23: 1 | O23: 34 | P23: 建材營造 | Q23: 54557667 | R23: 30582199 | S23: 23975468 | T23: 78.4 | U23: 1 | V23: 34
A24: 食品工業8 | B24: 食品工業26 | C24: 1232 大統益 | D24: 食品工業 | E24: M1200 | F24: 2213265 | G24: 1828340 | H24: 21.05 | I24: 384925 | J24: 10 | K24: 33 | L24: 8 | M24: 26 | N24: 32 | O24: 3 | P24: 航運業 | Q24: 126948450 | R24: 143359910 | S24: -16411460 | T24: -11.45 | U24: 32 | V24: 3
A25: 食品工業28 | B25: 食品工業6 | C25: 1233 天仁 | D25: 食品工業 | E25: M1200 | F25: 198102 | G25: 220238 | H25: -10.05 | I25: -22136 | J25: 10 | K25: 33 | L25: 28 | M25: 6 | N25: 31 | O25: 4 | P25: 觀光餐旅 | Q25: 16709766 | R25: 18354198 | S25: -1644432 | T25: -8.96 | U25: 31 | V25: 4
A26: 食品工業27 | B26: 食品工業7 | C26: 1234 黑松 | D26: 食品工業 | E26: M1200 | F26: 794428 | G26: 842531 | H26: -5.71 | I26: -48103 | J26: 10 | K26: 33 | L26: 27 | M26: 7 | N26: 4 | O26: 31 | P26: 金融業 | Q26: 51970271 | R26: 35525165 | S26: 16445106 | T26: 46.29 | U26: 4 | V26: 31
A27: 食品工業1 | B27: 食品工業33 | C27: 1235 興泰 | D27: 食品工業 | E27: M1200 | F27: 23862 | G27: 8607 | H27: 177.24 | I27: 15255 | J27: 10 | K27: 33 | L27: 1 | M27: 33 | N27: 29 | O27: 6 | P27: 貿易百貨 | Q27: 40590833 | R27: 41212914 | S27: -622081 | T27: -1.51 | U27: 29 | V27: 6
A28: 食品工業21 | B28: 食品工業13 | C28: 1236 宏亞 | D28: 食品工業 | E28: M1200 | F28: 303656 | G28: 295078 | H28: 2.91 | I28: 8578 | J28: 10 | K28: 33 | L28: 21 | M28: 13 | N28: 13 | O28: 22 | P28: 文化創意業 | Q28: 6362101 | R28: 5477509 | S28: 884592 | T28: 16.15 | U28: 13 | V28: 22
A29: 食品工業6 | B29: 食品工業28 | C29: 1256 鮮活果汁-KY | D29: 食品工業 | E29: M1200 | F29: 448137 | G29: 328850 | H29: 36.27 | I29: 119287 | J29: 10 | K29: 33 | L29: 6 | M29: 28 | N29: 24 | O29: 11 | P29: 農業科技 | Q29: 396942 | R29: 383114 | S29: 13828 | T29: 3.61 | U29: 24 | V29: 11
A30: 食品工業20 | B30: 食品工業14 | C30: 1264 德麥 | D30: 食品工業 | E30: M1200 | F30: 720821 | G30: 681442 | H30: 5.78 | I30: 39379 | J30: 10 | K30: 33 | L30: 20 | M30: 14 | N30: =U30 -> 33 | O30: =V30 -> 2 | P30: 綠能環保 | Q30: =SUMIF($D:$D,$P30,F:F) -> 9461169 | R30: =SUMIF($D:$D,$P30,G:G) -> 10753026 | S30: =Q30-R30 -> -1291857 | T30: -12.01 | U30: 33 | V30: 2
A31: 食品工業3 | B31: 食品工業31 | C31: 1294 漢田生技 | D31: 食品工業 | E31: M1200 | F31: 90427 | G31: 41491 | H31: 117.94 | I31: 48936 | J31: 10 | K31: 33 | L31: 3 | M31: 31 | N31: 16 | O31: 19 | P31: 數位雲端 | Q31: 20994337 | R31: 19007916 | S31: 1986421 | T31: 10.45 | U31: 16 | V31: 19
A32: 食品工業13 | B32: 食品工業21 | C32: 1295 生合 | D32: 食品工業 | E32: M1200 | F32: 81085 | G32: 70889 | H32: 14.38 | I32: 10196 | J32: 10 | K32: 33 | L32: 13 | M32: 21 | N32: 34 | O32: 1 | P32: 運動休閒 | Q32: 54974397 | R32: 63392104 | S32: -8417707 | T32: -13.28 | U32: 34 | V32: 1
A33: 食品工業26 | B33: 食品工業8 | C33: 1702 南僑 | D33: 食品工業 | E33: M1200 | F33: 2104739 | G33: 2169615 | H33: -2.99 | I33: -64876 | J33: 10 | K33: 33 | L33: 26 | M33: 8 | N33: 26 | O33: 9 | P33: 居家生活 | Q33: 23726462 | R33: 23236752 | S33: 489710 | T33: 2.11 | U33: 26 | V33: 9
A34: 食品工業32 | B34: 食品工業2 | C34: 1737 臺鹽 | D34: 食品工業 | E34: M1200 | F34: 277168 | G34: 327834 | H34: -15.45 | I34: -50666 | J34: 10 | K34: 33 | L34: 32 | M34: 2 | N34: 30 | O34: 5 | P34: 油電燃氣業 | Q34: 64507216 | R34: 65569772 | S34: -1062556 | T34: -1.62 | U34: 30 | V34: 5
A35: 食品工業29 | B35: 食品工業5 | C35: 1796 金穎生技 | D35: 食品工業 | E35: M1200 | F35: 54413 | G35: 61025 | H35: -10.83 | I35: -6612 | J35: 10 | K35: 33 | L35: 29 | M35: 5 | N35: 17 | O35: 18 | P35: 其他 | Q35: 54619731 | R35: 49971860 | S35: 4647871 | T35: 9.3 | U35: 17 | V35: 18
A36: 食品工業2 | B36: 食品工業32 | C36: 3054 立萬利 | D36: 食品工業 | E36: M1200 | F36: 13427 | G36: 6052 | H36: 121.86 | I36: 7375 | J36: 10 | K36: 33 | L36: 2 | M36: 32 | N36: 0 | O36: 0 | P36: 存託憑證 | W36: *存託憑證不納入統計
A37: 食品工業25 | B37: 食品工業9 | C37: 4205 中華食 | D37: 食品工業 | E37: M1200 | F37: 173777 | G37: 178851 | H37: -2.84 | I37: -5074 | J37: 10 | K37: 33 | L37: 25 | M37: 9 | N37: 0 | O37: 0 | P37: 0
A38: 食品工業10 | B38: 食品工業24 | C38: 4207 環泰 | D38: 食品工業 | E38: M1200 | F38: 495326 | G38: 422493 | H38: 17.24 | I38: 72833 | J38: 10 | K38: 33 | L38: 10 | M38: 24 | N38: 0 | O38: 0
A39: 食品工業18 | B39: 食品工業16 | C39: 6846 綠茵 | D39: 食品工業 | E39: M1200 | F39: 55897 | G39: 52565 | H39: 6.34 | I39: 3332 | J39: 10 | K39: 33 | L39: 18 | M39: 16 | N39: 0 | O39: 0
A40: 食品工業5 | B40: 食品工業29 | C40: 7743 金利食安 | D40: 食品工業 | E40: M1200 | F40: 46325 | G40: 31887 | H40: 45.28 | I40: 14438 | J40: 10 | K40: 33 | L40: 5 | M40: 29 | N40: 0 | O40: 0
A41: 食品工業4 | B41: 食品工業30 | C41: 7780 大研生醫* | D41: 食品工業 | E41: M1200 | F41: 138385 | G41: 85763 | H41: 61.36 | I41: 52622 | J41: 10 | K41: 33 | L41: 4 | M41: 30 | N41: 0 | O41: 0
A42: 食品工業33 | B42: 食品工業1 | C42: 7791 皇家可口 | D42: 食品工業 | E42: M1200 | F42: 139787 | G42: 188592 | H42: -25.88 | I42: -48805 | J42: 10 | K42: 33 | L42: 33 | M42: 1 | N42: 0 | O42: 0
A43: 塑膠工業15 | B43: 塑膠工業11 | C43: 1301 台塑 | D43: 塑膠工業 | E43: M1300 | F43: 13891082 | G43: 13980022 | H43: -0.64 | I43: -88940 | J43: 43 | K43: 25 | L43: 15 | M43: 11 | N43: 0 | O43: 0
A44: 塑膠工業7 | B44: 塑膠工業19 | C44: 1303 南亞 | D44: 塑膠工業 | E44: M1300 | F44: 22872625 | G44: 20458289 | H44: 11.8 | I44: 2414336 | J44: 43 | K44: 25 | L44: 7 | M44: 19 | N44: 0 | O44: 0
A45: 塑膠工業16 | B45: 塑膠工業10 | C45: 1304 台聚 | D45: 塑膠工業 | E45: M1300 | F45: 3583459 | G45: 3685781 | H45: -2.78 | I45: -102322 | J45: 43 | K45: 25 | L45: 16 | M45: 10 | N45: 0 | O45: 0
A46: 塑膠工業11 | B46: 塑膠工業15 | C46: 1305 華夏 | D46: 塑膠工業 | E46: M1300 | F46: 806175 | G46: 775346 | H46: 3.98 | I46: 30829 | J46: 43 | K46: 25 | L46: 11 | M46: 15 | N46: 0 | O46: 0
A47: 塑膠工業6 | B47: 塑膠工業20 | C47: 1307 三芳 | D47: 塑膠工業 | E47: M1300 | F47: 1151903 | G47: 959988 | H47: 19.99 | I47: 191915 | J47: 43 | K47: 25 | L47: 6 | M47: 20 | N47: 0 | O47: 0
A48: 塑膠工業13 | B48: 塑膠工業13 | C48: 1308 亞聚 | D48: 塑膠工業 | E48: M1300 | F48: 448082 | G48: 437450 | H48: 2.43 | I48: 10632 | J48: 43 | K48: 25 | L48: 13 | M48: 13 | N48: 0 | O48: 0
A49: 塑膠工業18 | B49: 塑膠工業8 | C49: 1309 台達化 | D49: 塑膠工業 | E49: M1300 | F49: 1135298 | G49: 1285028 | H49: -11.65 | I49: -149730 | J49: 43 | K49: 25 | L49: 18 | M49: 8 | N49: 0 | O49: 0
A50: 塑膠工業20 | B50: 塑膠工業6 | C50: 1310 台苯 | D50: 塑膠工業 | E50: M1300 | F50: 705741 | G50: 877555 | H50: -19.58 | I50: -171814 | J50: 43 | K50: 25 | L50: 20 | M50: 6 | N50: 0 | O50: 0
A51: 塑膠工業1 | B51: 塑膠工業25 | C51: 1312 國喬 | D51: 塑膠工業 | E51: M1300 | F51: 2321933 | G51: 1259065 | H51: 84.42 | I51: 1062868 | J51: 43 | K51: 25 | L51: 1 | M51: 25 | N51: 0 | O51: 0
A52: 塑膠工業5 | B52: 塑膠工業21 | C52: 1313 聯成 | D52: 塑膠工業 | E52: M1300 | F52: 5300917 | G52: 4384870 | H52: 20.89 | I52: 916047 | J52: 43 | K52: 25 | L52: 5 | M52: 21 | N52: 0 | O52: 0
A53: 塑膠工業23 | B53: 塑膠工業3 | C53: 1314 中石化 | D53: 塑膠工業 | E53: M1300 | F53: 1589699 | G53: 2362119 | H53: -32.7 | I53: -772420 | J53: 43 | K53: 25 | L53: 23 | M53: 3 | N53: 0 | O53: 0
A54: 塑膠工業24 | B54: 塑膠工業2 | C54: 1315 達新 | D54: 塑膠工業 | E54: M1300 | F54: 126246 | G54: 202243 | H54: -37.58 | I54: -75997 | J54: 43 | K54: 25 | L54: 24 | M54: 2 | N54: 0 | O54: 0
A55: 塑膠工業14 | B55: 塑膠工業12 | C55: 1321 大洋 | D55: 塑膠工業 | E55: M1300 | F55: 330086 | G55: 326211 | H55: 1.19 | I55: 3875 | J55: 43 | K55: 25 | L55: 14 | M55: 12 | N55: 0 | O55: 0
A56: 塑膠工業17 | B56: 塑膠工業9 | C56: 1323 永裕 | D56: 塑膠工業 | E56: M1300 | F56: 179252 | G56: 189115 | H56: -5.22 | I56: -9863 | J56: 43 | K56: 25 | L56: 17 | M56: 9 | N56: 0 | O56: 0
A57: 塑膠工業8 | B57: 塑膠工業18 | C57: 1324 地球 | D57: 塑膠工業 | E57: M1300 | F57: 59958 | G57: 54847 | H57: 9.32 | I57: 5111 | J57: 43 | K57: 25 | L57: 8 | M57: 18 | N57: 0 | O57: 0
A58: 塑膠工業19 | B58: 塑膠工業7 | C58: 1325 恒大 | D58: 塑膠工業 | E58: M1300 | F58: 24322 | G58: 29223 | H58: -16.77 | I58: -4901 | J58: 43 | K58: 25 | L58: 19 | M58: 7 | N58: 0 | O58: 0
A59: 塑膠工業10 | B59: 塑膠工業16 | C59: 1326 台化 | D59: 塑膠工業 | E59: M1300 | F59: 25040014 | G59: 24019167 | H59: 4.25 | I59: 1020847 | J59: 43 | K59: 25 | L59: 10 | M59: 16 | N59: 0 | O59: 0
A60: 塑膠工業22 | B60: 塑膠工業4 | C60: 1337 再生-KY | D60: 塑膠工業 | E60: M1300 | F60: 54359 | G60: 75613 | H60: -28.11 | I60: -21254 | J60: 43 | K60: 25 | L60: 22 | M60: 4 | N60: 0 | O60: 0
A61: 塑膠工業25 | B61: 塑膠工業1 | C61: 1340 勝悅-KY | D61: 塑膠工業 | E61: M1300 | F61: 2967 | G61: 16514 | H61: -82.03 | I61: -13547 | J61: 43 | K61: 25 | L61: 25 | M61: 1 | N61: 0 | O61: 0
A62: 塑膠工業9 | B62: 塑膠工業17 | C62: 1341 富林-KY | D62: 塑膠工業 | E62: M1300 | F62: 248122 | G62: 234302 | H62: 5.9 | I62: 13820 | J62: 43 | K62: 25 | L62: 9 | M62: 17 | N62: 0 | O62: 0
A63: 塑膠工業3 | B63: 塑膠工業23 | C63: 4303 信立 | D63: 塑膠工業 | E63: M1300 | F63: 82925 | G63: 63992 | H63: 29.59 | I63: 18933 | J63: 43 | K63: 25 | L63: 3 | M63: 23 | N63: 0 | O63: 0
A64: 塑膠工業21 | B64: 塑膠工業5 | C64: 4304 勝昱 | D64: 塑膠工業 | E64: M1300 | F64: 25027 | G64: 34196 | H64: -26.81 | I64: -9169 | J64: 43 | K64: 25 | L64: 21 | M64: 5 | N64: 0 | O64: 0
A65: 塑膠工業2 | B65: 塑膠工業24 | C65: 4305 世坤 | D65: 塑膠工業 | E65: M1300 | F65: 95641 | G65: 73762 | H65: 29.66 | I65: 21879 | J65: 43 | K65: 25 | L65: 2 | M65: 24 | N65: 0 | O65: 0
A66: 塑膠工業4 | B66: 塑膠工業22 | C66: 4306 炎洲 | D66: 塑膠工業 | E66: M1300 | F66: 1225902 | G66: 949610 | H66: 29.1 | I66: 276292 | J66: 43 | K66: 25 | L66: 4 | M66: 22 | N66: 0 | O66: 0
A67: 塑膠工業12 | B67: 塑膠工業14 | C67: 9950 萬國通 | D67: 塑膠工業 | E67: M1300 | F67: 225022 | G67: 218855 | H67: 2.82 | I67: 6167 | J67: 43 | K67: 25 | L67: 12 | M67: 14 | N67: 0 | O67: 0
A68: =D68&L68 -> 紡織纖維28 | B68: =D68&M68 -> 紡織纖維25 | C68: 1402 遠東新 | D68: 紡織纖維 | E68: M1400 | F68: 21993415 | G68: 22045002 | H68: -0.23 | I68: =F68-G68 -> -51587 | J68: =IF(E68="","",MATCH(E68,E:E,0)) -> 68 | K68: =COUNTIF(D:D,D68) -> 52 | L68: =IF(H68="","",RANK(H68,OFFSET(H$1,$J68-1,,$K68,),0)) -> 28 | M68: =IF(H68="","",RANK(H68,OFFSET(H$1,$J68-1,,$K68,),1)) -> 25 | N68: 0 | O68: 0
A69: 紡織纖維29 | B69: 紡織纖維24 | C69: 1409 新纖 | D69: 紡織纖維 | E69: M1400 | F69: 3334219 | G69: 3387023 | H69: -1.56 | I69: -52804 | J69: 68 | K69: 52 | L69: 29 | M69: 24 | N69: 0 | O69: 0
A70: 紡織纖維12 | B70: 紡織纖維41 | C70: 1410 南染 | D70: 紡織纖維 | E70: M1400 | F70: 14210 | G70: 11987 | H70: 18.55 | I70: 2223 | J70: 68 | K70: 52 | L70: 12 | M70: 41 | N70: 0 | O70: 0
A71: 紡織纖維48 | B71: 紡織纖維5 | C71: 1413 宏洲 | D71: 紡織纖維 | E71: M1400 | F71: 144951 | G71: 196446 | H71: -26.21 | I71: -51495 | J71: 68 | K71: 52 | L71: 48 | M71: 5 | N71: 0 | O71: 0
A72: 紡織纖維23 | B72: 紡織纖維30 | C72: 1414 東和 | D72: 紡織纖維 | E72: M1400 | F72: 41048 | G72: 39790 | H72: 3.16 | I72: 1258 | J72: 68 | K72: 52 | L72: 23 | M72: 30 | N72: 0 | O72: 0
A73: 紡織纖維3 | B73: 紡織纖維50 | C73: 1417 嘉裕 | D73: 紡織纖維 | E73: M1400 | F73: 30235 | G73: 19960 | H73: 51.48 | I73: 10275 | J73: 68 | K73: 52 | L73: 3 | M73: 50 | N73: 0 | O73: 0
A74: 紡織纖維35 | B74: 紡織纖維18 | C74: 1418 東華 | D74: 紡織纖維 | E74: M1400 | F74: 613 | G74: 679 | H74: -9.72 | I74: -66 | J74: 68 | K74: 52 | L74: 35 | M74: 18 | N74: 0 | O74: 0
A75: 紡織纖維4 | B75: 紡織纖維49 | C75: 1419 新紡 | D75: 紡織纖維 | E75: M1400 | F75: 509836 | G75: 337096 | H75: 51.24 | I75: 172740 | J75: 68 | K75: 52 | L75: 4 | M75: 49 | N75: 0 | O75: 0
A76: 紡織纖維38 | B76: 紡織纖維15 | C76: 1423 利華 | D76: 紡織纖維 | E76: M1400 | F76: 5852 | G76: 6712 | H76: -12.81 | I76: -860 | J76: 68 | K76: 52 | L76: 38 | M76: 15 | N76: 0 | O76: 0
A77: 紡織纖維21 | B77: 紡織纖維32 | C77: 1434 福懋 | D77: 紡織纖維 | E77: M1400 | F77: 2426027 | G77: 2308607 | H77: 5.09 | I77: 117420 | J77: 68 | K77: 52 | L77: 21 | M77: 32 | N77: 0 | O77: 0
A78: 紡織纖維42 | B78: 紡織纖維11 | C78: 1440 南紡 | D78: 紡織纖維 | E78: M1400 | F78: 1103124 | G78: 1314202 | H78: -16.06 | I78: -211078 | J78: 68 | K78: 52 | L78: 42 | M78: 11 | N78: 0 | O78: 0
A79: 紡織纖維39 | B79: 紡織纖維14 | C79: 1441 大東 | D79: 紡織纖維 | E79: M1400 | F79: 117500 | G79: 134774 | H79: -12.82 | I79: -17274 | J79: 68 | K79: 52 | L79: 39 | M79: 14 | N79: 0 | O79: 0
A80: 紡織纖維43 | B80: 紡織纖維10 | C80: 1444 力麗 | D80: 紡織纖維 | E80: M1400 | F80: 527231 | G80: 631626 | H80: -16.53 | I80: -104395 | J80: 68 | K80: 52 | L80: 43 | M80: 10 | N80: 0 | O80: 0
A81: 紡織纖維34 | B81: 紡織纖維19 | C81: 1445 大宇 | D81: 紡織纖維 | E81: M1400 | F81: 73686 | G81: 79857 | H81: -7.73 | I81: -6171 | J81: 68 | K81: 52 | L81: 34 | M81: 19 | N81: 0 | O81: 0
A82: 紡織纖維52 | B82: 紡織纖維1 | C82: 1446 宏和 | D82: 紡織纖維 | E82: M1400 | F82: 6715 | G82: 143087 | H82: -95.31 | I82: -136372 | J82: 68 | K82: 52 | L82: 52 | M82: 1 | N82: 0 | O82: 0
A83: 紡織纖維22 | B83: 紡織纖維31 | C83: 1447 力鵬 | D83: 紡織纖維 | E83: M1400 | F83: 2477005 | G83: 2368662 | H83: 4.57 | I83: 108343 | J83: 68 | K83: 52 | L83: 22 | M83: 31 | N83: 0 | O83: 0
A84: 紡織纖維14 | B84: 紡織纖維39 | C84: 1449 佳和 | D84: 紡織纖維 | E84: M1400 | F84: 228333 | G84: 207114 | H84: 10.25 | I84: 21219 | J84: 68 | K84: 52 | L84: 14 | M84: 39 | N84: 0 | O84: 0
A85: 紡織纖維10 | B85: 紡織纖維43 | C85: 1451 年興 | D85: 紡織纖維 | E85: M1400 | F85: 550618 | G85: 458452 | H85: 20.1 | I85: 92166 | J85: 68 | K85: 52 | L85: 10 | M85: 43 | N85: 0 | O85: 0
A86: 紡織纖維37 | B86: 紡織纖維16 | C86: 1452 宏益 | D86: 紡織纖維 | E86: M1400 | F86: 91925 | G86: 105403 | H86: -12.79 | I86: -13478 | J86: 68 | K86: 52 | L86: 37 | M86: 16 | N86: 0 | O86: 0
A87: 紡織纖維33 | B87: 紡織纖維20 | C87: 1454 台富 | D87: 紡織纖維 | E87: M1400 | F87: 108456 | G87: 117467 | H87: -7.67 | I87: -9011 | J87: 68 | K87: 52 | L87: 33 | M87: 20 | N87: 0 | O87: 0
A88: 紡織纖維47 | B88: 紡織纖維6 | C88: 1455 集盛 | D88: 紡織纖維 | E88: M1400 | F88: 417747 | G88: 547969 | H88: -23.76 | I88: -130222 | J88: 68 | K88: 52 | L88: 47 | M88: 6 | N88: 0 | O88: 0
A89: 紡織纖維46 | B89: 紡織纖維7 | C89: 1457 宜進 | D89: 紡織纖維 | E89: M1400 | F89: 218095 | G89: 284681 | H89: -23.39 | I89: -66586 | J89: 68 | K89: 52 | L89: 46 | M89: 7 | N89: 0 | O89: 0
A90: 紡織纖維41 | B90: 紡織纖維12 | C90: 1459 聯發 | D90: 紡織纖維 | E90: M1400 | F90: 82826 | G90: 98437 | H90: -15.86 | I90: -15611 | J90: 68 | K90: 52 | L90: 41 | M90: 12 | N90: 0 | O90: 0
A91: 紡織纖維30 | B91: 紡織纖維23 | C91: 1460 宏遠 | D91: 紡織纖維 | E91: M1400 | F91: 662268 | G91: 683189 | H91: -3.06 | I91: -20921 | J91: 68 | K91: 52 | L91: 30 | M91: 23 | N91: 0 | O91: 0
A92: 紡織纖維51 | B92: 紡織纖維2 | C92: 1463 強盛新 | D92: 紡織纖維 | E92: M1400 | F92: 27016 | G92: 450723 | H92: -94.01 | I92: -423707 | J92: 68 | K92: 52 | L92: 51 | M92: 2 | N92: 0 | O92: 0
A93: 紡織纖維24 | B93: 紡織纖維29 | C93: 1464 得力 | D93: 紡織纖維 | E93: M1400 | F93: 1061584 | G93: 1036037 | H93: 2.47 | I93: 25547 | J93: 68 | K93: 52 | L93: 24 | M93: 29 | N93: 0 | O93: 0
A94: 紡織纖維26 | B94: 紡織纖維27 | C94: 1465 偉全 | D94: 紡織纖維 | E94: M1400 | F94: 43758 | G94: 42887 | H94: 2.03 | I94: 871 | J94: 68 | K94: 52 | L94: 26 | M94: 27 | N94: =U94 -> 0 | O94: =V94 -> 0
A95: 紡織纖維40 | B95: 紡織纖維13 | C95: 1466 聚隆 | D95: 紡織纖維 | E95: M1400 | F95: 194990 | G95: 223697 | H95: -12.83 | I95: -28707 | J95: 68 | K95: 52 | L95: 40 | M95: 13 | N95: 0 | O95: 0
A96: 紡織纖維32 | B96: 紡織纖維21 | C96: 1467 南緯 | D96: 紡織纖維 | E96: M1400 | F96: 345912 | G96: 372010 | H96: -7.02 | I96: -26098 | J96: 68 | K96: 52 | L96: 32 | M96: 21 | N96: 0 | O96: 0
A97: 紡織纖維7 | B97: 紡織纖維46 | C97: 1468 昶和 | D97: 紡織纖維 | E97: M1400 | F97: 74788 | G97: 55590 | H97: 34.53 | I97: 19198 | J97: 68 | K97: 52 | L97: 7 | M97: 46 | N97: 0 | O97: 0
A98: 紡織纖維16 | B98: 紡織纖維37 | C98: 1470 大統新創 | D98: 紡織纖維 | E98: M1400 | F98: 73862 | G98: 67897 | H98: 8.79 | I98: 5965 | J98: 68 | K98: 52 | L98: 16 | M98: 37 | N98: 0 | O98: 0
A99: 紡織纖維36 | B99: 紡織纖維17 | C99: 1473 台南 | D99: 紡織纖維 | E99: M1400 | F99: 696586 | G99: 788461 | H99: -11.65 | I99: -91875 | J99: 68 | K99: 52 | L99: 36 | M99: 17 | N99: 0 | O99: 0
A100: 紡織纖維15 | B100: 紡織纖維38 | C100: 1474 弘裕 | D100: 紡織纖維 | E100: M1400 | F100: 239437 | G100: 218813 | H100: 9.43 | I100: 20624 | J100: 68 | K100: 52 | L100: 15 | M100: 38 | N100: 0 | O100: 0
A101: 紡織纖維31 | B101: 紡織纖維22 | C101: 1475 業旺 | D101: 紡織纖維 | E101: M1400 | F101: 129122 | G101: 135817 | H101: -4.93 | I101: -6695 | J101: 68 | K101: 52 | L101: 31 | M101: 22 | N101: 0 | O101: 0
A102: 紡織纖維18 | B102: 紡織纖維35 | C102: 1476 儒鴻 | D102: 紡織纖維 | E102: M1400 | F102: 3581621 | G102: 3330196 | H102: 7.55 | I102: 251425 | J102: 68 | K102: 52 | L102: 18 | M102: 35 | N102: 0 | O102: 0
A103: 紡織纖維45 | B103: 紡織纖維8 | C103: 1477 聚陽 | D103: 紡織纖維 | E103: M1400 | F103: 2828261 | G103: 3500665 | H103: -19.21 | I103: -672404 | J103: 68 | K103: 52 | L103: 45 | M103: 8 | N103: 0 | O103: 0
A104: 紡織纖維5 | B104: 紡織纖維48 | C104: 4401 東隆興 | D104: 紡織纖維 | E104: M1400 | F104: 325432 | G104: 223081 | H104: 45.88 | I104: 102351 | J104: 68 | K104: 52 | L104: 5 | M104: 48 | N104: 0 | O104: 0
A105: 紡織纖維49 | B105: 紡織纖維4 | C105: 4402 郡都開發 | D105: 紡織纖維 | E105: M1400 | F105: 1853 | G105: 2521 | H105: -26.5 | I105: -668 | J105: 68 | K105: 52 | L105: 49 | M105: 4 | N105: 0 | O105: 0
A106: 紡織纖維20 | B106: 紡織纖維33 | C106: 4406 新昕纖 | D106: 紡織纖維 | E106: M1400 | F106: 38958 | G106: 37066 | H106: 5.1 | I106: 1892 | J106: 68 | K106: 52 | L106: 20 | M106: 33 | N106: 0 | O106: 0
A107: 紡織纖維1 | B107: 紡織纖維52 | C107: 4413 飛寶企業 | D107: 紡織纖維 | E107: M1400 | F107: 67093 | G107: 25476 | H107: 163.36 | I107: 41617 | J107: 68 | K107: 52 | L107: 1 | M107: 52 | N107: 0 | O107: 0
A108: 紡織纖維27 | B108: 紡織纖維26 | C108: 4414 如興 | D108: 紡織纖維 | E108: M1400 | F108: 1163385 | G108: 1148538 | H108: 1.29 | I108: 14847 | J108: 68 | K108: 52 | L108: 27 | M108: 26 | N108: 0 | O108: 0
A109: 紡織纖維19 | B109: 紡織纖維34 | C109: 4417 金洲 | D109: 紡織纖維 | E109: M1400 | F109: 322651 | G109: 305154 | H109: 5.73 | I109: 17497 | J109: 68 | K109: 52 | L109: 19 | M109: 34 | N109: 0 | O109: 0
A110: 紡織纖維17 | B110: 紡織纖維36 | C110: 4420 光明 | D110: 紡織纖維 | E110: M1400 | F110: 75075 | G110: 69568 | H110: 7.92 | I110: 5507 | J110: 68 | K110: 52 | L110: 17 | M110: 36 | N110: 0 | O110: 0
A111: 紡織纖維13 | B111: 紡織纖維40 | C111: 4426 利勤 | D111: 紡織纖維 | E111: M1400 | F111: 79261 | G111: 68360 | H111: 15.95 | I111: 10901 | J111: 68 | K111: 52 | L111: 13 | M111: 40 | N111: 0 | O111: 0
A112: 紡織纖維50 | B112: 紡織纖維3 | C112: 4432 銘旺實 | D112: 紡織纖維 | E112: M1400 | F112: 89402 | G112: 156235 | H112: -42.78 | I112: -66833 | J112: 68 | K112: 52 | L112: 50 | M112: 3 | N112: 0 | O112: 0
A113: 紡織纖維9 | B113: 紡織纖維44 | C113: 4433 興采 | D113: 紡織纖維 | E113: M1400 | F113: 278459 | G113: 224529 | H113: 24.02 | I113: 53930 | J113: 68 | K113: 52 | L113: 9 | M113: 44 | N113: 0 | O113: 0
A114: 紡織纖維25 | B114: 紡織纖維28 | C114: 4438 廣越 | D114: 紡織纖維 | E114: M1400 | F114: 1039301 | G114: 1015421 | H114: 2.35 | I114: 23880 | J114: 68 | K114: 52 | L114: 25 | M114: 28 | N114: 0 | O114: 0
A115: 紡織纖維11 | B115: 紡織纖維42 | C115: 4439 冠星-KY | D115: 紡織纖維 | E115: M1400 | F115: 543689 | G115: 454519 | H115: 19.62 | I115: 89170 | J115: 68 | K115: 52 | L115: 11 | M115: 42 | N115: 0 | O115: 0
A116: 紡織纖維8 | B116: 紡織纖維45 | C116: 4440 宜新實業 | D116: 紡織纖維 | E116: M1400 | F116: 105543 | G116: 80950 | H116: 30.38 | I116: 24593 | J116: 68 | K116: 52 | L116: 8 | M116: 45 | N116: 0 | O116: 0
A117: 紡織纖維2 | B117: 紡織纖維51 | C117: 4441 振大環球 | D117: 紡織纖維 | E117: M1400 | F117: 701250 | G117: 457969 | H117: 53.12 | I117: 243281 | J117: 68 | K117: 52 | L117: 2 | M117: 51 | N117: 0 | O117: 0
A118: 紡織纖維44 | B118: 紡織纖維9 | C118: 4442 竣邦-KY | D118: 紡織纖維 | E118: M1400 | F118: 112346 | G118: 137199 | H118: -18.11 | I118: -24853 | J118: 68 | K118: 52 | L118: 44 | M118: 9 | N118: 0 | O118: 0
A119: 紡織纖維6 | B119: 紡織纖維47 | C119: 6506 雙邦 | D119: 紡織纖維 | E119: M1400 | F119: 207965 | G119: 153981 | H119: 35.06 | I119: 53984 | J119: 68 | K119: 52 | L119: 6 | M119: 47 | N119: 0 | O119: 0
A120: 電機機械59 | B120: 電機機械40 | C120: 1503 士電 | D120: 電機機械 | E120: M1500 | F120: 4483948 | G120: 4248122 | H120: 5.55 | I120: 235826 | J120: 120 | K120: 98 | L120: 59 | M120: 40 | N120: 0 | O120: 0
A121: 電機機械53 | B121: 電機機械46 | C121: 1504 東元 | D121: 電機機械 | E121: M1500 | F121: 4643699 | G121: 4303352 | H121: 7.91 | I121: 340347 | J121: 120 | K121: 98 | L121: 53 | M121: 46 | N121: 0 | O121: 0
A122: 電機機械30 | B122: 電機機械69 | C122: 1506 正道 | D122: 電機機械 | E122: M1500 | F122: 95635 | G122: 74550 | H122: 28.28 | I122: 21085 | J122: 120 | K122: 98 | L122: 30 | M122: 69 | N122: 0 | O122: 0
A123: 電機機械50 | B123: 電機機械49 | C123: 1513 中興電 | D123: 電機機械 | E123: M1500 | F123: 2133688 | G123: 1929217 | H123: 10.6 | I123: 204471 | J123: 120 | K123: 98 | L123: 50 | M123: 49 | N123: 0 | O123: 0
A124: 電機機械13 | B124: 電機機械86 | C124: 1514 亞力 | D124: 電機機械 | E124: M1500 | F124: 965888 | G124: 571823 | H124: 68.91 | I124: 394065 | J124: 120 | K124: 98 | L124: 13 | M124: 86 | N124: 0 | O124: 0
A125: 電機機械26 | B125: 電機機械73 | C125: 1515 力山 | D125: 電機機械 | E125: M1500 | F125: 450296 | G125: 335834 | H125: 34.08 | I125: 114462 | J125: 120 | K125: 98 | L125: 26 | M125: 73 | N125: 0 | O125: 0
A126: 電機機械67 | B126: 電機機械32 | C126: 1517 利奇 | D126: 電機機械 | E126: M1500 | F126: 181152 | G126: 178660 | H126: 1.39 | I126: 2492 | J126: 120 | K126: 98 | L126: 67 | M126: 32 | N126: 0 | O126: 0
A127: 電機機械55 | B127: 電機機械44 | C127: 1519 華城 | D127: 電機機械 | E127: M1500 | F127: 1356774 | G127: 1275049 | H127: 6.41 | I127: 81725 | J127: 120 | K127: 98 | L127: 55 | M127: 44 | N127: 0 | O127: 0
A128: 電機機械75 | B128: 電機機械24 | C128: 1526 日馳 | D128: 電機機械 | E128: M1500 | F128: 55083 | G128: 60941 | H128: -9.61 | I128: -5858 | J128: 120 | K128: 98 | L128: 75 | M128: 24 | N128: 0 | O128: 0
A129: 電機機械82 | B129: 電機機械17 | C129: 1527 鑽全 | D129: 電機機械 | E129: M1500 | F129: 240478 | G129: 293324 | H129: -18.02 | I129: -52846 | J129: 120 | K129: 98 | L129: 82 | M129: 17 | N129: 0 | O129: 0
A130: 電機機械18 | B130: 電機機械81 | C130: 1528 恩德 | D130: 電機機械 | E130: M1500 | F130: 250494 | G130: 173640 | H130: 44.26 | I130: 76854 | J130: 120 | K130: 98 | L130: 18 | M130: 81 | N130: 0 | O130: 0
A131: 電機機械4 | B131: 電機機械95 | C131: 1529 樂事綠能 | D131: 電機機械 | E131: M1500 | F131: 156851 | G131: 41581 | H131: 277.22 | I131: 115270 | J131: 120 | K131: 98 | L131: 4 | M131: 95 | N131: 0 | O131: 0
A132: =D132&L132 -> 電機機械90 | B132: =D132&M132 -> 電機機械9 | C132: 1530 亞崴 | D132: 電機機械 | E132: M1500 | F132: 141251 | G132: 206986 | H132: -31.76 | I132: =F132-G132 -> -65735 | J132: =IF(E132="","",MATCH(E132,E:E,0)) -> 120 | K132: =COUNTIF(D:D,D132) -> 98 | L132: =IF(H132="","",RANK(H132,OFFSET(H$1,$J132-1,,$K132,),0)) -> 90 | M132: =IF(H132="","",RANK(H132,OFFSET(H$1,$J132-1,,$K132,),1)) -> 9 | N132: 0 | O132: 0
A133: 電機機械79 | B133: 電機機械20 | C133: 1531 高林股 | D133: 電機機械 | E133: M1500 | F133: 117207 | G133: 135929 | H133: -13.77 | I133: -18722 | J133: 120 | K133: 98 | L133: 79 | M133: 20 | N133: 0 | O133: 0
A134: 電機機械68 | B134: 電機機械31 | C134: 1532 勤美 | D134: 電機機械 | E134: M1500 | F134: 1082068 | G134: 1068173 | H134: 1.3 | I134: 13895 | J134: 120 | K134: 98 | L134: 68 | M134: 31 | N134: 0 | O134: 0
A135: 電機機械86 | B135: 電機機械13 | C135: 1535 中宇 | D135: 電機機械 | E135: M1500 | F135: 630751 | G135: 821315 | H135: -23.2 | I135: -190564 | J135: 120 | K135: 98 | L135: 86 | M135: 13 | N135: 0 | O135: 0
A136: 電機機械70 | B136: 電機機械29 | C136: 1537 廣隆 | D136: 電機機械 | E136: M1500 | F136: 618676 | G136: 649163 | H136: -4.7 | I136: -30487 | J136: 120 | K136: 98 | L136: 70 | M136: 29 | N136: 0 | O136: 0
A137: 電機機械98 | B137: 電機機械1 | C137: 1538 正峰 | D137: 電機機械 | E137: M1500 | F137: 4606 | G137: 8910 | H137: -48.31 | I137: -4304 | J137: 120 | K137: 98 | L137: 98 | M137: 1 | N137: 0 | O137: 0
A138: 電機機械96 | B138: 電機機械3 | C138: 1539 巨庭 | D138: 電機機械 | E138: M1500 | F138: 92097 | G138: 150123 | H138: -38.65 | I138: -58026 | J138: 120 | K138: 98 | L138: 96 | M138: 3 | N138: 0 | O138: 0
A139: 電機機械92 | B139: 電機機械7 | C139: 1540 喬福 | D139: 電機機械 | E139: M1500 | F139: 36298 | G139: 53499 | H139: -32.15 | I139: -17201 | J139: 120 | K139: 98 | L139: 92 | M139: 7 | N139: 0 | O139: 0
A140: 電機機械87 | B140: 電機機械12 | C140: 1541 錩泰 | D140: 電機機械 | E140: M1500 | F140: 248105 | G140: 323932 | H140: -23.41 | I140: -75827 | J140: 120 | K140: 98 | L140: 87 | M140: 12 | N140: 0 | O140: 0
A141: 電機機械74 | B141: 電機機械25 | C141: 1558 伸興 | D141: 電機機械 | E141: M1500 | F141: 719888 | G141: 783818 | H141: -8.16 | I141: -63930 | J141: 120 | K141: 98 | L141: 74 | M141: 25 | N141: 0 | O141: 0
A142: 電機機械28 | B142: 電機機械71 | C142: 1560 中砂 | D142: 電機機械 | E142: M1500 | F142: 752917 | G142: 565808 | H142: 33.07 | I142: 187109 | J142: 120 | K142: 98 | L142: 28 | M142: 71 | N142: 0 | O142: 0
A143: 電機機械83 | B143: 電機機械16 | C143: 1570 力肯 | D143: 電機機械 | E143: M1500 | F143: 44781 | G143: 55007 | H143: -18.59 | I143: -10226 | J143: 120 | K143: 98 | L143: 83 | M143: 16 | N143: 0 | O143: 0
A144: 電機機械47 | B144: 電機機械52 | C144: 1580 新麥 | D144: 電機機械 | E144: M1500 | F144: 430388 | G144: 381500 | H144: 12.81 | I144: 48888 | J144: 120 | K144: 98 | L144: 47 | M144: 52 | N144: 0 | O144: 0
A145: 電機機械65 | B145: 電機機械34 | C145: 1583 程泰 | D145: 電機機械 | E145: M1500 | F145: 312111 | G145: 306298 | H145: 1.9 | I145: 5813 | J145: 120 | K145: 98 | L145: 65 | M145: 34 | N145: 0 | O145: 0
A146: 電機機械41 | B146: 電機機械58 | C146: 1586 和勤 | D146: 電機機械 | E146: M1500 | F146: 218429 | G146: 186978 | H146: 16.82 | I146: 31451 | J146: 120 | K146: 98 | L146: 41 | M146: 58 | N146: 0 | O146: 0
A147: 電機機械27 | B147: 電機機械72 | C147: 1589 永冠-KY | D147: 電機機械 | E147: M1500 | F147: 645088 | G147: 481634 | H147: 33.94 | I147: 163454 | J147: 120 | K147: 98 | L147: 27 | M147: 72 | N147: 0 | O147: 0
A148: 電機機械14 | B148: 電機機械85 | C148: 1590 亞德客-KY | D148: 電機機械 | E148: M1500 | F148: 3702382 | G148: 2219508 | H148: 66.81 | I148: 1482874 | J148: 120 | K148: 98 | L148: 14 | M148: 85 | N148: 0 | O148: 0
A149: 電機機械1 | B149: 電機機械98 | C149: 1591 駿吉-KY | D149: 電機機械 | E149: M1500 | F149: 44016 | G149: 3965 | H149: 1010.11 | I149: 40051 | J149: 120 | K149: 98 | L149: 1 | M149: 98 | N149: 0 | O149: 0
A150: 電機機械22 | B150: 電機機械77 | C150: 1597 直得 | D150: 電機機械 | E150: M1500 | F150: 107622 | G150: 76931 | H150: 39.89 | I150: 30691 | J150: 120 | K150: 98 | L150: 22 | M150: 77 | N150: 0 | O150: 0
A151: 電機機械23 | B151: 電機機械76 | C151: 1599 宏佳騰 | D151: 電機機械 | E151: M1500 | F151: 213510 | G151: 152660 | H151: 39.86 | I151: 60850 | J151: 120 | K151: 98 | L151: 23 | M151: 76 | N151: 0 | O151: 0
A152: 電機機械46 | B152: 電機機械53 | C152: 2049 上銀 | D152: 電機機械 | E152: M1500 | F152: 2150023 | G152: 1900341 | H152: 13.14 | I152: 249682 | J152: 120 | K152: 98 | L152: 46 | M152: 53 | N152: 0 | O152: 0
A153: 電機機械66 | B153: 電機機械33 | C153: 2066 世德 | D153: 電機機械 | E153: M1500 | F153: 238572 | G153: 234176 | H153: 1.88 | I153: 4396 | J153: 120 | K153: 98 | L153: 66 | M153: 33 | N153: 0 | O153: 0
A154: 電機機械25 | B154: 電機機械74 | C154: 2067 嘉鋼 | D154: 電機機械 | E154: M1500 | F154: 87856 | G154: 65271 | H154: 34.6 | I154: 22585 | J154: 120 | K154: 98 | L154: 25 | M154: 74 | N154: 0 | O154: 0
A155: 電機機械44 | B155: 電機機械55 | C155: 2070 精湛 | D155: 電機機械 | E155: M1500 | F155: 46109 | G155: 40492 | H155: 13.87 | I155: 5617 | J155: 120 | K155: 98 | L155: 44 | M155: 55 | N155: 0 | O155: 0
A156: 電機機械54 | B156: 電機機械45 | C156: 2230 泰茂 | D156: 電機機械 | E156: M1500 | F156: 256031 | G156: 237655 | H156: 7.73 | I156: 18376 | J156: 120 | K156: 98 | L156: 54 | M156: 45 | N156: 0 | O156: 0
A157: 電機機械17 | B157: 電機機械82 | C157: 2235 謚源 | D157: 電機機械 | E157: M1500 | F157: 51770 | G157: 35691 | H157: 45.05 | I157: 16079 | J157: 120 | K157: 98 | L157: 17 | M157: 82 | N157: 0 | O157: 0
A158: 電機機械37 | B158: 電機機械62 | C158: 2371 大同 | D158: 電機機械 | E158: M1500 | F158: 4244071 | G158: 3558687 | H158: 19.26 | I158: 685384 | J158: 120 | K158: 98 | L158: 37 | M158: 62 | N158: =U158 -> 0 | O158: =V158 -> 0
A159: 電機機械29 | B159: 電機機械70 | C159: 3162 精確 | D159: 電機機械 | E159: M1500 | F159: 749985 | G159: 572741 | H159: 30.95 | I159: 177244 | J159: 120 | K159: 98 | L159: 29 | M159: 70 | N159: 0 | O159: 0
A160: 電機機械6 | B160: 電機機械93 | C160: 3167 大量 | D160: 電機機械 | E160: M1500 | F160: 601545 | G160: 273970 | H160: 119.57 | I160: 327575 | J160: 120 | K160: 98 | L160: 6 | M160: 93 | N160: 0 | O160: 0
A161: 電機機械91 | B161: 電機機械8 | C161: 3226 龍鋒 | D161: 電機機械 | E161: M1500 | F161: 124369 | G161: 182309 | H161: -31.78 | I161: -57940 | J161: 120 | K161: 98 | L161: 91 | M161: 8 | N161: 0 | O161: 0
A162: 電機機械80 | B162: 電機機械19 | C162: 3379 彬台 | D162: 電機機械 | E162: M1500 | F162: 79889 | G162: 92958 | H162: -14.06 | I162: -13069 | J162: 120 | K162: 98 | L162: 80 | M162: 19 | N162: 0 | O162: 0
A163: 電機機械89 | B163: 電機機械10 | C163: 3426 台興 | D163: 電機機械 | E163: M1500 | F163: 46352 | G163: 65560 | H163: -29.3 | I163: -19208 | J163: 120 | K163: 98 | L163: 89 | M163: 10 | N163: 0 | O163: 0
A164: 電機機械15 | B164: 電機機械84 | C164: 3685 元創精密 | D164: 電機機械 | E164: M1500 | F164: 118762 | G164: 79033 | H164: 50.27 | I164: 39729 | J164: 120 | K164: 98 | L164: 15 | M164: 84 | N164: 0 | O164: 0
A165: 電機機械56 | B165: 電機機械43 | C165: 4502 健信 | D165: 電機機械 | E165: M1500 | F165: 80533 | G165: 75743 | H165: 6.32 | I165: 4790 | J165: 120 | K165: 98 | L165: 56 | M165: 43 | N165: 0 | O165: 0
A166: 電機機械38 | B166: 電機機械61 | C166: 4503 金雨 | D166: 電機機械 | E166: M1500 | F166: 40962 | G166: 34481 | H166: 18.8 | I166: 6481 | J166: 120 | K166: 98 | L166: 38 | M166: 61 | N166: 0 | O166: 0
A167: 電機機械51 | B167: 電機機械48 | C167: 4506 崇友 | D167: 電機機械 | E167: M1500 | F167: 659335 | G167: 596731 | H167: 10.49 | I167: 62604 | J167: 120 | K167: 98 | L167: 51 | M167: 48 | N167: 0 | O167: 0
A168: 電機機械24 | B168: 電機機械75 | C168: 4510 高鋒 | D168: 電機機械 | E168: M1500 | F168: 142530 | G168: 102793 | H168: 38.66 | I168: 39737 | J168: 120 | K168: 98 | L168: 24 | M168: 75 | N168: 0 | O168: 0
A169: 電機機械32 | B169: 電機機械67 | C169: 4513 福裕 | D169: 電機機械 | E169: M1500 | F169: 83606 | G169: 66601 | H169: 25.53 | I169: 17005 | J169: 120 | K169: 98 | L169: 32 | M169: 67 | N169: 0 | O169: 0
A170: 電機機械2 | B170: 電機機械97 | C170: 4523 永彰 | D170: 電機機械 | E170: M1500 | F170: 211809 | G170: 47845 | H170: 342.7 | I170: 163964 | J170: 120 | K170: 98 | L170: 2 | M170: 97 | N170: 0 | O170: 0
A171: 電機機械85 | B171: 電機機械14 | C171: 4526 東台 | D171: 電機機械 | E171: M1500 | F171: 357638 | G171: 456844 | H171: -21.72 | I171: -99206 | J171: 120 | K171: 98 | L171: 85 | M171: 14 | N171: 0 | O171: 0
A172: 電機機械63 | B172: 電機機械36 | C172: 4527 方方土霖 | D172: 電機機械 | E172: M1500 | F172: 180285 | G172: 175326 | H172: 2.83 | I172: 4959 | J172: 120 | K172: 98 | L172: 63 | M172: 36 | N172: 0 | O172: 0
A173: 電機機械61 | B173: 電機機械38 | C173: 4528 江興鍛 | D173: 電機機械 | E173: M1500 | F173: 143809 | G173: 139369 | H173: 3.19 | I173: 4440 | J173: 120 | K173: 98 | L173: 61 | M173: 38 | N173: 0 | O173: 0
A174: 電機機械78 | B174: 電機機械21 | C174: 4532 瑞智 | D174: 電機機械 | E174: M1500 | F174: 1964103 | G174: 2248382 | H174: -12.64 | I174: -284279 | J174: 120 | K174: 98 | L174: 78 | M174: 21 | N174: 0 | O174: 0
A175: 電機機械88 | B175: 電機機械11 | C175: 4533 協易機 | D175: 電機機械 | E175: M1500 | F175: 345624 | G175: 478805 | H175: -27.82 | I175: -133181 | J175: 120 | K175: 98 | L175: 88 | M175: 11 | N175: 0 | O175: 0
A176: 電機機械39 | B176: 電機機械60 | C176: 4534 慶騰 | D176: 電機機械 | E176: M1500 | F176: 88015 | G176: 74184 | H176: 18.64 | I176: 13831 | J176: 120 | K176: 98 | L176: 39 | M176: 60 | N176: 0 | O176: 0
A177: 電機機械52 | B177: 電機機械47 | C177: 4535 至興 | D177: 電機機械 | E177: M1500 | F177: 243338 | G177: 222381 | H177: 9.42 | I177: 20957 | J177: 120 | K177: 98 | L177: 52 | M177: 47 | N177: 0 | O177: 0
A178: 電機機械5 | B178: 電機機械94 | C178: 4538 大詠城 | D178: 電機機械 | E178: M1500 | F178: 33769 | G178: 15160 | H178: 122.75 | I178: 18609 | J178: 120 | K178: 98 | L178: 5 | M178: 94 | N178: 0 | O178: 0
A179: 電機機械9 | B179: 電機機械90 | C179: 4540 全球傳動 | D179: 電機機械 | E179: M1500 | F179: 269099 | G179: 145376 | H179: 85.11 | I179: 123723 | J179: 120 | K179: 98 | L179: 9 | M179: 90 | N179: 0 | O179: 0
A180: 電機機械10 | B180: 電機機械89 | C180: 4543 萬在 | D180: 電機機械 | E180: M1500 | F180: 84163 | G180: 46675 | H180: 80.32 | I180: 37488 | J180: 120 | K180: 98 | L180: 10 | M180: 89 | N180: 0 | O180: 0
A181: 電機機械48 | B181: 電機機械51 | C181: 4549 桓達 | D181: 電機機械 | E181: M1500 | F181: 94428 | G181: 84398 | H181: 11.88 | I181: 10030 | J181: 120 | K181: 98 | L181: 48 | M181: 51 | N181: 0 | O181: 0
A182: 電機機械7 | B182: 電機機械92 | C182: 4550 長佳 | D182: 電機機械 | E182: M1500 | F182: 104841 | G182: 49384 | H182: 112.3 | I182: 55457 | J182: 120 | K182: 98 | L182: 7 | M182: 92 | N182: 0 | O182: 0
A183: 電機機械60 | B183: 電機機械39 | C183: 4552 力達-KY | D183: 電機機械 | E183: M1500 | F183: 280599 | G183: 266760 | H183: 5.19 | I183: 13839 | J183: 120 | K183: 98 | L183: 60 | M183: 39 | N183: 0 | O183: 0
A184: 電機機械33 | B184: 電機機械66 | C184: 4555 氣立 | D184: 電機機械 | E184: M1500 | F184: 143315 | G184: 114595 | H184: 25.06 | I184: 28720 | J184: 120 | K184: 98 | L184: 33 | M184: 66 | N184: 0 | O184: 0
A185: 電機機械73 | B185: 電機機械26 | C185: 4558 寶緯 | D185: 電機機械 | E185: M1500 | F185: 101456 | G185: 109717 | H185: -7.53 | I185: -8261 | J185: 120 | K185: 98 | L185: 73 | M185: 26 | N185: 0 | O185: 0
A186: 電機機械42 | B186: 電機機械57 | C186: 4560 強信-KY | D186: 電機機械 | E186: M1500 | F186: 144830 | G186: 126684 | H186: 14.32 | I186: 18146 | J186: 120 | K186: 98 | L186: 42 | M186: 57 | N186: 0 | O186: 0
A187: 電機機械11 | B187: 電機機械88 | C187: 4561 健椿 | D187: 電機機械 | E187: M1500 | F187: 87281 | G187: 49762 | H187: 75.4 | I187: 37519 | J187: 120 | K187: 98 | L187: 11 | M187: 88 | N187: 0 | O187: 0
A188: 電機機械62 | B188: 電機機械37 | C188: 4562 穎漢 | D188: 電機機械 | E188: M1500 | F188: 70920 | G188: 68922 | H188: 2.9 | I188: 1998 | J188: 120 | K188: 98 | L188: 62 | M188: 37 | N188: 0 | O188: 0
A189: 電機機械94 | B189: 電機機械5 | C189: 4563 百德 | D189: 電機機械 | E189: M1500 | F189: 143729 | G189: 217953 | H189: -34.06 | I189: -74224 | J189: 120 | K189: 98 | L189: 94 | M189: 5 | N189: 0 | O189: 0
A190: 電機機械95 | B190: 電機機械4 | C190: 4564 元翎 | D190: 電機機械 | E190: M1500 | F190: 82887 | G190: 127240 | H190: -34.86 | I190: -44353 | J190: 120 | K190: 98 | L190: 95 | M190: 4 | N190: 0 | O190: 0
A191: 電機機械45 | B191: 電機機械54 | C191: 4566 時碩工業 | D191: 電機機械 | E191: M1500 | F191: 507793 | G191: 446931 | H191: 13.62 | I191: 60862 | J191: 120 | K191: 98 | L191: 45 | M191: 54 | N191: 0 | O191: 0
A192: 電機機械84 | B192: 電機機械15 | C192: 4568 科際精密 | D192: 電機機械 | E192: M1500 | F192: 105619 | G192: 134164 | H192: -21.28 | I192: -28545 | J192: 120 | K192: 98 | L192: 84 | M192: 15 | N192: 0 | O192: 0
A193: 電機機械76 | B193: 電機機械23 | C193: 4571 鈞興-KY | D193: 電機機械 | E193: M1500 | F193: 332623 | G193: 369147 | H193: -9.89 | I193: -36524 | J193: 120 | K193: 98 | L193: 76 | M193: 23 | N193: 0 | O193: 0
A194: 電機機械77 | B194: 電機機械22 | C194: 4572 駐龍 | D194: 電機機械 | E194: M1500 | F194: 56391 | G194: 63329 | H194: -10.96 | I194: -6938 | J194: 120 | K194: 98 | L194: 77 | M194: 22 | N194: 0 | O194: 0
A195: 電機機械12 | B195: 電機機械87 | C195: 4576 大銀微系統 | D195: 電機機械 | E195: M1500 | F195: 278321 | G195: 163550 | H195: 70.17 | I195: 114771 | J195: 120 | K195: 98 | L195: 12 | M195: 87 | N195: 0 | O195: 0
A196: =D196&L196 -> 電機機械58 | B196: =D196&M196 -> 電機機械41 | C196: 4580 捷流閥業 | D196: 電機機械 | E196: M1500 | F196: 195090 | G196: 184761 | H196: 5.59 | I196: =F196-G196 -> 10329 | J196: =IF(E196="","",MATCH(E196,E:E,0)) -> 120 | K196: =COUNTIF(D:D,D196) -> 98 | L196: =IF(H196="","",RANK(H196,OFFSET(H$1,$J196-1,,$K196,),0)) -> 58 | M196: =IF(H196="","",RANK(H196,OFFSET(H$1,$J196-1,,$K196,),1)) -> 41 | N196: 0 | O196: 0
A197: 電機機械34 | B197: 電機機械65 | C197: 4583 台灣精銳 | D197: 電機機械 | E197: M1500 | F197: 296883 | G197: 238744 | H197: 24.35 | I197: 58139 | J197: 120 | K197: 98 | L197: 34 | M197: 65 | N197: 0 | O197: 0
A198: 電機機械81 | B198: 電機機械18 | C198: 4584 君帆 | D198: 電機機械 | E198: M1500 | F198: 97835 | G198: 116948 | H198: -16.34 | I198: -19113 | J198: 120 | K198: 98 | L198: 81 | M198: 18 | N198: 0 | O198: 0
A199: 電機機械35 | B199: 電機機械64 | C199: 5288 豐祥-KY | D199: 電機機械 | E199: M1500 | F199: 804362 | G199: 649624 | H199: 23.82 | I199: 154738 | J199: 120 | K199: 98 | L199: 35 | M199: 64 | N199: 0 | O199: 0
A200: 電機機械57 | B200: 電機機械42 | C200: 6122 擎邦 | D200: 電機機械 | E200: M1500 | F200: 291171 | G200: 275659 | H200: 5.63 | I200: 15512 | J200: 120 | K200: 98 | L200: 57 | M200: 42 | N200: 0 | O200: 0
... 2800 more rows
